Workbook

Sheet Bij- en afboeken
B2: Artikelnummer CSI | C2: Art Nr Leverancier | D2: Omschrijving | E2: Voorraad
B3: =VLOOKUP($B$8,Voorraad!$A$2:$D$1001,1) -> BX0043 | C3: =VLOOKUP($B$8,Voorraad!$A$2:$D$1001,2) -> PCB 8439L | D3: =VLOOKUP($B$8,Voorraad!$A$2:$E$1001,3) -> PCB 8439L | E3: =VLOOKUP($B$8,Voorraad!$A$2:$D$1002,4) -> 43
B7: Artikel nummer CSI | C7: Aantal
B8: BX0043 | C8: 50

Sheet Voorraad
A2: Artikel Nr CSI | B2: Art Nr Leverancier | C2: Omschrijving | D2: Voorraad | E2: PCB | F2: Leverancier | G2: Producent | H2: Produco Nr | I2: Order Nr | J2: Opmerkingen/Alternatieven | K2: Min. Voorraad | L2: Bestellen | M2: Locatie | N2: EH Prijs | O2: Waarde
A3: BR0001 | B3: #10012201 | C3: R 22E 1% 0.6W 7X2,5MM | D3: 425 | E3: 8510 | G3: BCC | H3: 500028 | K3: 100 | L3: =IF(K3>D3,$U$3,$U$5) -> Nee | M3: - | N3: 0 | O3: =N3*D3 -> 0 | U3: Ja | X3: totaal
A4: BR0002 | B4: #10014701 | C4: R 47E 1% 0.6W 7X2,5MM | D4: 350 | E4: 8510 | F4: TME | G4: BCC | H4: 500032 | I4: M0.6W-47R | K4: 100 | L4: Nee | M4: - | N4: 0 | O4: 0 | X4: =SUM(O3:O999) -> 0
A5: BR0003 | B5: #10021001 | C5: R 100E 1% 0.6W 7X2,5MM | D5: 1725 | E5: 8510/8464 | G5: BCC | H5: 500036 | K5: 100 | L5: Nee | M5: - | N5: 0 | O5: 0 | U5: Nee
A6: BR0004 | B6: #10031001 | C6: R 1K00 1% 0.6W 7X2,5MM | D6: 208 | E6: 8510/8437/8438/8439/8464 | G6: BCC | H6: 500048 | K6: 100 | L6: Nee | M6: - | N6: 0 | O6: 0
A7: BR0005 | B7: #10041001 | C7: R 10K0 1% 0.6W 7X2,5MM | D7: 1908 | E7: 8510/8437/8438/8439 | G7: BCC | H7: 500060 | K7: 100 | L7: Nee | M7: - | N7: 0 | O7: 0
A8: BR0006 | B8: #10041501 | C8: R 15K0 1% 0.6W 7X2,5MM | D8: 1775 | E8: 8510 | G8: BCC | H8: 500062 | K8: 100 | L8: Nee | M8: - | N8: 0 | O8: 0
A9: BR0007 | B9: #10042201 | C9: R 22K0 1% 0.6W 7X2,5MM | D9: 1025 | E9: 8510 | G9: BCC | H9: 500064 | K9: 100 | L9: Nee | M9: - | N9: 0 | O9: 0
A10: BR0008 | B10: #10051001 | C10: R 100K 1% 0.6W 7X2,5MM | D10: 1350 | E10: 8510 | G10: BCC | H10: 500072 | K10: 100 | L10: Nee | M10: - | N10: 0 | O10: 0
A11: BR0009 | B11: #10015601 | C11: R 56E 1% 0.6W 7X2,5MM | D11: 1125 | E11: 8510/8464 | G11: BCC | H11: 500033 | K11: 100 | L11: Nee | M11: - | N11: 0 | O11: 0
A12: BR0010 | B12: #10021801 | C12: R 180E 1% 0.6W 7X2,5MM | D12: 125 | E12: 8510 | F12: TME | G12: BCC | H12: 500039 | I12: MO.6W-180R | K12: 100 | L12: Nee | M12: - | N12: 0 | O12: 0
A13: BR0011 | B13: #10031801 | C13: R 1K8 1% 0.6W 7X2,5MM | D13: 1050 | E13: 8510 | G13: BCC | H13: 500051 | K13: 100 | L13: Nee | M13: - | N13: 0 | O13: 0
A14: BR0012 | B14: #10032701 | C14: R 2K7 1% 0.6W 7X2,5MM | D14: 2225 | E14: 8510 | G14: BCC | H14: 500053 | K14: 100 | L14: Nee | M14: - | N14: 0 | O14: 0
A15: BR0013 | B15: #10045601 | C15: R 56K 1% 0.6W 7X2,5MM | D15: 1925 | E15: 8510 | G15: BCC | H15: 500069 | K15: 100 | L15: Nee | M15: - | N15: 0 | O15: 0
A16: BR0014 | B16: #10056801 | C16: R 680K 1% 0.6W 7X2,5MM | D16: 1100 | E16: 8510 | G16: BCC | H16: 500082 | K16: 100 | L16: Nee | M16: - | N16: 0 | O16: 0
A17: BR0015 | C17: R 2K2 | D17: 500 | E17: 8464 | G17: Philips | K17: 100 | L17: Nee | M17: - | N17: 0 | O17: 0
A18: BR0016 | C18: R 27K | D18: 0 | E18: 8464 | G18: Philips | K18: 100 | L18: Ja | M18: - | N18: 0 | O18: 0
A19: BR3020 | C19: R 470k | D19: 1000 | E19: 8464 | G19: Philips | K19: 100 | L19: Nee | M19: - | N19: 0 | O19: 0
A20: BR3030 | C20: R 4K7 | D20: 2000 | E20: 8464 | G20: Philips | K20: 100 | L20: Nee | M20: - | N20: 0 | O20: 0
A21: BR3035 | C21: R 33K | D21: 3000 | E21: 8464 | G21: Philips | K21: 100 | L21: Nee | M21: - | N21: 0 | O21: 0
A22: BR3517 | C22: R 6K8 | D22: 4000 | E22: 8464 | G22: Philips | K22: 100 | L22: Nee | M22: - | N22: 0 | O22: 0
A23: BR3520 | B23: #350100 | C23: R 5,6E | D23: 0 | E23: 8410 | G23: Philips | K23: 100 | L23: Ja | M23: - | N23: 0 | O23: 0
A24: BR3525 | B24: #120164K102JE | C24: RT 1K 450MW 10% NTC 2E | D24: 725 | E24: 8510 | G24: EPCOS | H24: 500277 | K24: 50 | L24: Nee | M24: - | N24: 0 | O24: 0
A25: BR3530 | B25: #120995120A | C25: RT 13E PTC 2E WPT2390-995 | D25: 5 | E25: 8510 | F25: DISTRELEC | G25: EPCOS | H25: 500248 | I25: B59995-C120-A70 | K25: 250 | L25: Ja | M25: - | N25: 0 | O25: 0
A26: BR3535 | B26: - | C26: - | D26: 0 | E26: - | F26: - | G26: - | H26: - | I26: - | L26: Nee | M26: - | N26: 0 | O26: 0
A27: BR3550 | B27: #122S05K30 | C27: RV S05K30 100A 0.01W | D27: 86 | E27: 8410/8437/8438/8439/8510 | F27: TME | G27: EPCOS | H27: 500088 | I27: SIOV-S05K30 | J27: Groter aantal inkopen | K27: 200 | L27: Ja | M27: - | N27: 0 | O27: 0
A28: BR4008 | B28: #122S05K385 | C28: RV S05K385 385V 0.10W | D28: -142 | E28: 8410/8510 | F28: DISTRELEC | G28: EPCOS | I28: B72207-S 381K101 | J28: RS COMPONENTS NR: 138-9254 | K28: 100 | L28: Ja | M28: - | N28: 0 | O28: 0
A29: BR4016 | B29: #679MFR020 | C29: F MF-R020 0.20A 60V | D29: -51 | E29: 8510 | F29: FARNELL | G29: BOURNS | I29: 9350373 | K29: 100 | L29: Ja | M29: - | N29: 0 | O29: 0
A30: BR4020 | B30: ERF-RA13560Z | C30: MFR135 | D30: 14 | E30: 8437/8438 | F30: TME | G30: ECE | I30: ERF - RA135-60Z | K30: 100 | L30: Ja | M30: - | N30: 0 | O30: 0
A31: BR4025 | B31: ERF-LX005V2 | C31: MFR005 | D31: 742 | E31: 8439 | F31: TME | G31: ECE | I31: LX005-V2 | K31: 100 | L31: Nee | M31: - | N31: 0 | O31: 0
A32: BR4030 | B32: CM-100N-Y5V | C32: 100NF50V | D32: 184 | E32: 8437/8438/8439 | F32: TME | G32: SR Passives | I32: CM-100N-Y5V | K32: 100 | L32: Nee | M32: - | N32: 0 | O32: 0
A33: BR4035 | B33: 350100 | C33: V275LA4 | D33: 219 | E33: 8410 | G33: HARRIS | I33: H809159 | K33: 100 | L33: Nee | M33: - | N33: 0 | O33: 0
A34: BR4040 | B34: #138X2310B | C34: RA 1K-4X SIL08 4608X-2 | D34: 225 | E34: 8510 | G34: BOURNS | H34: 500209 | K34: 100 | L34: Nee | M34: - | N34: 0 | O34: 0
A35: BR4045 | B35: #138X23270B | C35: RA 2K7 4X SIL8 4608X-2 | D35: 15 | E35: 8510 | F35: TME | G35: BOURNS | H35: 500340 | I35: 4608X-102-272LF | K35: 100 | L35: Ja | M35: - | N35: 0 | O35: 0
A36: BR4050 | B36: #138X24100B | C36: RA 10K-4X SIL08 4608X-2 | D36: -101 | E36: 8510 | F36: MOUSER | G36: BOURNS | H36: 500342 | I36: 4608X-102-103LF | K36: 100 | L36: Ja | M36: - | N36: 0 | O36: 0
A37: BR4060 | B37: #140X13100B | C37: RA 1K-9X SIL10 4610X-1 | D37: -142 | E37: 8510 | G37: BOURNS | H37: 500361 | K37: 100 | L37: Ja | M37: - | N37: 0 | O37: 0
A38: BR4070 | B38: #140X14270B | C38: RA 27K 9X SIL10 4610X-101 | D38: 1 | E38: 8510 | F38: MOUSER | G38: BOURNS | H38: 500202 | I38: 652-4610X-1LF-27K | K38: 100 | L38: Ja | M38: - | N38: 0 | O38: 0
A39: BR4530G | B39: #140X1510B | C39: RA 100K-9X SIL10 4610X-1 | D39: -46 | E39: 8510 | G39: BOURNS | H39: 500302 | K39: 100 | L39: Ja | M39: - | N39: 0 | O39: 0
A40: BR4535G | B40: #152R15100B | C40: RA 100K-8X SIL8 4116R-001 | D40: 0 | E40: 8510 | F40: UT SOURCE | G40: BOURNS | H40: 500204 | I40: 4116R-001-104 | K40: 100 | L40: Ja | M40: - | N40: 0 | O40: 0
A41: BR4540 | B41: #29222100020P | C41: CC 220P 3KV 20% 3E | D41: -75 | E41: 8510 | G41: AVX / PANASONIC | H41: 500131 | K41: 100 | L41: Ja | M41: - | N41: 0 | O41: 0
A42: BR45810 | B42: #2231010K | C42: CC 1N 100V +/- 10% 2E | D42: 7 | E42: 8510 | F42: MOUSER | G42: PHILIPS | H42: 500135 | I42: FG28X7R1H102KNT6 | K42: 100 | L42: Ja | M42: - | N42: 0 | O42: 0
A43: BR45812 | B43: #2202210KR | C43: CC 2N2 100V 10% 2E K2000 | D43: 0 | E43: 8510 | F43: MOUSER | G43: BCE | H43: 500325 | I43: 594-K222K15X7RH5UL2 | K43: 100 | L43: Ja | M43: - | N43: 0 | O43: 0
A44: BR5010 | B44: #2344710KKE | C44: CC 47N 63V +80 -20% 2E 55' | D44: -450 | E44: 8410/8510 | G44: BCC | H44: 500138 | J44: Alternatief: 47NF/100V | K44: 100 | L44: Ja | M44: - | N44: 0 | O44: 0
A45: BR5060 | B45: #2112710GB | C45: CC 27P 100V 2% 2E NPO 85' | D45: -2 | E45: 8510 | F45: TME | G45: BCC | H45: 500125 | I45: CCK-27P | K45: 100 | L45: Ja | M45: - | N45: 0 | O45: 0
A46: BR5070 | B46: #2113910GB | C46: CC 39P 100V +/- 0,25 2E | D46: 232 | E46: 8510 | G46: BCE | H46: 599999 | K46: 100 | L46: Nee | M46: - | N46: 0 | O46: 0
A47: BR5080 | B47: #2341010KS | C47: CC 10N 100V 10% 2E X7R | D47: 0 | E47: 8510 | F47: TME | G47: KEMET | H47: 500241 | I47: C317C103K1R5TA | K47: 100 | L47: Ja | M47: - | N47: 0 | O47: 0
A48: BR5090 | B48: #2242210KSX | C48: CC 22N 100V 10% X7R 2E | D48: 2 | E48: 8510 | F48: MOUSER | G48: KEMET | H48: 500137 | I48: 80-C322C223K1R-TR | K48: 100 | L48: Ja | M48: - | N48: 0 | O48: 0
A49: BR6010 | B49: 161590 | C49: 22NF | D49: 0 | E49: 8410 | G49: KEMET | K49: 100 | L49: Ja | M49: - | N49: 0 | O49: 0
A50: BR6012 | B50: #2344710KKE | C50: 220PF/2KV | D50: 0 | E50: 8410 | G50: BCC | K50: 100 | L50: Ja | M50: - | N50: 0 | O50: 0
A51: BR6060 | B51: #25053305KW1 | C51: CF 330N 63V 10% 2E MKS22 | D51: -1575 | E51: 8510 | G51: WIMA | H51: 500324 | K51: 100 | L51: Ja | M51: - | N51: 0 | O51: 0
A52: BR6070 | B52: #2921063025EMZ | C52: CF 100P630V 2,5% 6E 300' | D52: -75 | E52: 8510 | F52: FARNELL | G52: EMZ | I52: 9520015 | K52: 100 | L52: Ja | M52: - | N52: 0 | O52: 0
A53: BR6080 | B53: #27722040V | C53: CE 220U 40V -10 +50% AX | D53: 0 | E53: 8510 | G53: BCC | H53: 500225 | K53: 100 | L53: Ja | M53: - | N53: 0 | O53: 0
A54: BR6090 | B54: #30515040BC | C54: CE 1U5 40V 20% 175' SAL | D54: 108 | E54: 8510 | G54: BCC | J54: 2.2UF mag ook, is beter verkrijgbaar | K54: 100 | L54: Nee | M54: - | N54: 0 | O54: 0
A55: BSH001 | B55: #2816680062M | C55: CE 68U 6V3 20% 175' SAL | D55: -495 | E55: 8510 | F55: TME | G55: VISHAY | H55: 500119 | I55: EEUFM1E101 | K55: 100 | L55: Ja | M55: - | N55: 0 | O55: 0
A56: BSH002 | B56: EEUFC1V221 | C56: 220U / 35V | D56: 178 | E56: 8437/8438/8439 | F56: TME | G56: Panasonic | I56: EEUFC1V221 | J56: Alternatief: SE050M0220-1012 | K56: 100 | L56: Nee | M56: - | N56: 0 | O56: 0
A57: BU0001 | C57: 100U /35V | D57: 21 | E57: 8438 | K57: 100 | L57: Ja | M57: - | N57: 0 | O57: 0
A58: BU0002 | B58: 222202127479 | C58: 47U/40V | D58: 22 | E58: 8464 | F58: Farnell | G58: Vishay | I58: 456556565 | J58: 1165428 | K58: 100 | L58: Ja | M58: - | N58: 0 | O58: 0
A59: BU0003 | B59: 222211651229 | C59: 22UF/50V | D59: 0 | E59: 8464 | F59: TME | G59: Philips | K59: 100 | L59: Ja | M59: - | N59: 0 | O59: 0
A60: BU0004 | B60: 222237021473 | C60: 47NF/100V | D60: 136 | E60: 8464 | G60: Philips | K60: 100 | L60: Nee | M60: - | N60: 0 | O60: 0
A61: BU0005 | B61: 2046-09-C2LF | C61: T83-A90X | D61: 57 | E61: 8437/8438/8439 | F61: Farnell | G61: Bourns | I61: 2335982 | K61: 50 | L61: Nee | M61: - | N61: 0 | O61: 0
A62: BU0006 | C62: BC639 | D62: 0 | E62: 8464 | F62: TME | G62: Philips | K62: 100 | L62: Ja | M62: - | N62: 0 | O62: 0
A63: BU0007 | C63: BC640 | D63: 0 | E63: 8464 | F63: TME | G63: Philips | K63: 100 | L63: Ja | M63: - | N63: 0 | O63: 0
A64: BU0008 | B64: #33108S1105J | C64: L 1000UH 100MA 10% AX 85' | D64: 0 | E64: 8510 | F64: FARNELL | G64: EPCOS | H64: 500210 | I64: 608609 | K64: 100 | L64: Ja | M64: - | N64: 0 | O64: 0
A65: BU0009 | B65: #33108S1473J | C65: L 47UH 340MA 10% AX 85' | D65: 750 | E65: 8510 | G65: EPCOS | H65: 500214 | K65: 100 | L65: Nee | M65: - | N65: 0 | O65: 0
A66: BU0010 | B66: HBCC-220K-02 | C66: 22UH | D66: 60 | E66: 8437/8438/8439 | F66: TME | G66: FASTRON | I66: HBCC-220K-02 | J66: MICC-R22M-02 | K66: 100 | L66: Ja | M66: - | N66: 0 | O66: 0
A67: BU0011 | B67: 304030 | C67: 1UH | D67: 0 | E67: 8410 | I67: R0411R12 | K67: 100 | L67: =IF(K67>D67,$U$3,$U$5) -> Ja | M67: - | N67: 0 | O67: =N67*D67 -> 0
A68: BU0012 | B68: 315000 | C68: 100UH 275MA | D68: 2000 | E68: 8410 | G68: TAI-TECH | I68: FI-0410NA-101K | K68: 100 | L68: Nee | M68: - | N68: 0 | O68: 0
A69: BU0013 | B69: FI-0410NA-102K | C69: 1MH | D69: 0 | E69: 8410 | G69: TAI-TECH | I69: FI-0410NA-102K | K69: 100 | L69: Ja | M69: - | N69: 0 | O69: 0
A70: BU0014 | B70: #341N4004DC | C70: D 1N4004 400V-1A DO-41 | D70: 485 | E70: 8410/8464/8510 | H70: 522000 | K70: 100 | L70: Nee | M70: - | N70: 0 | O70: 0
A71: BU0015 | B71: #341N4148P | C71: D 1N4148PH 75V-200MA | D71: -1075 | E71: 8464/8510 | F71: TME | G71: PHILIPS | H71: 522001 | I71: 1N4148-TAP | K71: 100 | L71: Ja | M71: - | N71: 0 | O71: 0
A72: BU0016 | C72: D BYV27-150-TAP | D72: -7 | E72: 8437/8438/8439/8510 | F72: MOUSER | G72: PHILIPS | H72: 520005 | I72: BYV27-150-TAP | K72: 100 | L72: Ja | M72: - | N72: 0 | O72: 0
A73: BU0017 | B73: #35BZX55C29 | C73: DZ BZX79C20 20V 0.5W DO35 | D73: 1925 | E73: 8510 | H73: 522023 | K73: 100 | L73: Nee | M73: - | N73: 0 | O73: 0
A74: BU0018 | B74: #35ZPD3V9D | C74: DZ ZPD3V9 500MW 2% | D74: 125 | E74: 8510 | G74: GSI | H74: 522011 | K74: 100 | L74: Nee | M74: - | N74: 0 | O74: 0
A75: BU0019 | B75: #35BZX79C5V6 | C75: DZ BZX79C5V6 5V6 0.5W DO | D75: 103 | E75: 8510 | H75: 520014 | K75: 100 | L75: Nee | M75: - | N75: 0 | O75: 0
A76: BU0022 | B76: 4E | C76: BZX79-C18 | D76: 30 | E76: 8464 | F76: TME | I76: Zener18V 0.5W DO35 | J76: I.P.V. BZX55-C18 | K76: 100 | L76: Ja | M76: - | N76: 0 | O76: =N76*D76 -> 0
A77: BU0023 | B77: - | C77: - | D77: 0 | E77: - | F77: - | G77: - | H77: - | I77: - | K77: 100 | L77: Ja | M77: - | N77: 0 | O77: 0
A78: BU0024 | B78: #372N2222ASTM | C78: T 2N2222A TO-18 NPO | D78: 0 | E78: 8510 | F78: FARNELL | G78: ST | H78: 520033 | I78: 9207120 | K78: 100 | L78: Ja | M78: - | N78: 0 | O78: 0
A79: BU0025 | B79: #37IRFF310i | C79: T IRFF310 MOSFET T05 | D79: 0 | E79: 8510 | F79: UT SOURCE | G79: HARRIS | H79: 520039 | J79: 1000 stuks extra inkopen voor vervolgen! | K79: 100 | L79: Ja | M79: - | N79: 0 | O79: 0
A80: BU0026 | B80: #661MS18425 | C80: IS MS184-25 TRANS. VOET | D80: 925 | E80: 8510 | G80: FISCHER | K80: 100 | L80: Nee | M80: - | N80: 0 | O80: 0
A81: BU0027 | B81: #665MS34518 | C81: IS MS34-518 T05/18 Isol | D81: 1 | E81: 8510 | F81: DISTRELEC | G81: FISCHER | I81: TO-5/TO-18PU | K81: 100 | L81: Ja | M81: - | N81: 0 | O81: 0
A82: BU0028 | B82: #432373NCTI | C82: SN74HC373N DIP-20 Ti | D82: -1 | E82: 8510 | F82: TME | G82: Ti | I82: SN74HC373N | K82: 100 | L82: Ja | M82: - | N82: 0 | O82: 0
A83: BU0029 | B83: #41693EPEM | C83: IC MAX693EPE -20/+85' | D83: -75 | E83: 8510 | F83: UT SOURCE | G83: AD | H83: 522301 | J83: alternatief van ADM of LTC mag ook, opvragen! | K83: 100 | L83: Ja | M83: - | N83: 0 | O83: 0
A84: BU0030 | B84: #432374NCPH | C84: IC P74HC374N | D84: -36 | E84: 8510 | F84: TME | G84: NXP | H84: 520343 | I84: SN74HC374N | K84: 100 | L84: Ja | M84: - | N84: 0 | O84: 0
A85: BU0031 | B85: #43404CPH | C85: IC P74HCT04N DIP-14 | D85: 23 | E85: 8510 | F85: AVNET | G85: NXP | H85: 520013 | I85: TISSN74HCT04N | K85: 100 | L85: Ja | M85: - | N85: 0 | O85: 0
A86: BU0032 | B86: #4680C31X2A | C86: IC TS80C31X2-MIA | D86: 0 | E86: 8510 | F86: UT SOURCE | G86: TEMIC | H86: 522300 | I86: TS80C31X2-MIA | K86: 100 | L86: Ja | M86: - | N86: 0 | O86: 0
A87: BU0033 | B87: #47256B12F1GP | C87: IC M27C256B-12F1 EPROM | D87: -75 | E87: 8510 | F87: MOUSER | G87: ST | H87: 522216 | I87: UT8BGCHB2117 | K87: 100 | L87: Ja | M87: - | N87: 0 | O87: 0
A88: BU0034 | B88: #411225Y150PM | C88: IC DS1225Y-200 | D88: -75 | E88: 8510 | G88: DALLAS/HANBIT / MAXIM | H88: 522224 | K88: 100 | L88: Ja | M88: - | N88: 0 | O88: 0
A89: BU0035 | B89: #94TLP626T | C89: IC TLP626 OPTOCOUPLER | D89: -188 | E89: 8510 | F89: TME | G89: TOSHIBA | H89: 552112 | I89: TLP626 | J89: AVNET ORDERCODE - XYETOSTLP626(F) | K89: 100 | L89: Ja | M89: - | N89: 0 | O89: 0
A90: BU0036 | B90: #94TLP627TO | C90: IC TLP627 OPTOCOUPLER DIL-4 | D90: -171 | E90: 8510 | G90: TOSHIBA | H90: 552114 | K90: 100 | L90: Ja | M90: - | N90: 0 | O90: 0
A91: BU0037 | B91: ? | C91: IC TLP627 OPTOCOUPLER DIL-16 | D91: -152 | E91: 8510 | H91: 552116 | K91: 100 | L91: Ja | M91: - | N91: 0 | O91: 0
A92: BU0038 | B92: DIL6 | C92: 4N35 Optocoupler | D92: 15 | E92: 8437/8464 | F92: TME | G92: Vishay | I92: 4N35 | K92: 100 | L92: Ja | M92: - | N92: 0 | O92: 0
A93: BU0039 | B93: 7091968 | C93: IC 4013 CMOS dual D-flipflop | D93: 0 | E93: 8464 | F93: RS | G93: Div | I93: CD4013BE | K93: 100 | L93: Ja | M93: - | N93: 0 | O93: 0
A94: BU0040 | C94: CD40106 CMOS hex inverter | D94: 0 | E94: 8464 | F94: TME | G94: Div. | I94: CD40106BE | K94: 100 | L94: Ja | M94: - | N94: 0 | O94: 0
A95: BU0041 | C95: 7812 Stabilizer 12V 1A | D95: 0 | E95: 8464 | F95: TME | G95: Div. | I95: L7812CV-DG | K95: 100 | L95: Ja | M95: - | N95: 0 | O95: 0
A96: BU0042 | C96: CD4024B CMOS 6 stage ripple counter | D96: 1 | E96: 8464 | F96: TME | G96: Texas Instruments | I96: CD4024BE | K96: 100 | L96: Ja | M96: - | N96: 0 | O96: 0
A97: BU0043 | B97: #50DH3WF | C97: LED HOUDER DH3W HAAKS | D97: -1 | E97: 8510 | F97: DISTELEC | G97: FISCHER | H97: 552122 | I97: 175-07-513 | K97: 100 | L97: Ja | M97: - | N97: 0 | O97: 0
A98: BU0044 | B98: #50DH5WF | C98: LED HOUDER DH5W HAAKSE | D98: 109 | E98: 8510 | F98: DISTRELEC | G98: FISCHER | H98: 552123 | I98: 175-07-515 | K98: 100 | L98: Nee | M98: - | N98: 0 | O98: 0
A99: BU0045 | B99: KVD-03-035/G | C99: LED TLG124A GROEN 3.18MM | D99: 2 | E99: 8437/8438/8439/8464/8510 | F99: TME | G99: KHATOD / King Bright | H99: ? | I99: L-934GD | K99: 100 | L99: Ja | M99: - | N99: 0 | O99: 0
A100: BU0046 | B100: #900TLHY4400 | C100: LED TLY124 AMBER 3.18MM | D100: -63 | E100: 8510 | G100: TOSHIBA | H100: 552102 | K100: 100 | L100: Ja | M100: - | N100: 0 | O100: 0
A101: BU0047 | B101: #901L63GDK | C101: LED L63GD 5MM GROEN | D101: 0 | E101: 8510 | F101: TME | G101: VISHAY | H101: 552103 | I101: TLHG5205 | K101: 100 | L101: Ja | M101: - | N101: 0 | O101: 0
A102: BU0048 | B102: #49TLRE263APT | C102: LED TLRE263AP ROOD 2E | D102: -501 | E102: 8510 | F102: TME | G102: KINGBRIGHT | H102: 552104 | I102: WP63iT | J102: TME: L-1502EC / FARNELL: 2335729 | K102: 100 | L102: Ja | M102: - | N102: 0 | O102: 0
A103: BU0049 | C103: LDR 550 NM TO-18 | D103: 24 | E103: 8510 | F103: FARNELL | G103: ADVANCED | I103: 3168335 | K103: 100 | L103: Ja | M103: - | N103: 0 | O103: 0
A104: BU0050 | B104: KVD-03-035/R | C104: LED-RED | D104: 32 | E104: 8464 | F104: TME | G104: KHATOD / King Bright | I104: L-934LSRD | K104: 100 | L104: Ja | M104: - | N104: 0 | O104: 0
A105: BU0051 | B105: #502G6RN124VO | C105: REL G6RN1-24VDC 24V | D105: -75 | E105: 8410/8510 | F105: TME | G105: OMRON | H105: 536001 | I105: G6RN-1-24 | J105: alternatief: y23061-b1007 siemens | K105: 100 | L105: Ja | M105: - | N105: 0 | O105: 0
A106: BU0052 | C106: V23105-A5303-A201 printrelay DPDT 12V dc | D106: 0 | E106: 8464 | F106: Siemens | G106: Tyco | I106: V23042 A2003-B101 | J106: Alternatief: DS2Y-S DC12V / G5V-2-12V DC | K106: 100 | L106: Ja | M106: - | N106: 0 | O106: 0
A107: BU0053 | B107: 906442394 | C107: TMR6_2422 | D107: 37 | E107: 8437/8439 | F107: TME | G107: TRACO POWER | I107: TMR6-2422 | J107: DISTRELEC: 169-54-689 | K107: 100 | L107: Ja | M107: - | N107: 0 | O107: 0
A108: BU0054 | C108: uPd-D114I DC/DC converter 12V/12V isolated | D108: 0 | E108: 8464 | G108: uPd (Alcom) | I108: NMV1212SAC | K108: 100 | L108: Ja | M108: - | N108: 0 | O108: 0
A109: BU0055 | B109: 372250 | C109: REL V23061-B1009 | D109: 3 | E109: 8410 | G109: SIEMENS | K109: 100 | L109: Ja | M109: - | N109: 0 | O109: 0
A110: BU0056 | B110: #511020PRE | C110: CON ICV 20P 0-0345721-6 | D110: -75 | E110: 8510 | F110: TME | G110: EURODIP | H110: 516245 | I110: ICVT-20P | K110: 100 | L110: Ja | M110: - | N110: 0 | O110: 0
A111: BU0057 | B111: #511028PRE | C111: CON ICV 28P 0-0345728-6 | D111: -142 | E111: 8510 | F111: TME | G111: CONNFLY | H111: 516231 | I111: ICVT-28P | K111: 100 | L111: Ja | M111: - | N111: 0 | O111: 0
A112: BU0058 | B112: #511040PRE | C112: CON ICV 40P 0-0345730-6 | D112: -74 | E112: 8510 | F112: TME | G112: CONNFLY | H112: 516232 | I112: ICVT-40P | K112: 100 | L112: Ja | M112: - | N112: 0 | O112: 0
A113: BU0059 | B113: #513JUMPOFSW | C113: CON 1-881545-1 SHUNT | D113: 1725 | E113: 8437/8439/8464/8510 | F113: TME | I113: JUMPER-BL | K113: 100 | L113: Nee | M113: - | N113: 0 | O113: 0
A114: BU0060 | B114: #514890003811 | C114: CON 8280224-03-02 3P MALE | D114: 272 | E114: 8510 | G114: PRECIDIP | K114: 100 | L114: Nee | M114: - | N114: 0 | O114: 0
A115: BU0061 | B115: - | C115: - | D115: 0 | E115: - | F115: - | G115: - | H115: - | I115: - | K115: 100 | L115: Ja | M115: - | N115: 0 | O115: 0
A116: BU0062 | B116: #5B031646921 | C116: CON 09031646921 64P A+C | D116: -75 | E116: 8510 | F116: TME | G116: HARTING | H116: 516129 | I116: 9031646921 | K116: 100 | L116: Ja | M116: - | N116: 0 | O116: 0
A117: BU0063 | B117: 1727078 | C117: MKDS1/8-3.81 Printconnector | D117: 0 | E117: 8464 | G117: Phoenix | I117: 1727078 | K117: 100 | L117: Ja | M117: - | N117: 0 | O117: 0
A118: BU0064 | B118: 9185206904 | C118: FKV20M | D118: 54 | E118: 8439 | G118: Harting | K118: 100 | L118: Ja | M118: - | N118: 0 | O118: 0
A119: BU0065 | B119: 09 66 451 6513 | C119: DB37F | D119: 13 | E119: 8437/8438 | F119: TME | G119: Harting | I119: 09 66 451 6513 | K119: 100 | L119: Ja | M119: - | N119: 0 | O119: 0
A120: BU0066 | B120: 1780015 | C120: KDS3 | D120: 546 | E120: 8437/8438/8439 | F120: Van Egmond Groep | G120: Phoenix | I120: 1780015 | K120: 100 | L120: Nee | M120: - | N120: 0 | O120: 0
A121: BU0067 | B121: ZL305-02 | C121: ZL305-02 | D121: 214 | E121: 8439 | F121: TME | G121: Nigini | I121: ZL305-02 | K121: 100 | L121: Nee | M121: - | N121: 0 | O121: 0
A122: BU0068 | B122: DS1021-136sf11 | C122: ZL201-03G | D122: 931 | E122: 8437/8439/8464/8510 | F122: TME | G122: Connfly | I122: ZL201-03G | K122: 100 | L122: Nee | M122: - | N122: 0 | O122: 0
A123: BU0069 | C123: SIL3 Male printheader 3p | D123: 0 | E123: 8464 | F123: TME | G123: Div | I123: PH1-40-UA | K123: 100 | L123: Ja | M123: - | N123: 0 | O123: 0
A124: BU0070 | C124: - | D124: 0 | E124: - | F124: - | G124: - | H124: - | I124: - | K124: 100 | L124: Ja | M124: - | N124: 0 | O124: 0
A125: BU0071 | B125: 260340 | C125: HEAD.SEK18 MALE FLAT CABLE CONNECTOR | D125: 13 | E125: 8410 | G125: HARTING | I125: 09-18-564-7914 | K125: 100 | L125: Ja | M125: - | N125: 0 | O125: 0
A126: BU0072 | C126: DIPFIX | D126: 574 | E126: 8439 | F126: JvB | G126: JvB | K126: 100 | L126: Nee | M126: - | N126: 0 | O126: 0
A127: BU0073 | C127: EARTH | D127: 12 | E127: 8439 | F127: JvB | G127: JvB | K127: 100 | L127: Ja | M127: - | N127: 0 | O127: 0
A128: BU0074 | B128: #552TP33W003000 | C128: SW TP33W0030 drukknopschakelaar | D128: -75 | E128: 8510 | F128: MOUSER | G128: APEM | H128: 530220 | I128: 642-TP33W003000 | K128: 100 | L128: Ja | M128: - | N128: 0 | O128: 0
A129: BU0075 | B129: #553PT65101L1 | C129: SW P65-101L254 kodeerschakelaar | D129: -277 | E129: 8510 | F129: MOUSER | G129: HARTMAN | H129: 536219 | I129: 642-PT65101L254 | K129: 100 | L129: =IF(K129>D129,$U$3,$U$5) -> Ja | M129: - | N129: 0 | O129: 0
A130: BU0076 | B130: #611RM5RD | C130: LTRM5RD 25/13W | D130: -28 | E130: 8510 | G130: TRAFA | J130: groter aantal inkopen voor vervolgen 100x | K130: 100 | L130: Ja | M130: - | N130: 0 | O130: 0
A131: BU0078 | B131: #5F171633 | C131: BL5.08/3 | D131: -75 | E131: 8510 | G131: PHOENIX | K131: 100 | L131: Ja | M131: - | N131: 0 | O131: =N131*D131 -> 0
A132: BU0079 | B132: #5F171634 | C132: BL5.08/4 | D132: 0 | E132: 8510 | G132: WEIDMULLER | K132: 100 | L132: Ja | M132: - | N132: 0 | O132: 0
A133: BX0001 | B133: #5F171642 | C133: BL5.08/12 | D133: -210 | E133: 8510 | G133: PHOENIX | K133: 100 | L133: Ja | M133: - | N133: 0 | O133: 0
A134: BX0002 | B134: XY2500V-C(5.08)-2PIN | C134: SL2 | D134: 92 | E134: 8437/8438/8439 | F134: TME | G134: Xinya | I134: TBG-5-PB-2P-GN | K134: 100 | L134: Ja | M134: - | N134: 0 | O134: 0
A135: BX0003 | B135: TBW-5-2P/GN | C135: BL2 | D135: 93 | E135: 8437/8438/8439 | F135: TME | G135: Ninigi | I135: TBW-5-2P/GN | K135: 100 | L135: Ja | M135: - | N135: 0 | O135: 0
A136: BX0004 | B136: TBG-5-PB-4P/GN | C136: SL4 | D136: 45 | E136: 8439 | F136: TME | G136: Nigini | I136: TBG-5-PB-4P-GN | K136: 100 | L136: Ja | M136: - | N136: 0 | O136: 0
A137: BX0005 | B137: TBW-5-4P/GN | C137: BL4 | D137: -100 | E137: 8439 | F137: TME | G137: Nigini | I137: TBW-5-4P/GN | K137: 100 | L137: Ja | M137: - | N137: 0 | O137: 0
A138: BX0006 | B138: XY2500V C5.08) 5PIN | C138: SL5 | D138: 5 | E138: 8438 | F138: TME | G138: Xinya | I138: TBG-5-PB-5P-GN | K138: 100 | L138: Ja | M138: - | N138: 0 | O138: 0
A139: BX0007 | B139: TBW-5-5P/GN | C139: BL5 | D139: 62 | E139: 8438 | F139: TME | G139: Ninigi | K139: 100 | L139: Ja | M139: - | N139: 0 | O139: 0
A140: BX0008 | B140: XY2500V-C(5.08)-6PIN | C140: SL6 | D140: 10 | E140: 8437 | F140: TME | G140: Xinya | I140: TBG-5-PB-6P-GN | K140: 100 | L140: Ja | M140: - | N140: 0 | O140: 0
A141: BX0009 | B141: TBW-5-6P/GN | C141: BL6 | D141: 10 | E141: 8437 | F141: TME | G141: Ninigi | I141: TBW-5-6P/GN | K141: 100 | L141: Ja | M141: - | N141: 0 | O141: 0
A142: BX0010 | B142: 101410 | C142: BL2 R5.08 | D142: 0 | E142: 8410 | G142: WEIDMULLER | K142: 100 | L142: Ja | M142: - | N142: 0 | O142: 0
A143: BX0011 | B143: 101420 | C143: SL2 R5.08 | D143: 0 | E143: 8410 | G143: WEIDMULLER | K143: 100 | L143: Ja | M143: - | N143: 0 | O143: 0
C144: BL4 | D144: 0 | E144: 8410 | G144: WEIDMULLER | N144: 0 | O144: 0
A145: BX0012 | B145: 101440 | C145: SL4 R5.08 | D145: 0 | E145: 8410 | G145: WEIDMULLER | K145: 100 | L145: Ja | M145: - | N145: 0 | O145: 0
C146: BL3 | D146: 0 | E146: 8410 | G146: WEIDMULLER | N146: 0 | O146: 0
A147: BX0013 | B147: 101460 | C147: SL3 R5.08 | D147: 0 | E147: 8410 | G147: WEIDMULLER | K147: 100 | L147: Ja | M147: - | N147: 0 | O147: 0
A148: BX0014 | B148: 101280 | C148: MSTB 2.5/2ST-5.08 AANSLUITBLOK | D148: 0 | E148: 8410 | G148: PHOENIX | I148: 1757019 | K148: 100 | L148: Ja | M148: - | N148: 0 | O148: 0
A149: BX0015 | B149: 101300 | C149: MDSTBW 2.5/2 PRINTPLAATCONNECTOR | D149: 0 | E149: 8410 | G149: PHOENIX | I149: 1802430 | K149: 100 | L149: Ja | M149: - | N149: 0 | O149: 0
A150: BX0016 | B150: 2996922 | C150: UM72 Profile 140MM | D150: 23 | E150: 8437 | F150: Van Egmond Groep | G150: Phoenix | I150: 74005679 | K150: 100 | L150: Ja | M150: - | N150: 0 | O150: 0
A151: BX0017 | B151: 2952020 | C151: UM72-profiel 161MM | D151: 0 | E151: 8439 | F151: Phoenix / Overwijn | G151: Phoenix | K151: 100 | L151: Ja | M151: - | N151: 0 | O151: 0
A152: BX0018 | B152: 2959256 | C152: UM72 Profile 220MM | D152: 12 | E152: 8438 | F152: Phoenix / Overwijn | I152: 74005678 | K152: 100 | L152: Ja | M152: - | N152: 0 | O152: 0
A153: BX0019 | B153: 2959340 | C153: UM72 SEFE/L | D153: 11 | E153: 8437/8438/8439 | F153: Van Egmond Groep | G153: Phoenix | I153: 2959340 | K153: 100 | L153: Ja | M153: - | N153: 0 | O153: 0
A154: BX0020 | B154: 2959353 | C154: UM72 SEFE/R | D154: 13 | E154: 8437/8438/8439 | F154: Van Egmond Groep | G154: Phoenix | I154: 2959353 | K154: 100 | L154: Ja | M154: - | N154: 0 | O154: 0
A155: BX0021 | B155: 2959382 | C155: UM72 FE | D155: 0 | E155: 8438/8439 | F155: Phoenix | K155: 100 | L155: Ja | M155: - | N155: 0 | O155: 0
A156: BX0022 | B156: 2970028 | C156: UMK-BE 22.5 | D156: 5 | E156: 8464 | G156: Phoenix | I156: 2970028 / 1620255 | K156: 100 | L156: Ja | M156: - | N156: 0 | O156: 0
A157: BX0023 | B157: 2970015 | C157: UMK-BE 45 | D157: 0 | E157: 8410/8464 | G157: Phoenix | K157: 100 | L157: Ja | M157: - | N157: 0 | O157: 0
A158: BX0024 | B158: 2970002 | C158: UMK-SE 11.25 | D158: 0 | E158: 8410/8464 | G158: Phoenix | K158: 100 | L158: Ja | M158: - | N158: 0 | O158: 0
A159: BX0025 | B159: 2970031 | C159: UMK-FE | D159: 0 | E159: 8410/8464 | G159: Phoenix | K159: 100 | L159: Ja | M159: - | N159: 0 | O159: 0
A160: BX0026 | B160: #320120000M | C160: XT 12.000000MHZ HC49U | D160: 29 | E160: 8510 | F160: RS COMPONENTS | H160: 500246 | I160: 173-4735 | K160: 100 | L160: Ja | M160: - | N160: 0 | O160: 0
A161: BX0027 | B161: #65124665210 | C161: BOUT M2X10 | D161: 1700 | E161: 8510 | G161: FABORY | K161: 100 | L161: Nee | M161: - | N161: 0 | O161: 0
A162: BX0028 | B162: #680ACHTER8510B | C162: DIN achterwand 8510 bewerkt | D162: -55 | E162: 8510 | G162: APRANORM | I162: 445-273-01 | K162: 100 | L162: Ja | M162: - | N162: 0 | O162: 0
A163: BX0029 | B163: #680KAST8510 | C163: DIN behuizing 8510 CSI | D163: 7 | E163: 8510 | G163: APRANORM | K163: 100 | L163: Ja | M163: - | N163: 0 | O163: 0
A164: BX0030 | B164: #680MONTBE8510 | C164: DIN montagebeugel 8510 CSI | D164: 87 | E164: 8510 | G164: APRANORM | I164: 440-001 | K164: 100 | L164: Ja | M164: - | N164: 0 | O164: 0
A165: BX0031 | B165: #686940035CSI | C165: FRONTJE INCL RAAM (DE NAAMPL) | D165: -44 | E165: 8510 | K165: 100 | L165: Ja | M165: - | N165: 0 | O165: 0
A166: BX0032 | B166: #4818CV8P15Li | C166: IC 18CV8P-15 PEEL GEPROGR. V1.2 | D166: -75 | E166: 8510 | G166: ICT | J166: Ongeprogrammeerd. Graag 15Z versie nemen. | K166: 100 | L166: Ja | M166: - | N166: 0 | O166: 0
A167: BX0033 | B167: #4818CV8P15LiPR | C167: IC 18CV8P-15 PEEL GEPROGR. V1.2 | D167: -75 | E167: 8510 | F167: MOUSER | G167: ICT | I167: UT8IC89M5530 | J167: Geprogrammeerd. Z versie beter programmeerbaar | K167: 100 | L167: Ja | M167: - | N167: 0 | O167: 0
A168: BX0034 | B168: #TDSTICK8510A3 | C168: IC 8510 EPROM PROG V2.71 | D168: 12 | E168: 8510 | G168: NSD | K168: 100 | L168: Ja | M168: - | N168: 0 | O168: 0
A169: BX0035 | B169: #5F171633 | C169: BL5.08/3 SN 171633 | D169: 0 | E169: 8510 | G169: WEIDMULLER | K169: 100 | L169: Ja | M169: - | N169: 0 | O169: 0
A170: BX0036 | B170: #5F171634 | C170: BL5.08/4 SN 171634 | D170: 0 | E170: 8510 | G170: WEIDMULLER | K170: 100 | L170: Ja | M170: - | N170: 0 | O170: 0
A171: BX0037 | B171: #5F171642 | C171: BL5.08/12 SN 171642 | D171: 0 | E171: 8510 | G171: WEIDMULLER | K171: 100 | L171: Ja | M171: - | N171: 0 | O171: 0
A172: BX0038 | B172: PCB 8410 | C172: PCB 8410 | D172: 0 | E172: PCB 8410 | F172: JvB | G172: JvB | H172: 476700 | K172: 10 | L172: Ja | M172: - | N172: 0 | O172: 0
A173: BX0039 | B173: PCB 8437L | C173: PCB 8437L | D173: 0 | E173: PCB 8437L | F173: JvB | G173: JvB | K173: 10 | L173: Ja | M173: - | N173: 0 | O173: 0
A174: BX0040 | B174: PCB 8437R | C174: PCB 8437R | D174: 17 | E174: PCB 8437R | F174: JvB | G174: JvB | K174: 10 | L174: Nee | M174: - | N174: 0 | O174: 0
A175: BX0041 | B175: PCB 8438L | C175: PCB 8438L | D175: 0 | E175: PCB 8438L | F175: JvB | G175: JvB | K175: 10 | L175: Ja | M175: - | N175: 0 | O175: 0
A176: BX0042 | B176: PCB 8438R | C176: PCB 8438R | D176: 18 | E176: PCB 8438R | F176: JvB | G176: JvB | K176: 10 | L176: Nee | M176: - | N176: 0 | O176: 0
A177: BX0043 | B177: PCB 8439L | C177: PCB 8439L | D177: 43 | E177: PCB 8439L | F177: JvB | G177: JvB | K177: 10 | L177: Nee | M177: - | N177: 0 | O177: 0
A178: BX0044 | B178: PCB 8439R | C178: PCB 8439R | D178: 21 | E178: PCB 8439R | F178: JvB | G178: JvB | K178: 10 | L178: Nee | M178: - | N178: 0 | O178: 0
A179: BX0045 | B179: PCB 8464 | C179: PCB 8464 | D179: 1 | E179: PCB 8464 | F179: JvB | G179: JvB | K179: 10 | L179: Ja | M179: - | N179: 0 | O179: 0
A180: BX0046 | B180: PCB 8510 | C180: PCB 8510 | D180: 130 | E180: PCB 8510 | F180: JvB | G180: JvB | H180: 548187 | K180: 10 | L180: Nee | M180: - | N180: 0 | O180: 0
A181: BX0047 | B181: PCB 8510i | C181: PCB 8510i | D181: 44 | E181: PCB 8510i | F181: JvB | G181: JvB | K181: 10 | L181: Nee | M181: - | N181: 0 | O181: 0
A182: BX0048 | B182: PCB 8510Ri | C182: PCB 8510Ri | D182: 9 | E182: PCB 8510Ri | F182: JvB | G182: JvB | K182: 10 | L182: Ja | M182: - | N182: 0 | O182: 0
A183: BX0049 | B183: PCB 409 | C183: PCB 409 | D183: 9 | E183: - | K183: 20 | L183: Ja | M183: - | N183: 0 | O183: 0
A184: BX0050 | B184: PCB 421 | C184: PCB 421 | D184: 2 | E184: - | K184: 20 | L184: Ja | M184: - | N184: 0 | O184: 0
A185: BX0051 | B185: PCB 422b | C185: PCB 422b | D185: 2 | E185: - | K185: 20 | L185: Ja | M185: - | N185: 0 | O185: 0
A186: BX0052 | B186: PCB 429 | C186: PCB 429 | D186: 5 | E186: - | K186: 20 | L186: Ja | M186: - | N186: 0 | O186: 0
A187: BX0053 | B187: PCB 430 | C187: PCB 430 | D187: 3 | E187: - | K187: 20 | L187: Ja | M187: - | N187: 0 | O187: 0
A188: BX0054 | B188: PCB 431 | C188: PCB 431 | D188: 9 | E188: - | K188: 20 | L188: Ja | M188: - | N188: 0 | O188: 0
A189: BX0055 | B189: PCB 436 | C189: PCB 436 | D189: 6 | E189: - | K189: 20 | L189: Ja | M189: - | N189: 0 | O189: 0
A190: CA0001 | B190: PCB 437 | C190: PCB 437 | D190: 1 | E190: - | K190: 20 | L190: Ja | M190: - | N190: 0 | O190: 0
A191: DO0001 | B191: PCB 445 | C191: PCB 445 | D191: 2 | E191: - | K191: 20 | L191: Ja | M191: - | N191: 0 | O191: 0
A192: DU0001 | B192: PCB 451 | C192: PCB 451 | D192: 5 | E192: - | K192: 20 | L192: Ja | M192: - | N192: 0 | O192: 0
A193: DU0002 | B193: PCB 455 | C193: PCB 455 | D193: 2 | E193: - | K193: 20 | L193: Ja | M193: - | N193: 0 | O193: 0
A194: DU0003 | B194: PCB 458 | C194: PCB 458 | D194: 8 | E194: - | K194: 20 | L194: =IF(K194>D194,$U$3,$U$5) -> Ja | M194: - | N194: 0 | O194: 0
A195: DU0004 | B195: PCB 460 | C195: PCB 460 | D195: 25 | E195: - | K195: 20 | L195: Nee | M195: - | N195: 0 | O195: =N195*D195 -> 0
A196: DU0005 | B196: PCB 463 | C196: PCB 463 | D196: 1 | E196: - | K196: 20 | L196: Ja | M196: - | N196: 0 | O196: 0
A197: DU0006 | B197: PCB 464 | C197: PCB 464 | D197: 4 | E197: - | K197: 20 | L197: Ja | M197: - | N197: 0 | O197: 0
A198: DU0007 | B198: PCB 465 | C198: PCB 465 | D198: 5 | E198: - | K198: 20 | L198: Ja | M198: - | N198: 0 | O198: 0
A199: DU0008 | B199: PCB 467 | C199: PCB 467 | D199: 4 | E199: - | K199: 20 | L199: Ja | M199: - | N199: 0 | O199: 0
A200: DU0009 | B200: PCB 487 | C200: PCB 487 | D200: 51 | E200: - | K200: 20 | L200: Nee | M200: - | N200: 0 | O200: 0
A201: DU0010 | B201: PCB 490 | C201: PCB 490 | D201: 14 | E201: - | K201: 20 | L201: Ja | M201: - | N201: 0 | O201: 0
... 587 more rows

Sheet Picklijst 8410
A2: Pickorder 8410 | C2: =[1]Sheet1!$D$2 -> 5 | D2: X
A8: Art Nr CSI | B8: Benodigd | C8: Art Nr CSI | D8: Omschrijving | E8: Leverancier Nr | F8: Produco Nr | G8: OrderNr | H8: Opmerkingen/Alternatieven | I8: Leverancier | J8: Producent | K8: PCB | L8: Voorraad | M8: Benodigd | N8: Bestellen
A9: BX0014 | B9: =[1]Sheet1!$E$4 -> 140 | C9: =IF(ISERROR(VLOOKUP($A$9,Voorraad!$A$2:$D$1001,1)),"",VLOOKUP($A$9,Voorraad!$A$2:$D$1001,1)) -> BX0014 | D9: =IF(ISERROR(VLOOKUP($A$9,Voorraad!$A$2:$D$1001,3)),"",VLOOKUP($A$9,Voorraad!$A$2:$D$1001,3)) -> MSTB 2.5/2ST-5.08 AANSLUITBLOK | E9: =IF(ISERROR(VLOOKUP($A$9,Voorraad!$A$2:$D$1001,2)),"",VLOOKUP($A$9,Voorraad!$A$2:$D$1001,2)) -> 101280 | F9: =IF(ISERROR(VLOOKUP($A$9,Voorraad!$A$2:$H$1001,8)),"",VLOOKUP($A$9,Voorraad!$A$2:$H$1001,8)) -> 0 | G9: =IF(ISERROR(VLOOKUP($A$9,Voorraad!$A$2:$I$1001,9)),"",VLOOKUP($A$9,Voorraad!$A$2:$I$1001,9)) -> 1757019 | H9: =IF(ISERROR(VLOOKUP($A$9,Voorraad!$A$2:$J$1001,10)),"",VLOOKUP($A$9,Voorraad!$A$2:$J$1001,10)) -> 0 | I9: =IF(ISERROR(VLOOKUP($A$9,Voorraad!$A$2:$G$1001,6)),"",VLOOKUP($A$9,Voorraad!$A$2:$G$1001,6)) -> 0 | J9: =IF(ISERROR(VLOOKUP($A$9,Voorraad!$A$2:$G$1001,7)),"",VLOOKUP($A$9,Voorraad!$A$2:$G$1001,7)) -> PHOENIX | K9: =IF(ISERROR(VLOOKUP($A$9,Voorraad!$A$2:$G$1001,5)),"",VLOOKUP($A$9,Voorraad!$A$2:$G$1001,5)) -> 8410 | L9: =IF(ISERROR(VLOOKUP($A$9,Voorraad!$A$2:$D$1001,4)),"",VLOOKUP($A$9,Voorraad!$A$2:$D$1001,4)) -> 0 | M9: =B9 -> 140 | N9: =MAX(0,(SUM(M9-L9))) -> 140
A10: BX0015 | B10: =[1]Sheet1!$E$5 -> 70 | C10: =IF(ISERROR(VLOOKUP($A$10,Voorraad!$A$2:$D$1001,1)),"",VLOOKUP($A$10,Voorraad!$A$2:$D$1001,1)) -> BX0015 | D10: =IF(ISERROR(VLOOKUP($A$10,Voorraad!$A$2:$D$1001,3)),"",VLOOKUP($A$10,Voorraad!$A$2:$D$1001,3)) -> MDSTBW 2.5/2 PRINTPLAATCONNECTOR | E10: =IF(ISERROR(VLOOKUP($A$10,Voorraad!$A$2:$D$1001,2)),"",VLOOKUP($A$10,Voorraad!$A$2:$D$1001,2)) -> 101300 | F10: =IF(ISERROR(VLOOKUP($A$10,Voorraad!$A$2:$H$1001,8)),"",VLOOKUP($A$10,Voorraad!$A$2:$H$1001,8)) -> 0 | G10: =IF(ISERROR(VLOOKUP($A$10,Voorraad!$A$2:$I$1001,9)),"",VLOOKUP($A$10,Voorraad!$A$2:$I$1001,9)) -> 1802430 | H10: =IF(ISERROR(VLOOKUP($A$10,Voorraad!$A$2:$J$1001,10)),"",VLOOKUP($A$10,Voorraad!$A$2:$J$1001,10)) -> 0 | I10: =IF(ISERROR(VLOOKUP($A$10,Voorraad!$A$2:$G$1001,6)),"",VLOOKUP($A$10,Voorraad!$A$2:$G$1001,6)) -> 0 | J10: =IF(ISERROR(VLOOKUP($A$10,Voorraad!$A$2:$G$1001,7)),"",VLOOKUP($A$10,Voorraad!$A$2:$G$1001,7)) -> PHOENIX | K10: =IF(ISERROR(VLOOKUP($A$10,Voorraad!$A$2:$G$1001,5)),"",VLOOKUP($A$10,Voorraad!$A$2:$G$1001,5)) -> 8410 | L10: =IF(ISERROR(VLOOKUP($A$10,Voorraad!$A$2:$D$1001,4)),"",VLOOKUP($A$10,Voorraad!$A$2:$D$1001,4)) -> 0 | M10: 70 | N10: 70
A11: BX0010 | B11: =[1]Sheet1!$E$6 -> 10 | C11: =IF(ISERROR(VLOOKUP($A$11,Voorraad!$A$2:$D$1001,1)),"",VLOOKUP($A$11,Voorraad!$A$2:$D$1001,1)) -> BX0010 | D11: =IF(ISERROR(VLOOKUP($A$11,Voorraad!$A$2:$D$1001,3)),"",VLOOKUP($A$11,Voorraad!$A$2:$D$1001,3)) -> BL2 R5.08 | E11: =IF(ISERROR(VLOOKUP($A$11,Voorraad!$A$2:$D$1001,2)),"",VLOOKUP($A$11,Voorraad!$A$2:$D$1001,2)) -> 101410 | F11: =IF(ISERROR(VLOOKUP($A$11,Voorraad!$A$2:$H$1001,8)),"",VLOOKUP($A$11,Voorraad!$A$2:$H$1001,8)) -> 0 | G11: =IF(ISERROR(VLOOKUP($A$11,Voorraad!$A$2:$I$1001,9)),"",VLOOKUP($A$11,Voorraad!$A$2:$I$1001,9)) -> 0 | H11: =IF(ISERROR(VLOOKUP($A$11,Voorraad!$A$2:$J$1001,10)),"",VLOOKUP($A$11,Voorraad!$A$2:$J$1001,10)) -> 0 | I11: =IF(ISERROR(VLOOKUP($A$11,Voorraad!$A$2:$G$1001,6)),"",VLOOKUP($A$11,Voorraad!$A$2:$G$1001,6)) -> 0 | J11: =IF(ISERROR(VLOOKUP($A$11,Voorraad!$A$2:$G$1001,7)),"",VLOOKUP($A$11,Voorraad!$A$2:$G$1001,7)) -> WEIDMULLER | K11: =IF(ISERROR(VLOOKUP($A$11,Voorraad!$A$2:$G$1001,5)),"",VLOOKUP($A$11,Voorraad!$A$2:$G$1001,5)) -> 8410 | L11: =IF(ISERROR(VLOOKUP($A$11,Voorraad!$A$2:$D$1001,4)),"",VLOOKUP($A$11,Voorraad!$A$2:$D$1001,4)) -> 0 | M11: 10 | N11: 10
A12: BX0011 | B12: =[1]Sheet1!$E$7 -> 10 | C12: =IF(ISERROR(VLOOKUP($A$12,Voorraad!$A$2:$D$1001,1)),"",VLOOKUP($A$12,Voorraad!$A$2:$D$1001,1)) -> BX0011 | D12: =IF(ISERROR(VLOOKUP($A$12,Voorraad!$A$2:$D$1001,3)),"",VLOOKUP($A$12,Voorraad!$A$2:$D$1001,3)) -> SL2 R5.08 | E12: =IF(ISERROR(VLOOKUP($A$12,Voorraad!$A$2:$D$1001,2)),"",VLOOKUP($A$12,Voorraad!$A$2:$D$1001,2)) -> 101420 | F12: =IF(ISERROR(VLOOKUP($A$12,Voorraad!$A$2:$H$1001,8)),"",VLOOKUP($A$12,Voorraad!$A$2:$H$1001,8)) -> 0 | G12: =IF(ISERROR(VLOOKUP($A$12,Voorraad!$A$2:$I$1001,9)),"",VLOOKUP($A$12,Voorraad!$A$2:$I$1001,9)) -> 0 | H12: =IF(ISERROR(VLOOKUP($A$12,Voorraad!$A$2:$J$1001,10)),"",VLOOKUP($A$12,Voorraad!$A$2:$J$1001,10)) -> 0 | I12: =IF(ISERROR(VLOOKUP($A$12,Voorraad!$A$2:$G$1001,6)),"",VLOOKUP($A$12,Voorraad!$A$2:$G$1001,6)) -> 0 | J12: =IF(ISERROR(VLOOKUP($A$12,Voorraad!$A$2:$G$1001,7)),"",VLOOKUP($A$12,Voorraad!$A$2:$G$1001,7)) -> WEIDMULLER | K12: =IF(ISERROR(VLOOKUP($A$12,Voorraad!$A$2:$G$1001,5)),"",VLOOKUP($A$12,Voorraad!$A$2:$G$1001,5)) -> 8410 | L12: =IF(ISERROR(VLOOKUP($A$12,Voorraad!$A$2:$D$1001,4)),"",VLOOKUP($A$12,Voorraad!$A$2:$D$1001,4)) -> 0 | M12: 10 | N12: 10
A13: BX0012 | B13: =[1]Sheet1!$E$8 -> 15 | C13: =IF(ISERROR(VLOOKUP($A$13,Voorraad!$A$2:$D$1001,1)),"",VLOOKUP($A$13,Voorraad!$A$2:$D$1001,1)) -> BX0012 | D13: =IF(ISERROR(VLOOKUP($A$13,Voorraad!$A$2:$D$1001,3)),"",VLOOKUP($A$13,Voorraad!$A$2:$D$1001,3)) -> SL4 R5.08 | E13: =IF(ISERROR(VLOOKUP($A$13,Voorraad!$A$2:$D$1001,2)),"",VLOOKUP($A$13,Voorraad!$A$2:$D$1001,2)) -> 101440 | F13: =IF(ISERROR(VLOOKUP($A$13,Voorraad!$A$2:$H$1001,8)),"",VLOOKUP($A$13,Voorraad!$A$2:$H$1001,8)) -> 0 | G13: =IF(ISERROR(VLOOKUP($A$13,Voorraad!$A$2:$I$1001,9)),"",VLOOKUP($A$13,Voorraad!$A$2:$I$1001,9)) -> 0 | H13: =IF(ISERROR(VLOOKUP($A$13,Voorraad!$A$2:$J$1001,10)),"",VLOOKUP($A$13,Voorraad!$A$2:$J$1001,10)) -> 0 | I13: =IF(ISERROR(VLOOKUP($A$13,Voorraad!$A$2:$G$1001,6)),"",VLOOKUP($A$13,Voorraad!$A$2:$G$1001,6)) -> 0 | J13: =IF(ISERROR(VLOOKUP($A$13,Voorraad!$A$2:$G$1001,7)),"",VLOOKUP($A$13,Voorraad!$A$2:$G$1001,7)) -> WEIDMULLER | K13: =IF(ISERROR(VLOOKUP($A$13,Voorraad!$A$2:$G$1001,5)),"",VLOOKUP($A$13,Voorraad!$A$2:$G$1001,5)) -> 8410 | L13: =IF(ISERROR(VLOOKUP($A$13,Voorraad!$A$2:$D$1001,4)),"",VLOOKUP($A$13,Voorraad!$A$2:$D$1001,4)) -> 0 | M13: 15 | N13: 15
A14: BU0079 | B14: =[1]Sheet1!$E$9 -> 15 | C14: =IF(ISERROR(VLOOKUP($A$14,Voorraad!$A$2:$D$1001,1)),"",VLOOKUP($A$14,Voorraad!$A$2:$D$1001,1)) -> BU0079 | D14: =IF(ISERROR(VLOOKUP($A$14,Voorraad!$A$2:$D$1001,3)),"",VLOOKUP($A$14,Voorraad!$A$2:$D$1001,3)) -> BL5.08/4 | E14: =IF(ISERROR(VLOOKUP($A$14,Voorraad!$A$2:$D$1001,2)),"",VLOOKUP($A$14,Voorraad!$A$2:$D$1001,2)) -> #5F171634 | F14: =IF(ISERROR(VLOOKUP($A$14,Voorraad!$A$2:$H$1001,8)),"",VLOOKUP($A$14,Voorraad!$A$2:$H$1001,8)) -> 0 | G14: =IF(ISERROR(VLOOKUP($A$14,Voorraad!$A$2:$I$1001,9)),"",VLOOKUP($A$14,Voorraad!$A$2:$I$1001,9)) -> 0 | H14: =IF(ISERROR(VLOOKUP($A$14,Voorraad!$A$2:$J$1001,10)),"",VLOOKUP($A$14,Voorraad!$A$2:$J$1001,10)) -> 0 | I14: =IF(ISERROR(VLOOKUP($A$14,Voorraad!$A$2:$G$1001,6)),"",VLOOKUP($A$14,Voorraad!$A$2:$G$1001,6)) -> 0 | J14: =IF(ISERROR(VLOOKUP($A$14,Voorraad!$A$2:$G$1001,7)),"",VLOOKUP($A$14,Voorraad!$A$2:$G$1001,7)) -> WEIDMULLER | K14: =IF(ISERROR(VLOOKUP($A$14,Voorraad!$A$2:$G$1001,5)),"",VLOOKUP($A$14,Voorraad!$A$2:$G$1001,5)) -> 8510 | L14: =IF(ISERROR(VLOOKUP($A$14,Voorraad!$A$2:$D$1001,4)),"",VLOOKUP($A$14,Voorraad!$A$2:$D$1001,4)) -> 0 | M14: 15 | N14: 15
A15: BX0013 | B15: =[1]Sheet1!$E$10 -> 5 | C15: =IF(ISERROR(VLOOKUP($A$15,Voorraad!$A$2:$D$1001,1)),"",VLOOKUP($A$15,Voorraad!$A$2:$D$1001,1)) -> BX0013 | D15: =IF(ISERROR(VLOOKUP($A$15,Voorraad!$A$2:$D$1001,3)),"",VLOOKUP($A$15,Voorraad!$A$2:$D$1001,3)) -> SL3 R5.08 | E15: =IF(ISERROR(VLOOKUP($A$15,Voorraad!$A$2:$D$1001,2)),"",VLOOKUP($A$9,Voorraad!$A$2:$D$1001,2)) -> 101280 | F15: =IF(ISERROR(VLOOKUP($A$15,Voorraad!$A$2:$H$1001,8)),"",VLOOKUP($A$15,Voorraad!$A$2:$H$1001,8)) -> 0 | G15: =IF(ISERROR(VLOOKUP($A$15,Voorraad!$A$2:$I$1001,9)),"",VLOOKUP($A$15,Voorraad!$A$2:$I$1001,9)) -> 0 | H15: =IF(ISERROR(VLOOKUP($A$15,Voorraad!$A$2:$J$1001,10)),"",VLOOKUP($A$15,Voorraad!$A$2:$J$1001,10)) -> 0 | I15: =IF(ISERROR(VLOOKUP($A$15,Voorraad!$A$2:$G$1001,6)),"",VLOOKUP($A$15,Voorraad!$A$2:$G$1001,6)) -> 0 | J15: =IF(ISERROR(VLOOKUP($A$15,Voorraad!$A$2:$G$1001,7)),"",VLOOKUP($A$15,Voorraad!$A$2:$G$1001,7)) -> WEIDMULLER | K15: =IF(ISERROR(VLOOKUP($A$15,Voorraad!$A$2:$G$1001,5)),"",VLOOKUP($A$15,Voorraad!$A$2:$G$1001,5)) -> 8410 | L15: =IF(ISERROR(VLOOKUP($A$15,Voorraad!$A$2:$D$1001,4)),"",VLOOKUP($A$15,Voorraad!$A$2:$D$1001,4)) -> 0 | M15: 5 | N15: 5
A16: BU0078 | B16: =[1]Sheet1!$E$11 -> 5 | C16: =IF(ISERROR(VLOOKUP($A$16,Voorraad!$A$2:$D$1001,1)),"",VLOOKUP($A$16,Voorraad!$A$2:$D$1001,1)) -> BU0078 | D16: =IF(ISERROR(VLOOKUP($A$16,Voorraad!$A$2:$D$1001,3)),"",VLOOKUP($A$16,Voorraad!$A$2:$D$1001,3)) -> BL5.08/3 | E16: =IF(ISERROR(VLOOKUP($A$16,Voorraad!$A$2:$D$1001,2)),"",VLOOKUP($A$16,Voorraad!$A$2:$D$1001,2)) -> #5F171633 | F16: =IF(ISERROR(VLOOKUP($A$16,Voorraad!$A$2:$H$1001,8)),"",VLOOKUP($A$16,Voorraad!$A$2:$H$1001,8)) -> 0 | G16: =IF(ISERROR(VLOOKUP($A$16,Voorraad!$A$2:$I$1001,9)),"",VLOOKUP($A$16,Voorraad!$A$2:$I$1001,9)) -> 0 | H16: =IF(ISERROR(VLOOKUP($A$16,Voorraad!$A$2:$J$1001,10)),"",VLOOKUP($A$16,Voorraad!$A$2:$J$1001,10)) -> 0 | I16: =IF(ISERROR(VLOOKUP($A$16,Voorraad!$A$2:$G$1001,6)),"",VLOOKUP($A$16,Voorraad!$A$2:$G$1001,6)) -> 0 | J16: =IF(ISERROR(VLOOKUP($A$16,Voorraad!$A$2:$G$1001,7)),"",VLOOKUP($A$16,Voorraad!$A$2:$G$1001,7)) -> PHOENIX | K16: =IF(ISERROR(VLOOKUP($A$16,Voorraad!$A$2:$G$1001,5)),"",VLOOKUP($A$16,Voorraad!$A$2:$G$1001,5)) -> 8510 | L16: =IF(ISERROR(VLOOKUP($A$16,Voorraad!$A$2:$D$1001,4)),"",VLOOKUP($A$16,Voorraad!$A$2:$D$1001,4)) -> -75 | M16: 5 | N16: 80
A17: BR6010 | B17: =[1]Sheet1!$E$12 -> 5 | C17: =IF(ISERROR(VLOOKUP($A$17,Voorraad!$A$2:$D$1001,1)),"",VLOOKUP($A$17,Voorraad!$A$2:$D$1001,1)) -> BR6010 | D17: =IF(ISERROR(VLOOKUP($A$17,Voorraad!$A$2:$D$1001,3)),"",VLOOKUP($A$17,Voorraad!$A$2:$D$1001,3)) -> 22NF | E17: =IF(ISERROR(VLOOKUP($A$17,Voorraad!$A$2:$D$1001,2)),"",VLOOKUP($A$17,Voorraad!$A$2:$D$1001,2)) -> 161590 | F17: =IF(ISERROR(VLOOKUP($A$17,Voorraad!$A$2:$H$1001,8)),"",VLOOKUP($A$17,Voorraad!$A$2:$H$1001,8)) -> 0 | G17: =IF(ISERROR(VLOOKUP($A$17,Voorraad!$A$2:$I$1001,9)),"",VLOOKUP($A$17,Voorraad!$A$2:$I$1001,9)) -> 0 | H17: =IF(ISERROR(VLOOKUP($A$17,Voorraad!$A$2:$J$1001,10)),"",VLOOKUP($A$17,Voorraad!$A$2:$J$1001,10)) -> 0 | I17: =IF(ISERROR(VLOOKUP($A$17,Voorraad!$A$2:$G$1001,6)),"",VLOOKUP($A$17,Voorraad!$A$2:$G$1001,6)) -> 0 | J17: =IF(ISERROR(VLOOKUP($A$17,Voorraad!$A$2:$G$1001,7)),"",VLOOKUP($A$17,Voorraad!$A$2:$G$1001,7)) -> KEMET | K17: =IF(ISERROR(VLOOKUP($A$17,Voorraad!$A$2:$G$1001,5)),"",VLOOKUP($A$17,Voorraad!$A$2:$G$1001,5)) -> 8410 | L17: =IF(ISERROR(VLOOKUP($A$17,Voorraad!$A$2:$D$1001,4)),"",VLOOKUP($A$17,Voorraad!$A$2:$D$1001,4)) -> 0 | M17: 5 | N17: 5
A18: BR5010 | B18: =[1]Sheet1!$E$13 -> 5 | C18: =IF(ISERROR(VLOOKUP($A$18,Voorraad!$A$2:$D$1001,1)),"",VLOOKUP($A$18,Voorraad!$A$2:$D$1001,1)) -> BR5010 | D18: =IF(ISERROR(VLOOKUP($A$18,Voorraad!$A$2:$D$1001,3)),"",VLOOKUP($A$18,Voorraad!$A$2:$D$1001,3)) -> CC 47N 63V +80 -20% 2E 55' | E18: =IF(ISERROR(VLOOKUP($A$18,Voorraad!$A$2:$D$1001,2)),"",VLOOKUP($A$18,Voorraad!$A$2:$D$1001,2)) -> #2344710KKE | F18: =IF(ISERROR(VLOOKUP($A$18,Voorraad!$A$2:$H$1001,8)),"",VLOOKUP($A$18,Voorraad!$A$2:$H$1001,8)) -> 500138 | G18: =IF(ISERROR(VLOOKUP($A$18,Voorraad!$A$2:$I$1001,9)),"",VLOOKUP($A$18,Voorraad!$A$2:$I$1001,9)) -> 0 | H18: =IF(ISERROR(VLOOKUP($A$18,Voorraad!$A$2:$J$1001,10)),"",VLOOKUP($A$18,Voorraad!$A$2:$J$1001,10)) -> Alternatief: 47NF/100V | I18: =IF(ISERROR(VLOOKUP($A$18,Voorraad!$A$2:$G$1001,6)),"",VLOOKUP($A$18,Voorraad!$A$2:$G$1001,6)) -> 0 | J18: =IF(ISERROR(VLOOKUP($A$18,Voorraad!$A$2:$G$1001,7)),"",VLOOKUP($A$18,Voorraad!$A$2:$G$1001,7)) -> BCC | K18: =IF(ISERROR(VLOOKUP($A$18,Voorraad!$A$2:$G$1001,5)),"",VLOOKUP($A$18,Voorraad!$A$2:$G$1001,5)) -> 8410/8510 | L18: =IF(ISERROR(VLOOKUP($A$18,Voorraad!$A$2:$D$1001,4)),"",VLOOKUP($A$18,Voorraad!$A$2:$D$1001,4)) -> -450 | M18: 5 | N18: 455
A19: BR6012 | B19: =[1]Sheet1!$E$14 -> 15 | C19: =IF(ISERROR(VLOOKUP($A$19,Voorraad!$A$2:$D$1001,1)),"",VLOOKUP($A$19,Voorraad!$A$2:$D$1001,1)) -> BR6012 | D19: =IF(ISERROR(VLOOKUP($A$19,Voorraad!$A$2:$D$1001,3)),"",VLOOKUP($A$19,Voorraad!$A$2:$D$1001,3)) -> 220PF/2KV | E19: =IF(ISERROR(VLOOKUP($A$19,Voorraad!$A$2:$D$1001,2)),"",VLOOKUP($A$19,Voorraad!$A$2:$D$1001,2)) -> #2344710KKE | F19: =IF(ISERROR(VLOOKUP($A$19,Voorraad!$A$2:$H$1001,8)),"",VLOOKUP($A$19,Voorraad!$A$2:$H$1001,8)) -> 0 | G19: =IF(ISERROR(VLOOKUP($A$19,Voorraad!$A$2:$I$1001,9)),"",VLOOKUP($A$19,Voorraad!$A$2:$I$1001,9)) -> 0 | H19: =IF(ISERROR(VLOOKUP($A$19,Voorraad!$A$2:$J$1001,10)),"",VLOOKUP($A$19,Voorraad!$A$2:$J$1001,10)) -> 0 | I19: =IF(ISERROR(VLOOKUP($A$19,Voorraad!$A$2:$G$1001,6)),"",VLOOKUP($A$19,Voorraad!$A$2:$G$1001,6)) -> 0 | J19: =IF(ISERROR(VLOOKUP($A$19,Voorraad!$A$2:$G$1001,7)),"",VLOOKUP($A$19,Voorraad!$A$2:$G$1001,7)) -> BCC | K19: =IF(ISERROR(VLOOKUP($A$19,Voorraad!$A$2:$G$1001,5)),"",VLOOKUP($A$19,Voorraad!$A$2:$G$1001,5)) -> 8410 | L19: =IF(ISERROR(VLOOKUP($A$19,Voorraad!$A$2:$D$1001,4)),"",VLOOKUP($A$19,Voorraad!$A$2:$D$1001,4)) -> 0 | M19: 15 | N19: 15
A20: BU0014 | B20: =[1]Sheet1!$E$15 -> 5 | C20: =IF(ISERROR(VLOOKUP($A$20,Voorraad!$A$2:$D$1001,1)),"",VLOOKUP($A$20,Voorraad!$A$2:$D$1001,1)) -> BU0014 | D20: =IF(ISERROR(VLOOKUP($A$20,Voorraad!$A$2:$D$1001,3)),"",VLOOKUP($A$20,Voorraad!$A$2:$D$1001,3)) -> D 1N4004 400V-1A DO-41 | E20: =IF(ISERROR(VLOOKUP($A$20,Voorraad!$A$2:$D$1001,2)),"",VLOOKUP($A$20,Voorraad!$A$2:$D$1001,2)) -> #341N4004DC | F20: =IF(ISERROR(VLOOKUP($A$20,Voorraad!$A$2:$H$1001,8)),"",VLOOKUP($A$20,Voorraad!$A$2:$H$1001,8)) -> 522000 | G20: =IF(ISERROR(VLOOKUP($A$20,Voorraad!$A$2:$I$1001,9)),"",VLOOKUP($A$20,Voorraad!$A$2:$I$1001,9)) -> 0 | H20: =IF(ISERROR(VLOOKUP($A$20,Voorraad!$A$2:$J$1001,10)),"",VLOOKUP($A$20,Voorraad!$A$2:$J$1001,10)) -> 0 | I20: =IF(ISERROR(VLOOKUP($A$20,Voorraad!$A$2:$G$1001,6)),"",VLOOKUP($A$20,Voorraad!$A$2:$G$1001,6)) -> 0 | J20: =IF(ISERROR(VLOOKUP($A$20,Voorraad!$A$2:$G$1001,7)),"",VLOOKUP($A$20,Voorraad!$A$2:$G$1001,7)) -> 0 | K20: =IF(ISERROR(VLOOKUP($A$20,Voorraad!$A$2:$G$1001,5)),"",VLOOKUP($A$20,Voorraad!$A$2:$G$1001,5)) -> 8410/8464/8510 | L20: =IF(ISERROR(VLOOKUP($A$20,Voorraad!$A$2:$D$1001,4)),"",VLOOKUP($A$20,Voorraad!$A$2:$D$1001,4)) -> 485 | M20: 5 | N20: 0
A21: BU0071 | B21: =[1]Sheet1!$E$16 -> 5 | C21: =IF(ISERROR(VLOOKUP($A$21,Voorraad!$A$2:$D$1001,1)),"",VLOOKUP($A$21,Voorraad!$A$2:$D$1001,1)) -> BU0071 | D21: =IF(ISERROR(VLOOKUP($A$21,Voorraad!$A$2:$D$1001,3)),"",VLOOKUP($A$21,Voorraad!$A$2:$D$1001,3)) -> HEAD.SEK18 MALE FLAT CABLE CONNECTOR | E21: =IF(ISERROR(VLOOKUP($A$21,Voorraad!$A$2:$D$1001,2)),"",VLOOKUP($A$21,Voorraad!$A$2:$D$1001,2)) -> 260340 | F21: =IF(ISERROR(VLOOKUP($A$21,Voorraad!$A$2:$H$1001,8)),"",VLOOKUP($A$21,Voorraad!$A$2:$H$1001,8)) -> 0 | G21: =IF(ISERROR(VLOOKUP($A$21,Voorraad!$A$2:$I$1001,9)),"",VLOOKUP($A$21,Voorraad!$A$2:$I$1001,9)) -> 09-18-564-7914 | H21: =IF(ISERROR(VLOOKUP($A$21,Voorraad!$A$2:$J$1001,10)),"",VLOOKUP($A$21,Voorraad!$A$2:$J$1001,10)) -> 0 | I21: =IF(ISERROR(VLOOKUP($A$21,Voorraad!$A$2:$G$1001,6)),"",VLOOKUP($A$21,Voorraad!$A$2:$G$1001,6)) -> 0 | J21: =IF(ISERROR(VLOOKUP($A$21,Voorraad!$A$2:$G$1001,7)),"",VLOOKUP($A$21,Voorraad!$A$2:$G$1001,7)) -> HARTING | K21: =IF(ISERROR(VLOOKUP($A$21,Voorraad!$A$2:$G$1001,5)),"",VLOOKUP($A$21,Voorraad!$A$2:$G$1001,5)) -> 8410 | L21: =IF(ISERROR(VLOOKUP($A$21,Voorraad!$A$2:$D$1001,4)),"",VLOOKUP($A$21,Voorraad!$A$2:$D$1001,4)) -> 13 | M21: 5 | N21: 0
A22: BU0011 | B22: =[1]Sheet1!$E$17 -> 20 | C22: =IF(ISERROR(VLOOKUP($A$22,Voorraad!$A$2:$D$1001,1)),"",VLOOKUP($A$22,Voorraad!$A$2:$D$1001,1)) -> BU0011 | D22: =IF(ISERROR(VLOOKUP($A$22,Voorraad!$A$2:$D$1001,3)),"",VLOOKUP($A$22,Voorraad!$A$2:$D$1001,3)) -> 1UH | E22: =IF(ISERROR(VLOOKUP($A$22,Voorraad!$A$2:$D$1001,2)),"",VLOOKUP($A$22,Voorraad!$A$2:$D$1001,2)) -> 304030 | F22: =IF(ISERROR(VLOOKUP($A$22,Voorraad!$A$2:$H$1001,8)),"",VLOOKUP($A$22,Voorraad!$A$2:$H$1001,8)) -> 0 | G22: =IF(ISERROR(VLOOKUP($A$22,Voorraad!$A$2:$I$1001,9)),"",VLOOKUP($A$22,Voorraad!$A$2:$I$1001,9)) -> R0411R12 | H22: =IF(ISERROR(VLOOKUP($A$22,Voorraad!$A$2:$J$1001,10)),"",VLOOKUP($A$22,Voorraad!$A$2:$J$1001,10)) -> 0 | I22: =IF(ISERROR(VLOOKUP($A$22,Voorraad!$A$2:$G$1001,6)),"",VLOOKUP($A$22,Voorraad!$A$2:$G$1001,6)) -> 0 | J22: =IF(ISERROR(VLOOKUP($A$22,Voorraad!$A$2:$G$1001,7)),"",VLOOKUP($A$22,Voorraad!$A$2:$G$1001,7)) -> 0 | K22: =IF(ISERROR(VLOOKUP($A$22,Voorraad!$A$2:$G$1001,5)),"",VLOOKUP($A$22,Voorraad!$A$2:$G$1001,5)) -> 8410 | L22: =IF(ISERROR(VLOOKUP($A$22,Voorraad!$A$2:$D$1001,4)),"",VLOOKUP($A$22,Voorraad!$A$2:$D$1001,4)) -> 0 | M22: 20 | N22: 20
A23: BU0012 | B23: =[1]Sheet1!$E$18 -> 10 | C23: =IF(ISERROR(VLOOKUP($A$23,Voorraad!$A$2:$D$1001,1)),"",VLOOKUP($A$23,Voorraad!$A$2:$D$1001,1)) -> BU0012 | D23: =IF(ISERROR(VLOOKUP($A$23,Voorraad!$A$2:$D$1001,3)),"",VLOOKUP($A$23,Voorraad!$A$2:$D$1001,3)) -> 100UH 275MA | E23: =IF(ISERROR(VLOOKUP($A$23,Voorraad!$A$2:$D$1001,2)),"",VLOOKUP($A$23,Voorraad!$A$2:$D$1001,2)) -> 315000 | F23: =IF(ISERROR(VLOOKUP($A$23,Voorraad!$A$2:$H$1001,8)),"",VLOOKUP($A$23,Voorraad!$A$2:$H$1001,8)) -> 0 | G23: =IF(ISERROR(VLOOKUP($A$23,Voorraad!$A$2:$I$1001,9)),"",VLOOKUP($A$23,Voorraad!$A$2:$I$1001,9)) -> FI-0410NA-101K | H23: =IF(ISERROR(VLOOKUP($A$23,Voorraad!$A$2:$J$1001,10)),"",VLOOKUP($A$23,Voorraad!$A$2:$J$1001,10)) -> 0 | I23: =IF(ISERROR(VLOOKUP($A$23,Voorraad!$A$2:$G$1001,6)),"",VLOOKUP($A$23,Voorraad!$A$2:$G$1001,6)) -> 0 | J23: =IF(ISERROR(VLOOKUP($A$23,Voorraad!$A$2:$G$1001,7)),"",VLOOKUP($A$23,Voorraad!$A$2:$G$1001,7)) -> TAI-TECH | K23: =IF(ISERROR(VLOOKUP($A$23,Voorraad!$A$2:$G$1001,5)),"",VLOOKUP($A$23,Voorraad!$A$2:$G$1001,5)) -> 8410 | L23: =IF(ISERROR(VLOOKUP($A$23,Voorraad!$A$2:$D$1001,4)),"",VLOOKUP($A$23,Voorraad!$A$2:$D$1001,4)) -> 2000 | M23: 10 | N23: 0
A24: BU0013 | B24: =[1]Sheet1!$E$19 -> 5 | C24: =IF(ISERROR(VLOOKUP($A$24,Voorraad!$A$2:$D$1001,1)),"",VLOOKUP($A$24,Voorraad!$A$2:$D$1001,1)) -> BU0013 | D24: =IF(ISERROR(VLOOKUP($A$24,Voorraad!$A$2:$D$1001,3)),"",VLOOKUP($A$24,Voorraad!$A$2:$D$1001,3)) -> 1MH | E24: =IF(ISERROR(VLOOKUP($A$24,Voorraad!$A$2:$D$1001,2)),"",VLOOKUP($A$24,Voorraad!$A$2:$D$1001,2)) -> FI-0410NA-102K | F24: =IF(ISERROR(VLOOKUP($A$24,Voorraad!$A$2:$H$1001,8)),"",VLOOKUP($A$24,Voorraad!$A$2:$H$1001,8)) -> 0 | G24: =IF(ISERROR(VLOOKUP($A$24,Voorraad!$A$2:$I$1001,9)),"",VLOOKUP($A$24,Voorraad!$A$2:$I$1001,9)) -> FI-0410NA-102K | H24: =IF(ISERROR(VLOOKUP($A$24,Voorraad!$A$2:$J$1001,10)),"",VLOOKUP($A$24,Voorraad!$A$2:$J$1001,10)) -> 0 | I24: =IF(ISERROR(VLOOKUP($A$24,Voorraad!$A$2:$G$1001,6)),"",VLOOKUP($A$24,Voorraad!$A$2:$G$1001,6)) -> 0 | J24: =IF(ISERROR(VLOOKUP($A$24,Voorraad!$A$2:$G$1001,7)),"",VLOOKUP($A$24,Voorraad!$A$2:$G$1001,7)) -> TAI-TECH | K24: =IF(ISERROR(VLOOKUP($A$24,Voorraad!$A$2:$G$1001,5)),"",VLOOKUP($A$24,Voorraad!$A$2:$G$1001,5)) -> 8410 | L24: =IF(ISERROR(VLOOKUP($A$24,Voorraad!$A$2:$D$1001,4)),"",VLOOKUP($A$24,Voorraad!$A$2:$D$1001,4)) -> 0 | M24: 5 | N24: 5
A25: BR3520 | B25: =[1]Sheet1!$E$20 -> 5 | C25: =IF(ISERROR(VLOOKUP($A$25,Voorraad!$A$2:$D$1001,1)),"",VLOOKUP($A$25,Voorraad!$A$2:$D$1001,1)) -> BR3520 | D25: =IF(ISERROR(VLOOKUP($A$25,Voorraad!$A$2:$D$1001,3)),"",VLOOKUP($A$25,Voorraad!$A$2:$D$1001,3)) -> R 5,6E | E25: =IF(ISERROR(VLOOKUP($A$25,Voorraad!$A$2:$D$1001,2)),"",VLOOKUP($A$25,Voorraad!$A$2:$D$1001,2)) -> #350100 | F25: =IF(ISERROR(VLOOKUP($A$25,Voorraad!$A$2:$H$1001,8)),"",VLOOKUP($A$25,Voorraad!$A$2:$H$1001,8)) -> 0 | G25: =IF(ISERROR(VLOOKUP($A$25,Voorraad!$A$2:$I$1001,9)),"",VLOOKUP($A$25,Voorraad!$A$2:$I$1001,9)) -> 0 | H25: =IF(ISERROR(VLOOKUP($A$25,Voorraad!$A$2:$J$1001,10)),"",VLOOKUP($A$25,Voorraad!$A$2:$J$1001,10)) -> 0 | I25: =IF(ISERROR(VLOOKUP($A$25,Voorraad!$A$2:$G$1001,6)),"",VLOOKUP($A$25,Voorraad!$A$2:$G$1001,6)) -> 0 | J25: =IF(ISERROR(VLOOKUP($A$25,Voorraad!$A$2:$G$1001,7)),"",VLOOKUP($A$25,Voorraad!$A$2:$G$1001,7)) -> Philips | K25: =IF(ISERROR(VLOOKUP($A$25,Voorraad!$A$2:$G$1001,5)),"",VLOOKUP($A$25,Voorraad!$A$2:$G$1001,5)) -> 8410 | L25: =IF(ISERROR(VLOOKUP($A$25,Voorraad!$A$2:$D$1001,4)),"",VLOOKUP($A$25,Voorraad!$A$2:$D$1001,4)) -> 0 | M25: 5 | N25: 5
A26: BR4035 | B26: =[1]Sheet1!$E$21 -> 10 | C26: =IF(ISERROR(VLOOKUP($A$26,Voorraad!$A$2:$D$1001,1)),"",VLOOKUP($A$26,Voorraad!$A$2:$D$1001,1)) -> BR4035 | D26: =IF(ISERROR(VLOOKUP($A$26,Voorraad!$A$2:$D$1001,3)),"",VLOOKUP($A$26,Voorraad!$A$2:$D$1001,3)) -> V275LA4 | E26: =IF(ISERROR(VLOOKUP($A$26,Voorraad!$A$2:$D$1001,2)),"",VLOOKUP($A$26,Voorraad!$A$2:$D$1001,2)) -> 350100 | F26: =IF(ISERROR(VLOOKUP($A$26,Voorraad!$A$2:$H$1001,8)),"",VLOOKUP($A$26,Voorraad!$A$2:$H$1001,8)) -> 0 | G26: =IF(ISERROR(VLOOKUP($A$26,Voorraad!$A$2:$I$1001,9)),"",VLOOKUP($A$26,Voorraad!$A$2:$I$1001,9)) -> H809159 | H26: =IF(ISERROR(VLOOKUP($A$26,Voorraad!$A$2:$J$1001,10)),"",VLOOKUP($A$26,Voorraad!$A$2:$J$1001,10)) -> 0 | I26: =IF(ISERROR(VLOOKUP($A$26,Voorraad!$A$2:$G$1001,6)),"",VLOOKUP($A$26,Voorraad!$A$2:$G$1001,6)) -> 0 | J26: =IF(ISERROR(VLOOKUP($A$26,Voorraad!$A$2:$G$1001,7)),"",VLOOKUP($A$26,Voorraad!$A$2:$G$1001,7)) -> HARRIS | K26: =IF(ISERROR(VLOOKUP($A$26,Voorraad!$A$2:$G$1001,5)),"",VLOOKUP($A$26,Voorraad!$A$2:$G$1001,5)) -> 8410 | L26: =IF(ISERROR(VLOOKUP($A$26,Voorraad!$A$2:$D$1001,4)),"",VLOOKUP($A$26,Voorraad!$A$2:$D$1001,4)) -> 219 | M26: 10 | N26: 0
A27: BR3550 | B27: =[1]Sheet1!$E$22 -> 75 | C27: =IF(ISERROR(VLOOKUP($A$27,Voorraad!$A$2:$D$1001,1)),"",VLOOKUP($A$27,Voorraad!$A$2:$D$1001,1)) -> BR3550 | D27: =IF(ISERROR(VLOOKUP($A$27,Voorraad!$A$2:$D$1001,3)),"",VLOOKUP($A$27,Voorraad!$A$2:$D$1001,3)) -> RV S05K30 100A 0.01W | E27: =IF(ISERROR(VLOOKUP($A$27,Voorraad!$A$2:$D$1001,2)),"",VLOOKUP($A$27,Voorraad!$A$2:$D$1001,2)) -> #122S05K30 | F27: =IF(ISERROR(VLOOKUP($A$27,Voorraad!$A$2:$H$1001,8)),"",VLOOKUP($A$27,Voorraad!$A$2:$H$1001,8)) -> 500088 | G27: =IF(ISERROR(VLOOKUP($A$27,Voorraad!$A$2:$I$1001,9)),"",VLOOKUP($A$27,Voorraad!$A$2:$I$1001,9)) -> SIOV-S05K30 | H27: =IF(ISERROR(VLOOKUP($A$27,Voorraad!$A$2:$J$1001,10)),"",VLOOKUP($A$27,Voorraad!$A$2:$J$1001,10)) -> Groter aantal inkopen | I27: =IF(ISERROR(VLOOKUP($A$27,Voorraad!$A$2:$G$1001,6)),"",VLOOKUP($A$27,Voorraad!$A$2:$G$1001,6)) -> TME | J27: =IF(ISERROR(VLOOKUP($A$27,Voorraad!$A$2:$G$1001,7)),"",VLOOKUP($A$27,Voorraad!$A$2:$G$1001,7)) -> EPCOS | K27: =IF(ISERROR(VLOOKUP($A$27,Voorraad!$A$2:$G$1001,5)),"",VLOOKUP($A$27,Voorraad!$A$2:$G$1001,5)) -> 8410/8437/8438/8439/8510 | L27: =IF(ISERROR(VLOOKUP($A$27,Voorraad!$A$2:$D$1001,4)),"",VLOOKUP($A$27,Voorraad!$A$2:$D$1001,4)) -> 86 | M27: 75 | N27: 0
A28: BR4008 | B28: =[1]Sheet1!$E$23 -> 20 | C28: =IF(ISERROR(VLOOKUP($A$28,Voorraad!$A$2:$D$1001,1)),"",VLOOKUP($A$28,Voorraad!$A$2:$D$1001,1)) -> BR4008 | D28: =IF(ISERROR(VLOOKUP($A$28,Voorraad!$A$2:$D$1001,3)),"",VLOOKUP($A$28,Voorraad!$A$2:$D$1001,3)) -> RV S05K385 385V 0.10W | E28: =IF(ISERROR(VLOOKUP($A$28,Voorraad!$A$2:$D$1001,2)),"",VLOOKUP($A$28,Voorraad!$A$2:$D$1001,2)) -> #122S05K385 | F28: =IF(ISERROR(VLOOKUP($A$28,Voorraad!$A$2:$H$1001,8)),"",VLOOKUP($A$28,Voorraad!$A$2:$H$1001,8)) -> 0 | G28: =IF(ISERROR(VLOOKUP($A$28,Voorraad!$A$2:$I$1001,9)),"",VLOOKUP($A$28,Voorraad!$A$2:$I$1001,9)) -> B72207-S 381K101 | H28: =IF(ISERROR(VLOOKUP($A$28,Voorraad!$A$2:$J$1001,10)),"",VLOOKUP($A$28,Voorraad!$A$2:$J$1001,10)) -> RS COMPONENTS NR: 138-9254 | I28: =IF(ISERROR(VLOOKUP($A$28,Voorraad!$A$2:$G$1001,6)),"",VLOOKUP($A$28,Voorraad!$A$2:$G$1001,6)) -> DISTRELEC | J28: =IF(ISERROR(VLOOKUP($A$28,Voorraad!$A$2:$G$1001,7)),"",VLOOKUP($A$28,Voorraad!$A$2:$G$1001,7)) -> EPCOS | K28: =IF(ISERROR(VLOOKUP($A$28,Voorraad!$A$2:$G$1001,5)),"",VLOOKUP($A$28,Voorraad!$A$2:$G$1001,5)) -> 8410/8510 | L28: =IF(ISERROR(VLOOKUP($A$28,Voorraad!$A$2:$D$1001,4)),"",VLOOKUP($A$28,Voorraad!$A$2:$D$1001,4)) -> -142 | M28: 20 | N28: 162
A29: BU0055 | B29: =[1]Sheet1!$E$24 -> 5 | C29: =IF(ISERROR(VLOOKUP($A$29,Voorraad!$A$2:$D$1001,1)),"",VLOOKUP($A$29,Voorraad!$A$2:$D$1001,1)) -> BU0055 | D29: =IF(ISERROR(VLOOKUP($A$29,Voorraad!$A$2:$D$1001,3)),"",VLOOKUP($A$29,Voorraad!$A$2:$D$1001,3)) -> REL V23061-B1009 | E29: =IF(ISERROR(VLOOKUP($A$29,Voorraad!$A$2:$D$1001,2)),"",VLOOKUP($A$29,Voorraad!$A$2:$D$1001,2)) -> 372250 | F29: =IF(ISERROR(VLOOKUP($A$29,Voorraad!$A$2:$H$1001,8)),"",VLOOKUP($A$29,Voorraad!$A$2:$H$1001,8)) -> 0 | G29: =IF(ISERROR(VLOOKUP($A$29,Voorraad!$A$2:$I$1001,9)),"",VLOOKUP($A$29,Voorraad!$A$2:$I$1001,9)) -> 0 | H29: =IF(ISERROR(VLOOKUP($A$29,Voorraad!$A$2:$J$1001,10)),"",VLOOKUP($A$29,Voorraad!$A$2:$J$1001,10)) -> 0 | I29: =IF(ISERROR(VLOOKUP($A$29,Voorraad!$A$2:$G$1001,6)),"",VLOOKUP($A$29,Voorraad!$A$2:$G$1001,6)) -> 0 | J29: =IF(ISERROR(VLOOKUP($A$29,Voorraad!$A$2:$G$1001,7)),"",VLOOKUP($A$29,Voorraad!$A$2:$G$1001,7)) -> SIEMENS | K29: =IF(ISERROR(VLOOKUP($A$29,Voorraad!$A$2:$G$1001,5)),"",VLOOKUP($A$29,Voorraad!$A$2:$G$1001,5)) -> 8410 | L29: =IF(ISERROR(VLOOKUP($A$29,Voorraad!$A$2:$D$1001,4)),"",VLOOKUP($A$29,Voorraad!$A$2:$D$1001,4)) -> 3 | M29: 5 | N29: 2
A30: BX0023 | B30: =[1]Sheet1!$E$25 -> 20 | C30: =IF(ISERROR(VLOOKUP($A$30,Voorraad!$A$2:$D$1001,1)),"",VLOOKUP($A$30,Voorraad!$A$2:$D$1001,1)) -> BX0023 | D30: =IF(ISERROR(VLOOKUP($A$30,Voorraad!$A$2:$D$1001,3)),"",VLOOKUP($A$30,Voorraad!$A$2:$D$1001,3)) -> UMK-BE 45 | E30: =IF(ISERROR(VLOOKUP($A$30,Voorraad!$A$2:$D$1001,2)),"",VLOOKUP($A$30,Voorraad!$A$2:$D$1001,2)) -> 2970015 | F30: =IF(ISERROR(VLOOKUP($A$30,Voorraad!$A$2:$H$1001,8)),"",VLOOKUP($A$30,Voorraad!$A$2:$H$1001,8)) -> 0 | G30: =IF(ISERROR(VLOOKUP($A$30,Voorraad!$A$2:$I$1001,9)),"",VLOOKUP($A$30,Voorraad!$A$2:$I$1001,9)) -> 0 | H30: =IF(ISERROR(VLOOKUP($A$30,Voorraad!$A$2:$J$1001,10)),"",VLOOKUP($A$30,Voorraad!$A$2:$J$1001,10)) -> 0 | I30: =IF(ISERROR(VLOOKUP($A$30,Voorraad!$A$2:$G$1001,6)),"",VLOOKUP($A$30,Voorraad!$A$2:$G$1001,6)) -> 0 | J30: =IF(ISERROR(VLOOKUP($A$30,Voorraad!$A$2:$G$1001,7)),"",VLOOKUP($A$30,Voorraad!$A$2:$G$1001,7)) -> Phoenix | K30: =IF(ISERROR(VLOOKUP($A$30,Voorraad!$A$2:$G$1001,5)),"",VLOOKUP($A$30,Voorraad!$A$2:$G$1001,5)) -> 8410/8464 | L30: =IF(ISERROR(VLOOKUP($A$30,Voorraad!$A$2:$D$1001,4)),"",VLOOKUP($A$30,Voorraad!$A$2:$D$1001,4)) -> 0 | M30: 20 | N30: 20
A31: BX0024 | B31: =[1]Sheet1!$E$26 -> 10 | C31: =IF(ISERROR(VLOOKUP($A$31,Voorraad!$A$2:$D$1001,1)),"",VLOOKUP($A$31,Voorraad!$A$2:$D$1001,1)) -> BX0024 | D31: =IF(ISERROR(VLOOKUP($A$31,Voorraad!$A$2:$D$1001,3)),"",VLOOKUP($A$31,Voorraad!$A$2:$D$1001,3)) -> UMK-SE 11.25 | E31: =IF(ISERROR(VLOOKUP($A$31,Voorraad!$A$2:$D$1001,2)),"",VLOOKUP($A$31,Voorraad!$A$2:$D$1001,2)) -> 2970002 | F31: =IF(ISERROR(VLOOKUP($A$31,Voorraad!$A$2:$H$1001,8)),"",VLOOKUP($A$31,Voorraad!$A$2:$H$1001,8)) -> 0 | G31: =IF(ISERROR(VLOOKUP($A$31,Voorraad!$A$2:$I$1001,9)),"",VLOOKUP($A$31,Voorraad!$A$2:$I$1001,9)) -> 0 | H31: =IF(ISERROR(VLOOKUP($A$31,Voorraad!$A$2:$J$1001,10)),"",VLOOKUP($A$31,Voorraad!$A$2:$J$1001,10)) -> 0 | I31: =IF(ISERROR(VLOOKUP($A$31,Voorraad!$A$2:$G$1001,6)),"",VLOOKUP($A$31,Voorraad!$A$2:$G$1001,6)) -> 0 | J31: =IF(ISERROR(VLOOKUP($A$31,Voorraad!$A$2:$G$1001,7)),"",VLOOKUP($A$31,Voorraad!$A$2:$G$1001,7)) -> Phoenix | K31: =IF(ISERROR(VLOOKUP($A$31,Voorraad!$A$2:$G$1001,5)),"",VLOOKUP($A$31,Voorraad!$A$2:$G$1001,5)) -> 8410/8464 | L31: =IF(ISERROR(VLOOKUP($A$31,Voorraad!$A$2:$D$1001,4)),"",VLOOKUP($A$31,Voorraad!$A$2:$D$1001,4)) -> 0 | M31: 10 | N31: 10
A32: BX0025 | B32: =[1]Sheet1!$E$27 -> 15 | C32: =IF(ISERROR(VLOOKUP($A$32,Voorraad!$A$2:$D$1001,1)),"",VLOOKUP($A$32,Voorraad!$A$2:$D$1001,1)) -> BX0025 | D32: =IF(ISERROR(VLOOKUP($A$32,Voorraad!$A$2:$D$1001,3)),"",VLOOKUP($A$32,Voorraad!$A$2:$D$1001,3)) -> UMK-FE | E32: =IF(ISERROR(VLOOKUP($A$32,Voorraad!$A$2:$D$1001,2)),"",VLOOKUP($A$32,Voorraad!$A$2:$D$1001,2)) -> 2970031 | F32: =IF(ISERROR(VLOOKUP($A$32,Voorraad!$A$2:$H$1001,8)),"",VLOOKUP($A$32,Voorraad!$A$2:$H$1001,8)) -> 0 | G32: =IF(ISERROR(VLOOKUP($A$32,Voorraad!$A$2:$I$1001,9)),"",VLOOKUP($A$32,Voorraad!$A$2:$I$1001,9)) -> 0 | H32: =IF(ISERROR(VLOOKUP($A$32,Voorraad!$A$2:$J$1001,10)),"",VLOOKUP($A$32,Voorraad!$A$2:$J$1001,10)) -> 0 | I32: =IF(ISERROR(VLOOKUP($A$32,Voorraad!$A$2:$G$1001,6)),"",VLOOKUP($A$32,Voorraad!$A$2:$G$1001,6)) -> 0 | J32: =IF(ISERROR(VLOOKUP($A$32,Voorraad!$A$2:$G$1001,7)),"",VLOOKUP($A$32,Voorraad!$A$2:$G$1001,7)) -> Phoenix | K32: =IF(ISERROR(VLOOKUP($A$32,Voorraad!$A$2:$G$1001,5)),"",VLOOKUP($A$32,Voorraad!$A$2:$G$1001,5)) -> 8410/8464 | L32: =IF(ISERROR(VLOOKUP($A$32,Voorraad!$A$2:$D$1001,4)),"",VLOOKUP($A$32,Voorraad!$A$2:$D$1001,4)) -> 0 | M32: 15 | N32: 15
A33: BX0038 | B33: =[1]Sheet1!$E$28 -> 5 | C33: =IF(ISERROR(VLOOKUP($A$33,Voorraad!$A$2:$D$1001,1)),"",VLOOKUP($A$33,Voorraad!$A$2:$D$1001,1)) -> BX0038 | D33: =IF(ISERROR(VLOOKUP($A$33,Voorraad!$A$2:$D$1001,3)),"",VLOOKUP($A$33,Voorraad!$A$2:$D$1001,3)) -> PCB 8410 | E33: =IF(ISERROR(VLOOKUP($A$33,Voorraad!$A$2:$D$1001,2)),"",VLOOKUP($A$33,Voorraad!$A$2:$D$1001,2)) -> PCB 8410 | F33: =IF(ISERROR(VLOOKUP($A$33,Voorraad!$A$2:$H$1001,8)),"",VLOOKUP($A$33,Voorraad!$A$2:$H$1001,8)) -> 476700 | G33: =IF(ISERROR(VLOOKUP($A$33,Voorraad!$A$2:$I$1001,9)),"",VLOOKUP($A$33,Voorraad!$A$2:$I$1001,9)) -> 0 | H33: =IF(ISERROR(VLOOKUP($A$33,Voorraad!$A$2:$J$1001,10)),"",VLOOKUP($A$33,Voorraad!$A$2:$J$1001,10)) -> 0 | I33: =IF(ISERROR(VLOOKUP($A$33,Voorraad!$A$2:$G$1001,6)),"",VLOOKUP($A$33,Voorraad!$A$2:$G$1001,6)) -> JvB | J33: =IF(ISERROR(VLOOKUP($A$33,Voorraad!$A$2:$G$1001,7)),"",VLOOKUP($A$33,Voorraad!$A$2:$G$1001,7)) -> JvB | K33: =IF(ISERROR(VLOOKUP($A$33,Voorraad!$A$2:$G$1001,5)),"",VLOOKUP($A$33,Voorraad!$A$2:$G$1001,5)) -> PCB 8410 | L33: =IF(ISERROR(VLOOKUP($A$33,Voorraad!$A$2:$D$1001,4)),"",VLOOKUP($A$33,Voorraad!$A$2:$D$1001,4)) -> 0 | M33: 5 | N33: 5

Sheet Picklijst 8437
A2: Pickorder 8437 | C2: =[2]Sheet1!$D$2 -> 10 | D2: X
A8: Art Nr CSI | B8: Benodigd | C8: Art Nr CSI | D8: Omschrijving | E8: Leverancier Nr | F8: Produco Nr | G8: OrderNr | H8: Opmerkingen/Alternatieven | I8: Leverancier | J8: Producent | K8: PCB | L8: Voorraad | M8: Benodigd | N8: Bestellen
A9: BSH002 | B9: =[2]Sheet1!$E$4 -> 40 | C9: =IF(ISERROR(VLOOKUP($A$9,Voorraad!$A$2:$D$1001,1)),"",VLOOKUP($A$9,Voorraad!$A$2:$D$1001,1)) -> BSH002 | D9: =IF(ISERROR(VLOOKUP($A$9,Voorraad!$A$2:$D$1001,3)),"",VLOOKUP($A$9,Voorraad!$A$2:$D$1001,3)) -> 220U / 35V | E9: =IF(ISERROR(VLOOKUP($A$9,Voorraad!$A$2:$D$1001,2)),"",VLOOKUP($A$9,Voorraad!$A$2:$D$1001,2)) -> EEUFC1V221 | F9: =IF(ISERROR(VLOOKUP($A$9,Voorraad!$A$2:$H$1001,8)),"",VLOOKUP($A$9,Voorraad!$A$2:$H$1001,8)) -> 0 | G9: =IF(ISERROR(VLOOKUP($A$9,Voorraad!$A$2:$I$1001,9)),"",VLOOKUP($A$9,Voorraad!$A$2:$I$1001,9)) -> EEUFC1V221 | H9: =IF(ISERROR(VLOOKUP($A$9,Voorraad!$A$2:$J$1001,10)),"",VLOOKUP($A$9,Voorraad!$A$2:$J$1001,10)) -> Alternatief: SE050M0220-1012 | I9: =IF(ISERROR(VLOOKUP($A$9,Voorraad!$A$2:$G$1001,6)),"",VLOOKUP($A$9,Voorraad!$A$2:$G$1001,6)) -> TME | J9: =IF(ISERROR(VLOOKUP($A$9,Voorraad!$A$2:$G$1001,7)),"",VLOOKUP($A$9,Voorraad!$A$2:$G$1001,7)) -> Panasonic | K9: =IF(ISERROR(VLOOKUP($A$9,Voorraad!$A$2:$G$1001,5)),"",VLOOKUP($A$9,Voorraad!$A$2:$G$1001,5)) -> 8437/8438/8439 | L9: =IF(ISERROR(VLOOKUP($A$9,Voorraad!$A$2:$D$1001,4)),"",VLOOKUP($A$9,Voorraad!$A$2:$D$1001,4)) -> 178 | M9: =B9 -> 40 | N9: =MAX(0,(SUM(M9-L9))) -> 0
A10: BU0005 | B10: =[2]Sheet1!$E$5 -> 10 | C10: =IF(ISERROR(VLOOKUP($A$10,Voorraad!$A$2:$D$1001,1)),"",VLOOKUP($A$10,Voorraad!$A$2:$D$1001,1)) -> BU0005 | D10: =IF(ISERROR(VLOOKUP($A$10,Voorraad!$A$2:$D$1001,3)),"",VLOOKUP($A$10,Voorraad!$A$2:$D$1001,3)) -> T83-A90X | E10: =IF(ISERROR(VLOOKUP($A$10,Voorraad!$A$2:$D$1001,2)),"",VLOOKUP($A$10,Voorraad!$A$2:$D$1001,2)) -> 2046-09-C2LF | F10: =IF(ISERROR(VLOOKUP($A$10,Voorraad!$A$2:$H$1001,8)),"",VLOOKUP($A$10,Voorraad!$A$2:$H$1001,8)) -> 0 | G10: =IF(ISERROR(VLOOKUP($A$10,Voorraad!$A$2:$I$1001,9)),"",VLOOKUP($A$10,Voorraad!$A$2:$I$1001,9)) -> 2335982 | H10: =IF(ISERROR(VLOOKUP($A$10,Voorraad!$A$2:$J$1001,10)),"",VLOOKUP($A$10,Voorraad!$A$2:$J$1001,10)) -> 0 | I10: =IF(ISERROR(VLOOKUP($A$10,Voorraad!$A$2:$G$1001,6)),"",VLOOKUP($A$10,Voorraad!$A$2:$G$1001,6)) -> Farnell | J10: =IF(ISERROR(VLOOKUP($A$10,Voorraad!$A$2:$G$1001,7)),"",VLOOKUP($A$10,Voorraad!$A$2:$G$1001,7)) -> Bourns | K10: =IF(ISERROR(VLOOKUP($A$10,Voorraad!$A$2:$G$1001,5)),"",VLOOKUP($A$10,Voorraad!$A$2:$G$1001,5)) -> 8437/8438/8439 | L10: =IF(ISERROR(VLOOKUP($A$10,Voorraad!$A$2:$D$1001,4)),"",VLOOKUP($A$10,Voorraad!$A$2:$D$1001,4)) -> 57 | M10: 10 | N10: 0
A11: BU0016 | B11: =[2]Sheet1!$E$6 -> 10 | C11: =IF(ISERROR(VLOOKUP($A$11,Voorraad!$A$2:$D$1001,1)),"",VLOOKUP($A$11,Voorraad!$A$2:$D$1001,1)) -> BU0016 | D11: =IF(ISERROR(VLOOKUP($A$11,Voorraad!$A$2:$D$1001,3)),"",VLOOKUP($A$11,Voorraad!$A$2:$D$1001,3)) -> D BYV27-150-TAP | E11: =IF(ISERROR(VLOOKUP($A$11,Voorraad!$A$2:$D$1001,2)),"",VLOOKUP($A$11,Voorraad!$A$2:$D$1001,2)) -> 0 | F11: =IF(ISERROR(VLOOKUP($A$11,Voorraad!$A$2:$H$1001,8)),"",VLOOKUP($A$11,Voorraad!$A$2:$H$1001,8)) -> 520005 | G11: =IF(ISERROR(VLOOKUP($A$11,Voorraad!$A$2:$I$1001,9)),"",VLOOKUP($A$11,Voorraad!$A$2:$I$1001,9)) -> BYV27-150-TAP | H11: =IF(ISERROR(VLOOKUP($A$11,Voorraad!$A$2:$J$1001,10)),"",VLOOKUP($A$11,Voorraad!$A$2:$J$1001,10)) -> 0 | I11: =IF(ISERROR(VLOOKUP($A$11,Voorraad!$A$2:$G$1001,6)),"",VLOOKUP($A$11,Voorraad!$A$2:$G$1001,6)) -> MOUSER | J11: =IF(ISERROR(VLOOKUP($A$11,Voorraad!$A$2:$G$1001,7)),"",VLOOKUP($A$11,Voorraad!$A$2:$G$1001,7)) -> PHILIPS | K11: =IF(ISERROR(VLOOKUP($A$11,Voorraad!$A$2:$G$1001,5)),"",VLOOKUP($A$11,Voorraad!$A$2:$G$1001,5)) -> 8437/8438/8439/8510 | L11: =IF(ISERROR(VLOOKUP($A$11,Voorraad!$A$2:$D$1001,4)),"",VLOOKUP($A$11,Voorraad!$A$2:$D$1001,4)) -> -7 | M11: 10 | N11: 17
A12: BU0038 | B12: =[2]Sheet1!$E$7 -> 10 | C12: =IF(ISERROR(VLOOKUP($A$12,Voorraad!$A$2:$D$1001,1)),"",VLOOKUP($A$12,Voorraad!$A$2:$D$1001,1)) -> BU0038 | D12: =IF(ISERROR(VLOOKUP($A$12,Voorraad!$A$2:$D$1001,3)),"",VLOOKUP($A$12,Voorraad!$A$2:$D$1001,3)) -> 4N35 Optocoupler | E12: =IF(ISERROR(VLOOKUP($A$12,Voorraad!$A$2:$D$1001,2)),"",VLOOKUP($A$12,Voorraad!$A$2:$D$1001,2)) -> DIL6 | F12: =IF(ISERROR(VLOOKUP($A$12,Voorraad!$A$2:$H$1001,8)),"",VLOOKUP($A$12,Voorraad!$A$2:$H$1001,8)) -> 0 | G12: =IF(ISERROR(VLOOKUP($A$12,Voorraad!$A$2:$I$1001,9)),"",VLOOKUP($A$12,Voorraad!$A$2:$I$1001,9)) -> 4N35 | H12: =IF(ISERROR(VLOOKUP($A$12,Voorraad!$A$2:$J$1001,10)),"",VLOOKUP($A$12,Voorraad!$A$2:$J$1001,10)) -> 0 | I12: =IF(ISERROR(VLOOKUP($A$12,Voorraad!$A$2:$G$1001,6)),"",VLOOKUP($A$12,Voorraad!$A$2:$G$1001,6)) -> TME | J12: =IF(ISERROR(VLOOKUP($A$12,Voorraad!$A$2:$G$1001,7)),"",VLOOKUP($A$12,Voorraad!$A$2:$G$1001,7)) -> Vishay | K12: =IF(ISERROR(VLOOKUP($A$12,Voorraad!$A$2:$G$1001,5)),"",VLOOKUP($A$12,Voorraad!$A$2:$G$1001,5)) -> 8437/8464 | L12: =IF(ISERROR(VLOOKUP($A$12,Voorraad!$A$2:$D$1001,4)),"",VLOOKUP($A$12,Voorraad!$A$2:$D$1001,4)) -> 15 | M12: 10 | N12: 0
A13: BU0053 | B13: =[2]Sheet1!$E$8 -> 10 | C13: =IF(ISERROR(VLOOKUP($A$13,Voorraad!$A$2:$D$1001,1)),"",VLOOKUP($A$13,Voorraad!$A$2:$D$1001,1)) -> BU0053 | D13: =IF(ISERROR(VLOOKUP($A$13,Voorraad!$A$2:$D$1001,3)),"",VLOOKUP($A$13,Voorraad!$A$2:$D$1001,3)) -> TMR6_2422 | E13: =IF(ISERROR(VLOOKUP($A$13,Voorraad!$A$2:$D$1001,2)),"",VLOOKUP($A$13,Voorraad!$A$2:$D$1001,2)) -> 906442394 | F13: =IF(ISERROR(VLOOKUP($A$13,Voorraad!$A$2:$H$1001,8)),"",VLOOKUP($A$13,Voorraad!$A$2:$H$1001,8)) -> 0 | G13: =IF(ISERROR(VLOOKUP($A$13,Voorraad!$A$2:$I$1001,9)),"",VLOOKUP($A$13,Voorraad!$A$2:$I$1001,9)) -> TMR6-2422 | H13: =IF(ISERROR(VLOOKUP($A$13,Voorraad!$A$2:$J$1001,10)),"",VLOOKUP($A$13,Voorraad!$A$2:$J$1001,10)) -> DISTRELEC: 169-54-689 | I13: =IF(ISERROR(VLOOKUP($A$13,Voorraad!$A$2:$G$1001,6)),"",VLOOKUP($A$13,Voorraad!$A$2:$G$1001,6)) -> TME | J13: =IF(ISERROR(VLOOKUP($A$13,Voorraad!$A$2:$G$1001,7)),"",VLOOKUP($A$13,Voorraad!$A$2:$G$1001,7)) -> TRACO POWER | K13: =IF(ISERROR(VLOOKUP($A$13,Voorraad!$A$2:$G$1001,5)),"",VLOOKUP($A$13,Voorraad!$A$2:$G$1001,5)) -> 8437/8439 | L13: =IF(ISERROR(VLOOKUP($A$13,Voorraad!$A$2:$D$1001,4)),"",VLOOKUP($A$13,Voorraad!$A$2:$D$1001,4)) -> 37 | M13: 10 | N13: 0
A14: BR4020 | B14: =[2]Sheet1!$E$9 -> 10 | C14: =IF(ISERROR(VLOOKUP($A$14,Voorraad!$A$2:$D$1001,1)),"",VLOOKUP($A$14,Voorraad!$A$2:$D$1001,1)) -> BR4020 | D14: =IF(ISERROR(VLOOKUP($A$14,Voorraad!$A$2:$D$1001,3)),"",VLOOKUP($A$14,Voorraad!$A$2:$D$1001,3)) -> MFR135 | E14: =IF(ISERROR(VLOOKUP($A$14,Voorraad!$A$2:$D$1001,2)),"",VLOOKUP($A$14,Voorraad!$A$2:$D$1001,2)) -> ERF-RA13560Z | F14: =IF(ISERROR(VLOOKUP($A$14,Voorraad!$A$2:$H$1001,8)),"",VLOOKUP($A$14,Voorraad!$A$2:$H$1001,8)) -> 0 | G14: =IF(ISERROR(VLOOKUP($A$14,Voorraad!$A$2:$I$1001,9)),"",VLOOKUP($A$14,Voorraad!$A$2:$I$1001,9)) -> ERF - RA135-60Z | H14: =IF(ISERROR(VLOOKUP($A$14,Voorraad!$A$2:$J$1001,10)),"",VLOOKUP($A$14,Voorraad!$A$2:$J$1001,10)) -> 0 | I14: =IF(ISERROR(VLOOKUP($A$14,Voorraad!$A$2:$G$1001,6)),"",VLOOKUP($A$14,Voorraad!$A$2:$G$1001,6)) -> TME | J14: =IF(ISERROR(VLOOKUP($A$14,Voorraad!$A$2:$G$1001,7)),"",VLOOKUP($A$14,Voorraad!$A$2:$G$1001,7)) -> ECE | K14: =IF(ISERROR(VLOOKUP($A$14,Voorraad!$A$2:$G$1001,5)),"",VLOOKUP($A$14,Voorraad!$A$2:$G$1001,5)) -> 8437/8438 | L14: =IF(ISERROR(VLOOKUP($A$14,Voorraad!$A$2:$D$1001,4)),"",VLOOKUP($A$14,Voorraad!$A$2:$D$1001,4)) -> 14 | M14: 10 | N14: 0
A15: BR4030 | B15: =[2]Sheet1!$E$10 -> 10 | C15: =IF(ISERROR(VLOOKUP($A$15,Voorraad!$A$2:$D$1001,1)),"",VLOOKUP($A$15,Voorraad!$A$2:$D$1001,1)) -> BR4030 | D15: =IF(ISERROR(VLOOKUP($A$15,Voorraad!$A$2:$D$1001,3)),"",VLOOKUP($A$15,Voorraad!$A$2:$D$1001,3)) -> 100NF50V | E15: =IF(ISERROR(VLOOKUP($A$15,Voorraad!$A$2:$D$1001,2)),"",VLOOKUP($A$9,Voorraad!$A$2:$D$1001,2)) -> EEUFC1V221 | F15: =IF(ISERROR(VLOOKUP($A$15,Voorraad!$A$2:$H$1001,8)),"",VLOOKUP($A$15,Voorraad!$A$2:$H$1001,8)) -> 0 | G15: =IF(ISERROR(VLOOKUP($A$15,Voorraad!$A$2:$I$1001,9)),"",VLOOKUP($A$15,Voorraad!$A$2:$I$1001,9)) -> CM-100N-Y5V | H15: =IF(ISERROR(VLOOKUP($A$15,Voorraad!$A$2:$J$1001,10)),"",VLOOKUP($A$15,Voorraad!$A$2:$J$1001,10)) -> 0 | I15: =IF(ISERROR(VLOOKUP($A$15,Voorraad!$A$2:$G$1001,6)),"",VLOOKUP($A$15,Voorraad!$A$2:$G$1001,6)) -> TME | J15: =IF(ISERROR(VLOOKUP($A$15,Voorraad!$A$2:$G$1001,7)),"",VLOOKUP($A$15,Voorraad!$A$2:$G$1001,7)) -> SR Passives | K15: =IF(ISERROR(VLOOKUP($A$15,Voorraad!$A$2:$G$1001,5)),"",VLOOKUP($A$15,Voorraad!$A$2:$G$1001,5)) -> 8437/8438/8439 | L15: =IF(ISERROR(VLOOKUP($A$15,Voorraad!$A$2:$D$1001,4)),"",VLOOKUP($A$15,Voorraad!$A$2:$D$1001,4)) -> 184 | M15: 10 | N15: 0
A16: BR3550 | B16: =[2]Sheet1!$E$11 -> 10 | C16: =IF(ISERROR(VLOOKUP($A$16,Voorraad!$A$2:$D$1001,1)),"",VLOOKUP($A$16,Voorraad!$A$2:$D$1001,1)) -> BR3550 | D16: =IF(ISERROR(VLOOKUP($A$16,Voorraad!$A$2:$D$1001,3)),"",VLOOKUP($A$16,Voorraad!$A$2:$D$1001,3)) -> RV S05K30 100A 0.01W | E16: =IF(ISERROR(VLOOKUP($A$16,Voorraad!$A$2:$D$1001,2)),"",VLOOKUP($A$16,Voorraad!$A$2:$D$1001,2)) -> #122S05K30 | F16: =IF(ISERROR(VLOOKUP($A$16,Voorraad!$A$2:$H$1001,8)),"",VLOOKUP($A$16,Voorraad!$A$2:$H$1001,8)) -> 500088 | G16: =IF(ISERROR(VLOOKUP($A$16,Voorraad!$A$2:$I$1001,9)),"",VLOOKUP($A$16,Voorraad!$A$2:$I$1001,9)) -> SIOV-S05K30 | H16: =IF(ISERROR(VLOOKUP($A$16,Voorraad!$A$2:$J$1001,10)),"",VLOOKUP($A$16,Voorraad!$A$2:$J$1001,10)) -> Groter aantal inkopen | I16: =IF(ISERROR(VLOOKUP($A$16,Voorraad!$A$2:$G$1001,6)),"",VLOOKUP($A$16,Voorraad!$A$2:$G$1001,6)) -> TME | J16: =IF(ISERROR(VLOOKUP($A$16,Voorraad!$A$2:$G$1001,7)),"",VLOOKUP($A$16,Voorraad!$A$2:$G$1001,7)) -> EPCOS | K16: =IF(ISERROR(VLOOKUP($A$16,Voorraad!$A$2:$G$1001,5)),"",VLOOKUP($A$16,Voorraad!$A$2:$G$1001,5)) -> 8410/8437/8438/8439/8510 | L16: =IF(ISERROR(VLOOKUP($A$16,Voorraad!$A$2:$D$1001,4)),"",VLOOKUP($A$16,Voorraad!$A$2:$D$1001,4)) -> 86 | M16: 10 | N16: 0
A17: BR0004 | B17: =[2]Sheet1!$E$12 -> 20 | C17: =IF(ISERROR(VLOOKUP($A$17,Voorraad!$A$2:$D$1001,1)),"",VLOOKUP($A$17,Voorraad!$A$2:$D$1001,1)) -> BR0004 | D17: =IF(ISERROR(VLOOKUP($A$17,Voorraad!$A$2:$D$1001,3)),"",VLOOKUP($A$17,Voorraad!$A$2:$D$1001,3)) -> R 1K00 1% 0.6W 7X2,5MM | E17: =IF(ISERROR(VLOOKUP($A$17,Voorraad!$A$2:$D$1001,2)),"",VLOOKUP($A$17,Voorraad!$A$2:$D$1001,2)) -> #10031001 | F17: =IF(ISERROR(VLOOKUP($A$17,Voorraad!$A$2:$H$1001,8)),"",VLOOKUP($A$17,Voorraad!$A$2:$H$1001,8)) -> 500048 | G17: =IF(ISERROR(VLOOKUP($A$17,Voorraad!$A$2:$I$1001,9)),"",VLOOKUP($A$17,Voorraad!$A$2:$I$1001,9)) -> 0 | H17: =IF(ISERROR(VLOOKUP($A$17,Voorraad!$A$2:$J$1001,10)),"",VLOOKUP($A$17,Voorraad!$A$2:$J$1001,10)) -> 0 | I17: =IF(ISERROR(VLOOKUP($A$17,Voorraad!$A$2:$G$1001,6)),"",VLOOKUP($A$17,Voorraad!$A$2:$G$1001,6)) -> 0 | J17: =IF(ISERROR(VLOOKUP($A$17,Voorraad!$A$2:$G$1001,7)),"",VLOOKUP($A$17,Voorraad!$A$2:$G$1001,7)) -> BCC | K17: =IF(ISERROR(VLOOKUP($A$17,Voorraad!$A$2:$G$1001,5)),"",VLOOKUP($A$17,Voorraad!$A$2:$G$1001,5)) -> 8510/8437/8438/8439/8464 | L17: =IF(ISERROR(VLOOKUP($A$17,Voorraad!$A$2:$D$1001,4)),"",VLOOKUP($A$17,Voorraad!$A$2:$D$1001,4)) -> 208 | M17: 20 | N17: 0
A18: BR0005 | B18: =[2]Sheet1!$E$13 -> 20 | C18: =IF(ISERROR(VLOOKUP($A$18,Voorraad!$A$2:$D$1001,1)),"",VLOOKUP($A$18,Voorraad!$A$2:$D$1001,1)) -> BR0005 | D18: =IF(ISERROR(VLOOKUP($A$18,Voorraad!$A$2:$D$1001,3)),"",VLOOKUP($A$18,Voorraad!$A$2:$D$1001,3)) -> R 10K0 1% 0.6W 7X2,5MM | E18: =IF(ISERROR(VLOOKUP($A$18,Voorraad!$A$2:$D$1001,2)),"",VLOOKUP($A$18,Voorraad!$A$2:$D$1001,2)) -> #10041001 | F18: =IF(ISERROR(VLOOKUP($A$18,Voorraad!$A$2:$H$1001,8)),"",VLOOKUP($A$18,Voorraad!$A$2:$H$1001,8)) -> 500060 | G18: =IF(ISERROR(VLOOKUP($A$18,Voorraad!$A$2:$I$1001,9)),"",VLOOKUP($A$18,Voorraad!$A$2:$I$1001,9)) -> 0 | H18: =IF(ISERROR(VLOOKUP($A$18,Voorraad!$A$2:$J$1001,10)),"",VLOOKUP($A$18,Voorraad!$A$2:$J$1001,10)) -> 0 | I18: =IF(ISERROR(VLOOKUP($A$18,Voorraad!$A$2:$G$1001,6)),"",VLOOKUP($A$18,Voorraad!$A$2:$G$1001,6)) -> 0 | J18: =IF(ISERROR(VLOOKUP($A$18,Voorraad!$A$2:$G$1001,7)),"",VLOOKUP($A$18,Voorraad!$A$2:$G$1001,7)) -> BCC | K18: =IF(ISERROR(VLOOKUP($A$18,Voorraad!$A$2:$G$1001,5)),"",VLOOKUP($A$18,Voorraad!$A$2:$G$1001,5)) -> 8510/8437/8438/8439 | L18: =IF(ISERROR(VLOOKUP($A$18,Voorraad!$A$2:$D$1001,4)),"",VLOOKUP($A$18,Voorraad!$A$2:$D$1001,4)) -> 1908 | M18: 20 | N18: 0
A19: BU0010 | B19: =[2]Sheet1!$E$14 -> 10 | C19: =IF(ISERROR(VLOOKUP($A$19,Voorraad!$A$2:$D$1001,1)),"",VLOOKUP($A$19,Voorraad!$A$2:$D$1001,1)) -> BU0010 | D19: =IF(ISERROR(VLOOKUP($A$19,Voorraad!$A$2:$D$1001,3)),"",VLOOKUP($A$19,Voorraad!$A$2:$D$1001,3)) -> 22UH | E19: =IF(ISERROR(VLOOKUP($A$19,Voorraad!$A$2:$D$1001,2)),"",VLOOKUP($A$19,Voorraad!$A$2:$D$1001,2)) -> HBCC-220K-02 | F19: =IF(ISERROR(VLOOKUP($A$19,Voorraad!$A$2:$H$1001,8)),"",VLOOKUP($A$19,Voorraad!$A$2:$H$1001,8)) -> 0 | G19: =IF(ISERROR(VLOOKUP($A$19,Voorraad!$A$2:$I$1001,9)),"",VLOOKUP($A$19,Voorraad!$A$2:$I$1001,9)) -> HBCC-220K-02 | H19: =IF(ISERROR(VLOOKUP($A$19,Voorraad!$A$2:$J$1001,10)),"",VLOOKUP($A$19,Voorraad!$A$2:$J$1001,10)) -> MICC-R22M-02 | I19: =IF(ISERROR(VLOOKUP($A$19,Voorraad!$A$2:$G$1001,6)),"",VLOOKUP($A$19,Voorraad!$A$2:$G$1001,6)) -> TME | J19: =IF(ISERROR(VLOOKUP($A$19,Voorraad!$A$2:$G$1001,7)),"",VLOOKUP($A$19,Voorraad!$A$2:$G$1001,7)) -> FASTRON | K19: =IF(ISERROR(VLOOKUP($A$19,Voorraad!$A$2:$G$1001,5)),"",VLOOKUP($A$19,Voorraad!$A$2:$G$1001,5)) -> 8437/8438/8439 | L19: =IF(ISERROR(VLOOKUP($A$19,Voorraad!$A$2:$D$1001,4)),"",VLOOKUP($A$19,Voorraad!$A$2:$D$1001,4)) -> 60 | M19: 10 | N19: 0
A20: BU0065 | B20: =[2]Sheet1!$E$15 -> 10 | C20: =IF(ISERROR(VLOOKUP($A$20,Voorraad!$A$2:$D$1001,1)),"",VLOOKUP($A$20,Voorraad!$A$2:$D$1001,1)) -> BU0065 | D20: =IF(ISERROR(VLOOKUP($A$20,Voorraad!$A$2:$D$1001,3)),"",VLOOKUP($A$20,Voorraad!$A$2:$D$1001,3)) -> DB37F | E20: =IF(ISERROR(VLOOKUP($A$20,Voorraad!$A$2:$D$1001,2)),"",VLOOKUP($A$20,Voorraad!$A$2:$D$1001,2)) -> 09 66 451 6513 | F20: =IF(ISERROR(VLOOKUP($A$20,Voorraad!$A$2:$H$1001,8)),"",VLOOKUP($A$20,Voorraad!$A$2:$H$1001,8)) -> 0 | G20: =IF(ISERROR(VLOOKUP($A$20,Voorraad!$A$2:$I$1001,9)),"",VLOOKUP($A$20,Voorraad!$A$2:$I$1001,9)) -> 09 66 451 6513 | H20: =IF(ISERROR(VLOOKUP($A$20,Voorraad!$A$2:$J$1001,10)),"",VLOOKUP($A$20,Voorraad!$A$2:$J$1001,10)) -> 0 | I20: =IF(ISERROR(VLOOKUP($A$20,Voorraad!$A$2:$G$1001,6)),"",VLOOKUP($A$20,Voorraad!$A$2:$G$1001,6)) -> TME | J20: =IF(ISERROR(VLOOKUP($A$20,Voorraad!$A$2:$G$1001,7)),"",VLOOKUP($A$20,Voorraad!$A$2:$G$1001,7)) -> Harting | K20: =IF(ISERROR(VLOOKUP($A$20,Voorraad!$A$2:$G$1001,5)),"",VLOOKUP($A$20,Voorraad!$A$2:$G$1001,5)) -> 8437/8438 | L20: =IF(ISERROR(VLOOKUP($A$20,Voorraad!$A$2:$D$1001,4)),"",VLOOKUP($A$20,Voorraad!$A$2:$D$1001,4)) -> 13 | M20: 10 | N20: 0
A21: BU0066 | B21: =[2]Sheet1!$E$16 -> 280 | C21: =IF(ISERROR(VLOOKUP($A$21,Voorraad!$A$2:$D$1001,1)),"",VLOOKUP($A$21,Voorraad!$A$2:$D$1001,1)) -> BU0066 | D21: =IF(ISERROR(VLOOKUP($A$21,Voorraad!$A$2:$D$1001,3)),"",VLOOKUP($A$21,Voorraad!$A$2:$D$1001,3)) -> KDS3 | E21: =IF(ISERROR(VLOOKUP($A$21,Voorraad!$A$2:$D$1001,2)),"",VLOOKUP($A$21,Voorraad!$A$2:$D$1001,2)) -> 1780015 | F21: =IF(ISERROR(VLOOKUP($A$21,Voorraad!$A$2:$H$1001,8)),"",VLOOKUP($A$21,Voorraad!$A$2:$H$1001,8)) -> 0 | G21: =IF(ISERROR(VLOOKUP($A$21,Voorraad!$A$2:$I$1001,9)),"",VLOOKUP($A$21,Voorraad!$A$2:$I$1001,9)) -> 1780015 | H21: =IF(ISERROR(VLOOKUP($A$21,Voorraad!$A$2:$J$1001,10)),"",VLOOKUP($A$21,Voorraad!$A$2:$J$1001,10)) -> 0 | I21: =IF(ISERROR(VLOOKUP($A$21,Voorraad!$A$2:$G$1001,6)),"",VLOOKUP($A$21,Voorraad!$A$2:$G$1001,6)) -> Van Egmond Groep | J21: =IF(ISERROR(VLOOKUP($A$21,Voorraad!$A$2:$G$1001,7)),"",VLOOKUP($A$21,Voorraad!$A$2:$G$1001,7)) -> Phoenix | K21: =IF(ISERROR(VLOOKUP($A$21,Voorraad!$A$2:$G$1001,5)),"",VLOOKUP($A$21,Voorraad!$A$2:$G$1001,5)) -> 8437/8438/8439 | L21: =IF(ISERROR(VLOOKUP($A$21,Voorraad!$A$2:$D$1001,4)),"",VLOOKUP($A$21,Voorraad!$A$2:$D$1001,4)) -> 546 | M21: 280 | N21: 0
A22: BU0068 | B22: =[2]Sheet1!$E$17 -> 160 | C22: =IF(ISERROR(VLOOKUP($A$22,Voorraad!$A$2:$D$1001,1)),"",VLOOKUP($A$22,Voorraad!$A$2:$D$1001,1)) -> BU0068 | D22: =IF(ISERROR(VLOOKUP($A$22,Voorraad!$A$2:$D$1001,3)),"",VLOOKUP($A$22,Voorraad!$A$2:$D$1001,3)) -> ZL201-03G | E22: =IF(ISERROR(VLOOKUP($A$22,Voorraad!$A$2:$D$1001,2)),"",VLOOKUP($A$22,Voorraad!$A$2:$D$1001,2)) -> DS1021-136sf11 | F22: =IF(ISERROR(VLOOKUP($A$22,Voorraad!$A$2:$H$1001,8)),"",VLOOKUP($A$22,Voorraad!$A$2:$H$1001,8)) -> 0 | G22: =IF(ISERROR(VLOOKUP($A$22,Voorraad!$A$2:$I$1001,9)),"",VLOOKUP($A$22,Voorraad!$A$2:$I$1001,9)) -> ZL201-03G | H22: =IF(ISERROR(VLOOKUP($A$22,Voorraad!$A$2:$J$1001,10)),"",VLOOKUP($A$22,Voorraad!$A$2:$J$1001,10)) -> 0 | I22: =IF(ISERROR(VLOOKUP($A$22,Voorraad!$A$2:$G$1001,6)),"",VLOOKUP($A$22,Voorraad!$A$2:$G$1001,6)) -> TME | J22: =IF(ISERROR(VLOOKUP($A$22,Voorraad!$A$2:$G$1001,7)),"",VLOOKUP($A$22,Voorraad!$A$2:$G$1001,7)) -> Connfly | K22: =IF(ISERROR(VLOOKUP($A$22,Voorraad!$A$2:$G$1001,5)),"",VLOOKUP($A$22,Voorraad!$A$2:$G$1001,5)) -> 8437/8439/8464/8510 | L22: =IF(ISERROR(VLOOKUP($A$22,Voorraad!$A$2:$D$1001,4)),"",VLOOKUP($A$22,Voorraad!$A$2:$D$1001,4)) -> 931 | M22: 160 | N22: 0
A23: BU0059 | B23: =[2]Sheet1!$E$18 -> 160 | C23: =IF(ISERROR(VLOOKUP($A$23,Voorraad!$A$2:$D$1001,1)),"",VLOOKUP($A$23,Voorraad!$A$2:$D$1001,1)) -> BU0059 | D23: =IF(ISERROR(VLOOKUP($A$23,Voorraad!$A$2:$D$1001,3)),"",VLOOKUP($A$23,Voorraad!$A$2:$D$1001,3)) -> CON 1-881545-1 SHUNT | E23: =IF(ISERROR(VLOOKUP($A$23,Voorraad!$A$2:$D$1001,2)),"",VLOOKUP($A$23,Voorraad!$A$2:$D$1001,2)) -> #513JUMPOFSW | F23: =IF(ISERROR(VLOOKUP($A$23,Voorraad!$A$2:$H$1001,8)),"",VLOOKUP($A$23,Voorraad!$A$2:$H$1001,8)) -> 0 | G23: =IF(ISERROR(VLOOKUP($A$23,Voorraad!$A$2:$I$1001,9)),"",VLOOKUP($A$23,Voorraad!$A$2:$I$1001,9)) -> JUMPER-BL | H23: =IF(ISERROR(VLOOKUP($A$23,Voorraad!$A$2:$J$1001,10)),"",VLOOKUP($A$23,Voorraad!$A$2:$J$1001,10)) -> 0 | I23: =IF(ISERROR(VLOOKUP($A$23,Voorraad!$A$2:$G$1001,6)),"",VLOOKUP($A$23,Voorraad!$A$2:$G$1001,6)) -> TME | J23: =IF(ISERROR(VLOOKUP($A$23,Voorraad!$A$2:$G$1001,7)),"",VLOOKUP($A$23,Voorraad!$A$2:$G$1001,7)) -> 0 | K23: =IF(ISERROR(VLOOKUP($A$23,Voorraad!$A$2:$G$1001,5)),"",VLOOKUP($A$23,Voorraad!$A$2:$G$1001,5)) -> 8437/8439/8464/8510 | L23: =IF(ISERROR(VLOOKUP($A$23,Voorraad!$A$2:$D$1001,4)),"",VLOOKUP($A$23,Voorraad!$A$2:$D$1001,4)) -> 1725 | M23: 160 | N23: 0
A24: BU0045 | B24: =[2]Sheet1!$E$19 -> 10 | C24: =IF(ISERROR(VLOOKUP($A$24,Voorraad!$A$2:$D$1001,1)),"",VLOOKUP($A$24,Voorraad!$A$2:$D$1001,1)) -> BU0045 | D24: =IF(ISERROR(VLOOKUP($A$24,Voorraad!$A$2:$D$1001,3)),"",VLOOKUP($A$24,Voorraad!$A$2:$D$1001,3)) -> LED TLG124A GROEN 3.18MM | E24: =IF(ISERROR(VLOOKUP($A$24,Voorraad!$A$2:$D$1001,2)),"",VLOOKUP($A$24,Voorraad!$A$2:$D$1001,2)) -> KVD-03-035/G | F24: =IF(ISERROR(VLOOKUP($A$24,Voorraad!$A$2:$H$1001,8)),"",VLOOKUP($A$24,Voorraad!$A$2:$H$1001,8)) -> ? | G24: =IF(ISERROR(VLOOKUP($A$24,Voorraad!$A$2:$I$1001,9)),"",VLOOKUP($A$24,Voorraad!$A$2:$I$1001,9)) -> L-934GD | H24: =IF(ISERROR(VLOOKUP($A$24,Voorraad!$A$2:$J$1001,10)),"",VLOOKUP($A$24,Voorraad!$A$2:$J$1001,10)) -> 0 | I24: =IF(ISERROR(VLOOKUP($A$24,Voorraad!$A$2:$G$1001,6)),"",VLOOKUP($A$24,Voorraad!$A$2:$G$1001,6)) -> TME | J24: =IF(ISERROR(VLOOKUP($A$24,Voorraad!$A$2:$G$1001,7)),"",VLOOKUP($A$24,Voorraad!$A$2:$G$1001,7)) -> KHATOD / King Bright | K24: =IF(ISERROR(VLOOKUP($A$24,Voorraad!$A$2:$G$1001,5)),"",VLOOKUP($A$24,Voorraad!$A$2:$G$1001,5)) -> 8437/8438/8439/8464/8510 | L24: =IF(ISERROR(VLOOKUP($A$24,Voorraad!$A$2:$D$1001,4)),"",VLOOKUP($A$24,Voorraad!$A$2:$D$1001,4)) -> 2 | M24: 10 | N24: 8
A25: BX0002 | B25: =[2]Sheet1!$E$20 -> 10 | C25: =IF(ISERROR(VLOOKUP($A$25,Voorraad!$A$2:$D$1001,1)),"",VLOOKUP($A$25,Voorraad!$A$2:$D$1001,1)) -> BX0002 | D25: =IF(ISERROR(VLOOKUP($A$25,Voorraad!$A$2:$D$1001,3)),"",VLOOKUP($A$25,Voorraad!$A$2:$D$1001,3)) -> SL2 | E25: =IF(ISERROR(VLOOKUP($A$25,Voorraad!$A$2:$D$1001,2)),"",VLOOKUP($A$25,Voorraad!$A$2:$D$1001,2)) -> XY2500V-C(5.08)-2PIN | F25: =IF(ISERROR(VLOOKUP($A$25,Voorraad!$A$2:$H$1001,8)),"",VLOOKUP($A$25,Voorraad!$A$2:$H$1001,8)) -> 0 | G25: =IF(ISERROR(VLOOKUP($A$25,Voorraad!$A$2:$I$1001,9)),"",VLOOKUP($A$25,Voorraad!$A$2:$I$1001,9)) -> TBG-5-PB-2P-GN | H25: =IF(ISERROR(VLOOKUP($A$25,Voorraad!$A$2:$J$1001,10)),"",VLOOKUP($A$25,Voorraad!$A$2:$J$1001,10)) -> 0 | I25: =IF(ISERROR(VLOOKUP($A$25,Voorraad!$A$2:$G$1001,6)),"",VLOOKUP($A$25,Voorraad!$A$2:$G$1001,6)) -> TME | J25: =IF(ISERROR(VLOOKUP($A$25,Voorraad!$A$2:$G$1001,7)),"",VLOOKUP($A$25,Voorraad!$A$2:$G$1001,7)) -> Xinya | K25: =IF(ISERROR(VLOOKUP($A$25,Voorraad!$A$2:$G$1001,5)),"",VLOOKUP($A$25,Voorraad!$A$2:$G$1001,5)) -> 8437/8438/8439 | L25: =IF(ISERROR(VLOOKUP($A$25,Voorraad!$A$2:$D$1001,4)),"",VLOOKUP($A$25,Voorraad!$A$2:$D$1001,4)) -> 92 | M25: 10 | N25: 0
A26: BX0003 | B26: =[2]Sheet1!$E$21 -> 10 | C26: =IF(ISERROR(VLOOKUP($A$26,Voorraad!$A$2:$D$1001,1)),"",VLOOKUP($A$26,Voorraad!$A$2:$D$1001,1)) -> BX0003 | D26: =IF(ISERROR(VLOOKUP($A$26,Voorraad!$A$2:$D$1001,3)),"",VLOOKUP($A$26,Voorraad!$A$2:$D$1001,3)) -> BL2 | E26: =IF(ISERROR(VLOOKUP($A$26,Voorraad!$A$2:$D$1001,2)),"",VLOOKUP($A$26,Voorraad!$A$2:$D$1001,2)) -> TBW-5-2P/GN | F26: =IF(ISERROR(VLOOKUP($A$26,Voorraad!$A$2:$H$1001,8)),"",VLOOKUP($A$26,Voorraad!$A$2:$H$1001,8)) -> 0 | G26: =IF(ISERROR(VLOOKUP($A$26,Voorraad!$A$2:$I$1001,9)),"",VLOOKUP($A$26,Voorraad!$A$2:$I$1001,9)) -> TBW-5-2P/GN | H26: =IF(ISERROR(VLOOKUP($A$26,Voorraad!$A$2:$J$1001,10)),"",VLOOKUP($A$26,Voorraad!$A$2:$J$1001,10)) -> 0 | I26: =IF(ISERROR(VLOOKUP($A$26,Voorraad!$A$2:$G$1001,6)),"",VLOOKUP($A$26,Voorraad!$A$2:$G$1001,6)) -> TME | J26: =IF(ISERROR(VLOOKUP($A$26,Voorraad!$A$2:$G$1001,7)),"",VLOOKUP($A$26,Voorraad!$A$2:$G$1001,7)) -> Ninigi | K26: =IF(ISERROR(VLOOKUP($A$26,Voorraad!$A$2:$G$1001,5)),"",VLOOKUP($A$26,Voorraad!$A$2:$G$1001,5)) -> 8437/8438/8439 | L26: =IF(ISERROR(VLOOKUP($A$26,Voorraad!$A$2:$D$1001,4)),"",VLOOKUP($A$26,Voorraad!$A$2:$D$1001,4)) -> 93 | M26: 10 | N26: 0
A27: BX0008 | B27: =[2]Sheet1!$E$22 -> 10 | C27: =IF(ISERROR(VLOOKUP($A$27,Voorraad!$A$2:$D$1001,1)),"",VLOOKUP($A$27,Voorraad!$A$2:$D$1001,1)) -> BX0008 | D27: =IF(ISERROR(VLOOKUP($A$27,Voorraad!$A$2:$D$1001,3)),"",VLOOKUP($A$27,Voorraad!$A$2:$D$1001,3)) -> SL6 | E27: =IF(ISERROR(VLOOKUP($A$27,Voorraad!$A$2:$D$1001,2)),"",VLOOKUP($A$27,Voorraad!$A$2:$D$1001,2)) -> XY2500V-C(5.08)-6PIN | F27: =IF(ISERROR(VLOOKUP($A$27,Voorraad!$A$2:$H$1001,8)),"",VLOOKUP($A$27,Voorraad!$A$2:$H$1001,8)) -> 0 | G27: =IF(ISERROR(VLOOKUP($A$27,Voorraad!$A$2:$I$1001,9)),"",VLOOKUP($A$27,Voorraad!$A$2:$I$1001,9)) -> TBG-5-PB-6P-GN | H27: =IF(ISERROR(VLOOKUP($A$27,Voorraad!$A$2:$J$1001,10)),"",VLOOKUP($A$27,Voorraad!$A$2:$J$1001,10)) -> 0 | I27: =IF(ISERROR(VLOOKUP($A$27,Voorraad!$A$2:$G$1001,6)),"",VLOOKUP($A$27,Voorraad!$A$2:$G$1001,6)) -> TME | J27: =IF(ISERROR(VLOOKUP($A$27,Voorraad!$A$2:$G$1001,7)),"",VLOOKUP($A$27,Voorraad!$A$2:$G$1001,7)) -> Xinya | K27: =IF(ISERROR(VLOOKUP($A$27,Voorraad!$A$2:$G$1001,5)),"",VLOOKUP($A$27,Voorraad!$A$2:$G$1001,5)) -> 8437 | L27: =IF(ISERROR(VLOOKUP($A$27,Voorraad!$A$2:$D$1001,4)),"",VLOOKUP($A$27,Voorraad!$A$2:$D$1001,4)) -> 10 | M27: 10 | N27: 0
A28: BX0009 | B28: =[2]Sheet1!$E$23 -> 10 | C28: =IF(ISERROR(VLOOKUP($A$28,Voorraad!$A$2:$D$1001,1)),"",VLOOKUP($A$28,Voorraad!$A$2:$D$1001,1)) -> BX0009 | D28: =IF(ISERROR(VLOOKUP($A$28,Voorraad!$A$2:$D$1001,3)),"",VLOOKUP($A$28,Voorraad!$A$2:$D$1001,3)) -> BL6 | E28: =IF(ISERROR(VLOOKUP($A$28,Voorraad!$A$2:$D$1001,2)),"",VLOOKUP($A$28,Voorraad!$A$2:$D$1001,2)) -> TBW-5-6P/GN | F28: =IF(ISERROR(VLOOKUP($A$28,Voorraad!$A$2:$H$1001,8)),"",VLOOKUP($A$28,Voorraad!$A$2:$H$1001,8)) -> 0 | G28: =IF(ISERROR(VLOOKUP($A$28,Voorraad!$A$2:$I$1001,9)),"",VLOOKUP($A$28,Voorraad!$A$2:$I$1001,9)) -> TBW-5-6P/GN | H28: =IF(ISERROR(VLOOKUP($A$28,Voorraad!$A$2:$J$1001,10)),"",VLOOKUP($A$28,Voorraad!$A$2:$J$1001,10)) -> 0 | I28: =IF(ISERROR(VLOOKUP($A$28,Voorraad!$A$2:$G$1001,6)),"",VLOOKUP($A$28,Voorraad!$A$2:$G$1001,6)) -> TME | J28: =IF(ISERROR(VLOOKUP($A$28,Voorraad!$A$2:$G$1001,7)),"",VLOOKUP($A$28,Voorraad!$A$2:$G$1001,7)) -> Ninigi | K28: =IF(ISERROR(VLOOKUP($A$28,Voorraad!$A$2:$G$1001,5)),"",VLOOKUP($A$28,Voorraad!$A$2:$G$1001,5)) -> 8437 | L28: =IF(ISERROR(VLOOKUP($A$28,Voorraad!$A$2:$D$1001,4)),"",VLOOKUP($A$28,Voorraad!$A$2:$D$1001,4)) -> 10 | M28: 10 | N28: 0
A29: BX0016 | B29: =[2]Sheet1!$E$24 -> 10 | C29: =IF(ISERROR(VLOOKUP($A$29,Voorraad!$A$2:$D$1001,1)),"",VLOOKUP($A$29,Voorraad!$A$2:$D$1001,1)) -> BX0016 | D29: =IF(ISERROR(VLOOKUP($A$29,Voorraad!$A$2:$D$1001,3)),"",VLOOKUP($A$29,Voorraad!$A$2:$D$1001,3)) -> UM72 Profile 140MM | E29: =IF(ISERROR(VLOOKUP($A$29,Voorraad!$A$2:$D$1001,2)),"",VLOOKUP($A$29,Voorraad!$A$2:$D$1001,2)) -> 2996922 | F29: =IF(ISERROR(VLOOKUP($A$29,Voorraad!$A$2:$H$1001,8)),"",VLOOKUP($A$29,Voorraad!$A$2:$H$1001,8)) -> 0 | G29: =IF(ISERROR(VLOOKUP($A$29,Voorraad!$A$2:$I$1001,9)),"",VLOOKUP($A$29,Voorraad!$A$2:$I$1001,9)) -> 74005679 | H29: =IF(ISERROR(VLOOKUP($A$29,Voorraad!$A$2:$J$1001,10)),"",VLOOKUP($A$29,Voorraad!$A$2:$J$1001,10)) -> 0 | I29: =IF(ISERROR(VLOOKUP($A$29,Voorraad!$A$2:$G$1001,6)),"",VLOOKUP($A$29,Voorraad!$A$2:$G$1001,6)) -> Van Egmond Groep | J29: =IF(ISERROR(VLOOKUP($A$29,Voorraad!$A$2:$G$1001,7)),"",VLOOKUP($A$29,Voorraad!$A$2:$G$1001,7)) -> Phoenix | K29: =IF(ISERROR(VLOOKUP($A$29,Voorraad!$A$2:$G$1001,5)),"",VLOOKUP($A$29,Voorraad!$A$2:$G$1001,5)) -> 8437 | L29: =IF(ISERROR(VLOOKUP($A$29,Voorraad!$A$2:$D$1001,4)),"",VLOOKUP($A$29,Voorraad!$A$2:$D$1001,4)) -> 23 | M29: 10 | N29: 0
A30: BX0019 | B30: =[2]Sheet1!$E$25 -> 10 | C30: =IF(ISERROR(VLOOKUP($A$30,Voorraad!$A$2:$D$1001,1)),"",VLOOKUP($A$30,Voorraad!$A$2:$D$1001,1)) -> BX0019 | D30: =IF(ISERROR(VLOOKUP($A$30,Voorraad!$A$2:$D$1001,3)),"",VLOOKUP($A$30,Voorraad!$A$2:$D$1001,3)) -> UM72 SEFE/L | E30: =IF(ISERROR(VLOOKUP($A$30,Voorraad!$A$2:$D$1001,2)),"",VLOOKUP($A$30,Voorraad!$A$2:$D$1001,2)) -> 2959340 | F30: =IF(ISERROR(VLOOKUP($A$30,Voorraad!$A$2:$H$1001,8)),"",VLOOKUP($A$30,Voorraad!$A$2:$H$1001,8)) -> 0 | G30: =IF(ISERROR(VLOOKUP($A$30,Voorraad!$A$2:$I$1001,9)),"",VLOOKUP($A$30,Voorraad!$A$2:$I$1001,9)) -> 2959340 | H30: =IF(ISERROR(VLOOKUP($A$30,Voorraad!$A$2:$J$1001,10)),"",VLOOKUP($A$30,Voorraad!$A$2:$J$1001,10)) -> 0 | I30: =IF(ISERROR(VLOOKUP($A$30,Voorraad!$A$2:$G$1001,6)),"",VLOOKUP($A$30,Voorraad!$A$2:$G$1001,6)) -> Van Egmond Groep | J30: =IF(ISERROR(VLOOKUP($A$30,Voorraad!$A$2:$G$1001,7)),"",VLOOKUP($A$30,Voorraad!$A$2:$G$1001,7)) -> Phoenix | K30: =IF(ISERROR(VLOOKUP($A$30,Voorraad!$A$2:$G$1001,5)),"",VLOOKUP($A$30,Voorraad!$A$2:$G$1001,5)) -> 8437/8438/8439 | L30: =IF(ISERROR(VLOOKUP($A$30,Voorraad!$A$2:$D$1001,4)),"",VLOOKUP($A$30,Voorraad!$A$2:$D$1001,4)) -> 11 | M30: 10 | N30: 0
A31: BX0020 | B31: =[2]Sheet1!$E$26 -> 10 | C31: =IF(ISERROR(VLOOKUP($A$31,Voorraad!$A$2:$D$1001,1)),"",VLOOKUP($A$31,Voorraad!$A$2:$D$1001,1)) -> BX0020 | D31: =IF(ISERROR(VLOOKUP($A$31,Voorraad!$A$2:$D$1001,3)),"",VLOOKUP($A$31,Voorraad!$A$2:$D$1001,3)) -> UM72 SEFE/R | E31: =IF(ISERROR(VLOOKUP($A$31,Voorraad!$A$2:$D$1001,2)),"",VLOOKUP($A$31,Voorraad!$A$2:$D$1001,2)) -> 2959353 | F31: =IF(ISERROR(VLOOKUP($A$31,Voorraad!$A$2:$H$1001,8)),"",VLOOKUP($A$31,Voorraad!$A$2:$H$1001,8)) -> 0 | G31: =IF(ISERROR(VLOOKUP($A$31,Voorraad!$A$2:$I$1001,9)),"",VLOOKUP($A$31,Voorraad!$A$2:$I$1001,9)) -> 2959353 | H31: =IF(ISERROR(VLOOKUP($A$31,Voorraad!$A$2:$J$1001,10)),"",VLOOKUP($A$31,Voorraad!$A$2:$J$1001,10)) -> 0 | I31: =IF(ISERROR(VLOOKUP($A$31,Voorraad!$A$2:$G$1001,6)),"",VLOOKUP($A$31,Voorraad!$A$2:$G$1001,6)) -> Van Egmond Groep | J31: =IF(ISERROR(VLOOKUP($A$31,Voorraad!$A$2:$G$1001,7)),"",VLOOKUP($A$31,Voorraad!$A$2:$G$1001,7)) -> Phoenix | K31: =IF(ISERROR(VLOOKUP($A$31,Voorraad!$A$2:$G$1001,5)),"",VLOOKUP($A$31,Voorraad!$A$2:$G$1001,5)) -> 8437/8438/8439 | L31: =IF(ISERROR(VLOOKUP($A$31,Voorraad!$A$2:$D$1001,4)),"",VLOOKUP($A$31,Voorraad!$A$2:$D$1001,4)) -> 13 | M31: 10 | N31: 0
A32: BX0039 | B32: =[2]Sheet1!$E$27 -> 10 | C32: =IF(ISERROR(VLOOKUP($A$32,Voorraad!$A$2:$D$1001,1)),"",VLOOKUP($A$32,Voorraad!$A$2:$D$1001,1)) -> BX0039 | D32: =IF(ISERROR(VLOOKUP($A$32,Voorraad!$A$2:$D$1001,3)),"",VLOOKUP($A$32,Voorraad!$A$2:$D$1001,3)) -> PCB 8437L | E32: =IF(ISERROR(VLOOKUP($A$32,Voorraad!$A$2:$D$1001,2)),"",VLOOKUP($A$32,Voorraad!$A$2:$D$1001,2)) -> PCB 8437L | F32: =IF(ISERROR(VLOOKUP($A$32,Voorraad!$A$2:$H$1001,8)),"",VLOOKUP($A$32,Voorraad!$A$2:$H$1001,8)) -> 0 | G32: =IF(ISERROR(VLOOKUP($A$32,Voorraad!$A$2:$I$1001,9)),"",VLOOKUP($A$32,Voorraad!$A$2:$I$1001,9)) -> 0 | H32: =IF(ISERROR(VLOOKUP($A$32,Voorraad!$A$2:$J$1001,10)),"",VLOOKUP($A$32,Voorraad!$A$2:$J$1001,10)) -> 0 | I32: =IF(ISERROR(VLOOKUP($A$32,Voorraad!$A$2:$G$1001,6)),"",VLOOKUP($A$32,Voorraad!$A$2:$G$1001,6)) -> JvB | J32: =IF(ISERROR(VLOOKUP($A$32,Voorraad!$A$2:$G$1001,7)),"",VLOOKUP($A$32,Voorraad!$A$2:$G$1001,7)) -> JvB | K32: =IF(ISERROR(VLOOKUP($A$32,Voorraad!$A$2:$G$1001,5)),"",VLOOKUP($A$32,Voorraad!$A$2:$G$1001,5)) -> PCB 8437L | L32: =IF(ISERROR(VLOOKUP($A$32,Voorraad!$A$2:$D$1001,4)),"",VLOOKUP($A$32,Voorraad!$A$2:$D$1001,4)) -> 0 | M32: 10 | N32: 10
A33: BX0040 | B33: =[2]Sheet1!$E$28 -> 10 | C33: =IF(ISERROR(VLOOKUP($A$33,Voorraad!$A$2:$D$1001,1)),"",VLOOKUP($A$33,Voorraad!$A$2:$D$1001,1)) -> BX0040 | D33: =IF(ISERROR(VLOOKUP($A$33,Voorraad!$A$2:$D$1001,3)),"",VLOOKUP($A$33,Voorraad!$A$2:$D$1001,3)) -> PCB 8437R | E33: =IF(ISERROR(VLOOKUP($A$33,Voorraad!$A$2:$D$1001,2)),"",VLOOKUP($A$33,Voorraad!$A$2:$D$1001,2)) -> PCB 8437R | F33: =IF(ISERROR(VLOOKUP($A$33,Voorraad!$A$2:$H$1001,8)),"",VLOOKUP($A$33,Voorraad!$A$2:$H$1001,8)) -> 0 | G33: =IF(ISERROR(VLOOKUP($A$33,Voorraad!$A$2:$I$1001,9)),"",VLOOKUP($A$33,Voorraad!$A$2:$I$1001,9)) -> 0 | H33: =IF(ISERROR(VLOOKUP($A$33,Voorraad!$A$2:$J$1001,10)),"",VLOOKUP($A$33,Voorraad!$A$2:$J$1001,10)) -> 0 | I33: =IF(ISERROR(VLOOKUP($A$33,Voorraad!$A$2:$G$1001,6)),"",VLOOKUP($A$33,Voorraad!$A$2:$G$1001,6)) -> JvB | J33: =IF(ISERROR(VLOOKUP($A$33,Voorraad!$A$2:$G$1001,7)),"",VLOOKUP($A$33,Voorraad!$A$2:$G$1001,7)) -> JvB | K33: =IF(ISERROR(VLOOKUP($A$33,Voorraad!$A$2:$G$1001,5)),"",VLOOKUP($A$33,Voorraad!$A$2:$G$1001,5)) -> PCB 8437R | L33: =IF(ISERROR(VLOOKUP($A$33,Voorraad!$A$2:$D$1001,4)),"",VLOOKUP($A$33,Voorraad!$A$2:$D$1001,4)) -> 17 | M33: 10 | N33: 0

Sheet Picklijst 8438
A2: Pickorder 8438 | C2: =[3]Sheet1!$D$2 -> 1 | D2: X
A8: Art Nr CSI | B8: Benodigd | C8: Art Nr CSI | D8: Omschrijving | E8: Leverancier Nr | F8: Produco Nr | G8: OrderNr | H8: Opmerkingen/Alternatieven | I8: Leverancier | J8: Producent | K8: PCB | L8: Voorraad | M8: Benodigd | N8: Bestellen
A9: BSH002 | B9: =[3]Sheet1!$E$4 -> 2 | C9: =IF(ISERROR(VLOOKUP($A$9,Voorraad!$A$2:$D$1001,1)),"",VLOOKUP($A$9,Voorraad!$A$2:$D$1001,1)) -> BSH002 | D9: =IF(ISERROR(VLOOKUP($A$9,Voorraad!$A$2:$D$1001,3)),"",VLOOKUP($A$9,Voorraad!$A$2:$D$1001,3)) -> 220U / 35V | E9: =IF(ISERROR(VLOOKUP($A$9,Voorraad!$A$2:$D$1001,2)),"",VLOOKUP($A$9,Voorraad!$A$2:$D$1001,2)) -> EEUFC1V221 | F9: =IF(ISERROR(VLOOKUP($A$9,Voorraad!$A$2:$H$1001,8)),"",VLOOKUP($A$9,Voorraad!$A$2:$H$1001,8)) -> 0 | G9: =IF(ISERROR(VLOOKUP($A$9,Voorraad!$A$2:$I$1001,9)),"",VLOOKUP($A$9,Voorraad!$A$2:$I$1001,9)) -> EEUFC1V221 | H9: =IF(ISERROR(VLOOKUP($A$9,Voorraad!$A$2:$J$1001,10)),"",VLOOKUP($A$9,Voorraad!$A$2:$J$1001,10)) -> Alternatief: SE050M0220-1012 | I9: =IF(ISERROR(VLOOKUP($A$9,Voorraad!$A$2:$G$1001,6)),"",VLOOKUP($A$9,Voorraad!$A$2:$G$1001,6)) -> TME | J9: =IF(ISERROR(VLOOKUP($A$9,Voorraad!$A$2:$G$1001,7)),"",VLOOKUP($A$9,Voorraad!$A$2:$G$1001,7)) -> Panasonic | K9: =IF(ISERROR(VLOOKUP($A$9,Voorraad!$A$2:$G$1001,5)),"",VLOOKUP($A$9,Voorraad!$A$2:$G$1001,5)) -> 8437/8438/8439 | L9: =IF(ISERROR(VLOOKUP($A$9,Voorraad!$A$2:$D$1001,4)),"",VLOOKUP($A$9,Voorraad!$A$2:$D$1001,4)) -> 178 | M9: =B9 -> 2 | N9: =MAX(0,(SUM(M9-L9))) -> 0
A10: BU0001 | B10: =[3]Sheet1!$E$5 -> 1 | C10: =IF(ISERROR(VLOOKUP($A$10,Voorraad!$A$2:$D$1001,1)),"",VLOOKUP($A$10,Voorraad!$A$2:$D$1001,1)) -> BU0001 | D10: =IF(ISERROR(VLOOKUP($A$10,Voorraad!$A$2:$D$1001,3)),"",VLOOKUP($A$10,Voorraad!$A$2:$D$1001,3)) -> 100U /35V | E10: =IF(ISERROR(VLOOKUP($A$10,Voorraad!$A$2:$D$1001,2)),"",VLOOKUP($A$10,Voorraad!$A$2:$D$1001,2)) -> 0 | F10: =IF(ISERROR(VLOOKUP($A$10,Voorraad!$A$2:$H$1001,8)),"",VLOOKUP($A$10,Voorraad!$A$2:$H$1001,8)) -> 0 | G10: =IF(ISERROR(VLOOKUP($A$10,Voorraad!$A$2:$I$1001,9)),"",VLOOKUP($A$10,Voorraad!$A$2:$I$1001,9)) -> 0 | H10: =IF(ISERROR(VLOOKUP($A$10,Voorraad!$A$2:$J$1001,10)),"",VLOOKUP($A$10,Voorraad!$A$2:$J$1001,10)) -> 0 | I10: =IF(ISERROR(VLOOKUP($A$10,Voorraad!$A$2:$G$1001,6)),"",VLOOKUP($A$10,Voorraad!$A$2:$G$1001,6)) -> 0 | J10: =IF(ISERROR(VLOOKUP($A$10,Voorraad!$A$2:$G$1001,7)),"",VLOOKUP($A$10,Voorraad!$A$2:$G$1001,7)) -> 0 | K10: =IF(ISERROR(VLOOKUP($A$10,Voorraad!$A$2:$G$1001,5)),"",VLOOKUP($A$10,Voorraad!$A$2:$G$1001,5)) -> 8438 | L10: =IF(ISERROR(VLOOKUP($A$10,Voorraad!$A$2:$D$1001,4)),"",VLOOKUP($A$10,Voorraad!$A$2:$D$1001,4)) -> 21 | M10: 1 | N10: 0
A11: BU0005 | B11: =[3]Sheet1!$E$6 -> 1 | C11: =IF(ISERROR(VLOOKUP($A$11,Voorraad!$A$2:$D$1001,1)),"",VLOOKUP($A$11,Voorraad!$A$2:$D$1001,1)) -> BU0005 | D11: =IF(ISERROR(VLOOKUP($A$11,Voorraad!$A$2:$D$1001,3)),"",VLOOKUP($A$11,Voorraad!$A$2:$D$1001,3)) -> T83-A90X | E11: =IF(ISERROR(VLOOKUP($A$11,Voorraad!$A$2:$D$1001,2)),"",VLOOKUP($A$11,Voorraad!$A$2:$D$1001,2)) -> 2046-09-C2LF | F11: =IF(ISERROR(VLOOKUP($A$11,Voorraad!$A$2:$H$1001,8)),"",VLOOKUP($A$11,Voorraad!$A$2:$H$1001,8)) -> 0 | G11: =IF(ISERROR(VLOOKUP($A$11,Voorraad!$A$2:$I$1001,9)),"",VLOOKUP($A$11,Voorraad!$A$2:$I$1001,9)) -> 2335982 | H11: =IF(ISERROR(VLOOKUP($A$11,Voorraad!$A$2:$J$1001,10)),"",VLOOKUP($A$11,Voorraad!$A$2:$J$1001,10)) -> 0 | I11: =IF(ISERROR(VLOOKUP($A$11,Voorraad!$A$2:$G$1001,6)),"",VLOOKUP($A$11,Voorraad!$A$2:$G$1001,6)) -> Farnell | J11: =IF(ISERROR(VLOOKUP($A$11,Voorraad!$A$2:$G$1001,7)),"",VLOOKUP($A$11,Voorraad!$A$2:$G$1001,7)) -> Bourns | K11: =IF(ISERROR(VLOOKUP($A$11,Voorraad!$A$2:$G$1001,5)),"",VLOOKUP($A$11,Voorraad!$A$2:$G$1001,5)) -> 8437/8438/8439 | L11: =IF(ISERROR(VLOOKUP($A$11,Voorraad!$A$2:$D$1001,4)),"",VLOOKUP($A$11,Voorraad!$A$2:$D$1001,4)) -> 57 | M11: 1 | N11: 0
A12: BU0016 | B12: =[3]Sheet1!$E$7 -> 1 | C12: =IF(ISERROR(VLOOKUP($A$12,Voorraad!$A$2:$D$1001,1)),"",VLOOKUP($A$12,Voorraad!$A$2:$D$1001,1)) -> BU0016 | D12: =IF(ISERROR(VLOOKUP($A$12,Voorraad!$A$2:$D$1001,3)),"",VLOOKUP($A$12,Voorraad!$A$2:$D$1001,3)) -> D BYV27-150-TAP | E12: =IF(ISERROR(VLOOKUP($A$12,Voorraad!$A$2:$D$1001,2)),"",VLOOKUP($A$12,Voorraad!$A$2:$D$1001,2)) -> 0 | F12: =IF(ISERROR(VLOOKUP($A$12,Voorraad!$A$2:$H$1001,8)),"",VLOOKUP($A$12,Voorraad!$A$2:$H$1001,8)) -> 520005 | G12: =IF(ISERROR(VLOOKUP($A$12,Voorraad!$A$2:$I$1001,9)),"",VLOOKUP($A$12,Voorraad!$A$2:$I$1001,9)) -> BYV27-150-TAP | H12: =IF(ISERROR(VLOOKUP($A$12,Voorraad!$A$2:$J$1001,10)),"",VLOOKUP($A$12,Voorraad!$A$2:$J$1001,10)) -> 0 | I12: =IF(ISERROR(VLOOKUP($A$12,Voorraad!$A$2:$G$1001,6)),"",VLOOKUP($A$12,Voorraad!$A$2:$G$1001,6)) -> MOUSER | J12: =IF(ISERROR(VLOOKUP($A$12,Voorraad!$A$2:$G$1001,7)),"",VLOOKUP($A$12,Voorraad!$A$2:$G$1001,7)) -> PHILIPS | K12: =IF(ISERROR(VLOOKUP($A$12,Voorraad!$A$2:$G$1001,5)),"",VLOOKUP($A$12,Voorraad!$A$2:$G$1001,5)) -> 8437/8438/8439/8510 | L12: =IF(ISERROR(VLOOKUP($A$12,Voorraad!$A$2:$D$1001,4)),"",VLOOKUP($A$12,Voorraad!$A$2:$D$1001,4)) -> -7 | M12: 1 | N12: 8
A13: BR4020 | B13: =[3]Sheet1!$E$8 -> 1 | C13: =IF(ISERROR(VLOOKUP($A$13,Voorraad!$A$2:$D$1001,1)),"",VLOOKUP($A$13,Voorraad!$A$2:$D$1001,1)) -> BR4020 | D13: =IF(ISERROR(VLOOKUP($A$13,Voorraad!$A$2:$D$1001,3)),"",VLOOKUP($A$13,Voorraad!$A$2:$D$1001,3)) -> MFR135 | E13: =IF(ISERROR(VLOOKUP($A$13,Voorraad!$A$2:$D$1001,2)),"",VLOOKUP($A$13,Voorraad!$A$2:$D$1001,2)) -> ERF-RA13560Z | F13: =IF(ISERROR(VLOOKUP($A$13,Voorraad!$A$2:$H$1001,8)),"",VLOOKUP($A$13,Voorraad!$A$2:$H$1001,8)) -> 0 | G13: =IF(ISERROR(VLOOKUP($A$13,Voorraad!$A$2:$I$1001,9)),"",VLOOKUP($A$13,Voorraad!$A$2:$I$1001,9)) -> ERF - RA135-60Z | H13: =IF(ISERROR(VLOOKUP($A$13,Voorraad!$A$2:$J$1001,10)),"",VLOOKUP($A$13,Voorraad!$A$2:$J$1001,10)) -> 0 | I13: =IF(ISERROR(VLOOKUP($A$13,Voorraad!$A$2:$G$1001,6)),"",VLOOKUP($A$13,Voorraad!$A$2:$G$1001,6)) -> TME | J13: =IF(ISERROR(VLOOKUP($A$13,Voorraad!$A$2:$G$1001,7)),"",VLOOKUP($A$13,Voorraad!$A$2:$G$1001,7)) -> ECE | K13: =IF(ISERROR(VLOOKUP($A$13,Voorraad!$A$2:$G$1001,5)),"",VLOOKUP($A$13,Voorraad!$A$2:$G$1001,5)) -> 8437/8438 | L13: =IF(ISERROR(VLOOKUP($A$13,Voorraad!$A$2:$D$1001,4)),"",VLOOKUP($A$13,Voorraad!$A$2:$D$1001,4)) -> 14 | M13: 1 | N13: 0
A14: BR4030 | B14: =[3]Sheet1!$E$9 -> 1 | C14: =IF(ISERROR(VLOOKUP($A$14,Voorraad!$A$2:$D$1001,1)),"",VLOOKUP($A$14,Voorraad!$A$2:$D$1001,1)) -> BR4030 | D14: =IF(ISERROR(VLOOKUP($A$14,Voorraad!$A$2:$D$1001,3)),"",VLOOKUP($A$14,Voorraad!$A$2:$D$1001,3)) -> 100NF50V | E14: =IF(ISERROR(VLOOKUP($A$14,Voorraad!$A$2:$D$1001,2)),"",VLOOKUP($A$14,Voorraad!$A$2:$D$1001,2)) -> CM-100N-Y5V | F14: =IF(ISERROR(VLOOKUP($A$14,Voorraad!$A$2:$H$1001,8)),"",VLOOKUP($A$14,Voorraad!$A$2:$H$1001,8)) -> 0 | G14: =IF(ISERROR(VLOOKUP($A$14,Voorraad!$A$2:$I$1001,9)),"",VLOOKUP($A$14,Voorraad!$A$2:$I$1001,9)) -> CM-100N-Y5V | H14: =IF(ISERROR(VLOOKUP($A$14,Voorraad!$A$2:$J$1001,10)),"",VLOOKUP($A$14,Voorraad!$A$2:$J$1001,10)) -> 0 | I14: =IF(ISERROR(VLOOKUP($A$14,Voorraad!$A$2:$G$1001,6)),"",VLOOKUP($A$14,Voorraad!$A$2:$G$1001,6)) -> TME | J14: =IF(ISERROR(VLOOKUP($A$14,Voorraad!$A$2:$G$1001,7)),"",VLOOKUP($A$14,Voorraad!$A$2:$G$1001,7)) -> SR Passives | K14: =IF(ISERROR(VLOOKUP($A$14,Voorraad!$A$2:$G$1001,5)),"",VLOOKUP($A$14,Voorraad!$A$2:$G$1001,5)) -> 8437/8438/8439 | L14: =IF(ISERROR(VLOOKUP($A$14,Voorraad!$A$2:$D$1001,4)),"",VLOOKUP($A$14,Voorraad!$A$2:$D$1001,4)) -> 184 | M14: 1 | N14: 0
A15: BR3550 | B15: =[3]Sheet1!$E$10 -> 2 | C15: =IF(ISERROR(VLOOKUP($A$15,Voorraad!$A$2:$D$1001,1)),"",VLOOKUP($A$15,Voorraad!$A$2:$D$1001,1)) -> BR3550 | D15: =IF(ISERROR(VLOOKUP($A$15,Voorraad!$A$2:$D$1001,3)),"",VLOOKUP($A$15,Voorraad!$A$2:$D$1001,3)) -> RV S05K30 100A 0.01W | E15: =IF(ISERROR(VLOOKUP($A$15,Voorraad!$A$2:$D$1001,2)),"",VLOOKUP($A$9,Voorraad!$A$2:$D$1001,2)) -> EEUFC1V221 | F15: =IF(ISERROR(VLOOKUP($A$15,Voorraad!$A$2:$H$1001,8)),"",VLOOKUP($A$15,Voorraad!$A$2:$H$1001,8)) -> 500088 | G15: =IF(ISERROR(VLOOKUP($A$15,Voorraad!$A$2:$I$1001,9)),"",VLOOKUP($A$15,Voorraad!$A$2:$I$1001,9)) -> SIOV-S05K30 | H15: =IF(ISERROR(VLOOKUP($A$15,Voorraad!$A$2:$J$1001,10)),"",VLOOKUP($A$15,Voorraad!$A$2:$J$1001,10)) -> Groter aantal inkopen | I15: =IF(ISERROR(VLOOKUP($A$15,Voorraad!$A$2:$G$1001,6)),"",VLOOKUP($A$15,Voorraad!$A$2:$G$1001,6)) -> TME | J15: =IF(ISERROR(VLOOKUP($A$15,Voorraad!$A$2:$G$1001,7)),"",VLOOKUP($A$15,Voorraad!$A$2:$G$1001,7)) -> EPCOS | K15: =IF(ISERROR(VLOOKUP($A$15,Voorraad!$A$2:$G$1001,5)),"",VLOOKUP($A$15,Voorraad!$A$2:$G$1001,5)) -> 8410/8437/8438/8439/8510 | L15: =IF(ISERROR(VLOOKUP($A$15,Voorraad!$A$2:$D$1001,4)),"",VLOOKUP($A$15,Voorraad!$A$2:$D$1001,4)) -> 86 | M15: 2 | N15: 0
A16: BR0004 | B16: =[3]Sheet1!$E$11 -> 1 | C16: =IF(ISERROR(VLOOKUP($A$16,Voorraad!$A$2:$D$1001,1)),"",VLOOKUP($A$16,Voorraad!$A$2:$D$1001,1)) -> BR0004 | D16: =IF(ISERROR(VLOOKUP($A$16,Voorraad!$A$2:$D$1001,3)),"",VLOOKUP($A$16,Voorraad!$A$2:$D$1001,3)) -> R 1K00 1% 0.6W 7X2,5MM | E16: =IF(ISERROR(VLOOKUP($A$16,Voorraad!$A$2:$D$1001,2)),"",VLOOKUP($A$16,Voorraad!$A$2:$D$1001,2)) -> #10031001 | F16: =IF(ISERROR(VLOOKUP($A$16,Voorraad!$A$2:$H$1001,8)),"",VLOOKUP($A$16,Voorraad!$A$2:$H$1001,8)) -> 500048 | G16: =IF(ISERROR(VLOOKUP($A$16,Voorraad!$A$2:$I$1001,9)),"",VLOOKUP($A$16,Voorraad!$A$2:$I$1001,9)) -> 0 | H16: =IF(ISERROR(VLOOKUP($A$16,Voorraad!$A$2:$J$1001,10)),"",VLOOKUP($A$16,Voorraad!$A$2:$J$1001,10)) -> 0 | I16: =IF(ISERROR(VLOOKUP($A$16,Voorraad!$A$2:$G$1001,6)),"",VLOOKUP($A$16,Voorraad!$A$2:$G$1001,6)) -> 0 | J16: =IF(ISERROR(VLOOKUP($A$16,Voorraad!$A$2:$G$1001,7)),"",VLOOKUP($A$16,Voorraad!$A$2:$G$1001,7)) -> BCC | K16: =IF(ISERROR(VLOOKUP($A$16,Voorraad!$A$2:$G$1001,5)),"",VLOOKUP($A$16,Voorraad!$A$2:$G$1001,5)) -> 8510/8437/8438/8439/8464 | L16: =IF(ISERROR(VLOOKUP($A$16,Voorraad!$A$2:$D$1001,4)),"",VLOOKUP($A$16,Voorraad!$A$2:$D$1001,4)) -> 208 | M16: 1 | N16: 0
A17: BR0005 | B17: =[3]Sheet1!$E$12 -> 1 | C17: =IF(ISERROR(VLOOKUP($A$17,Voorraad!$A$2:$D$1001,1)),"",VLOOKUP($A$17,Voorraad!$A$2:$D$1001,1)) -> BR0005 | D17: =IF(ISERROR(VLOOKUP($A$17,Voorraad!$A$2:$D$1001,3)),"",VLOOKUP($A$17,Voorraad!$A$2:$D$1001,3)) -> R 10K0 1% 0.6W 7X2,5MM | E17: =IF(ISERROR(VLOOKUP($A$17,Voorraad!$A$2:$D$1001,2)),"",VLOOKUP($A$17,Voorraad!$A$2:$D$1001,2)) -> #10041001 | F17: =IF(ISERROR(VLOOKUP($A$17,Voorraad!$A$2:$H$1001,8)),"",VLOOKUP($A$17,Voorraad!$A$2:$H$1001,8)) -> 500060 | G17: =IF(ISERROR(VLOOKUP($A$17,Voorraad!$A$2:$I$1001,9)),"",VLOOKUP($A$17,Voorraad!$A$2:$I$1001,9)) -> 0 | H17: =IF(ISERROR(VLOOKUP($A$17,Voorraad!$A$2:$J$1001,10)),"",VLOOKUP($A$17,Voorraad!$A$2:$J$1001,10)) -> 0 | I17: =IF(ISERROR(VLOOKUP($A$17,Voorraad!$A$2:$G$1001,6)),"",VLOOKUP($A$17,Voorraad!$A$2:$G$1001,6)) -> 0 | J17: =IF(ISERROR(VLOOKUP($A$17,Voorraad!$A$2:$G$1001,7)),"",VLOOKUP($A$17,Voorraad!$A$2:$G$1001,7)) -> BCC | K17: =IF(ISERROR(VLOOKUP($A$17,Voorraad!$A$2:$G$1001,5)),"",VLOOKUP($A$17,Voorraad!$A$2:$G$1001,5)) -> 8510/8437/8438/8439 | L17: =IF(ISERROR(VLOOKUP($A$17,Voorraad!$A$2:$D$1001,4)),"",VLOOKUP($A$17,Voorraad!$A$2:$D$1001,4)) -> 1908 | M17: 1 | N17: 0
A18: BU0010 | B18: =[3]Sheet1!$E$13 -> 1 | C18: =IF(ISERROR(VLOOKUP($A$18,Voorraad!$A$2:$D$1001,1)),"",VLOOKUP($A$18,Voorraad!$A$2:$D$1001,1)) -> BU0010 | D18: =IF(ISERROR(VLOOKUP($A$18,Voorraad!$A$2:$D$1001,3)),"",VLOOKUP($A$18,Voorraad!$A$2:$D$1001,3)) -> 22UH | E18: =IF(ISERROR(VLOOKUP($A$18,Voorraad!$A$2:$D$1001,2)),"",VLOOKUP($A$18,Voorraad!$A$2:$D$1001,2)) -> HBCC-220K-02 | F18: =IF(ISERROR(VLOOKUP($A$18,Voorraad!$A$2:$H$1001,8)),"",VLOOKUP($A$18,Voorraad!$A$2:$H$1001,8)) -> 0 | G18: =IF(ISERROR(VLOOKUP($A$18,Voorraad!$A$2:$I$1001,9)),"",VLOOKUP($A$18,Voorraad!$A$2:$I$1001,9)) -> HBCC-220K-02 | H18: =IF(ISERROR(VLOOKUP($A$18,Voorraad!$A$2:$J$1001,10)),"",VLOOKUP($A$18,Voorraad!$A$2:$J$1001,10)) -> MICC-R22M-02 | I18: =IF(ISERROR(VLOOKUP($A$18,Voorraad!$A$2:$G$1001,6)),"",VLOOKUP($A$18,Voorraad!$A$2:$G$1001,6)) -> TME | J18: =IF(ISERROR(VLOOKUP($A$18,Voorraad!$A$2:$G$1001,7)),"",VLOOKUP($A$18,Voorraad!$A$2:$G$1001,7)) -> FASTRON | K18: =IF(ISERROR(VLOOKUP($A$18,Voorraad!$A$2:$G$1001,5)),"",VLOOKUP($A$18,Voorraad!$A$2:$G$1001,5)) -> 8437/8438/8439 | L18: =IF(ISERROR(VLOOKUP($A$18,Voorraad!$A$2:$D$1001,4)),"",VLOOKUP($A$18,Voorraad!$A$2:$D$1001,4)) -> 60 | M18: 1 | N18: 0
A19: BU0065 | B19: =[3]Sheet1!$E$14 -> 1 | C19: =IF(ISERROR(VLOOKUP($A$19,Voorraad!$A$2:$D$1001,1)),"",VLOOKUP($A$19,Voorraad!$A$2:$D$1001,1)) -> BU0065 | D19: =IF(ISERROR(VLOOKUP($A$19,Voorraad!$A$2:$D$1001,3)),"",VLOOKUP($A$19,Voorraad!$A$2:$D$1001,3)) -> DB37F | E19: =IF(ISERROR(VLOOKUP($A$19,Voorraad!$A$2:$D$1001,2)),"",VLOOKUP($A$19,Voorraad!$A$2:$D$1001,2)) -> 09 66 451 6513 | F19: =IF(ISERROR(VLOOKUP($A$19,Voorraad!$A$2:$H$1001,8)),"",VLOOKUP($A$19,Voorraad!$A$2:$H$1001,8)) -> 0 | G19: =IF(ISERROR(VLOOKUP($A$19,Voorraad!$A$2:$I$1001,9)),"",VLOOKUP($A$19,Voorraad!$A$2:$I$1001,9)) -> 09 66 451 6513 | H19: =IF(ISERROR(VLOOKUP($A$19,Voorraad!$A$2:$J$1001,10)),"",VLOOKUP($A$19,Voorraad!$A$2:$J$1001,10)) -> 0 | I19: =IF(ISERROR(VLOOKUP($A$19,Voorraad!$A$2:$G$1001,6)),"",VLOOKUP($A$19,Voorraad!$A$2:$G$1001,6)) -> TME | J19: =IF(ISERROR(VLOOKUP($A$19,Voorraad!$A$2:$G$1001,7)),"",VLOOKUP($A$19,Voorraad!$A$2:$G$1001,7)) -> Harting | K19: =IF(ISERROR(VLOOKUP($A$19,Voorraad!$A$2:$G$1001,5)),"",VLOOKUP($A$19,Voorraad!$A$2:$G$1001,5)) -> 8437/8438 | L19: =IF(ISERROR(VLOOKUP($A$19,Voorraad!$A$2:$D$1001,4)),"",VLOOKUP($A$19,Voorraad!$A$2:$D$1001,4)) -> 13 | M19: 1 | N19: 0
A20: BU0066 | B20: =[3]Sheet1!$E$15 -> 42 | C20: =IF(ISERROR(VLOOKUP($A$20,Voorraad!$A$2:$D$1001,1)),"",VLOOKUP($A$20,Voorraad!$A$2:$D$1001,1)) -> BU0066 | D20: =IF(ISERROR(VLOOKUP($A$20,Voorraad!$A$2:$D$1001,3)),"",VLOOKUP($A$20,Voorraad!$A$2:$D$1001,3)) -> KDS3 | E20: =IF(ISERROR(VLOOKUP($A$20,Voorraad!$A$2:$D$1001,2)),"",VLOOKUP($A$20,Voorraad!$A$2:$D$1001,2)) -> 1780015 | F20: =IF(ISERROR(VLOOKUP($A$20,Voorraad!$A$2:$H$1001,8)),"",VLOOKUP($A$20,Voorraad!$A$2:$H$1001,8)) -> 0 | G20: =IF(ISERROR(VLOOKUP($A$20,Voorraad!$A$2:$I$1001,9)),"",VLOOKUP($A$20,Voorraad!$A$2:$I$1001,9)) -> 1780015 | H20: =IF(ISERROR(VLOOKUP($A$20,Voorraad!$A$2:$J$1001,10)),"",VLOOKUP($A$20,Voorraad!$A$2:$J$1001,10)) -> 0 | I20: =IF(ISERROR(VLOOKUP($A$20,Voorraad!$A$2:$G$1001,6)),"",VLOOKUP($A$20,Voorraad!$A$2:$G$1001,6)) -> Van Egmond Groep | J20: =IF(ISERROR(VLOOKUP($A$20,Voorraad!$A$2:$G$1001,7)),"",VLOOKUP($A$20,Voorraad!$A$2:$G$1001,7)) -> Phoenix | K20: =IF(ISERROR(VLOOKUP($A$20,Voorraad!$A$2:$G$1001,5)),"",VLOOKUP($A$20,Voorraad!$A$2:$G$1001,5)) -> 8437/8438/8439 | L20: =IF(ISERROR(VLOOKUP($A$20,Voorraad!$A$2:$D$1001,4)),"",VLOOKUP($A$20,Voorraad!$A$2:$D$1001,4)) -> 546 | M20: 42 | N20: 0
A21: BU0045 | B21: =[3]Sheet1!$E$16 -> 1 | C21: =IF(ISERROR(VLOOKUP($A$21,Voorraad!$A$2:$D$1001,1)),"",VLOOKUP($A$21,Voorraad!$A$2:$D$1001,1)) -> BU0045 | D21: =IF(ISERROR(VLOOKUP($A$21,Voorraad!$A$2:$D$1001,3)),"",VLOOKUP($A$21,Voorraad!$A$2:$D$1001,3)) -> LED TLG124A GROEN 3.18MM | E21: =IF(ISERROR(VLOOKUP($A$21,Voorraad!$A$2:$D$1001,2)),"",VLOOKUP($A$21,Voorraad!$A$2:$D$1001,2)) -> KVD-03-035/G | F21: =IF(ISERROR(VLOOKUP($A$21,Voorraad!$A$2:$H$1001,8)),"",VLOOKUP($A$21,Voorraad!$A$2:$H$1001,8)) -> ? | G21: =IF(ISERROR(VLOOKUP($A$21,Voorraad!$A$2:$I$1001,9)),"",VLOOKUP($A$21,Voorraad!$A$2:$I$1001,9)) -> L-934GD | H21: =IF(ISERROR(VLOOKUP($A$21,Voorraad!$A$2:$J$1001,10)),"",VLOOKUP($A$21,Voorraad!$A$2:$J$1001,10)) -> 0 | I21: =IF(ISERROR(VLOOKUP($A$21,Voorraad!$A$2:$G$1001,6)),"",VLOOKUP($A$21,Voorraad!$A$2:$G$1001,6)) -> TME | J21: =IF(ISERROR(VLOOKUP($A$21,Voorraad!$A$2:$G$1001,7)),"",VLOOKUP($A$21,Voorraad!$A$2:$G$1001,7)) -> KHATOD / King Bright | K21: =IF(ISERROR(VLOOKUP($A$21,Voorraad!$A$2:$G$1001,5)),"",VLOOKUP($A$21,Voorraad!$A$2:$G$1001,5)) -> 8437/8438/8439/8464/8510 | L21: =IF(ISERROR(VLOOKUP($A$21,Voorraad!$A$2:$D$1001,4)),"",VLOOKUP($A$21,Voorraad!$A$2:$D$1001,4)) -> 2 | M21: 1 | N21: 0
A22: BX0002 | B22: =[3]Sheet1!$E$17 -> 1 | C22: =IF(ISERROR(VLOOKUP($A$22,Voorraad!$A$2:$D$1001,1)),"",VLOOKUP($A$22,Voorraad!$A$2:$D$1001,1)) -> BX0002 | D22: =IF(ISERROR(VLOOKUP($A$22,Voorraad!$A$2:$D$1001,3)),"",VLOOKUP($A$22,Voorraad!$A$2:$D$1001,3)) -> SL2 | E22: =IF(ISERROR(VLOOKUP($A$22,Voorraad!$A$2:$D$1001,2)),"",VLOOKUP($A$22,Voorraad!$A$2:$D$1001,2)) -> XY2500V-C(5.08)-2PIN | F22: =IF(ISERROR(VLOOKUP($A$22,Voorraad!$A$2:$H$1001,8)),"",VLOOKUP($A$22,Voorraad!$A$2:$H$1001,8)) -> 0 | G22: =IF(ISERROR(VLOOKUP($A$22,Voorraad!$A$2:$I$1001,9)),"",VLOOKUP($A$22,Voorraad!$A$2:$I$1001,9)) -> TBG-5-PB-2P-GN | H22: =IF(ISERROR(VLOOKUP($A$22,Voorraad!$A$2:$J$1001,10)),"",VLOOKUP($A$22,Voorraad!$A$2:$J$1001,10)) -> 0 | I22: =IF(ISERROR(VLOOKUP($A$22,Voorraad!$A$2:$G$1001,6)),"",VLOOKUP($A$22,Voorraad!$A$2:$G$1001,6)) -> TME | J22: =IF(ISERROR(VLOOKUP($A$22,Voorraad!$A$2:$G$1001,7)),"",VLOOKUP($A$22,Voorraad!$A$2:$G$1001,7)) -> Xinya | K22: =IF(ISERROR(VLOOKUP($A$22,Voorraad!$A$2:$G$1001,5)),"",VLOOKUP($A$22,Voorraad!$A$2:$G$1001,5)) -> 8437/8438/8439 | L22: =IF(ISERROR(VLOOKUP($A$22,Voorraad!$A$2:$D$1001,4)),"",VLOOKUP($A$22,Voorraad!$A$2:$D$1001,4)) -> 92 | M22: 1 | N22: 0
A23: BX0003 | B23: =[3]Sheet1!$E$18 -> 1 | C23: =IF(ISERROR(VLOOKUP($A$23,Voorraad!$A$2:$D$1001,1)),"",VLOOKUP($A$23,Voorraad!$A$2:$D$1001,1)) -> BX0003 | D23: =IF(ISERROR(VLOOKUP($A$23,Voorraad!$A$2:$D$1001,3)),"",VLOOKUP($A$23,Voorraad!$A$2:$D$1001,3)) -> BL2 | E23: =IF(ISERROR(VLOOKUP($A$23,Voorraad!$A$2:$D$1001,2)),"",VLOOKUP($A$23,Voorraad!$A$2:$D$1001,2)) -> TBW-5-2P/GN | F23: =IF(ISERROR(VLOOKUP($A$23,Voorraad!$A$2:$H$1001,8)),"",VLOOKUP($A$23,Voorraad!$A$2:$H$1001,8)) -> 0 | G23: =IF(ISERROR(VLOOKUP($A$23,Voorraad!$A$2:$I$1001,9)),"",VLOOKUP($A$23,Voorraad!$A$2:$I$1001,9)) -> TBW-5-2P/GN | H23: =IF(ISERROR(VLOOKUP($A$23,Voorraad!$A$2:$J$1001,10)),"",VLOOKUP($A$23,Voorraad!$A$2:$J$1001,10)) -> 0 | I23: =IF(ISERROR(VLOOKUP($A$23,Voorraad!$A$2:$G$1001,6)),"",VLOOKUP($A$23,Voorraad!$A$2:$G$1001,6)) -> TME | J23: =IF(ISERROR(VLOOKUP($A$23,Voorraad!$A$2:$G$1001,7)),"",VLOOKUP($A$23,Voorraad!$A$2:$G$1001,7)) -> Ninigi | K23: =IF(ISERROR(VLOOKUP($A$23,Voorraad!$A$2:$G$1001,5)),"",VLOOKUP($A$23,Voorraad!$A$2:$G$1001,5)) -> 8437/8438/8439 | L23: =IF(ISERROR(VLOOKUP($A$23,Voorraad!$A$2:$D$1001,4)),"",VLOOKUP($A$23,Voorraad!$A$2:$D$1001,4)) -> 93 | M23: 1 | N23: 0
A24: BX0006 | B24: =[3]Sheet1!$E$19 -> 1 | C24: =IF(ISERROR(VLOOKUP($A$24,Voorraad!$A$2:$D$1001,1)),"",VLOOKUP($A$24,Voorraad!$A$2:$D$1001,1)) -> BX0006 | D24: =IF(ISERROR(VLOOKUP($A$24,Voorraad!$A$2:$D$1001,3)),"",VLOOKUP($A$24,Voorraad!$A$2:$D$1001,3)) -> SL5 | E24: =IF(ISERROR(VLOOKUP($A$24,Voorraad!$A$2:$D$1001,2)),"",VLOOKUP($A$24,Voorraad!$A$2:$D$1001,2)) -> XY2500V C5.08) 5PIN | F24: =IF(ISERROR(VLOOKUP($A$24,Voorraad!$A$2:$H$1001,8)),"",VLOOKUP($A$24,Voorraad!$A$2:$H$1001,8)) -> 0 | G24: =IF(ISERROR(VLOOKUP($A$24,Voorraad!$A$2:$I$1001,9)),"",VLOOKUP($A$24,Voorraad!$A$2:$I$1001,9)) -> TBG-5-PB-5P-GN | H24: =IF(ISERROR(VLOOKUP($A$24,Voorraad!$A$2:$J$1001,10)),"",VLOOKUP($A$24,Voorraad!$A$2:$J$1001,10)) -> 0 | I24: =IF(ISERROR(VLOOKUP($A$24,Voorraad!$A$2:$G$1001,6)),"",VLOOKUP($A$24,Voorraad!$A$2:$G$1001,6)) -> TME | J24: =IF(ISERROR(VLOOKUP($A$24,Voorraad!$A$2:$G$1001,7)),"",VLOOKUP($A$24,Voorraad!$A$2:$G$1001,7)) -> Xinya | K24: =IF(ISERROR(VLOOKUP($A$24,Voorraad!$A$2:$G$1001,5)),"",VLOOKUP($A$24,Voorraad!$A$2:$G$1001,5)) -> 8438 | L24: =IF(ISERROR(VLOOKUP($A$24,Voorraad!$A$2:$D$1001,4)),"",VLOOKUP($A$24,Voorraad!$A$2:$D$1001,4)) -> 5 | M24: 1 | N24: 0
A25: BX0007 | B25: =[3]Sheet1!$E$20 -> 1 | C25: =IF(ISERROR(VLOOKUP($A$25,Voorraad!$A$2:$D$1001,1)),"",VLOOKUP($A$25,Voorraad!$A$2:$D$1001,1)) -> BX0007 | D25: =IF(ISERROR(VLOOKUP($A$25,Voorraad!$A$2:$D$1001,3)),"",VLOOKUP($A$25,Voorraad!$A$2:$D$1001,3)) -> BL5 | E25: =IF(ISERROR(VLOOKUP($A$25,Voorraad!$A$2:$D$1001,2)),"",VLOOKUP($A$25,Voorraad!$A$2:$D$1001,2)) -> TBW-5-5P/GN | F25: =IF(ISERROR(VLOOKUP($A$25,Voorraad!$A$2:$H$1001,8)),"",VLOOKUP($A$25,Voorraad!$A$2:$H$1001,8)) -> 0 | G25: =IF(ISERROR(VLOOKUP($A$25,Voorraad!$A$2:$I$1001,9)),"",VLOOKUP($A$25,Voorraad!$A$2:$I$1001,9)) -> 0 | H25: =IF(ISERROR(VLOOKUP($A$25,Voorraad!$A$2:$J$1001,10)),"",VLOOKUP($A$25,Voorraad!$A$2:$J$1001,10)) -> 0 | I25: =IF(ISERROR(VLOOKUP($A$25,Voorraad!$A$2:$G$1001,6)),"",VLOOKUP($A$25,Voorraad!$A$2:$G$1001,6)) -> TME | J25: =IF(ISERROR(VLOOKUP($A$25,Voorraad!$A$2:$G$1001,7)),"",VLOOKUP($A$25,Voorraad!$A$2:$G$1001,7)) -> Ninigi | K25: =IF(ISERROR(VLOOKUP($A$25,Voorraad!$A$2:$G$1001,5)),"",VLOOKUP($A$25,Voorraad!$A$2:$G$1001,5)) -> 8438 | L25: =IF(ISERROR(VLOOKUP($A$25,Voorraad!$A$2:$D$1001,4)),"",VLOOKUP($A$25,Voorraad!$A$2:$D$1001,4)) -> 62 | M25: 1 | N25: 0
A26: BX0018 | B26: =[3]Sheet1!$E$21 -> 1 | C26: =IF(ISERROR(VLOOKUP($A$26,Voorraad!$A$2:$D$1001,1)),"",VLOOKUP($A$26,Voorraad!$A$2:$D$1001,1)) -> BX0018 | D26: =IF(ISERROR(VLOOKUP($A$26,Voorraad!$A$2:$D$1001,3)),"",VLOOKUP($A$26,Voorraad!$A$2:$D$1001,3)) -> UM72 Profile 220MM | E26: =IF(ISERROR(VLOOKUP($A$26,Voorraad!$A$2:$D$1001,2)),"",VLOOKUP($A$26,Voorraad!$A$2:$D$1001,2)) -> 2959256 | F26: =IF(ISERROR(VLOOKUP($A$26,Voorraad!$A$2:$H$1001,8)),"",VLOOKUP($A$26,Voorraad!$A$2:$H$1001,8)) -> 0 | G26: =IF(ISERROR(VLOOKUP($A$26,Voorraad!$A$2:$I$1001,9)),"",VLOOKUP($A$26,Voorraad!$A$2:$I$1001,9)) -> 74005678 | H26: =IF(ISERROR(VLOOKUP($A$26,Voorraad!$A$2:$J$1001,10)),"",VLOOKUP($A$26,Voorraad!$A$2:$J$1001,10)) -> 0 | I26: =IF(ISERROR(VLOOKUP($A$26,Voorraad!$A$2:$G$1001,6)),"",VLOOKUP($A$26,Voorraad!$A$2:$G$1001,6)) -> Phoenix / Overwijn | J26: =IF(ISERROR(VLOOKUP($A$26,Voorraad!$A$2:$G$1001,7)),"",VLOOKUP($A$26,Voorraad!$A$2:$G$1001,7)) -> 0 | K26: =IF(ISERROR(VLOOKUP($A$26,Voorraad!$A$2:$G$1001,5)),"",VLOOKUP($A$26,Voorraad!$A$2:$G$1001,5)) -> 8438 | L26: =IF(ISERROR(VLOOKUP($A$26,Voorraad!$A$2:$D$1001,4)),"",VLOOKUP($A$26,Voorraad!$A$2:$D$1001,4)) -> 12 | M26: 1 | N26: 0
A27: BX0019 | B27: =[3]Sheet1!$E$22 -> 1 | C27: =IF(ISERROR(VLOOKUP($A$27,Voorraad!$A$2:$D$1001,1)),"",VLOOKUP($A$27,Voorraad!$A$2:$D$1001,1)) -> BX0019 | D27: =IF(ISERROR(VLOOKUP($A$27,Voorraad!$A$2:$D$1001,3)),"",VLOOKUP($A$27,Voorraad!$A$2:$D$1001,3)) -> UM72 SEFE/L | E27: =IF(ISERROR(VLOOKUP($A$27,Voorraad!$A$2:$D$1001,2)),"",VLOOKUP($A$27,Voorraad!$A$2:$D$1001,2)) -> 2959340 | F27: =IF(ISERROR(VLOOKUP($A$27,Voorraad!$A$2:$H$1001,8)),"",VLOOKUP($A$27,Voorraad!$A$2:$H$1001,8)) -> 0 | G27: =IF(ISERROR(VLOOKUP($A$27,Voorraad!$A$2:$I$1001,9)),"",VLOOKUP($A$27,Voorraad!$A$2:$I$1001,9)) -> 2959340 | H27: =IF(ISERROR(VLOOKUP($A$27,Voorraad!$A$2:$J$1001,10)),"",VLOOKUP($A$27,Voorraad!$A$2:$J$1001,10)) -> 0 | I27: =IF(ISERROR(VLOOKUP($A$27,Voorraad!$A$2:$G$1001,6)),"",VLOOKUP($A$27,Voorraad!$A$2:$G$1001,6)) -> Van Egmond Groep | J27: =IF(ISERROR(VLOOKUP($A$27,Voorraad!$A$2:$G$1001,7)),"",VLOOKUP($A$27,Voorraad!$A$2:$G$1001,7)) -> Phoenix | K27: =IF(ISERROR(VLOOKUP($A$27,Voorraad!$A$2:$G$1001,5)),"",VLOOKUP($A$27,Voorraad!$A$2:$G$1001,5)) -> 8437/8438/8439 | L27: =IF(ISERROR(VLOOKUP($A$27,Voorraad!$A$2:$D$1001,4)),"",VLOOKUP($A$27,Voorraad!$A$2:$D$1001,4)) -> 11 | M27: 1 | N27: 0
A28: BX0020 | B28: =[3]Sheet1!$E$23 -> 1 | C28: =IF(ISERROR(VLOOKUP($A$28,Voorraad!$A$2:$D$1001,1)),"",VLOOKUP($A$28,Voorraad!$A$2:$D$1001,1)) -> BX0020 | D28: =IF(ISERROR(VLOOKUP($A$28,Voorraad!$A$2:$D$1001,3)),"",VLOOKUP($A$28,Voorraad!$A$2:$D$1001,3)) -> UM72 SEFE/R | E28: =IF(ISERROR(VLOOKUP($A$28,Voorraad!$A$2:$D$1001,2)),"",VLOOKUP($A$28,Voorraad!$A$2:$D$1001,2)) -> 2959353 | F28: =IF(ISERROR(VLOOKUP($A$28,Voorraad!$A$2:$H$1001,8)),"",VLOOKUP($A$28,Voorraad!$A$2:$H$1001,8)) -> 0 | G28: =IF(ISERROR(VLOOKUP($A$28,Voorraad!$A$2:$I$1001,9)),"",VLOOKUP($A$28,Voorraad!$A$2:$I$1001,9)) -> 2959353 | H28: =IF(ISERROR(VLOOKUP($A$28,Voorraad!$A$2:$J$1001,10)),"",VLOOKUP($A$28,Voorraad!$A$2:$J$1001,10)) -> 0 | I28: =IF(ISERROR(VLOOKUP($A$28,Voorraad!$A$2:$G$1001,6)),"",VLOOKUP($A$28,Voorraad!$A$2:$G$1001,6)) -> Van Egmond Groep | J28: =IF(ISERROR(VLOOKUP($A$28,Voorraad!$A$2:$G$1001,7)),"",VLOOKUP($A$28,Voorraad!$A$2:$G$1001,7)) -> Phoenix | K28: =IF(ISERROR(VLOOKUP($A$28,Voorraad!$A$2:$G$1001,5)),"",VLOOKUP($A$28,Voorraad!$A$2:$G$1001,5)) -> 8437/8438/8439 | L28: =IF(ISERROR(VLOOKUP($A$28,Voorraad!$A$2:$D$1001,4)),"",VLOOKUP($A$28,Voorraad!$A$2:$D$1001,4)) -> 13 | M28: 1 | N28: 0
A29: BX0021 | B29: =[3]Sheet1!$E$24 -> 1 | C29: =IF(ISERROR(VLOOKUP($A$29,Voorraad!$A$2:$D$1001,1)),"",VLOOKUP($A$29,Voorraad!$A$2:$D$1001,1)) -> BX0021 | D29: =IF(ISERROR(VLOOKUP($A$29,Voorraad!$A$2:$D$1001,3)),"",VLOOKUP($A$29,Voorraad!$A$2:$D$1001,3)) -> UM72 FE | E29: =IF(ISERROR(VLOOKUP($A$29,Voorraad!$A$2:$D$1001,2)),"",VLOOKUP($A$29,Voorraad!$A$2:$D$1001,2)) -> 2959382 | F29: =IF(ISERROR(VLOOKUP($A$29,Voorraad!$A$2:$H$1001,8)),"",VLOOKUP($A$29,Voorraad!$A$2:$H$1001,8)) -> 0 | G29: =IF(ISERROR(VLOOKUP($A$29,Voorraad!$A$2:$I$1001,9)),"",VLOOKUP($A$29,Voorraad!$A$2:$I$1001,9)) -> 0 | H29: =IF(ISERROR(VLOOKUP($A$29,Voorraad!$A$2:$J$1001,10)),"",VLOOKUP($A$29,Voorraad!$A$2:$J$1001,10)) -> 0 | I29: =IF(ISERROR(VLOOKUP($A$29,Voorraad!$A$2:$G$1001,6)),"",VLOOKUP($A$29,Voorraad!$A$2:$G$1001,6)) -> Phoenix | J29: =IF(ISERROR(VLOOKUP($A$29,Voorraad!$A$2:$G$1001,7)),"",VLOOKUP($A$29,Voorraad!$A$2:$G$1001,7)) -> 0 | K29: =IF(ISERROR(VLOOKUP($A$29,Voorraad!$A$2:$G$1001,5)),"",VLOOKUP($A$29,Voorraad!$A$2:$G$1001,5)) -> 8438/8439 | L29: =IF(ISERROR(VLOOKUP($A$29,Voorraad!$A$2:$D$1001,4)),"",VLOOKUP($A$29,Voorraad!$A$2:$D$1001,4)) -> 0 | M29: 1 | N29: 1
A30: BX0041 | B30: =[3]Sheet1!$E$25 -> 0 | C30: =IF(ISERROR(VLOOKUP($A$30,Voorraad!$A$2:$D$1001,1)),"",VLOOKUP($A$30,Voorraad!$A$2:$D$1001,1)) -> BX0041 | D30: =IF(ISERROR(VLOOKUP($A$30,Voorraad!$A$2:$D$1001,3)),"",VLOOKUP($A$30,Voorraad!$A$2:$D$1001,3)) -> PCB 8438L | E30: =IF(ISERROR(VLOOKUP($A$30,Voorraad!$A$2:$D$1001,2)),"",VLOOKUP($A$30,Voorraad!$A$2:$D$1001,2)) -> PCB 8438L | F30: =IF(ISERROR(VLOOKUP($A$30,Voorraad!$A$2:$H$1001,8)),"",VLOOKUP($A$30,Voorraad!$A$2:$H$1001,8)) -> 0 | G30: =IF(ISERROR(VLOOKUP($A$30,Voorraad!$A$2:$I$1001,9)),"",VLOOKUP($A$30,Voorraad!$A$2:$I$1001,9)) -> 0 | H30: =IF(ISERROR(VLOOKUP($A$30,Voorraad!$A$2:$J$1001,10)),"",VLOOKUP($A$30,Voorraad!$A$2:$J$1001,10)) -> 0 | I30: =IF(ISERROR(VLOOKUP($A$30,Voorraad!$A$2:$G$1001,6)),"",VLOOKUP($A$30,Voorraad!$A$2:$G$1001,6)) -> JvB | J30: =IF(ISERROR(VLOOKUP($A$30,Voorraad!$A$2:$G$1001,7)),"",VLOOKUP($A$30,Voorraad!$A$2:$G$1001,7)) -> JvB | K30: =IF(ISERROR(VLOOKUP($A$30,Voorraad!$A$2:$G$1001,5)),"",VLOOKUP($A$30,Voorraad!$A$2:$G$1001,5)) -> PCB 8438L | L30: =IF(ISERROR(VLOOKUP($A$30,Voorraad!$A$2:$D$1001,4)),"",VLOOKUP($A$30,Voorraad!$A$2:$D$1001,4)) -> 0 | M30: 0 | N30: 0
A31: BX0042 | B31: =[3]Sheet1!$E$26 -> 0 | C31: =IF(ISERROR(VLOOKUP($A$31,Voorraad!$A$2:$D$1001,1)),"",VLOOKUP($A$31,Voorraad!$A$2:$D$1001,1)) -> BX0042 | D31: =IF(ISERROR(VLOOKUP($A$31,Voorraad!$A$2:$D$1001,3)),"",VLOOKUP($A$31,Voorraad!$A$2:$D$1001,3)) -> PCB 8438R | E31: =IF(ISERROR(VLOOKUP($A$31,Voorraad!$A$2:$D$1001,2)),"",VLOOKUP($A$31,Voorraad!$A$2:$D$1001,2)) -> PCB 8438R | F31: =IF(ISERROR(VLOOKUP($A$31,Voorraad!$A$2:$H$1001,8)),"",VLOOKUP($A$31,Voorraad!$A$2:$H$1001,8)) -> 0 | G31: =IF(ISERROR(VLOOKUP($A$31,Voorraad!$A$2:$I$1001,9)),"",VLOOKUP($A$31,Voorraad!$A$2:$I$1001,9)) -> 0 | H31: =IF(ISERROR(VLOOKUP($A$31,Voorraad!$A$2:$J$1001,10)),"",VLOOKUP($A$31,Voorraad!$A$2:$J$1001,10)) -> 0 | I31: =IF(ISERROR(VLOOKUP($A$31,Voorraad!$A$2:$G$1001,6)),"",VLOOKUP($A$31,Voorraad!$A$2:$G$1001,6)) -> JvB | J31: =IF(ISERROR(VLOOKUP($A$31,Voorraad!$A$2:$G$1001,7)),"",VLOOKUP($A$31,Voorraad!$A$2:$G$1001,7)) -> JvB | K31: =IF(ISERROR(VLOOKUP($A$31,Voorraad!$A$2:$G$1001,5)),"",VLOOKUP($A$31,Voorraad!$A$2:$G$1001,5)) -> PCB 8438R | L31: =IF(ISERROR(VLOOKUP($A$31,Voorraad!$A$2:$D$1001,4)),"",VLOOKUP($A$31,Voorraad!$A$2:$D$1001,4)) -> 18 | M31: 0 | N31: 0

Sheet Picklijst 8439
A2: Pickorder 8439 | C2: =[4]Sheet1!$D$2 -> 20 | D2: X
A8: Art Nr CSI | B8: Benodigd | C8: Art Nr CSI | D8: Omschrijving | E8: Leverancier Nr | F8: Produco Nr | G8: OrderNr | H8: Opmerkingen/Alternatieven | I8: Leverancier | J8: Producent | K8: PCB | L8: Voorraad | M8: Benodigd | N8: Bestellen
A9: BSH002 | B9: =[4]Sheet1!$E$4 -> 60 | C9: =IF(ISERROR(VLOOKUP($A$9,Voorraad!$A$2:$D$1001,1)),"",VLOOKUP($A$9,Voorraad!$A$2:$D$1001,1)) -> BSH002 | D9: =IF(ISERROR(VLOOKUP($A$9,Voorraad!$A$2:$D$1001,3)),"",VLOOKUP($A$9,Voorraad!$A$2:$D$1001,3)) -> 220U / 35V | E9: =IF(ISERROR(VLOOKUP($A$9,Voorraad!$A$2:$D$1001,2)),"",VLOOKUP($A$9,Voorraad!$A$2:$D$1001,2)) -> EEUFC1V221 | F9: =IF(ISERROR(VLOOKUP($A$9,Voorraad!$A$2:$H$1001,8)),"",VLOOKUP($A$9,Voorraad!$A$2:$H$1001,8)) -> 0 | G9: =IF(ISERROR(VLOOKUP($A$9,Voorraad!$A$2:$I$1001,9)),"",VLOOKUP($A$9,Voorraad!$A$2:$I$1001,9)) -> EEUFC1V221 | H9: =IF(ISERROR(VLOOKUP($A$9,Voorraad!$A$2:$J$1001,10)),"",VLOOKUP($A$9,Voorraad!$A$2:$J$1001,10)) -> Alternatief: SE050M0220-1012 | I9: =IF(ISERROR(VLOOKUP($A$9,Voorraad!$A$2:$G$1001,6)),"",VLOOKUP($A$9,Voorraad!$A$2:$G$1001,6)) -> TME | J9: =IF(ISERROR(VLOOKUP($A$9,Voorraad!$A$2:$G$1001,7)),"",VLOOKUP($A$9,Voorraad!$A$2:$G$1001,7)) -> Panasonic | K9: =IF(ISERROR(VLOOKUP($A$9,Voorraad!$A$2:$G$1001,5)),"",VLOOKUP($A$9,Voorraad!$A$2:$G$1001,5)) -> 8437/8438/8439 | L9: =IF(ISERROR(VLOOKUP($A$9,Voorraad!$A$2:$D$1001,4)),"",VLOOKUP($A$9,Voorraad!$A$2:$D$1001,4)) -> 178 | M9: =B9 -> 60 | N9: =MAX(0,(SUM(M9-L9))) -> 0
A10: BU0005 | B10: =[4]Sheet1!$E$5 -> 20 | C10: =IF(ISERROR(VLOOKUP($A$10,Voorraad!$A$2:$D$1001,1)),"",VLOOKUP($A$10,Voorraad!$A$2:$D$1001,1)) -> BU0005 | D10: =IF(ISERROR(VLOOKUP($A$10,Voorraad!$A$2:$D$1001,3)),"",VLOOKUP($A$10,Voorraad!$A$2:$D$1001,3)) -> T83-A90X | E10: =IF(ISERROR(VLOOKUP($A$10,Voorraad!$A$2:$D$1001,2)),"",VLOOKUP($A$10,Voorraad!$A$2:$D$1001,2)) -> 2046-09-C2LF | F10: =IF(ISERROR(VLOOKUP($A$10,Voorraad!$A$2:$H$1001,8)),"",VLOOKUP($A$10,Voorraad!$A$2:$H$1001,8)) -> 0 | G10: =IF(ISERROR(VLOOKUP($A$10,Voorraad!$A$2:$I$1001,9)),"",VLOOKUP($A$10,Voorraad!$A$2:$I$1001,9)) -> 2335982 | H10: =IF(ISERROR(VLOOKUP($A$10,Voorraad!$A$2:$J$1001,10)),"",VLOOKUP($A$10,Voorraad!$A$2:$J$1001,10)) -> 0 | I10: =IF(ISERROR(VLOOKUP($A$10,Voorraad!$A$2:$G$1001,6)),"",VLOOKUP($A$10,Voorraad!$A$2:$G$1001,6)) -> Farnell | J10: =IF(ISERROR(VLOOKUP($A$10,Voorraad!$A$2:$G$1001,7)),"",VLOOKUP($A$10,Voorraad!$A$2:$G$1001,7)) -> Bourns | K10: =IF(ISERROR(VLOOKUP($A$10,Voorraad!$A$2:$G$1001,5)),"",VLOOKUP($A$10,Voorraad!$A$2:$G$1001,5)) -> 8437/8438/8439 | L10: =IF(ISERROR(VLOOKUP($A$10,Voorraad!$A$2:$D$1001,4)),"",VLOOKUP($A$10,Voorraad!$A$2:$D$1001,4)) -> 57 | M10: 20 | N10: 0
A11: BU0016 | B11: =[4]Sheet1!$E$6 -> 40 | C11: =IF(ISERROR(VLOOKUP($A$11,Voorraad!$A$2:$D$1001,1)),"",VLOOKUP($A$11,Voorraad!$A$2:$D$1001,1)) -> BU0016 | D11: =IF(ISERROR(VLOOKUP($A$11,Voorraad!$A$2:$D$1001,3)),"",VLOOKUP($A$11,Voorraad!$A$2:$D$1001,3)) -> D BYV27-150-TAP | E11: =IF(ISERROR(VLOOKUP($A$11,Voorraad!$A$2:$D$1001,2)),"",VLOOKUP($A$11,Voorraad!$A$2:$D$1001,2)) -> 0 | F11: =IF(ISERROR(VLOOKUP($A$11,Voorraad!$A$2:$H$1001,8)),"",VLOOKUP($A$11,Voorraad!$A$2:$H$1001,8)) -> 520005 | G11: =IF(ISERROR(VLOOKUP($A$11,Voorraad!$A$2:$I$1001,9)),"",VLOOKUP($A$11,Voorraad!$A$2:$I$1001,9)) -> BYV27-150-TAP | H11: =IF(ISERROR(VLOOKUP($A$11,Voorraad!$A$2:$J$1001,10)),"",VLOOKUP($A$11,Voorraad!$A$2:$J$1001,10)) -> 0 | I11: =IF(ISERROR(VLOOKUP($A$11,Voorraad!$A$2:$G$1001,6)),"",VLOOKUP($A$11,Voorraad!$A$2:$G$1001,6)) -> MOUSER | J11: =IF(ISERROR(VLOOKUP($A$11,Voorraad!$A$2:$G$1001,7)),"",VLOOKUP($A$11,Voorraad!$A$2:$G$1001,7)) -> PHILIPS | K11: =IF(ISERROR(VLOOKUP($A$11,Voorraad!$A$2:$G$1001,5)),"",VLOOKUP($A$11,Voorraad!$A$2:$G$1001,5)) -> 8437/8438/8439/8510 | L11: =IF(ISERROR(VLOOKUP($A$11,Voorraad!$A$2:$D$1001,4)),"",VLOOKUP($A$11,Voorraad!$A$2:$D$1001,4)) -> -7 | M11: 40 | N11: 47
A12: BU0053 | B12: =[4]Sheet1!$E$7 -> 20 | C12: =IF(ISERROR(VLOOKUP($A$12,Voorraad!$A$2:$D$1001,1)),"",VLOOKUP($A$12,Voorraad!$A$2:$D$1001,1)) -> BU0053 | D12: =IF(ISERROR(VLOOKUP($A$12,Voorraad!$A$2:$D$1001,3)),"",VLOOKUP($A$12,Voorraad!$A$2:$D$1001,3)) -> TMR6_2422 | E12: =IF(ISERROR(VLOOKUP($A$12,Voorraad!$A$2:$D$1001,2)),"",VLOOKUP($A$12,Voorraad!$A$2:$D$1001,2)) -> 906442394 | F12: =IF(ISERROR(VLOOKUP($A$12,Voorraad!$A$2:$H$1001,8)),"",VLOOKUP($A$12,Voorraad!$A$2:$H$1001,8)) -> 0 | G12: =IF(ISERROR(VLOOKUP($A$12,Voorraad!$A$2:$I$1001,9)),"",VLOOKUP($A$12,Voorraad!$A$2:$I$1001,9)) -> TMR6-2422 | H12: =IF(ISERROR(VLOOKUP($A$12,Voorraad!$A$2:$J$1001,10)),"",VLOOKUP($A$12,Voorraad!$A$2:$J$1001,10)) -> DISTRELEC: 169-54-689 | I12: =IF(ISERROR(VLOOKUP($A$12,Voorraad!$A$2:$G$1001,6)),"",VLOOKUP($A$12,Voorraad!$A$2:$G$1001,6)) -> TME | J12: =IF(ISERROR(VLOOKUP($A$12,Voorraad!$A$2:$G$1001,7)),"",VLOOKUP($A$12,Voorraad!$A$2:$G$1001,7)) -> TRACO POWER | K12: =IF(ISERROR(VLOOKUP($A$12,Voorraad!$A$2:$G$1001,5)),"",VLOOKUP($A$12,Voorraad!$A$2:$G$1001,5)) -> 8437/8439 | L12: =IF(ISERROR(VLOOKUP($A$12,Voorraad!$A$2:$D$1001,4)),"",VLOOKUP($A$12,Voorraad!$A$2:$D$1001,4)) -> 37 | M12: 20 | N12: 0
A13: BR4025 | B13: =[4]Sheet1!$E$8 -> 320 | C13: =IF(ISERROR(VLOOKUP($A$13,Voorraad!$A$2:$D$1001,1)),"",VLOOKUP($A$13,Voorraad!$A$2:$D$1001,1)) -> BR4025 | D13: =IF(ISERROR(VLOOKUP($A$13,Voorraad!$A$2:$D$1001,3)),"",VLOOKUP($A$13,Voorraad!$A$2:$D$1001,3)) -> MFR005 | E13: =IF(ISERROR(VLOOKUP($A$13,Voorraad!$A$2:$D$1001,2)),"",VLOOKUP($A$13,Voorraad!$A$2:$D$1001,2)) -> ERF-LX005V2 | F13: =IF(ISERROR(VLOOKUP($A$13,Voorraad!$A$2:$H$1001,8)),"",VLOOKUP($A$13,Voorraad!$A$2:$H$1001,8)) -> 0 | G13: =IF(ISERROR(VLOOKUP($A$13,Voorraad!$A$2:$I$1001,9)),"",VLOOKUP($A$13,Voorraad!$A$2:$I$1001,9)) -> LX005-V2 | H13: =IF(ISERROR(VLOOKUP($A$13,Voorraad!$A$2:$J$1001,10)),"",VLOOKUP($A$13,Voorraad!$A$2:$J$1001,10)) -> 0 | I13: =IF(ISERROR(VLOOKUP($A$13,Voorraad!$A$2:$G$1001,6)),"",VLOOKUP($A$13,Voorraad!$A$2:$G$1001,6)) -> TME | J13: =IF(ISERROR(VLOOKUP($A$13,Voorraad!$A$2:$G$1001,7)),"",VLOOKUP($A$13,Voorraad!$A$2:$G$1001,7)) -> ECE | K13: =IF(ISERROR(VLOOKUP($A$13,Voorraad!$A$2:$G$1001,5)),"",VLOOKUP($A$13,Voorraad!$A$2:$G$1001,5)) -> 8439 | L13: =IF(ISERROR(VLOOKUP($A$13,Voorraad!$A$2:$D$1001,4)),"",VLOOKUP($A$13,Voorraad!$A$2:$D$1001,4)) -> 742 | M13: 320 | N13: 0
A14: BR4030 | B14: =[4]Sheet1!$E$9 -> 40 | C14: =IF(ISERROR(VLOOKUP($A$14,Voorraad!$A$2:$D$1001,1)),"",VLOOKUP($A$14,Voorraad!$A$2:$D$1001,1)) -> BR4030 | D14: =IF(ISERROR(VLOOKUP($A$14,Voorraad!$A$2:$D$1001,3)),"",VLOOKUP($A$14,Voorraad!$A$2:$D$1001,3)) -> 100NF50V | E14: =IF(ISERROR(VLOOKUP($A$14,Voorraad!$A$2:$D$1001,2)),"",VLOOKUP($A$14,Voorraad!$A$2:$D$1001,2)) -> CM-100N-Y5V | F14: =IF(ISERROR(VLOOKUP($A$14,Voorraad!$A$2:$H$1001,8)),"",VLOOKUP($A$14,Voorraad!$A$2:$H$1001,8)) -> 0 | G14: =IF(ISERROR(VLOOKUP($A$14,Voorraad!$A$2:$I$1001,9)),"",VLOOKUP($A$14,Voorraad!$A$2:$I$1001,9)) -> CM-100N-Y5V | H14: =IF(ISERROR(VLOOKUP($A$14,Voorraad!$A$2:$J$1001,10)),"",VLOOKUP($A$14,Voorraad!$A$2:$J$1001,10)) -> 0 | I14: =IF(ISERROR(VLOOKUP($A$14,Voorraad!$A$2:$G$1001,6)),"",VLOOKUP($A$14,Voorraad!$A$2:$G$1001,6)) -> TME | J14: =IF(ISERROR(VLOOKUP($A$14,Voorraad!$A$2:$G$1001,7)),"",VLOOKUP($A$14,Voorraad!$A$2:$G$1001,7)) -> SR Passives | K14: =IF(ISERROR(VLOOKUP($A$14,Voorraad!$A$2:$G$1001,5)),"",VLOOKUP($A$14,Voorraad!$A$2:$G$1001,5)) -> 8437/8438/8439 | L14: =IF(ISERROR(VLOOKUP($A$14,Voorraad!$A$2:$D$1001,4)),"",VLOOKUP($A$14,Voorraad!$A$2:$D$1001,4)) -> 184 | M14: 40 | N14: 0
A15: BR3550 | B15: =[4]Sheet1!$E$10 -> 60 | C15: =IF(ISERROR(VLOOKUP($A$15,Voorraad!$A$2:$D$1001,1)),"",VLOOKUP($A$15,Voorraad!$A$2:$D$1001,1)) -> BR3550 | D15: =IF(ISERROR(VLOOKUP($A$15,Voorraad!$A$2:$D$1001,3)),"",VLOOKUP($A$15,Voorraad!$A$2:$D$1001,3)) -> RV S05K30 100A 0.01W | E15: =IF(ISERROR(VLOOKUP($A$15,Voorraad!$A$2:$D$1001,2)),"",VLOOKUP($A$9,Voorraad!$A$2:$D$1001,2)) -> EEUFC1V221 | F15: =IF(ISERROR(VLOOKUP($A$15,Voorraad!$A$2:$H$1001,8)),"",VLOOKUP($A$15,Voorraad!$A$2:$H$1001,8)) -> 500088 | G15: =IF(ISERROR(VLOOKUP($A$15,Voorraad!$A$2:$I$1001,9)),"",VLOOKUP($A$15,Voorraad!$A$2:$I$1001,9)) -> SIOV-S05K30 | H15: =IF(ISERROR(VLOOKUP($A$15,Voorraad!$A$2:$J$1001,10)),"",VLOOKUP($A$15,Voorraad!$A$2:$J$1001,10)) -> Groter aantal inkopen | I15: =IF(ISERROR(VLOOKUP($A$15,Voorraad!$A$2:$G$1001,6)),"",VLOOKUP($A$15,Voorraad!$A$2:$G$1001,6)) -> TME | J15: =IF(ISERROR(VLOOKUP($A$15,Voorraad!$A$2:$G$1001,7)),"",VLOOKUP($A$15,Voorraad!$A$2:$G$1001,7)) -> EPCOS | K15: =IF(ISERROR(VLOOKUP($A$15,Voorraad!$A$2:$G$1001,5)),"",VLOOKUP($A$15,Voorraad!$A$2:$G$1001,5)) -> 8410/8437/8438/8439/8510 | L15: =IF(ISERROR(VLOOKUP($A$15,Voorraad!$A$2:$D$1001,4)),"",VLOOKUP($A$15,Voorraad!$A$2:$D$1001,4)) -> 86 | M15: 60 | N15: 0
A16: BR0004 | B16: =[4]Sheet1!$E$11 -> 20 | C16: =IF(ISERROR(VLOOKUP($A$16,Voorraad!$A$2:$D$1001,1)),"",VLOOKUP($A$16,Voorraad!$A$2:$D$1001,1)) -> BR0004 | D16: =IF(ISERROR(VLOOKUP($A$16,Voorraad!$A$2:$D$1001,3)),"",VLOOKUP($A$16,Voorraad!$A$2:$D$1001,3)) -> R 1K00 1% 0.6W 7X2,5MM | E16: =IF(ISERROR(VLOOKUP($A$16,Voorraad!$A$2:$D$1001,2)),"",VLOOKUP($A$16,Voorraad!$A$2:$D$1001,2)) -> #10031001 | F16: =IF(ISERROR(VLOOKUP($A$16,Voorraad!$A$2:$H$1001,8)),"",VLOOKUP($A$16,Voorraad!$A$2:$H$1001,8)) -> 500048 | G16: =IF(ISERROR(VLOOKUP($A$16,Voorraad!$A$2:$I$1001,9)),"",VLOOKUP($A$16,Voorraad!$A$2:$I$1001,9)) -> 0 | H16: =IF(ISERROR(VLOOKUP($A$16,Voorraad!$A$2:$J$1001,10)),"",VLOOKUP($A$16,Voorraad!$A$2:$J$1001,10)) -> 0 | I16: =IF(ISERROR(VLOOKUP($A$16,Voorraad!$A$2:$G$1001,6)),"",VLOOKUP($A$16,Voorraad!$A$2:$G$1001,6)) -> 0 | J16: =IF(ISERROR(VLOOKUP($A$16,Voorraad!$A$2:$G$1001,7)),"",VLOOKUP($A$16,Voorraad!$A$2:$G$1001,7)) -> BCC | K16: =IF(ISERROR(VLOOKUP($A$16,Voorraad!$A$2:$G$1001,5)),"",VLOOKUP($A$16,Voorraad!$A$2:$G$1001,5)) -> 8510/8437/8438/8439/8464 | L16: =IF(ISERROR(VLOOKUP($A$16,Voorraad!$A$2:$D$1001,4)),"",VLOOKUP($A$16,Voorraad!$A$2:$D$1001,4)) -> 208 | M16: 20 | N16: 0
A17: BR0005 | B17: =[4]Sheet1!$E$12 -> 20 | C17: =IF(ISERROR(VLOOKUP($A$17,Voorraad!$A$2:$D$1001,1)),"",VLOOKUP($A$17,Voorraad!$A$2:$D$1001,1)) -> BR0005 | D17: =IF(ISERROR(VLOOKUP($A$17,Voorraad!$A$2:$D$1001,3)),"",VLOOKUP($A$17,Voorraad!$A$2:$D$1001,3)) -> R 10K0 1% 0.6W 7X2,5MM | E17: =IF(ISERROR(VLOOKUP($A$17,Voorraad!$A$2:$D$1001,2)),"",VLOOKUP($A$17,Voorraad!$A$2:$D$1001,2)) -> #10041001 | F17: =IF(ISERROR(VLOOKUP($A$17,Voorraad!$A$2:$H$1001,8)),"",VLOOKUP($A$17,Voorraad!$A$2:$H$1001,8)) -> 500060 | G17: =IF(ISERROR(VLOOKUP($A$17,Voorraad!$A$2:$I$1001,9)),"",VLOOKUP($A$17,Voorraad!$A$2:$I$1001,9)) -> 0 | H17: =IF(ISERROR(VLOOKUP($A$17,Voorraad!$A$2:$J$1001,10)),"",VLOOKUP($A$17,Voorraad!$A$2:$J$1001,10)) -> 0 | I17: =IF(ISERROR(VLOOKUP($A$17,Voorraad!$A$2:$G$1001,6)),"",VLOOKUP($A$17,Voorraad!$A$2:$G$1001,6)) -> 0 | J17: =IF(ISERROR(VLOOKUP($A$17,Voorraad!$A$2:$G$1001,7)),"",VLOOKUP($A$17,Voorraad!$A$2:$G$1001,7)) -> BCC | K17: =IF(ISERROR(VLOOKUP($A$17,Voorraad!$A$2:$G$1001,5)),"",VLOOKUP($A$17,Voorraad!$A$2:$G$1001,5)) -> 8510/8437/8438/8439 | L17: =IF(ISERROR(VLOOKUP($A$17,Voorraad!$A$2:$D$1001,4)),"",VLOOKUP($A$17,Voorraad!$A$2:$D$1001,4)) -> 1908 | M17: 20 | N17: 0
A18: BU0010 | B18: =[4]Sheet1!$E$13 -> 20 | C18: =IF(ISERROR(VLOOKUP($A$18,Voorraad!$A$2:$D$1001,1)),"",VLOOKUP($A$18,Voorraad!$A$2:$D$1001,1)) -> BU0010 | D18: =IF(ISERROR(VLOOKUP($A$18,Voorraad!$A$2:$D$1001,3)),"",VLOOKUP($A$18,Voorraad!$A$2:$D$1001,3)) -> 22UH | E18: =IF(ISERROR(VLOOKUP($A$18,Voorraad!$A$2:$D$1001,2)),"",VLOOKUP($A$18,Voorraad!$A$2:$D$1001,2)) -> HBCC-220K-02 | F18: =IF(ISERROR(VLOOKUP($A$18,Voorraad!$A$2:$H$1001,8)),"",VLOOKUP($A$18,Voorraad!$A$2:$H$1001,8)) -> 0 | G18: =IF(ISERROR(VLOOKUP($A$18,Voorraad!$A$2:$I$1001,9)),"",VLOOKUP($A$18,Voorraad!$A$2:$I$1001,9)) -> HBCC-220K-02 | H18: =IF(ISERROR(VLOOKUP($A$18,Voorraad!$A$2:$J$1001,10)),"",VLOOKUP($A$18,Voorraad!$A$2:$J$1001,10)) -> MICC-R22M-02 | I18: =IF(ISERROR(VLOOKUP($A$18,Voorraad!$A$2:$G$1001,6)),"",VLOOKUP($A$18,Voorraad!$A$2:$G$1001,6)) -> TME | J18: =IF(ISERROR(VLOOKUP($A$18,Voorraad!$A$2:$G$1001,7)),"",VLOOKUP($A$18,Voorraad!$A$2:$G$1001,7)) -> FASTRON | K18: =IF(ISERROR(VLOOKUP($A$18,Voorraad!$A$2:$G$1001,5)),"",VLOOKUP($A$18,Voorraad!$A$2:$G$1001,5)) -> 8437/8438/8439 | L18: =IF(ISERROR(VLOOKUP($A$18,Voorraad!$A$2:$D$1001,4)),"",VLOOKUP($A$18,Voorraad!$A$2:$D$1001,4)) -> 60 | M18: 20 | N18: 0
A19: BU0064 | B19: =[4]Sheet1!$E$14 -> 20 | C19: =IF(ISERROR(VLOOKUP($A$19,Voorraad!$A$2:$D$1001,1)),"",VLOOKUP($A$19,Voorraad!$A$2:$D$1001,1)) -> BU0064 | D19: =IF(ISERROR(VLOOKUP($A$19,Voorraad!$A$2:$D$1001,3)),"",VLOOKUP($A$19,Voorraad!$A$2:$D$1001,3)) -> FKV20M | E19: =IF(ISERROR(VLOOKUP($A$19,Voorraad!$A$2:$D$1001,2)),"",VLOOKUP($A$19,Voorraad!$A$2:$D$1001,2)) -> 9185206904 | F19: =IF(ISERROR(VLOOKUP($A$19,Voorraad!$A$2:$H$1001,8)),"",VLOOKUP($A$19,Voorraad!$A$2:$H$1001,8)) -> 0 | G19: =IF(ISERROR(VLOOKUP($A$19,Voorraad!$A$2:$I$1001,9)),"",VLOOKUP($A$19,Voorraad!$A$2:$I$1001,9)) -> 0 | H19: =IF(ISERROR(VLOOKUP($A$19,Voorraad!$A$2:$J$1001,10)),"",VLOOKUP($A$19,Voorraad!$A$2:$J$1001,10)) -> 0 | I19: =IF(ISERROR(VLOOKUP($A$19,Voorraad!$A$2:$G$1001,6)),"",VLOOKUP($A$19,Voorraad!$A$2:$G$1001,6)) -> 0 | J19: =IF(ISERROR(VLOOKUP($A$19,Voorraad!$A$2:$G$1001,7)),"",VLOOKUP($A$19,Voorraad!$A$2:$G$1001,7)) -> Harting | K19: =IF(ISERROR(VLOOKUP($A$19,Voorraad!$A$2:$G$1001,5)),"",VLOOKUP($A$19,Voorraad!$A$2:$G$1001,5)) -> 8439 | L19: =IF(ISERROR(VLOOKUP($A$19,Voorraad!$A$2:$D$1001,4)),"",VLOOKUP($A$19,Voorraad!$A$2:$D$1001,4)) -> 54 | M19: 20 | N19: 0
A20: BU0066 | B20: =[4]Sheet1!$E$15 -> 640 | C20: =IF(ISERROR(VLOOKUP($A$20,Voorraad!$A$2:$D$1001,1)),"",VLOOKUP($A$20,Voorraad!$A$2:$D$1001,1)) -> BU0066 | D20: =IF(ISERROR(VLOOKUP($A$20,Voorraad!$A$2:$D$1001,3)),"",VLOOKUP($A$20,Voorraad!$A$2:$D$1001,3)) -> KDS3 | E20: =IF(ISERROR(VLOOKUP($A$20,Voorraad!$A$2:$D$1001,2)),"",VLOOKUP($A$20,Voorraad!$A$2:$D$1001,2)) -> 1780015 | F20: =IF(ISERROR(VLOOKUP($A$20,Voorraad!$A$2:$H$1001,8)),"",VLOOKUP($A$20,Voorraad!$A$2:$H$1001,8)) -> 0 | G20: =IF(ISERROR(VLOOKUP($A$20,Voorraad!$A$2:$I$1001,9)),"",VLOOKUP($A$20,Voorraad!$A$2:$I$1001,9)) -> 1780015 | H20: =IF(ISERROR(VLOOKUP($A$20,Voorraad!$A$2:$J$1001,10)),"",VLOOKUP($A$20,Voorraad!$A$2:$J$1001,10)) -> 0 | I20: =IF(ISERROR(VLOOKUP($A$20,Voorraad!$A$2:$G$1001,6)),"",VLOOKUP($A$20,Voorraad!$A$2:$G$1001,6)) -> Van Egmond Groep | J20: =IF(ISERROR(VLOOKUP($A$20,Voorraad!$A$2:$G$1001,7)),"",VLOOKUP($A$20,Voorraad!$A$2:$G$1001,7)) -> Phoenix | K20: =IF(ISERROR(VLOOKUP($A$20,Voorraad!$A$2:$G$1001,5)),"",VLOOKUP($A$20,Voorraad!$A$2:$G$1001,5)) -> 8437/8438/8439 | L20: =IF(ISERROR(VLOOKUP($A$20,Voorraad!$A$2:$D$1001,4)),"",VLOOKUP($A$20,Voorraad!$A$2:$D$1001,4)) -> 546 | M20: 640 | N20: 94
A21: BU0067 | B21: =[4]Sheet1!$E$16 -> 80 | C21: =IF(ISERROR(VLOOKUP($A$21,Voorraad!$A$2:$D$1001,1)),"",VLOOKUP($A$21,Voorraad!$A$2:$D$1001,1)) -> BU0067 | D21: =IF(ISERROR(VLOOKUP($A$21,Voorraad!$A$2:$D$1001,3)),"",VLOOKUP($A$21,Voorraad!$A$2:$D$1001,3)) -> ZL305-02 | E21: =IF(ISERROR(VLOOKUP($A$21,Voorraad!$A$2:$D$1001,2)),"",VLOOKUP($A$21,Voorraad!$A$2:$D$1001,2)) -> ZL305-02 | F21: =IF(ISERROR(VLOOKUP($A$21,Voorraad!$A$2:$H$1001,8)),"",VLOOKUP($A$21,Voorraad!$A$2:$H$1001,8)) -> 0 | G21: =IF(ISERROR(VLOOKUP($A$21,Voorraad!$A$2:$I$1001,9)),"",VLOOKUP($A$21,Voorraad!$A$2:$I$1001,9)) -> ZL305-02 | H21: =IF(ISERROR(VLOOKUP($A$21,Voorraad!$A$2:$J$1001,10)),"",VLOOKUP($A$21,Voorraad!$A$2:$J$1001,10)) -> 0 | I21: =IF(ISERROR(VLOOKUP($A$21,Voorraad!$A$2:$G$1001,6)),"",VLOOKUP($A$21,Voorraad!$A$2:$G$1001,6)) -> TME | J21: =IF(ISERROR(VLOOKUP($A$21,Voorraad!$A$2:$G$1001,7)),"",VLOOKUP($A$21,Voorraad!$A$2:$G$1001,7)) -> Nigini | K21: =IF(ISERROR(VLOOKUP($A$21,Voorraad!$A$2:$G$1001,5)),"",VLOOKUP($A$21,Voorraad!$A$2:$G$1001,5)) -> 8439 | L21: =IF(ISERROR(VLOOKUP($A$21,Voorraad!$A$2:$D$1001,4)),"",VLOOKUP($A$21,Voorraad!$A$2:$D$1001,4)) -> 214 | M21: 80 | N21: 0
A22: BU0068 | B22: =[4]Sheet1!$E$17 -> 320 | C22: =IF(ISERROR(VLOOKUP($A$22,Voorraad!$A$2:$D$1001,1)),"",VLOOKUP($A$22,Voorraad!$A$2:$D$1001,1)) -> BU0068 | D22: =IF(ISERROR(VLOOKUP($A$22,Voorraad!$A$2:$D$1001,3)),"",VLOOKUP($A$22,Voorraad!$A$2:$D$1001,3)) -> ZL201-03G | E22: =IF(ISERROR(VLOOKUP($A$22,Voorraad!$A$2:$D$1001,2)),"",VLOOKUP($A$22,Voorraad!$A$2:$D$1001,2)) -> DS1021-136sf11 | F22: =IF(ISERROR(VLOOKUP($A$22,Voorraad!$A$2:$H$1001,8)),"",VLOOKUP($A$22,Voorraad!$A$2:$H$1001,8)) -> 0 | G22: =IF(ISERROR(VLOOKUP($A$22,Voorraad!$A$2:$I$1001,9)),"",VLOOKUP($A$22,Voorraad!$A$2:$I$1001,9)) -> ZL201-03G | H22: =IF(ISERROR(VLOOKUP($A$22,Voorraad!$A$2:$J$1001,10)),"",VLOOKUP($A$22,Voorraad!$A$2:$J$1001,10)) -> 0 | I22: =IF(ISERROR(VLOOKUP($A$22,Voorraad!$A$2:$G$1001,6)),"",VLOOKUP($A$22,Voorraad!$A$2:$G$1001,6)) -> TME | J22: =IF(ISERROR(VLOOKUP($A$22,Voorraad!$A$2:$G$1001,7)),"",VLOOKUP($A$22,Voorraad!$A$2:$G$1001,7)) -> Connfly | K22: =IF(ISERROR(VLOOKUP($A$22,Voorraad!$A$2:$G$1001,5)),"",VLOOKUP($A$22,Voorraad!$A$2:$G$1001,5)) -> 8437/8439/8464/8510 | L22: =IF(ISERROR(VLOOKUP($A$22,Voorraad!$A$2:$D$1001,4)),"",VLOOKUP($A$22,Voorraad!$A$2:$D$1001,4)) -> 931 | M22: 320 | N22: 0
A23: BU0059 | B23: =[4]Sheet1!$E$18 -> 320 | C23: =IF(ISERROR(VLOOKUP($A$23,Voorraad!$A$2:$D$1001,1)),"",VLOOKUP($A$23,Voorraad!$A$2:$D$1001,1)) -> BU0059 | D23: =IF(ISERROR(VLOOKUP($A$23,Voorraad!$A$2:$D$1001,3)),"",VLOOKUP($A$23,Voorraad!$A$2:$D$1001,3)) -> CON 1-881545-1 SHUNT | E23: =IF(ISERROR(VLOOKUP($A$23,Voorraad!$A$2:$D$1001,2)),"",VLOOKUP($A$23,Voorraad!$A$2:$D$1001,2)) -> #513JUMPOFSW | F23: =IF(ISERROR(VLOOKUP($A$23,Voorraad!$A$2:$H$1001,8)),"",VLOOKUP($A$23,Voorraad!$A$2:$H$1001,8)) -> 0 | G23: =IF(ISERROR(VLOOKUP($A$23,Voorraad!$A$2:$I$1001,9)),"",VLOOKUP($A$23,Voorraad!$A$2:$I$1001,9)) -> JUMPER-BL | H23: =IF(ISERROR(VLOOKUP($A$23,Voorraad!$A$2:$J$1001,10)),"",VLOOKUP($A$23,Voorraad!$A$2:$J$1001,10)) -> 0 | I23: =IF(ISERROR(VLOOKUP($A$23,Voorraad!$A$2:$G$1001,6)),"",VLOOKUP($A$23,Voorraad!$A$2:$G$1001,6)) -> TME | J23: =IF(ISERROR(VLOOKUP($A$23,Voorraad!$A$2:$G$1001,7)),"",VLOOKUP($A$23,Voorraad!$A$2:$G$1001,7)) -> 0 | K23: =IF(ISERROR(VLOOKUP($A$23,Voorraad!$A$2:$G$1001,5)),"",VLOOKUP($A$23,Voorraad!$A$2:$G$1001,5)) -> 8437/8439/8464/8510 | L23: =IF(ISERROR(VLOOKUP($A$23,Voorraad!$A$2:$D$1001,4)),"",VLOOKUP($A$23,Voorraad!$A$2:$D$1001,4)) -> 1725 | M23: 320 | N23: 0
A24: BU0045 | B24: =[4]Sheet1!$E$19 -> 20 | C24: =IF(ISERROR(VLOOKUP($A$24,Voorraad!$A$2:$D$1001,1)),"",VLOOKUP($A$24,Voorraad!$A$2:$D$1001,1)) -> BU0045 | D24: =IF(ISERROR(VLOOKUP($A$24,Voorraad!$A$2:$D$1001,3)),"",VLOOKUP($A$24,Voorraad!$A$2:$D$1001,3)) -> LED TLG124A GROEN 3.18MM | E24: =IF(ISERROR(VLOOKUP($A$24,Voorraad!$A$2:$D$1001,2)),"",VLOOKUP($A$24,Voorraad!$A$2:$D$1001,2)) -> KVD-03-035/G | F24: =IF(ISERROR(VLOOKUP($A$24,Voorraad!$A$2:$H$1001,8)),"",VLOOKUP($A$24,Voorraad!$A$2:$H$1001,8)) -> ? | G24: =IF(ISERROR(VLOOKUP($A$24,Voorraad!$A$2:$I$1001,9)),"",VLOOKUP($A$24,Voorraad!$A$2:$I$1001,9)) -> L-934GD | H24: =IF(ISERROR(VLOOKUP($A$24,Voorraad!$A$2:$J$1001,10)),"",VLOOKUP($A$24,Voorraad!$A$2:$J$1001,10)) -> 0 | I24: =IF(ISERROR(VLOOKUP($A$24,Voorraad!$A$2:$G$1001,6)),"",VLOOKUP($A$24,Voorraad!$A$2:$G$1001,6)) -> TME | J24: =IF(ISERROR(VLOOKUP($A$24,Voorraad!$A$2:$G$1001,7)),"",VLOOKUP($A$24,Voorraad!$A$2:$G$1001,7)) -> KHATOD / King Bright | K24: =IF(ISERROR(VLOOKUP($A$24,Voorraad!$A$2:$G$1001,5)),"",VLOOKUP($A$24,Voorraad!$A$2:$G$1001,5)) -> 8437/8438/8439/8464/8510 | L24: =IF(ISERROR(VLOOKUP($A$24,Voorraad!$A$2:$D$1001,4)),"",VLOOKUP($A$24,Voorraad!$A$2:$D$1001,4)) -> 2 | M24: 20 | N24: 18
A25: BU0072 | B25: =[4]Sheet1!$E$20 -> 20 | C25: =IF(ISERROR(VLOOKUP($A$25,Voorraad!$A$2:$D$1001,1)),"",VLOOKUP($A$25,Voorraad!$A$2:$D$1001,1)) -> BU0072 | D25: =IF(ISERROR(VLOOKUP($A$25,Voorraad!$A$2:$D$1001,3)),"",VLOOKUP($A$25,Voorraad!$A$2:$D$1001,3)) -> DIPFIX | E25: =IF(ISERROR(VLOOKUP($A$25,Voorraad!$A$2:$D$1001,2)),"",VLOOKUP($A$25,Voorraad!$A$2:$D$1001,2)) -> 0 | F25: =IF(ISERROR(VLOOKUP($A$25,Voorraad!$A$2:$H$1001,8)),"",VLOOKUP($A$25,Voorraad!$A$2:$H$1001,8)) -> 0 | G25: =IF(ISERROR(VLOOKUP($A$25,Voorraad!$A$2:$I$1001,9)),"",VLOOKUP($A$25,Voorraad!$A$2:$I$1001,9)) -> 0 | H25: =IF(ISERROR(VLOOKUP($A$25,Voorraad!$A$2:$J$1001,10)),"",VLOOKUP($A$25,Voorraad!$A$2:$J$1001,10)) -> 0 | I25: =IF(ISERROR(VLOOKUP($A$25,Voorraad!$A$2:$G$1001,6)),"",VLOOKUP($A$25,Voorraad!$A$2:$G$1001,6)) -> JvB | J25: =IF(ISERROR(VLOOKUP($A$25,Voorraad!$A$2:$G$1001,7)),"",VLOOKUP($A$25,Voorraad!$A$2:$G$1001,7)) -> JvB | K25: =IF(ISERROR(VLOOKUP($A$25,Voorraad!$A$2:$G$1001,5)),"",VLOOKUP($A$25,Voorraad!$A$2:$G$1001,5)) -> 8439 | L25: =IF(ISERROR(VLOOKUP($A$25,Voorraad!$A$2:$D$1001,4)),"",VLOOKUP($A$25,Voorraad!$A$2:$D$1001,4)) -> 574 | M25: 20 | N25: 0
A26: BU0073 | B26: =[4]Sheet1!$E$21 -> 20 | C26: =IF(ISERROR(VLOOKUP($A$26,Voorraad!$A$2:$D$1001,1)),"",VLOOKUP($A$26,Voorraad!$A$2:$D$1001,1)) -> BU0073 | D26: =IF(ISERROR(VLOOKUP($A$26,Voorraad!$A$2:$D$1001,3)),"",VLOOKUP($A$26,Voorraad!$A$2:$D$1001,3)) -> EARTH | E26: =IF(ISERROR(VLOOKUP($A$26,Voorraad!$A$2:$D$1001,2)),"",VLOOKUP($A$26,Voorraad!$A$2:$D$1001,2)) -> 0 | F26: =IF(ISERROR(VLOOKUP($A$26,Voorraad!$A$2:$H$1001,8)),"",VLOOKUP($A$26,Voorraad!$A$2:$H$1001,8)) -> 0 | G26: =IF(ISERROR(VLOOKUP($A$26,Voorraad!$A$2:$I$1001,9)),"",VLOOKUP($A$26,Voorraad!$A$2:$I$1001,9)) -> 0 | H26: =IF(ISERROR(VLOOKUP($A$26,Voorraad!$A$2:$J$1001,10)),"",VLOOKUP($A$26,Voorraad!$A$2:$J$1001,10)) -> 0 | I26: =IF(ISERROR(VLOOKUP($A$26,Voorraad!$A$2:$G$1001,6)),"",VLOOKUP($A$26,Voorraad!$A$2:$G$1001,6)) -> JvB | J26: =IF(ISERROR(VLOOKUP($A$26,Voorraad!$A$2:$G$1001,7)),"",VLOOKUP($A$26,Voorraad!$A$2:$G$1001,7)) -> JvB | K26: =IF(ISERROR(VLOOKUP($A$26,Voorraad!$A$2:$G$1001,5)),"",VLOOKUP($A$26,Voorraad!$A$2:$G$1001,5)) -> 8439 | L26: =IF(ISERROR(VLOOKUP($A$26,Voorraad!$A$2:$D$1001,4)),"",VLOOKUP($A$26,Voorraad!$A$2:$D$1001,4)) -> 12 | M26: 20 | N26: 8
A27: BX0002 | B27: =[4]Sheet1!$E$22 -> 20 | C27: =IF(ISERROR(VLOOKUP($A$27,Voorraad!$A$2:$D$1001,1)),"",VLOOKUP($A$27,Voorraad!$A$2:$D$1001,1)) -> BX0002 | D27: =IF(ISERROR(VLOOKUP($A$27,Voorraad!$A$2:$D$1001,3)),"",VLOOKUP($A$27,Voorraad!$A$2:$D$1001,3)) -> SL2 | E27: =IF(ISERROR(VLOOKUP($A$27,Voorraad!$A$2:$D$1001,2)),"",VLOOKUP($A$27,Voorraad!$A$2:$D$1001,2)) -> XY2500V-C(5.08)-2PIN | F27: =IF(ISERROR(VLOOKUP($A$27,Voorraad!$A$2:$H$1001,8)),"",VLOOKUP($A$27,Voorraad!$A$2:$H$1001,8)) -> 0 | G27: =IF(ISERROR(VLOOKUP($A$27,Voorraad!$A$2:$I$1001,9)),"",VLOOKUP($A$27,Voorraad!$A$2:$I$1001,9)) -> TBG-5-PB-2P-GN | H27: =IF(ISERROR(VLOOKUP($A$27,Voorraad!$A$2:$J$1001,10)),"",VLOOKUP($A$27,Voorraad!$A$2:$J$1001,10)) -> 0 | I27: =IF(ISERROR(VLOOKUP($A$27,Voorraad!$A$2:$G$1001,6)),"",VLOOKUP($A$27,Voorraad!$A$2:$G$1001,6)) -> TME | J27: =IF(ISERROR(VLOOKUP($A$27,Voorraad!$A$2:$G$1001,7)),"",VLOOKUP($A$27,Voorraad!$A$2:$G$1001,7)) -> Xinya | K27: =IF(ISERROR(VLOOKUP($A$27,Voorraad!$A$2:$G$1001,5)),"",VLOOKUP($A$27,Voorraad!$A$2:$G$1001,5)) -> 8437/8438/8439 | L27: =IF(ISERROR(VLOOKUP($A$27,Voorraad!$A$2:$D$1001,4)),"",VLOOKUP($A$27,Voorraad!$A$2:$D$1001,4)) -> 92 | M27: 20 | N27: 0
A28: BX0003 | B28: =[4]Sheet1!$E$23 -> 20 | C28: =IF(ISERROR(VLOOKUP($A$28,Voorraad!$A$2:$D$1001,1)),"",VLOOKUP($A$28,Voorraad!$A$2:$D$1001,1)) -> BX0003 | D28: =IF(ISERROR(VLOOKUP($A$28,Voorraad!$A$2:$D$1001,3)),"",VLOOKUP($A$28,Voorraad!$A$2:$D$1001,3)) -> BL2 | E28: =IF(ISERROR(VLOOKUP($A$28,Voorraad!$A$2:$D$1001,2)),"",VLOOKUP($A$28,Voorraad!$A$2:$D$1001,2)) -> TBW-5-2P/GN | F28: =IF(ISERROR(VLOOKUP($A$28,Voorraad!$A$2:$H$1001,8)),"",VLOOKUP($A$28,Voorraad!$A$2:$H$1001,8)) -> 0 | G28: =IF(ISERROR(VLOOKUP($A$28,Voorraad!$A$2:$I$1001,9)),"",VLOOKUP($A$28,Voorraad!$A$2:$I$1001,9)) -> TBW-5-2P/GN | H28: =IF(ISERROR(VLOOKUP($A$28,Voorraad!$A$2:$J$1001,10)),"",VLOOKUP($A$28,Voorraad!$A$2:$J$1001,10)) -> 0 | I28: =IF(ISERROR(VLOOKUP($A$28,Voorraad!$A$2:$G$1001,6)),"",VLOOKUP($A$28,Voorraad!$A$2:$G$1001,6)) -> TME | J28: =IF(ISERROR(VLOOKUP($A$28,Voorraad!$A$2:$G$1001,7)),"",VLOOKUP($A$28,Voorraad!$A$2:$G$1001,7)) -> Ninigi | K28: =IF(ISERROR(VLOOKUP($A$28,Voorraad!$A$2:$G$1001,5)),"",VLOOKUP($A$28,Voorraad!$A$2:$G$1001,5)) -> 8437/8438/8439 | L28: =IF(ISERROR(VLOOKUP($A$28,Voorraad!$A$2:$D$1001,4)),"",VLOOKUP($A$28,Voorraad!$A$2:$D$1001,4)) -> 93 | M28: 20 | N28: 0
A29: BX0004 | B29: =[4]Sheet1!$E$24 -> 20 | C29: =IF(ISERROR(VLOOKUP($A$29,Voorraad!$A$2:$D$1001,1)),"",VLOOKUP($A$29,Voorraad!$A$2:$D$1001,1)) -> BX0004 | D29: =IF(ISERROR(VLOOKUP($A$29,Voorraad!$A$2:$D$1001,3)),"",VLOOKUP($A$29,Voorraad!$A$2:$D$1001,3)) -> SL4 | E29: =IF(ISERROR(VLOOKUP($A$29,Voorraad!$A$2:$D$1001,2)),"",VLOOKUP($A$29,Voorraad!$A$2:$D$1001,2)) -> TBG-5-PB-4P/GN | F29: =IF(ISERROR(VLOOKUP($A$29,Voorraad!$A$2:$H$1001,8)),"",VLOOKUP($A$29,Voorraad!$A$2:$H$1001,8)) -> 0 | G29: =IF(ISERROR(VLOOKUP($A$29,Voorraad!$A$2:$I$1001,9)),"",VLOOKUP($A$29,Voorraad!$A$2:$I$1001,9)) -> TBG-5-PB-4P-GN | H29: =IF(ISERROR(VLOOKUP($A$29,Voorraad!$A$2:$J$1001,10)),"",VLOOKUP($A$29,Voorraad!$A$2:$J$1001,10)) -> 0 | I29: =IF(ISERROR(VLOOKUP($A$29,Voorraad!$A$2:$G$1001,6)),"",VLOOKUP($A$29,Voorraad!$A$2:$G$1001,6)) -> TME | J29: =IF(ISERROR(VLOOKUP($A$29,Voorraad!$A$2:$G$1001,7)),"",VLOOKUP($A$29,Voorraad!$A$2:$G$1001,7)) -> Nigini | K29: =IF(ISERROR(VLOOKUP($A$29,Voorraad!$A$2:$G$1001,5)),"",VLOOKUP($A$29,Voorraad!$A$2:$G$1001,5)) -> 8439 | L29: =IF(ISERROR(VLOOKUP($A$29,Voorraad!$A$2:$D$1001,4)),"",VLOOKUP($A$29,Voorraad!$A$2:$D$1001,4)) -> 45 | M29: 20 | N29: 0
A30: BX0005 | B30: =[4]Sheet1!$E$25 -> 20 | C30: =IF(ISERROR(VLOOKUP($A$30,Voorraad!$A$2:$D$1001,1)),"",VLOOKUP($A$30,Voorraad!$A$2:$D$1001,1)) -> BX0005 | D30: =IF(ISERROR(VLOOKUP($A$30,Voorraad!$A$2:$D$1001,3)),"",VLOOKUP($A$30,Voorraad!$A$2:$D$1001,3)) -> BL4 | E30: =IF(ISERROR(VLOOKUP($A$30,Voorraad!$A$2:$D$1001,2)),"",VLOOKUP($A$30,Voorraad!$A$2:$D$1001,2)) -> TBW-5-4P/GN | F30: =IF(ISERROR(VLOOKUP($A$30,Voorraad!$A$2:$H$1001,8)),"",VLOOKUP($A$30,Voorraad!$A$2:$H$1001,8)) -> 0 | G30: =IF(ISERROR(VLOOKUP($A$30,Voorraad!$A$2:$I$1001,9)),"",VLOOKUP($A$30,Voorraad!$A$2:$I$1001,9)) -> TBW-5-4P/GN | H30: =IF(ISERROR(VLOOKUP($A$30,Voorraad!$A$2:$J$1001,10)),"",VLOOKUP($A$30,Voorraad!$A$2:$J$1001,10)) -> 0 | I30: =IF(ISERROR(VLOOKUP($A$30,Voorraad!$A$2:$G$1001,6)),"",VLOOKUP($A$30,Voorraad!$A$2:$G$1001,6)) -> TME | J30: =IF(ISERROR(VLOOKUP($A$30,Voorraad!$A$2:$G$1001,7)),"",VLOOKUP($A$30,Voorraad!$A$2:$G$1001,7)) -> Nigini | K30: =IF(ISERROR(VLOOKUP($A$30,Voorraad!$A$2:$G$1001,5)),"",VLOOKUP($A$30,Voorraad!$A$2:$G$1001,5)) -> 8439 | L30: =IF(ISERROR(VLOOKUP($A$30,Voorraad!$A$2:$D$1001,4)),"",VLOOKUP($A$30,Voorraad!$A$2:$D$1001,4)) -> -100 | M30: 20 | N30: 120
A31: BX0017 | B31: =[4]Sheet1!$E$26 -> 20 | C31: =IF(ISERROR(VLOOKUP($A$31,Voorraad!$A$2:$D$1001,1)),"",VLOOKUP($A$31,Voorraad!$A$2:$D$1001,1)) -> BX0017 | D31: =IF(ISERROR(VLOOKUP($A$31,Voorraad!$A$2:$D$1001,3)),"",VLOOKUP($A$31,Voorraad!$A$2:$D$1001,3)) -> UM72-profiel 161MM | E31: =IF(ISERROR(VLOOKUP($A$31,Voorraad!$A$2:$D$1001,2)),"",VLOOKUP($A$31,Voorraad!$A$2:$D$1001,2)) -> 2952020 | F31: =IF(ISERROR(VLOOKUP($A$31,Voorraad!$A$2:$H$1001,8)),"",VLOOKUP($A$31,Voorraad!$A$2:$H$1001,8)) -> 0 | G31: =IF(ISERROR(VLOOKUP($A$31,Voorraad!$A$2:$I$1001,9)),"",VLOOKUP($A$31,Voorraad!$A$2:$I$1001,9)) -> 0 | H31: =IF(ISERROR(VLOOKUP($A$31,Voorraad!$A$2:$J$1001,10)),"",VLOOKUP($A$31,Voorraad!$A$2:$J$1001,10)) -> 0 | I31: =IF(ISERROR(VLOOKUP($A$31,Voorraad!$A$2:$G$1001,6)),"",VLOOKUP($A$31,Voorraad!$A$2:$G$1001,6)) -> Phoenix / Overwijn | J31: =IF(ISERROR(VLOOKUP($A$31,Voorraad!$A$2:$G$1001,7)),"",VLOOKUP($A$31,Voorraad!$A$2:$G$1001,7)) -> Phoenix | K31: =IF(ISERROR(VLOOKUP($A$31,Voorraad!$A$2:$G$1001,5)),"",VLOOKUP($A$31,Voorraad!$A$2:$G$1001,5)) -> 8439 | L31: =IF(ISERROR(VLOOKUP($A$31,Voorraad!$A$2:$D$1001,4)),"",VLOOKUP($A$31,Voorraad!$A$2:$D$1001,4)) -> 0 | M31: 20 | N31: 20
A32: BX0019 | B32: =[4]Sheet1!$E$27 -> 20 | C32: =IF(ISERROR(VLOOKUP($A$32,Voorraad!$A$2:$D$1001,1)),"",VLOOKUP($A$32,Voorraad!$A$2:$D$1001,1)) -> BX0019 | D32: =IF(ISERROR(VLOOKUP($A$32,Voorraad!$A$2:$D$1001,3)),"",VLOOKUP($A$32,Voorraad!$A$2:$D$1001,3)) -> UM72 SEFE/L | E32: =IF(ISERROR(VLOOKUP($A$32,Voorraad!$A$2:$D$1001,2)),"",VLOOKUP($A$32,Voorraad!$A$2:$D$1001,2)) -> 2959340 | F32: =IF(ISERROR(VLOOKUP($A$32,Voorraad!$A$2:$H$1001,8)),"",VLOOKUP($A$32,Voorraad!$A$2:$H$1001,8)) -> 0 | G32: =IF(ISERROR(VLOOKUP($A$32,Voorraad!$A$2:$I$1001,9)),"",VLOOKUP($A$32,Voorraad!$A$2:$I$1001,9)) -> 2959340 | H32: =IF(ISERROR(VLOOKUP($A$32,Voorraad!$A$2:$J$1001,10)),"",VLOOKUP($A$32,Voorraad!$A$2:$J$1001,10)) -> 0 | I32: =IF(ISERROR(VLOOKUP($A$32,Voorraad!$A$2:$G$1001,6)),"",VLOOKUP($A$32,Voorraad!$A$2:$G$1001,6)) -> Van Egmond Groep | J32: =IF(ISERROR(VLOOKUP($A$32,Voorraad!$A$2:$G$1001,7)),"",VLOOKUP($A$32,Voorraad!$A$2:$G$1001,7)) -> Phoenix | K32: =IF(ISERROR(VLOOKUP($A$32,Voorraad!$A$2:$G$1001,5)),"",VLOOKUP($A$32,Voorraad!$A$2:$G$1001,5)) -> 8437/8438/8439 | L32: =IF(ISERROR(VLOOKUP($A$32,Voorraad!$A$2:$D$1001,4)),"",VLOOKUP($A$32,Voorraad!$A$2:$D$1001,4)) -> 11 | M32: 20 | N32: 9
A33: BX0020 | B33: =[4]Sheet1!$E$28 -> 20 | C33: =IF(ISERROR(VLOOKUP($A$33,Voorraad!$A$2:$D$1001,1)),"",VLOOKUP($A$33,Voorraad!$A$2:$D$1001,1)) -> BX0020 | D33: =IF(ISERROR(VLOOKUP($A$33,Voorraad!$A$2:$D$1001,3)),"",VLOOKUP($A$33,Voorraad!$A$2:$D$1001,3)) -> UM72 SEFE/R | E33: =IF(ISERROR(VLOOKUP($A$33,Voorraad!$A$2:$D$1001,2)),"",VLOOKUP($A$33,Voorraad!$A$2:$D$1001,2)) -> 2959353 | F33: =IF(ISERROR(VLOOKUP($A$33,Voorraad!$A$2:$H$1001,8)),"",VLOOKUP($A$33,Voorraad!$A$2:$H$1001,8)) -> 0 | G33: =IF(ISERROR(VLOOKUP($A$33,Voorraad!$A$2:$I$1001,9)),"",VLOOKUP($A$33,Voorraad!$A$2:$I$1001,9)) -> 2959353 | H33: =IF(ISERROR(VLOOKUP($A$33,Voorraad!$A$2:$J$1001,10)),"",VLOOKUP($A$33,Voorraad!$A$2:$J$1001,10)) -> 0 | I33: =IF(ISERROR(VLOOKUP($A$33,Voorraad!$A$2:$G$1001,6)),"",VLOOKUP($A$33,Voorraad!$A$2:$G$1001,6)) -> Van Egmond Groep | J33: =IF(ISERROR(VLOOKUP($A$33,Voorraad!$A$2:$G$1001,7)),"",VLOOKUP($A$33,Voorraad!$A$2:$G$1001,7)) -> Phoenix | K33: =IF(ISERROR(VLOOKUP($A$33,Voorraad!$A$2:$G$1001,5)),"",VLOOKUP($A$33,Voorraad!$A$2:$G$1001,5)) -> 8437/8438/8439 | L33: =IF(ISERROR(VLOOKUP($A$33,Voorraad!$A$2:$D$1001,4)),"",VLOOKUP($A$33,Voorraad!$A$2:$D$1001,4)) -> 13 | M33: 20 | N33: 7
A34: BX0021 | B34: =[4]Sheet1!$E$29 -> 20 | C34: =IF(ISERROR(VLOOKUP($A$34,Voorraad!$A$2:$D$1001,1)),"",VLOOKUP($A$34,Voorraad!$A$2:$D$1001,1)) -> BX0021 | D34: =IF(ISERROR(VLOOKUP($A$34,Voorraad!$A$2:$D$1001,3)),"",VLOOKUP($A$34,Voorraad!$A$2:$D$1001,3)) -> UM72 FE | E34: =IF(ISERROR(VLOOKUP($A$34,Voorraad!$A$2:$D$1001,2)),"",VLOOKUP($A$34,Voorraad!$A$2:$D$1001,2)) -> 2959382 | F34: =IF(ISERROR(VLOOKUP($A$34,Voorraad!$A$2:$H$1001,8)),"",VLOOKUP($A$34,Voorraad!$A$2:$H$1001,8)) -> 0 | G34: =IF(ISERROR(VLOOKUP($A$34,Voorraad!$A$2:$I$1001,9)),"",VLOOKUP($A$34,Voorraad!$A$2:$I$1001,9)) -> 0 | H34: =IF(ISERROR(VLOOKUP($A$34,Voorraad!$A$2:$J$1001,10)),"",VLOOKUP($A$34,Voorraad!$A$2:$J$1001,10)) -> 0 | I34: =IF(ISERROR(VLOOKUP($A$34,Voorraad!$A$2:$G$1001,6)),"",VLOOKUP($A$34,Voorraad!$A$2:$G$1001,6)) -> Phoenix | J34: =IF(ISERROR(VLOOKUP($A$34,Voorraad!$A$2:$G$1001,7)),"",VLOOKUP($A$34,Voorraad!$A$2:$G$1001,7)) -> 0 | K34: =IF(ISERROR(VLOOKUP($A$34,Voorraad!$A$2:$G$1001,5)),"",VLOOKUP($A$34,Voorraad!$A$2:$G$1001,5)) -> 8438/8439 | L34: =IF(ISERROR(VLOOKUP($A$34,Voorraad!$A$2:$D$1001,4)),"",VLOOKUP($A$34,Voorraad!$A$2:$D$1001,4)) -> 0 | M34: 20 | N34: 20
A35: BX0043 | B35: =[4]Sheet1!$E$30 -> 20 | C35: =IF(ISERROR(VLOOKUP($A$35,Voorraad!$A$2:$D$1001,1)),"",VLOOKUP($A$35,Voorraad!$A$2:$D$1001,1)) -> BX0043 | D35: =IF(ISERROR(VLOOKUP($A$35,Voorraad!$A$2:$D$1001,3)),"",VLOOKUP($A$35,Voorraad!$A$2:$D$1001,3)) -> PCB 8439L | E35: =IF(ISERROR(VLOOKUP($A$35,Voorraad!$A$2:$D$1001,2)),"",VLOOKUP($A$35,Voorraad!$A$2:$D$1001,2)) -> PCB 8439L | F35: =IF(ISERROR(VLOOKUP($A$35,Voorraad!$A$2:$H$1001,8)),"",VLOOKUP($A$35,Voorraad!$A$2:$H$1001,8)) -> 0 | G35: =IF(ISERROR(VLOOKUP($A$35,Voorraad!$A$2:$I$1001,9)),"",VLOOKUP($A$35,Voorraad!$A$2:$I$1001,9)) -> 0 | H35: =IF(ISERROR(VLOOKUP($A$35,Voorraad!$A$2:$J$1001,10)),"",VLOOKUP($A$35,Voorraad!$A$2:$J$1001,10)) -> 0 | I35: =IF(ISERROR(VLOOKUP($A$35,Voorraad!$A$2:$G$1001,6)),"",VLOOKUP($A$35,Voorraad!$A$2:$G$1001,6)) -> JvB | J35: =IF(ISERROR(VLOOKUP($A$35,Voorraad!$A$2:$G$1001,7)),"",VLOOKUP($A$35,Voorraad!$A$2:$G$1001,7)) -> JvB | K35: =IF(ISERROR(VLOOKUP($A$35,Voorraad!$A$2:$G$1001,5)),"",VLOOKUP($A$35,Voorraad!$A$2:$G$1001,5)) -> PCB 8439L | L35: =IF(ISERROR(VLOOKUP($A$35,Voorraad!$A$2:$D$1001,4)),"",VLOOKUP($A$35,Voorraad!$A$2:$D$1001,4)) -> 43 | M35: 20 | N35: 0
A36: BX0044 | B36: =[4]Sheet1!$E$31 -> 0 | C36: =IF(ISERROR(VLOOKUP($A$36,Voorraad!$A$2:$D$1001,1)),"",VLOOKUP($A$36,Voorraad!$A$2:$D$1001,1)) -> BX0044 | D36: =IF(ISERROR(VLOOKUP($A$36,Voorraad!$A$2:$D$1001,3)),"",VLOOKUP($A$36,Voorraad!$A$2:$D$1001,3)) -> PCB 8439R | E36: =IF(ISERROR(VLOOKUP($A$36,Voorraad!$A$2:$D$1001,2)),"",VLOOKUP($A$36,Voorraad!$A$2:$D$1001,2)) -> PCB 8439R | F36: =IF(ISERROR(VLOOKUP($A$36,Voorraad!$A$2:$H$1001,8)),"",VLOOKUP($A$36,Voorraad!$A$2:$H$1001,8)) -> 0 | G36: =IF(ISERROR(VLOOKUP($A$36,Voorraad!$A$2:$I$1001,9)),"",VLOOKUP($A$36,Voorraad!$A$2:$I$1001,9)) -> 0 | H36: =IF(ISERROR(VLOOKUP($A$36,Voorraad!$A$2:$J$1001,10)),"",VLOOKUP($A$36,Voorraad!$A$2:$J$1001,10)) -> 0 | I36: =IF(ISERROR(VLOOKUP($A$36,Voorraad!$A$2:$G$1001,6)),"",VLOOKUP($A$36,Voorraad!$A$2:$G$1001,6)) -> JvB | J36: =IF(ISERROR(VLOOKUP($A$36,Voorraad!$A$2:$G$1001,7)),"",VLOOKUP($A$36,Voorraad!$A$2:$G$1001,7)) -> JvB | K36: =IF(ISERROR(VLOOKUP($A$36,Voorraad!$A$2:$G$1001,5)),"",VLOOKUP($A$36,Voorraad!$A$2:$G$1001,5)) -> PCB 8439R | L36: =IF(ISERROR(VLOOKUP($A$36,Voorraad!$A$2:$D$1001,4)),"",VLOOKUP($A$36,Voorraad!$A$2:$D$1001,4)) -> 21 | M36: 0 | N36: 0

Sheet Picklijst 8464
A2: Pickorder 8464 | C2: =[5]Sheet1!$D$2 -> 10 | D2: X
A8: Art Nr CSI | B8: Benodigd | C8: Art Nr CSI | D8: Omschrijving | E8: Leverancier Nr | F8: Produco Nr | G8: OrderNr | H8: Opmerkingen/Alternatieven | I8: Leverancier | J8: Producent | K8: PCB | L8: Voorraad | M8: Benodigd | N8: Bestellen
A9: BU0002 | B9: =[5]Sheet1!$E$4 -> 10 | C9: =IF(ISERROR(VLOOKUP($A$9,Voorraad!$A$2:$D$1001,1)),"",VLOOKUP($A$9,Voorraad!$A$2:$D$1001,1)) -> BU0002 | D9: =IF(ISERROR(VLOOKUP($A$9,Voorraad!$A$2:$D$1001,3)),"",VLOOKUP($A$9,Voorraad!$A$2:$D$1001,3)) -> 47U/40V | E9: =IF(ISERROR(VLOOKUP($A$9,Voorraad!$A$2:$D$1001,2)),"",VLOOKUP($A$9,Voorraad!$A$2:$D$1001,2)) -> 222202127479 | F9: =IF(ISERROR(VLOOKUP($A$9,Voorraad!$A$2:$H$1001,8)),"",VLOOKUP($A$9,Voorraad!$A$2:$H$1001,8)) -> 0 | G9: =IF(ISERROR(VLOOKUP($A$9,Voorraad!$A$2:$I$1001,9)),"",VLOOKUP($A$9,Voorraad!$A$2:$I$1001,9)) -> 456556565 | H9: =IF(ISERROR(VLOOKUP($A$9,Voorraad!$A$2:$J$1001,10)),"",VLOOKUP($A$9,Voorraad!$A$2:$J$1001,10)) -> 1165428 | I9: =IF(ISERROR(VLOOKUP($A$9,Voorraad!$A$2:$G$1001,6)),"",VLOOKUP($A$9,Voorraad!$A$2:$G$1001,6)) -> Farnell | J9: =IF(ISERROR(VLOOKUP($A$9,Voorraad!$A$2:$G$1001,7)),"",VLOOKUP($A$9,Voorraad!$A$2:$G$1001,7)) -> Vishay | K9: =IF(ISERROR(VLOOKUP($A$9,Voorraad!$A$2:$G$1001,5)),"",VLOOKUP($A$9,Voorraad!$A$2:$G$1001,5)) -> 8464 | L9: =IF(ISERROR(VLOOKUP($A$9,Voorraad!$A$2:$D$1001,4)),"",VLOOKUP($A$9,Voorraad!$A$2:$D$1001,4)) -> 22 | M9: =B9 -> 10 | N9: =MAX(0,(SUM(M9-L9))) -> 0
A10: BU0003 | B10: =[5]Sheet1!$E$5 -> 130 | C10: =IF(ISERROR(VLOOKUP($A$10,Voorraad!$A$2:$D$1001,1)),"",VLOOKUP($A$10,Voorraad!$A$2:$D$1001,1)) -> BU0003 | D10: =IF(ISERROR(VLOOKUP($A$10,Voorraad!$A$2:$D$1001,3)),"",VLOOKUP($A$10,Voorraad!$A$2:$D$1001,3)) -> 22UF/50V | E10: =IF(ISERROR(VLOOKUP($A$10,Voorraad!$A$2:$D$1001,2)),"",VLOOKUP($A$10,Voorraad!$A$2:$D$1001,2)) -> 222211651229 | F10: =IF(ISERROR(VLOOKUP($A$10,Voorraad!$A$2:$H$1001,8)),"",VLOOKUP($A$10,Voorraad!$A$2:$H$1001,8)) -> 0 | G10: =IF(ISERROR(VLOOKUP($A$10,Voorraad!$A$2:$I$1001,9)),"",VLOOKUP($A$10,Voorraad!$A$2:$I$1001,9)) -> 0 | H10: =IF(ISERROR(VLOOKUP($A$10,Voorraad!$A$2:$J$1001,10)),"",VLOOKUP($A$10,Voorraad!$A$2:$J$1001,10)) -> 0 | I10: =IF(ISERROR(VLOOKUP($A$10,Voorraad!$A$2:$G$1001,6)),"",VLOOKUP($A$10,Voorraad!$A$2:$G$1001,6)) -> TME | J10: =IF(ISERROR(VLOOKUP($A$10,Voorraad!$A$2:$G$1001,7)),"",VLOOKUP($A$10,Voorraad!$A$2:$G$1001,7)) -> Philips | K10: =IF(ISERROR(VLOOKUP($A$10,Voorraad!$A$2:$G$1001,5)),"",VLOOKUP($A$10,Voorraad!$A$2:$G$1001,5)) -> 8464 | L10: =IF(ISERROR(VLOOKUP($A$10,Voorraad!$A$2:$D$1001,4)),"",VLOOKUP($A$10,Voorraad!$A$2:$D$1001,4)) -> 0 | M10: 130 | N10: 130
A11: BU0004 | B11: =[5]Sheet1!$E$6 -> 10 | C11: =IF(ISERROR(VLOOKUP($A$11,Voorraad!$A$2:$D$1001,1)),"",VLOOKUP($A$11,Voorraad!$A$2:$D$1001,1)) -> BU0004 | D11: =IF(ISERROR(VLOOKUP($A$11,Voorraad!$A$2:$D$1001,3)),"",VLOOKUP($A$11,Voorraad!$A$2:$D$1001,3)) -> 47NF/100V | E11: =IF(ISERROR(VLOOKUP($A$11,Voorraad!$A$2:$D$1001,2)),"",VLOOKUP($A$11,Voorraad!$A$2:$D$1001,2)) -> 222237021473 | F11: =IF(ISERROR(VLOOKUP($A$11,Voorraad!$A$2:$H$1001,8)),"",VLOOKUP($A$11,Voorraad!$A$2:$H$1001,8)) -> 0 | G11: =IF(ISERROR(VLOOKUP($A$11,Voorraad!$A$2:$I$1001,9)),"",VLOOKUP($A$11,Voorraad!$A$2:$I$1001,9)) -> 0 | H11: =IF(ISERROR(VLOOKUP($A$11,Voorraad!$A$2:$J$1001,10)),"",VLOOKUP($A$11,Voorraad!$A$2:$J$1001,10)) -> 0 | I11: =IF(ISERROR(VLOOKUP($A$11,Voorraad!$A$2:$G$1001,6)),"",VLOOKUP($A$11,Voorraad!$A$2:$G$1001,6)) -> 0 | J11: =IF(ISERROR(VLOOKUP($A$11,Voorraad!$A$2:$G$1001,7)),"",VLOOKUP($A$11,Voorraad!$A$2:$G$1001,7)) -> Philips | K11: =IF(ISERROR(VLOOKUP($A$11,Voorraad!$A$2:$G$1001,5)),"",VLOOKUP($A$11,Voorraad!$A$2:$G$1001,5)) -> 8464 | L11: =IF(ISERROR(VLOOKUP($A$11,Voorraad!$A$2:$D$1001,4)),"",VLOOKUP($A$11,Voorraad!$A$2:$D$1001,4)) -> 136 | M11: 10 | N11: 0
A12: BU0006 | B12: =[5]Sheet1!$E$7 -> 90 | C12: =IF(ISERROR(VLOOKUP($A$12,Voorraad!$A$2:$D$1001,1)),"",VLOOKUP($A$12,Voorraad!$A$2:$D$1001,1)) -> BU0006 | D12: =IF(ISERROR(VLOOKUP($A$12,Voorraad!$A$2:$D$1001,3)),"",VLOOKUP($A$12,Voorraad!$A$2:$D$1001,3)) -> BC639 | E12: =IF(ISERROR(VLOOKUP($A$12,Voorraad!$A$2:$D$1001,2)),"",VLOOKUP($A$12,Voorraad!$A$2:$D$1001,2)) -> 0 | F12: =IF(ISERROR(VLOOKUP($A$12,Voorraad!$A$2:$H$1001,8)),"",VLOOKUP($A$12,Voorraad!$A$2:$H$1001,8)) -> 0 | G12: =IF(ISERROR(VLOOKUP($A$12,Voorraad!$A$2:$I$1001,9)),"",VLOOKUP($A$12,Voorraad!$A$2:$I$1001,9)) -> 0 | H12: =IF(ISERROR(VLOOKUP($A$12,Voorraad!$A$2:$J$1001,10)),"",VLOOKUP($A$12,Voorraad!$A$2:$J$1001,10)) -> 0 | I12: =IF(ISERROR(VLOOKUP($A$12,Voorraad!$A$2:$G$1001,6)),"",VLOOKUP($A$12,Voorraad!$A$2:$G$1001,6)) -> TME | J12: =IF(ISERROR(VLOOKUP($A$12,Voorraad!$A$2:$G$1001,7)),"",VLOOKUP($A$12,Voorraad!$A$2:$G$1001,7)) -> Philips | K12: =IF(ISERROR(VLOOKUP($A$12,Voorraad!$A$2:$G$1001,5)),"",VLOOKUP($A$12,Voorraad!$A$2:$G$1001,5)) -> 8464 | L12: =IF(ISERROR(VLOOKUP($A$12,Voorraad!$A$2:$D$1001,4)),"",VLOOKUP($A$12,Voorraad!$A$2:$D$1001,4)) -> 0 | M12: 90 | N12: 90
A13: BU0007 | B13: =[5]Sheet1!$E$8 -> 100 | C13: =IF(ISERROR(VLOOKUP($A$13,Voorraad!$A$2:$D$1001,1)),"",VLOOKUP($A$13,Voorraad!$A$2:$D$1001,1)) -> BU0007 | D13: =IF(ISERROR(VLOOKUP($A$13,Voorraad!$A$2:$D$1001,3)),"",VLOOKUP($A$13,Voorraad!$A$2:$D$1001,3)) -> BC640 | E13: =IF(ISERROR(VLOOKUP($A$13,Voorraad!$A$2:$D$1001,2)),"",VLOOKUP($A$13,Voorraad!$A$2:$D$1001,2)) -> 0 | F13: =IF(ISERROR(VLOOKUP($A$13,Voorraad!$A$2:$H$1001,8)),"",VLOOKUP($A$13,Voorraad!$A$2:$H$1001,8)) -> 0 | G13: =IF(ISERROR(VLOOKUP($A$13,Voorraad!$A$2:$I$1001,9)),"",VLOOKUP($A$13,Voorraad!$A$2:$I$1001,9)) -> 0 | H13: =IF(ISERROR(VLOOKUP($A$13,Voorraad!$A$2:$J$1001,10)),"",VLOOKUP($A$13,Voorraad!$A$2:$J$1001,10)) -> 0 | I13: =IF(ISERROR(VLOOKUP($A$13,Voorraad!$A$2:$G$1001,6)),"",VLOOKUP($A$13,Voorraad!$A$2:$G$1001,6)) -> TME | J13: =IF(ISERROR(VLOOKUP($A$13,Voorraad!$A$2:$G$1001,7)),"",VLOOKUP($A$13,Voorraad!$A$2:$G$1001,7)) -> Philips | K13: =IF(ISERROR(VLOOKUP($A$13,Voorraad!$A$2:$G$1001,5)),"",VLOOKUP($A$13,Voorraad!$A$2:$G$1001,5)) -> 8464 | L13: =IF(ISERROR(VLOOKUP($A$13,Voorraad!$A$2:$D$1001,4)),"",VLOOKUP($A$13,Voorraad!$A$2:$D$1001,4)) -> 0 | M13: 100 | N13: 100
A14: BU0022 | B14: =[5]Sheet1!$E$10 -> 20 | C14: =IF(ISERROR(VLOOKUP($A$14,Voorraad!$A$2:$D$1001,1)),"",VLOOKUP($A$14,Voorraad!$A$2:$D$1001,1)) -> BU0022 | D14: =IF(ISERROR(VLOOKUP($A$14,Voorraad!$A$2:$D$1001,3)),"",VLOOKUP($A$14,Voorraad!$A$2:$D$1001,3)) -> BZX79-C18 | E14: =IF(ISERROR(VLOOKUP($A$14,Voorraad!$A$2:$D$1001,2)),"",VLOOKUP($A$14,Voorraad!$A$2:$D$1001,2)) -> 4E | F14: =IF(ISERROR(VLOOKUP($A$14,Voorraad!$A$2:$H$1001,8)),"",VLOOKUP($A$14,Voorraad!$A$2:$H$1001,8)) -> 0 | G14: =IF(ISERROR(VLOOKUP($A$14,Voorraad!$A$2:$I$1001,9)),"",VLOOKUP($A$14,Voorraad!$A$2:$I$1001,9)) -> Zener18V 0.5W DO35 | H14: =IF(ISERROR(VLOOKUP($A$14,Voorraad!$A$2:$J$1001,10)),"",VLOOKUP($A$14,Voorraad!$A$2:$J$1001,10)) -> I.P.V. BZX55-C18 | I14: =IF(ISERROR(VLOOKUP($A$14,Voorraad!$A$2:$G$1001,6)),"",VLOOKUP($A$14,Voorraad!$A$2:$G$1001,6)) -> TME | J14: =IF(ISERROR(VLOOKUP($A$14,Voorraad!$A$2:$G$1001,7)),"",VLOOKUP($A$14,Voorraad!$A$2:$G$1001,7)) -> 0 | K14: =IF(ISERROR(VLOOKUP($A$14,Voorraad!$A$2:$G$1001,5)),"",VLOOKUP($A$14,Voorraad!$A$2:$G$1001,5)) -> 8464 | L14: =IF(ISERROR(VLOOKUP($A$14,Voorraad!$A$2:$D$1001,4)),"",VLOOKUP($A$14,Voorraad!$A$2:$D$1001,4)) -> 30 | M14: =B14 -> 20 | N14: 0
A15: BU0015 | B15: =[5]Sheet1!$E$11 -> 50 | C15: =IF(ISERROR(VLOOKUP($A$14,Voorraad!$A$2:$D$1001,1)),"",VLOOKUP($A$14,Voorraad!$A$2:$D$1001,1)) -> BU0022 | D15: =IF(ISERROR(VLOOKUP($A$15,Voorraad!$A$2:$D$1001,3)),"",VLOOKUP($A$15,Voorraad!$A$2:$D$1001,3)) -> D 1N4148PH 75V-200MA | E15: =IF(ISERROR(VLOOKUP($A$15,Voorraad!$A$2:$D$1001,2)),"",VLOOKUP($A$15,Voorraad!$A$2:$D$1001,2)) -> #341N4148P | F15: =IF(ISERROR(VLOOKUP($A$15,Voorraad!$A$2:$H$1001,8)),"",VLOOKUP($A$15,Voorraad!$A$2:$H$1001,8)) -> 522001 | G15: =IF(ISERROR(VLOOKUP($A$15,Voorraad!$A$2:$I$1001,9)),"",VLOOKUP($A$15,Voorraad!$A$2:$I$1001,9)) -> 1N4148-TAP | H15: =IF(ISERROR(VLOOKUP($A$15,Voorraad!$A$2:$J$1001,10)),"",VLOOKUP($A$15,Voorraad!$A$2:$J$1001,10)) -> 0 | I15: =IF(ISERROR(VLOOKUP($A$15,Voorraad!$A$2:$G$1001,6)),"",VLOOKUP($A$15,Voorraad!$A$2:$G$1001,6)) -> TME | J15: =IF(ISERROR(VLOOKUP($A$15,Voorraad!$A$2:$G$1001,7)),"",VLOOKUP($A$15,Voorraad!$A$2:$G$1001,7)) -> PHILIPS | K15: =IF(ISERROR(VLOOKUP($A$15,Voorraad!$A$2:$G$1001,5)),"",VLOOKUP($A$15,Voorraad!$A$2:$G$1001,5)) -> 8464/8510 | L15: =IF(ISERROR(VLOOKUP($A$15,Voorraad!$A$2:$D$1001,4)),"",VLOOKUP($A$15,Voorraad!$A$2:$D$1001,4)) -> -1075 | M15: =B15 -> 50 | N15: 1125
A16: BU0014 | B16: =[5]Sheet1!$E$9 -> 10 | C16: =IF(ISERROR(VLOOKUP($A$16,Voorraad!$A$2:$D$1001,1)),"",VLOOKUP($A$16,Voorraad!$A$2:$D$1001,1)) -> BU0014 | D16: =IF(ISERROR(VLOOKUP($A$16,Voorraad!$A$2:$D$1001,3)),"",VLOOKUP($A$16,Voorraad!$A$2:$D$1001,3)) -> D 1N4004 400V-1A DO-41 | E16: =IF(ISERROR(VLOOKUP($A$16,Voorraad!$A$2:$D$1001,2)),"",VLOOKUP($A$16,Voorraad!$A$2:$D$1001,2)) -> #341N4004DC | F16: =IF(ISERROR(VLOOKUP($A$16,Voorraad!$A$2:$H$1001,8)),"",VLOOKUP($A$16,Voorraad!$A$2:$H$1001,8)) -> 522000 | G16: =IF(ISERROR(VLOOKUP($A$16,Voorraad!$A$2:$I$1001,9)),"",VLOOKUP($A$16,Voorraad!$A$2:$I$1001,9)) -> 0 | H16: =IF(ISERROR(VLOOKUP($A$16,Voorraad!$A$2:$J$1001,10)),"",VLOOKUP($A$16,Voorraad!$A$2:$J$1001,10)) -> 0 | I16: =IF(ISERROR(VLOOKUP($A$16,Voorraad!$A$2:$G$1001,6)),"",VLOOKUP($A$16,Voorraad!$A$2:$G$1001,6)) -> 0 | J16: =IF(ISERROR(VLOOKUP($A$16,Voorraad!$A$2:$G$1001,7)),"",VLOOKUP($A$16,Voorraad!$A$2:$G$1001,7)) -> 0 | K16: =IF(ISERROR(VLOOKUP($A$16,Voorraad!$A$2:$G$1001,5)),"",VLOOKUP($A$16,Voorraad!$A$2:$G$1001,5)) -> 8410/8464/8510 | L16: =IF(ISERROR(VLOOKUP($A$16,Voorraad!$A$2:$D$1001,4)),"",VLOOKUP($A$16,Voorraad!$A$2:$D$1001,4)) -> 485 | M16: 10 | N16: 0
A17: BU0038 | B17: =[5]Sheet1!$E$12 -> 30 | C17: =IF(ISERROR(VLOOKUP($A$17,Voorraad!$A$2:$D$1001,1)),"",VLOOKUP($A$17,Voorraad!$A$2:$D$1001,1)) -> BU0038 | D17: =IF(ISERROR(VLOOKUP($A$17,Voorraad!$A$2:$D$1001,3)),"",VLOOKUP($A$17,Voorraad!$A$2:$D$1001,3)) -> 4N35 Optocoupler | E17: =IF(ISERROR(VLOOKUP($A$17,Voorraad!$A$2:$D$1001,2)),"",VLOOKUP($A$9,Voorraad!$A$2:$D$1001,2)) -> 222202127479 | F17: =IF(ISERROR(VLOOKUP($A$17,Voorraad!$A$2:$H$1001,8)),"",VLOOKUP($A$17,Voorraad!$A$2:$H$1001,8)) -> 0 | G17: =IF(ISERROR(VLOOKUP($A$17,Voorraad!$A$2:$I$1001,9)),"",VLOOKUP($A$17,Voorraad!$A$2:$I$1001,9)) -> 4N35 | H17: =IF(ISERROR(VLOOKUP($A$17,Voorraad!$A$2:$J$1001,10)),"",VLOOKUP($A$17,Voorraad!$A$2:$J$1001,10)) -> 0 | I17: =IF(ISERROR(VLOOKUP($A$17,Voorraad!$A$2:$G$1001,6)),"",VLOOKUP($A$17,Voorraad!$A$2:$G$1001,6)) -> TME | J17: =IF(ISERROR(VLOOKUP($A$17,Voorraad!$A$2:$G$1001,7)),"",VLOOKUP($A$17,Voorraad!$A$2:$G$1001,7)) -> Vishay | K17: =IF(ISERROR(VLOOKUP($A$17,Voorraad!$A$2:$G$1001,5)),"",VLOOKUP($A$17,Voorraad!$A$2:$G$1001,5)) -> 8437/8464 | L17: =IF(ISERROR(VLOOKUP($A$17,Voorraad!$A$2:$D$1001,4)),"",VLOOKUP($A$17,Voorraad!$A$2:$D$1001,4)) -> 15 | M17: 30 | N17: 15
A18: BU0039 | B18: =[5]Sheet1!$E$13 -> 10 | C18: =IF(ISERROR(VLOOKUP($A$18,Voorraad!$A$2:$D$1001,1)),"",VLOOKUP($A$18,Voorraad!$A$2:$D$1001,1)) -> BU0039 | D18: =IF(ISERROR(VLOOKUP($A$18,Voorraad!$A$2:$D$1001,3)),"",VLOOKUP($A$18,Voorraad!$A$2:$D$1001,3)) -> IC 4013 CMOS dual D-flipflop | E18: =IF(ISERROR(VLOOKUP($A$18,Voorraad!$A$2:$D$1001,2)),"",VLOOKUP($A$18,Voorraad!$A$2:$D$1001,2)) -> 7091968 | F18: =IF(ISERROR(VLOOKUP($A$18,Voorraad!$A$2:$H$1001,8)),"",VLOOKUP($A$18,Voorraad!$A$2:$H$1001,8)) -> 0 | G18: =IF(ISERROR(VLOOKUP($A$18,Voorraad!$A$2:$I$1001,9)),"",VLOOKUP($A$18,Voorraad!$A$2:$I$1001,9)) -> CD4013BE | H18: =IF(ISERROR(VLOOKUP($A$18,Voorraad!$A$2:$J$1001,10)),"",VLOOKUP($A$18,Voorraad!$A$2:$J$1001,10)) -> 0 | I18: =IF(ISERROR(VLOOKUP($A$18,Voorraad!$A$2:$G$1001,6)),"",VLOOKUP($A$18,Voorraad!$A$2:$G$1001,6)) -> RS | J18: =IF(ISERROR(VLOOKUP($A$18,Voorraad!$A$2:$G$1001,7)),"",VLOOKUP($A$18,Voorraad!$A$2:$G$1001,7)) -> Div | K18: =IF(ISERROR(VLOOKUP($A$18,Voorraad!$A$2:$G$1001,5)),"",VLOOKUP($A$18,Voorraad!$A$2:$G$1001,5)) -> 8464 | L18: =IF(ISERROR(VLOOKUP($A$18,Voorraad!$A$2:$D$1001,4)),"",VLOOKUP($A$18,Voorraad!$A$2:$D$1001,4)) -> 0 | M18: 10 | N18: 10
A19: BU0040 | B19: =[5]Sheet1!$E$14 -> 10 | C19: =IF(ISERROR(VLOOKUP($A$19,Voorraad!$A$2:$D$1001,1)),"",VLOOKUP($A$19,Voorraad!$A$2:$D$1001,1)) -> BU0040 | D19: =IF(ISERROR(VLOOKUP($A$19,Voorraad!$A$2:$D$1001,3)),"",VLOOKUP($A$19,Voorraad!$A$2:$D$1001,3)) -> CD40106 CMOS hex inverter | E19: =IF(ISERROR(VLOOKUP($A$19,Voorraad!$A$2:$D$1001,2)),"",VLOOKUP($A$19,Voorraad!$A$2:$D$1001,2)) -> 0 | F19: =IF(ISERROR(VLOOKUP($A$19,Voorraad!$A$2:$H$1001,8)),"",VLOOKUP($A$19,Voorraad!$A$2:$H$1001,8)) -> 0 | G19: =IF(ISERROR(VLOOKUP($A$19,Voorraad!$A$2:$I$1001,9)),"",VLOOKUP($A$19,Voorraad!$A$2:$I$1001,9)) -> CD40106BE | H19: =IF(ISERROR(VLOOKUP($A$19,Voorraad!$A$2:$J$1001,10)),"",VLOOKUP($A$19,Voorraad!$A$2:$J$1001,10)) -> 0 | I19: =IF(ISERROR(VLOOKUP($A$19,Voorraad!$A$2:$G$1001,6)),"",VLOOKUP($A$19,Voorraad!$A$2:$G$1001,6)) -> TME | J19: =IF(ISERROR(VLOOKUP($A$19,Voorraad!$A$2:$G$1001,7)),"",VLOOKUP($A$19,Voorraad!$A$2:$G$1001,7)) -> Div. | K19: =IF(ISERROR(VLOOKUP($A$19,Voorraad!$A$2:$G$1001,5)),"",VLOOKUP($A$19,Voorraad!$A$2:$G$1001,5)) -> 8464 | L19: =IF(ISERROR(VLOOKUP($A$19,Voorraad!$A$2:$D$1001,4)),"",VLOOKUP($A$19,Voorraad!$A$2:$D$1001,4)) -> 0 | M19: 10 | N19: 10
A20: BU0041 | B20: =[5]Sheet1!$E$15 -> 10 | C20: =IF(ISERROR(VLOOKUP($A$20,Voorraad!$A$2:$D$1001,1)),"",VLOOKUP($A$20,Voorraad!$A$2:$D$1001,1)) -> BU0041 | D20: =IF(ISERROR(VLOOKUP($A$20,Voorraad!$A$2:$D$1001,3)),"",VLOOKUP($A$20,Voorraad!$A$2:$D$1001,3)) -> 7812 Stabilizer 12V 1A | E20: =IF(ISERROR(VLOOKUP($A$20,Voorraad!$A$2:$D$1001,2)),"",VLOOKUP($A$20,Voorraad!$A$2:$D$1001,2)) -> 0 | F20: =IF(ISERROR(VLOOKUP($A$20,Voorraad!$A$2:$H$1001,8)),"",VLOOKUP($A$20,Voorraad!$A$2:$H$1001,8)) -> 0 | G20: =IF(ISERROR(VLOOKUP($A$20,Voorraad!$A$2:$I$1001,9)),"",VLOOKUP($A$20,Voorraad!$A$2:$I$1001,9)) -> L7812CV-DG | H20: =IF(ISERROR(VLOOKUP($A$20,Voorraad!$A$2:$J$1001,10)),"",VLOOKUP($A$20,Voorraad!$A$2:$J$1001,10)) -> 0 | I20: =IF(ISERROR(VLOOKUP($A$20,Voorraad!$A$2:$G$1001,6)),"",VLOOKUP($A$20,Voorraad!$A$2:$G$1001,6)) -> TME | J20: =IF(ISERROR(VLOOKUP($A$20,Voorraad!$A$2:$G$1001,7)),"",VLOOKUP($A$20,Voorraad!$A$2:$G$1001,7)) -> Div. | K20: =IF(ISERROR(VLOOKUP($A$20,Voorraad!$A$2:$G$1001,5)),"",VLOOKUP($A$20,Voorraad!$A$2:$G$1001,5)) -> 8464 | L20: =IF(ISERROR(VLOOKUP($A$20,Voorraad!$A$2:$D$1001,4)),"",VLOOKUP($A$20,Voorraad!$A$2:$D$1001,4)) -> 0 | M20: 10 | N20: 10
A21: BU0042 | B21: =[5]Sheet1!$E$16 -> 10 | C21: =IF(ISERROR(VLOOKUP($A$21,Voorraad!$A$2:$D$1001,1)),"",VLOOKUP($A$21,Voorraad!$A$2:$D$1001,1)) -> BU0042 | D21: =IF(ISERROR(VLOOKUP($A$21,Voorraad!$A$2:$D$1001,3)),"",VLOOKUP($A$21,Voorraad!$A$2:$D$1001,3)) -> CD4024B CMOS 6 stage ripple counter | E21: =IF(ISERROR(VLOOKUP($A$21,Voorraad!$A$2:$D$1001,2)),"",VLOOKUP($A$21,Voorraad!$A$2:$D$1001,2)) -> 0 | F21: =IF(ISERROR(VLOOKUP($A$21,Voorraad!$A$2:$H$1001,8)),"",VLOOKUP($A$21,Voorraad!$A$2:$H$1001,8)) -> 0 | G21: =IF(ISERROR(VLOOKUP($A$21,Voorraad!$A$2:$I$1001,9)),"",VLOOKUP($A$21,Voorraad!$A$2:$I$1001,9)) -> CD4024BE | H21: =IF(ISERROR(VLOOKUP($A$21,Voorraad!$A$2:$J$1001,10)),"",VLOOKUP($A$21,Voorraad!$A$2:$J$1001,10)) -> 0 | I21: =IF(ISERROR(VLOOKUP($A$21,Voorraad!$A$2:$G$1001,6)),"",VLOOKUP($A$21,Voorraad!$A$2:$G$1001,6)) -> TME | J21: =IF(ISERROR(VLOOKUP($A$21,Voorraad!$A$2:$G$1001,7)),"",VLOOKUP($A$21,Voorraad!$A$2:$G$1001,7)) -> Texas Instruments | K21: =IF(ISERROR(VLOOKUP($A$21,Voorraad!$A$2:$G$1001,5)),"",VLOOKUP($A$21,Voorraad!$A$2:$G$1001,5)) -> 8464 | L21: =IF(ISERROR(VLOOKUP($A$21,Voorraad!$A$2:$D$1001,4)),"",VLOOKUP($A$21,Voorraad!$A$2:$D$1001,4)) -> 1 | M21: 10 | N21: 9
A22: BU0052 | B22: =[5]Sheet1!$E$17 -> 10 | C22: =IF(ISERROR(VLOOKUP($A$22,Voorraad!$A$2:$D$1001,1)),"",VLOOKUP($A$22,Voorraad!$A$2:$D$1001,1)) -> BU0052 | D22: =IF(ISERROR(VLOOKUP($A$22,Voorraad!$A$2:$D$1001,3)),"",VLOOKUP($A$22,Voorraad!$A$2:$D$1001,3)) -> V23105-A5303-A201 printrelay DPDT 12V dc | E22: =IF(ISERROR(VLOOKUP($A$22,Voorraad!$A$2:$D$1001,2)),"",VLOOKUP($A$22,Voorraad!$A$2:$D$1001,2)) -> 0 | F22: =IF(ISERROR(VLOOKUP($A$22,Voorraad!$A$2:$H$1001,8)),"",VLOOKUP($A$22,Voorraad!$A$2:$H$1001,8)) -> 0 | G22: =IF(ISERROR(VLOOKUP($A$22,Voorraad!$A$2:$I$1001,9)),"",VLOOKUP($A$22,Voorraad!$A$2:$I$1001,9)) -> V23042 A2003-B101 | H22: =IF(ISERROR(VLOOKUP($A$22,Voorraad!$A$2:$J$1001,10)),"",VLOOKUP($A$22,Voorraad!$A$2:$J$1001,10)) -> Alternatief: DS2Y-S DC12V / G5V-2-12V DC | I22: =IF(ISERROR(VLOOKUP($A$22,Voorraad!$A$2:$G$1001,6)),"",VLOOKUP($A$22,Voorraad!$A$2:$G$1001,6)) -> Siemens | J22: =IF(ISERROR(VLOOKUP($A$22,Voorraad!$A$2:$G$1001,7)),"",VLOOKUP($A$22,Voorraad!$A$2:$G$1001,7)) -> Tyco | K22: =IF(ISERROR(VLOOKUP($A$22,Voorraad!$A$2:$G$1001,5)),"",VLOOKUP($A$22,Voorraad!$A$2:$G$1001,5)) -> 8464 | L22: =IF(ISERROR(VLOOKUP($A$22,Voorraad!$A$2:$D$1001,4)),"",VLOOKUP($A$22,Voorraad!$A$2:$D$1001,4)) -> 0 | M22: 10 | N22: 10
A23: BU0054 | B23: =[5]Sheet1!$E$18 -> 10 | C23: =IF(ISERROR(VLOOKUP($A$23,Voorraad!$A$2:$D$1001,1)),"",VLOOKUP($A$23,Voorraad!$A$2:$D$1001,1)) -> BU0054 | D23: =IF(ISERROR(VLOOKUP($A$23,Voorraad!$A$2:$D$1001,3)),"",VLOOKUP($A$23,Voorraad!$A$2:$D$1001,3)) -> uPd-D114I DC/DC converter 12V/12V isolated | E23: =IF(ISERROR(VLOOKUP($A$23,Voorraad!$A$2:$D$1001,2)),"",VLOOKUP($A$23,Voorraad!$A$2:$D$1001,2)) -> 0 | F23: =IF(ISERROR(VLOOKUP($A$23,Voorraad!$A$2:$H$1001,8)),"",VLOOKUP($A$23,Voorraad!$A$2:$H$1001,8)) -> 0 | G23: =IF(ISERROR(VLOOKUP($A$23,Voorraad!$A$2:$I$1001,9)),"",VLOOKUP($A$23,Voorraad!$A$2:$I$1001,9)) -> NMV1212SAC | H23: =IF(ISERROR(VLOOKUP($A$23,Voorraad!$A$2:$J$1001,10)),"",VLOOKUP($A$23,Voorraad!$A$2:$J$1001,10)) -> 0 | I23: =IF(ISERROR(VLOOKUP($A$23,Voorraad!$A$2:$G$1001,6)),"",VLOOKUP($A$23,Voorraad!$A$2:$G$1001,6)) -> 0 | J23: =IF(ISERROR(VLOOKUP($A$23,Voorraad!$A$2:$G$1001,7)),"",VLOOKUP($A$23,Voorraad!$A$2:$G$1001,7)) -> uPd (Alcom) | K23: =IF(ISERROR(VLOOKUP($A$23,Voorraad!$A$2:$G$1001,5)),"",VLOOKUP($A$23,Voorraad!$A$2:$G$1001,5)) -> 8464 | L23: =IF(ISERROR(VLOOKUP($A$23,Voorraad!$A$2:$D$1001,4)),"",VLOOKUP($A$23,Voorraad!$A$2:$D$1001,4)) -> 0 | M23: 10 | N23: 10
A24: BR0004 | B24: =[5]Sheet1!$E$19 -> 20 | C24: =IF(ISERROR(VLOOKUP($A$24,Voorraad!$A$2:$D$1001,1)),"",VLOOKUP($A$24,Voorraad!$A$2:$D$1001,1)) -> BR0004 | D24: =IF(ISERROR(VLOOKUP($A$24,Voorraad!$A$2:$D$1001,3)),"",VLOOKUP($A$24,Voorraad!$A$2:$D$1001,3)) -> R 1K00 1% 0.6W 7X2,5MM | E24: =IF(ISERROR(VLOOKUP($A$24,Voorraad!$A$2:$D$1001,2)),"",VLOOKUP($A$24,Voorraad!$A$2:$D$1001,2)) -> #10031001 | F24: =IF(ISERROR(VLOOKUP($A$24,Voorraad!$A$2:$H$1001,8)),"",VLOOKUP($A$24,Voorraad!$A$2:$H$1001,8)) -> 500048 | G24: =IF(ISERROR(VLOOKUP($A$24,Voorraad!$A$2:$I$1001,9)),"",VLOOKUP($A$24,Voorraad!$A$2:$I$1001,9)) -> 0 | H24: =IF(ISERROR(VLOOKUP($A$24,Voorraad!$A$2:$J$1001,10)),"",VLOOKUP($A$24,Voorraad!$A$2:$J$1001,10)) -> 0 | I24: =IF(ISERROR(VLOOKUP($A$24,Voorraad!$A$2:$G$1001,6)),"",VLOOKUP($A$24,Voorraad!$A$2:$G$1001,6)) -> 0 | J24: =IF(ISERROR(VLOOKUP($A$24,Voorraad!$A$2:$G$1001,7)),"",VLOOKUP($A$24,Voorraad!$A$2:$G$1001,7)) -> BCC | K24: =IF(ISERROR(VLOOKUP($A$24,Voorraad!$A$2:$G$1001,5)),"",VLOOKUP($A$24,Voorraad!$A$2:$G$1001,5)) -> 8510/8437/8438/8439/8464 | L24: =IF(ISERROR(VLOOKUP($A$24,Voorraad!$A$2:$D$1001,4)),"",VLOOKUP($A$24,Voorraad!$A$2:$D$1001,4)) -> 208 | M24: 20 | N24: 0
A25: BR0015 | B25: =[5]Sheet1!$E$20 -> 20 | C25: =IF(ISERROR(VLOOKUP($A$25,Voorraad!$A$2:$D$1001,1)),"",VLOOKUP($A$25,Voorraad!$A$2:$D$1001,1)) -> BR0015 | D25: =IF(ISERROR(VLOOKUP($A$25,Voorraad!$A$2:$D$1001,3)),"",VLOOKUP($A$25,Voorraad!$A$2:$D$1001,3)) -> R 2K2 | E25: =IF(ISERROR(VLOOKUP($A$25,Voorraad!$A$2:$D$1001,2)),"",VLOOKUP($A$25,Voorraad!$A$2:$D$1001,2)) -> 0 | F25: =IF(ISERROR(VLOOKUP($A$25,Voorraad!$A$2:$H$1001,8)),"",VLOOKUP($A$25,Voorraad!$A$2:$H$1001,8)) -> 0 | G25: =IF(ISERROR(VLOOKUP($A$25,Voorraad!$A$2:$I$1001,9)),"",VLOOKUP($A$25,Voorraad!$A$2:$I$1001,9)) -> 0 | H25: =IF(ISERROR(VLOOKUP($A$25,Voorraad!$A$2:$J$1001,10)),"",VLOOKUP($A$25,Voorraad!$A$2:$J$1001,10)) -> 0 | I25: =IF(ISERROR(VLOOKUP($A$25,Voorraad!$A$2:$G$1001,6)),"",VLOOKUP($A$25,Voorraad!$A$2:$G$1001,6)) -> 0 | J25: =IF(ISERROR(VLOOKUP($A$25,Voorraad!$A$2:$G$1001,7)),"",VLOOKUP($A$25,Voorraad!$A$2:$G$1001,7)) -> Philips | K25: =IF(ISERROR(VLOOKUP($A$25,Voorraad!$A$2:$G$1001,5)),"",VLOOKUP($A$25,Voorraad!$A$2:$G$1001,5)) -> 8464 | L25: =IF(ISERROR(VLOOKUP($A$25,Voorraad!$A$2:$D$1001,4)),"",VLOOKUP($A$25,Voorraad!$A$2:$D$1001,4)) -> 500 | M25: 20 | N25: 0
A26: BR0016 | B26: =[5]Sheet1!$E$21 -> 30 | C26: =IF(ISERROR(VLOOKUP($A$26,Voorraad!$A$2:$D$1001,1)),"",VLOOKUP($A$26,Voorraad!$A$2:$D$1001,1)) -> BR0016 | D26: =IF(ISERROR(VLOOKUP($A$26,Voorraad!$A$2:$D$1001,3)),"",VLOOKUP($A$26,Voorraad!$A$2:$D$1001,3)) -> R 27K | E26: =IF(ISERROR(VLOOKUP($A$26,Voorraad!$A$2:$D$1001,2)),"",VLOOKUP($A$26,Voorraad!$A$2:$D$1001,2)) -> 0 | F26: =IF(ISERROR(VLOOKUP($A$26,Voorraad!$A$2:$H$1001,8)),"",VLOOKUP($A$26,Voorraad!$A$2:$H$1001,8)) -> 0 | G26: =IF(ISERROR(VLOOKUP($A$26,Voorraad!$A$2:$I$1001,9)),"",VLOOKUP($A$26,Voorraad!$A$2:$I$1001,9)) -> 0 | H26: =IF(ISERROR(VLOOKUP($A$26,Voorraad!$A$2:$J$1001,10)),"",VLOOKUP($A$26,Voorraad!$A$2:$J$1001,10)) -> 0 | I26: =IF(ISERROR(VLOOKUP($A$26,Voorraad!$A$2:$G$1001,6)),"",VLOOKUP($A$26,Voorraad!$A$2:$G$1001,6)) -> 0 | J26: =IF(ISERROR(VLOOKUP($A$26,Voorraad!$A$2:$G$1001,7)),"",VLOOKUP($A$26,Voorraad!$A$2:$G$1001,7)) -> Philips | K26: =IF(ISERROR(VLOOKUP($A$26,Voorraad!$A$2:$G$1001,5)),"",VLOOKUP($A$26,Voorraad!$A$2:$G$1001,5)) -> 8464 | L26: =IF(ISERROR(VLOOKUP($A$26,Voorraad!$A$2:$D$1001,4)),"",VLOOKUP($A$26,Voorraad!$A$2:$D$1001,4)) -> 0 | M26: 30 | N26: 30
A27: BR3020 | B27: =[5]Sheet1!$E$22 -> 0 | C27: =IF(ISERROR(VLOOKUP($A$27,Voorraad!$A$2:$D$1001,1)),"",VLOOKUP($A$27,Voorraad!$A$2:$D$1001,1)) -> BR3020 | D27: =IF(ISERROR(VLOOKUP($A$27,Voorraad!$A$2:$D$1001,3)),"",VLOOKUP($A$27,Voorraad!$A$2:$D$1001,3)) -> R 470k | E27: =IF(ISERROR(VLOOKUP($A$27,Voorraad!$A$2:$D$1001,2)),"",VLOOKUP($A$27,Voorraad!$A$2:$D$1001,2)) -> 0 | F27: =IF(ISERROR(VLOOKUP($A$27,Voorraad!$A$2:$H$1001,8)),"",VLOOKUP($A$27,Voorraad!$A$2:$H$1001,8)) -> 0 | G27: =IF(ISERROR(VLOOKUP($A$27,Voorraad!$A$2:$I$1001,9)),"",VLOOKUP($A$27,Voorraad!$A$2:$I$1001,9)) -> 0 | H27: =IF(ISERROR(VLOOKUP($A$27,Voorraad!$A$2:$J$1001,10)),"",VLOOKUP($A$27,Voorraad!$A$2:$J$1001,10)) -> 0 | I27: =IF(ISERROR(VLOOKUP($A$27,Voorraad!$A$2:$G$1001,6)),"",VLOOKUP($A$27,Voorraad!$A$2:$G$1001,6)) -> 0 | J27: =IF(ISERROR(VLOOKUP($A$27,Voorraad!$A$2:$G$1001,7)),"",VLOOKUP($A$27,Voorraad!$A$2:$G$1001,7)) -> Philips | K27: =IF(ISERROR(VLOOKUP($A$27,Voorraad!$A$2:$G$1001,5)),"",VLOOKUP($A$27,Voorraad!$A$2:$G$1001,5)) -> 8464 | L27: =IF(ISERROR(VLOOKUP($A$27,Voorraad!$A$2:$D$1001,4)),"",VLOOKUP($A$27,Voorraad!$A$2:$D$1001,4)) -> 1000 | M27: 0 | N27: 0
A28: BR3030 | B28: =[5]Sheet1!$E$23 -> 10 | C28: =IF(ISERROR(VLOOKUP($A$28,Voorraad!$A$2:$D$1001,1)),"",VLOOKUP($A$28,Voorraad!$A$2:$D$1001,1)) -> BR3030 | D28: =IF(ISERROR(VLOOKUP($A$28,Voorraad!$A$2:$D$1001,3)),"",VLOOKUP($A$28,Voorraad!$A$2:$D$1001,3)) -> R 4K7 | E28: =IF(ISERROR(VLOOKUP($A$28,Voorraad!$A$2:$D$1001,2)),"",VLOOKUP($A$28,Voorraad!$A$2:$D$1001,2)) -> 0 | F28: =IF(ISERROR(VLOOKUP($A$28,Voorraad!$A$2:$H$1001,8)),"",VLOOKUP($A$28,Voorraad!$A$2:$H$1001,8)) -> 0 | G28: =IF(ISERROR(VLOOKUP($A$28,Voorraad!$A$2:$I$1001,9)),"",VLOOKUP($A$28,Voorraad!$A$2:$I$1001,9)) -> 0 | H28: =IF(ISERROR(VLOOKUP($A$28,Voorraad!$A$2:$J$1001,10)),"",VLOOKUP($A$28,Voorraad!$A$2:$J$1001,10)) -> 0 | I28: =IF(ISERROR(VLOOKUP($A$28,Voorraad!$A$2:$G$1001,6)),"",VLOOKUP($A$28,Voorraad!$A$2:$G$1001,6)) -> 0 | J28: =IF(ISERROR(VLOOKUP($A$28,Voorraad!$A$2:$G$1001,7)),"",VLOOKUP($A$28,Voorraad!$A$2:$G$1001,7)) -> Philips | K28: =IF(ISERROR(VLOOKUP($A$28,Voorraad!$A$2:$G$1001,5)),"",VLOOKUP($A$28,Voorraad!$A$2:$G$1001,5)) -> 8464 | L28: =IF(ISERROR(VLOOKUP($A$28,Voorraad!$A$2:$D$1001,4)),"",VLOOKUP($A$28,Voorraad!$A$2:$D$1001,4)) -> 2000 | M28: 10 | N28: 0
A29: BR3035 | B29: =[5]Sheet1!$E$24 -> 90 | C29: =IF(ISERROR(VLOOKUP($A$29,Voorraad!$A$2:$D$1001,1)),"",VLOOKUP($A$29,Voorraad!$A$2:$D$1001,1)) -> BR3035 | D29: =IF(ISERROR(VLOOKUP($A$29,Voorraad!$A$2:$D$1001,3)),"",VLOOKUP($A$29,Voorraad!$A$2:$D$1001,3)) -> R 33K | E29: =IF(ISERROR(VLOOKUP($A$29,Voorraad!$A$2:$D$1001,2)),"",VLOOKUP($A$29,Voorraad!$A$2:$D$1001,2)) -> 0 | F29: =IF(ISERROR(VLOOKUP($A$29,Voorraad!$A$2:$H$1001,8)),"",VLOOKUP($A$29,Voorraad!$A$2:$H$1001,8)) -> 0 | G29: =IF(ISERROR(VLOOKUP($A$29,Voorraad!$A$2:$I$1001,9)),"",VLOOKUP($A$29,Voorraad!$A$2:$I$1001,9)) -> 0 | H29: =IF(ISERROR(VLOOKUP($A$29,Voorraad!$A$2:$J$1001,10)),"",VLOOKUP($A$29,Voorraad!$A$2:$J$1001,10)) -> 0 | I29: =IF(ISERROR(VLOOKUP($A$29,Voorraad!$A$2:$G$1001,6)),"",VLOOKUP($A$29,Voorraad!$A$2:$G$1001,6)) -> 0 | J29: =IF(ISERROR(VLOOKUP($A$29,Voorraad!$A$2:$G$1001,7)),"",VLOOKUP($A$29,Voorraad!$A$2:$G$1001,7)) -> Philips | K29: =IF(ISERROR(VLOOKUP($A$29,Voorraad!$A$2:$G$1001,5)),"",VLOOKUP($A$29,Voorraad!$A$2:$G$1001,5)) -> 8464 | L29: =IF(ISERROR(VLOOKUP($A$29,Voorraad!$A$2:$D$1001,4)),"",VLOOKUP($A$29,Voorraad!$A$2:$D$1001,4)) -> 3000 | M29: 90 | N29: 0
A30: BR0009 | B30: =[5]Sheet1!$E$25 -> 10 | C30: =IF(ISERROR(VLOOKUP($A$30,Voorraad!$A$2:$D$1001,1)),"",VLOOKUP($A$30,Voorraad!$A$2:$D$1001,1)) -> BR0009 | D30: =IF(ISERROR(VLOOKUP($A$30,Voorraad!$A$2:$D$1001,3)),"",VLOOKUP($A$30,Voorraad!$A$2:$D$1001,3)) -> R 56E 1% 0.6W 7X2,5MM | E30: =IF(ISERROR(VLOOKUP($A$30,Voorraad!$A$2:$D$1001,2)),"",VLOOKUP($A$30,Voorraad!$A$2:$D$1001,2)) -> #10015601 | F30: =IF(ISERROR(VLOOKUP($A$30,Voorraad!$A$2:$H$1001,8)),"",VLOOKUP($A$30,Voorraad!$A$2:$H$1001,8)) -> 500033 | G30: =IF(ISERROR(VLOOKUP($A$30,Voorraad!$A$2:$I$1001,9)),"",VLOOKUP($A$30,Voorraad!$A$2:$I$1001,9)) -> 0 | H30: =IF(ISERROR(VLOOKUP($A$30,Voorraad!$A$2:$J$1001,10)),"",VLOOKUP($A$30,Voorraad!$A$2:$J$1001,10)) -> 0 | I30: =IF(ISERROR(VLOOKUP($A$30,Voorraad!$A$2:$G$1001,6)),"",VLOOKUP($A$30,Voorraad!$A$2:$G$1001,6)) -> 0 | J30: =IF(ISERROR(VLOOKUP($A$30,Voorraad!$A$2:$G$1001,7)),"",VLOOKUP($A$30,Voorraad!$A$2:$G$1001,7)) -> BCC | K30: =IF(ISERROR(VLOOKUP($A$30,Voorraad!$A$2:$G$1001,5)),"",VLOOKUP($A$30,Voorraad!$A$2:$G$1001,5)) -> 8510/8464 | L30: =IF(ISERROR(VLOOKUP($A$30,Voorraad!$A$2:$D$1001,4)),"",VLOOKUP($A$30,Voorraad!$A$2:$D$1001,4)) -> 1125 | M30: 10 | N30: 0
A31: BR0003 | B31: =[5]Sheet1!$E$26 -> 10 | C31: =IF(ISERROR(VLOOKUP($A$31,Voorraad!$A$2:$D$1001,1)),"",VLOOKUP($A$31,Voorraad!$A$2:$D$1001,1)) -> BR0003 | D31: =IF(ISERROR(VLOOKUP($A$31,Voorraad!$A$2:$D$1001,3)),"",VLOOKUP($A$31,Voorraad!$A$2:$D$1001,3)) -> R 100E 1% 0.6W 7X2,5MM | E31: =IF(ISERROR(VLOOKUP($A$31,Voorraad!$A$2:$D$1001,2)),"",VLOOKUP($A$31,Voorraad!$A$2:$D$1001,2)) -> #10021001 | F31: =IF(ISERROR(VLOOKUP($A$31,Voorraad!$A$2:$H$1001,8)),"",VLOOKUP($A$31,Voorraad!$A$2:$H$1001,8)) -> 500036 | G31: =IF(ISERROR(VLOOKUP($A$31,Voorraad!$A$2:$I$1001,9)),"",VLOOKUP($A$31,Voorraad!$A$2:$I$1001,9)) -> 0 | H31: =IF(ISERROR(VLOOKUP($A$31,Voorraad!$A$2:$J$1001,10)),"",VLOOKUP($A$31,Voorraad!$A$2:$J$1001,10)) -> 0 | I31: =IF(ISERROR(VLOOKUP($A$31,Voorraad!$A$2:$G$1001,6)),"",VLOOKUP($A$31,Voorraad!$A$2:$G$1001,6)) -> 0 | J31: =IF(ISERROR(VLOOKUP($A$31,Voorraad!$A$2:$G$1001,7)),"",VLOOKUP($A$31,Voorraad!$A$2:$G$1001,7)) -> BCC | K31: =IF(ISERROR(VLOOKUP($A$31,Voorraad!$A$2:$G$1001,5)),"",VLOOKUP($A$31,Voorraad!$A$2:$G$1001,5)) -> 8510/8464 | L31: =IF(ISERROR(VLOOKUP($A$31,Voorraad!$A$2:$D$1001,4)),"",VLOOKUP($A$31,Voorraad!$A$2:$D$1001,4)) -> 1725 | M31: 10 | N31: 0
A32: BR3517 | B32: =[5]Sheet1!$E$27 -> 80 | C32: =IF(ISERROR(VLOOKUP($A$32,Voorraad!$A$2:$D$1001,1)),"",VLOOKUP($A$32,Voorraad!$A$2:$D$1001,1)) -> BR3517 | D32: =IF(ISERROR(VLOOKUP($A$32,Voorraad!$A$2:$D$1001,3)),"",VLOOKUP($A$32,Voorraad!$A$2:$D$1001,3)) -> R 6K8 | E32: =IF(ISERROR(VLOOKUP($A$32,Voorraad!$A$2:$D$1001,2)),"",VLOOKUP($A$32,Voorraad!$A$2:$D$1001,2)) -> 0 | F32: =IF(ISERROR(VLOOKUP($A$32,Voorraad!$A$2:$H$1001,8)),"",VLOOKUP($A$32,Voorraad!$A$2:$H$1001,8)) -> 0 | G32: =IF(ISERROR(VLOOKUP($A$32,Voorraad!$A$2:$I$1001,9)),"",VLOOKUP($A$32,Voorraad!$A$2:$I$1001,9)) -> 0 | H32: =IF(ISERROR(VLOOKUP($A$32,Voorraad!$A$2:$J$1001,10)),"",VLOOKUP($A$32,Voorraad!$A$2:$J$1001,10)) -> 0 | I32: =IF(ISERROR(VLOOKUP($A$32,Voorraad!$A$2:$G$1001,6)),"",VLOOKUP($A$32,Voorraad!$A$2:$G$1001,6)) -> 0 | J32: =IF(ISERROR(VLOOKUP($A$32,Voorraad!$A$2:$G$1001,7)),"",VLOOKUP($A$32,Voorraad!$A$2:$G$1001,7)) -> Philips | K32: =IF(ISERROR(VLOOKUP($A$32,Voorraad!$A$2:$G$1001,5)),"",VLOOKUP($A$32,Voorraad!$A$2:$G$1001,5)) -> 8464 | L32: =IF(ISERROR(VLOOKUP($A$32,Voorraad!$A$2:$D$1001,4)),"",VLOOKUP($A$32,Voorraad!$A$2:$D$1001,4)) -> 4000 | M32: 80 | N32: 0
A33: BU0063 | B33: =[5]Sheet1!$E$28 -> 20 | C33: =IF(ISERROR(VLOOKUP($A$33,Voorraad!$A$2:$D$1001,1)),"",VLOOKUP($A$33,Voorraad!$A$2:$D$1001,1)) -> BU0063 | D33: =IF(ISERROR(VLOOKUP($A$33,Voorraad!$A$2:$D$1001,3)),"",VLOOKUP($A$33,Voorraad!$A$2:$D$1001,3)) -> MKDS1/8-3.81 Printconnector | E33: =IF(ISERROR(VLOOKUP($A$33,Voorraad!$A$2:$D$1001,2)),"",VLOOKUP($A$33,Voorraad!$A$2:$D$1001,2)) -> 1727078 | F33: =IF(ISERROR(VLOOKUP($A$33,Voorraad!$A$2:$H$1001,8)),"",VLOOKUP($A$33,Voorraad!$A$2:$H$1001,8)) -> 0 | G33: =IF(ISERROR(VLOOKUP($A$33,Voorraad!$A$2:$I$1001,9)),"",VLOOKUP($A$33,Voorraad!$A$2:$I$1001,9)) -> 1727078 | H33: =IF(ISERROR(VLOOKUP($A$33,Voorraad!$A$2:$J$1001,10)),"",VLOOKUP($A$33,Voorraad!$A$2:$J$1001,10)) -> 0 | I33: =IF(ISERROR(VLOOKUP($A$33,Voorraad!$A$2:$G$1001,6)),"",VLOOKUP($A$33,Voorraad!$A$2:$G$1001,6)) -> 0 | J33: =IF(ISERROR(VLOOKUP($A$33,Voorraad!$A$2:$G$1001,7)),"",VLOOKUP($A$33,Voorraad!$A$2:$G$1001,7)) -> Phoenix | K33: =IF(ISERROR(VLOOKUP($A$33,Voorraad!$A$2:$G$1001,5)),"",VLOOKUP($A$33,Voorraad!$A$2:$G$1001,5)) -> 8464 | L33: =IF(ISERROR(VLOOKUP($A$33,Voorraad!$A$2:$D$1001,4)),"",VLOOKUP($A$33,Voorraad!$A$2:$D$1001,4)) -> 0 | M33: 20 | N33: 20
A34: BU0068 | B34: =[5]Sheet1!$E$29 -> 10 | C34: =IF(ISERROR(VLOOKUP($A$34,Voorraad!$A$2:$D$1001,1)),"",VLOOKUP($A$34,Voorraad!$A$2:$D$1001,1)) -> BU0068 | D34: =IF(ISERROR(VLOOKUP($A$34,Voorraad!$A$2:$D$1001,3)),"",VLOOKUP($A$34,Voorraad!$A$2:$D$1001,3)) -> ZL201-03G | E34: =IF(ISERROR(VLOOKUP($A$34,Voorraad!$A$2:$D$1001,2)),"",VLOOKUP($A$34,Voorraad!$A$2:$D$1001,2)) -> DS1021-136sf11 | F34: =IF(ISERROR(VLOOKUP($A$34,Voorraad!$A$2:$H$1001,8)),"",VLOOKUP($A$34,Voorraad!$A$2:$H$1001,8)) -> 0 | G34: =IF(ISERROR(VLOOKUP($A$34,Voorraad!$A$2:$I$1001,9)),"",VLOOKUP($A$34,Voorraad!$A$2:$I$1001,9)) -> ZL201-03G | H34: =IF(ISERROR(VLOOKUP($A$34,Voorraad!$A$2:$J$1001,10)),"",VLOOKUP($A$34,Voorraad!$A$2:$J$1001,10)) -> 0 | I34: =IF(ISERROR(VLOOKUP($A$34,Voorraad!$A$2:$G$1001,6)),"",VLOOKUP($A$34,Voorraad!$A$2:$G$1001,6)) -> TME | J34: =IF(ISERROR(VLOOKUP($A$34,Voorraad!$A$2:$G$1001,7)),"",VLOOKUP($A$34,Voorraad!$A$2:$G$1001,7)) -> Connfly | K34: =IF(ISERROR(VLOOKUP($A$34,Voorraad!$A$2:$G$1001,5)),"",VLOOKUP($A$34,Voorraad!$A$2:$G$1001,5)) -> 8437/8439/8464/8510 | L34: =IF(ISERROR(VLOOKUP($A$34,Voorraad!$A$2:$D$1001,4)),"",VLOOKUP($A$34,Voorraad!$A$2:$D$1001,4)) -> 931 | M34: 10 | N34: 0
A35: BU0059 | B35: =[5]Sheet1!$E$30 -> 10 | C35: =IF(ISERROR(VLOOKUP($A$35,Voorraad!$A$2:$D$1001,1)),"",VLOOKUP($A$35,Voorraad!$A$2:$D$1001,1)) -> BU0059 | D35: =IF(ISERROR(VLOOKUP($A$35,Voorraad!$A$2:$D$1001,3)),"",VLOOKUP($A$35,Voorraad!$A$2:$D$1001,3)) -> CON 1-881545-1 SHUNT | E35: =IF(ISERROR(VLOOKUP($A$35,Voorraad!$A$2:$D$1001,2)),"",VLOOKUP($A$35,Voorraad!$A$2:$D$1001,2)) -> #513JUMPOFSW | F35: =IF(ISERROR(VLOOKUP($A$35,Voorraad!$A$2:$H$1001,8)),"",VLOOKUP($A$35,Voorraad!$A$2:$H$1001,8)) -> 0 | G35: =IF(ISERROR(VLOOKUP($A$35,Voorraad!$A$2:$I$1001,9)),"",VLOOKUP($A$35,Voorraad!$A$2:$I$1001,9)) -> JUMPER-BL | H35: =IF(ISERROR(VLOOKUP($A$35,Voorraad!$A$2:$J$1001,10)),"",VLOOKUP($A$35,Voorraad!$A$2:$J$1001,10)) -> 0 | I35: =IF(ISERROR(VLOOKUP($A$35,Voorraad!$A$2:$G$1001,6)),"",VLOOKUP($A$35,Voorraad!$A$2:$G$1001,6)) -> TME | J35: =IF(ISERROR(VLOOKUP($A$35,Voorraad!$A$2:$G$1001,7)),"",VLOOKUP($A$35,Voorraad!$A$2:$G$1001,7)) -> 0 | K35: =IF(ISERROR(VLOOKUP($A$35,Voorraad!$A$2:$G$1001,5)),"",VLOOKUP($A$35,Voorraad!$A$2:$G$1001,5)) -> 8437/8439/8464/8510 | L35: =IF(ISERROR(VLOOKUP($A$35,Voorraad!$A$2:$D$1001,4)),"",VLOOKUP($A$35,Voorraad!$A$2:$D$1001,4)) -> 1725 | M35: 10 | N35: 0
A36: BU0045 | B36: =[5]Sheet1!$E$31 -> 10 | C36: =IF(ISERROR(VLOOKUP($A$36,Voorraad!$A$2:$D$1001,1)),"",VLOOKUP($A$36,Voorraad!$A$2:$D$1001,1)) -> BU0045 | D36: =IF(ISERROR(VLOOKUP($A$36,Voorraad!$A$2:$D$1001,3)),"",VLOOKUP($A$36,Voorraad!$A$2:$D$1001,3)) -> LED TLG124A GROEN 3.18MM | E36: =IF(ISERROR(VLOOKUP($A$36,Voorraad!$A$2:$D$1001,2)),"",VLOOKUP($A$36,Voorraad!$A$2:$D$1001,2)) -> KVD-03-035/G | F36: =IF(ISERROR(VLOOKUP($A$36,Voorraad!$A$2:$H$1001,8)),"",VLOOKUP($A$36,Voorraad!$A$2:$H$1001,8)) -> ? | G36: =IF(ISERROR(VLOOKUP($A$36,Voorraad!$A$2:$I$1001,9)),"",VLOOKUP($A$36,Voorraad!$A$2:$I$1001,9)) -> L-934GD | H36: =IF(ISERROR(VLOOKUP($A$36,Voorraad!$A$2:$J$1001,10)),"",VLOOKUP($A$36,Voorraad!$A$2:$J$1001,10)) -> 0 | I36: =IF(ISERROR(VLOOKUP($A$36,Voorraad!$A$2:$G$1001,6)),"",VLOOKUP($A$36,Voorraad!$A$2:$G$1001,6)) -> TME | J36: =IF(ISERROR(VLOOKUP($A$36,Voorraad!$A$2:$G$1001,7)),"",VLOOKUP($A$36,Voorraad!$A$2:$G$1001,7)) -> KHATOD / King Bright | K36: =IF(ISERROR(VLOOKUP($A$36,Voorraad!$A$2:$G$1001,5)),"",VLOOKUP($A$36,Voorraad!$A$2:$G$1001,5)) -> 8437/8438/8439/8464/8510 | L36: =IF(ISERROR(VLOOKUP($A$36,Voorraad!$A$2:$D$1001,4)),"",VLOOKUP($A$36,Voorraad!$A$2:$D$1001,4)) -> 2 | M36: 10 | N36: 8
A37: BU0050 | B37: =[5]Sheet1!$E$32 -> 170 | C37: =IF(ISERROR(VLOOKUP($A$37,Voorraad!$A$2:$D$1001,1)),"",VLOOKUP($A$37,Voorraad!$A$2:$D$1001,1)) -> BU0050 | D37: =IF(ISERROR(VLOOKUP($A$37,Voorraad!$A$2:$D$1001,3)),"",VLOOKUP($A$37,Voorraad!$A$2:$D$1001,3)) -> LED-RED | E37: =IF(ISERROR(VLOOKUP($A$37,Voorraad!$A$2:$D$1001,2)),"",VLOOKUP($A$37,Voorraad!$A$2:$D$1001,2)) -> KVD-03-035/R | F37: =IF(ISERROR(VLOOKUP($A$37,Voorraad!$A$2:$H$1001,8)),"",VLOOKUP($A$37,Voorraad!$A$2:$H$1001,8)) -> 0 | G37: =IF(ISERROR(VLOOKUP($A$37,Voorraad!$A$2:$I$1001,9)),"",VLOOKUP($A$37,Voorraad!$A$2:$I$1001,9)) -> L-934LSRD | H37: =IF(ISERROR(VLOOKUP($A$37,Voorraad!$A$2:$J$1001,10)),"",VLOOKUP($A$37,Voorraad!$A$2:$J$1001,10)) -> 0 | I37: =IF(ISERROR(VLOOKUP($A$37,Voorraad!$A$2:$G$1001,6)),"",VLOOKUP($A$37,Voorraad!$A$2:$G$1001,6)) -> TME | J37: =IF(ISERROR(VLOOKUP($A$37,Voorraad!$A$2:$G$1001,7)),"",VLOOKUP($A$37,Voorraad!$A$2:$G$1001,7)) -> KHATOD / King Bright | K37: =IF(ISERROR(VLOOKUP($A$37,Voorraad!$A$2:$G$1001,5)),"",VLOOKUP($A$37,Voorraad!$A$2:$G$1001,5)) -> 8464 | L37: =IF(ISERROR(VLOOKUP($A$37,Voorraad!$A$2:$D$1001,4)),"",VLOOKUP($A$37,Voorraad!$A$2:$D$1001,4)) -> 32 | M37: 170 | N37: 138
A38: BX0022 | B38: =[5]Sheet1!$E$33 -> 10 | C38: =IF(ISERROR(VLOOKUP($A$38,Voorraad!$A$2:$D$1001,1)),"",VLOOKUP($A$38,Voorraad!$A$2:$D$1001,1)) -> BX0022 | D38: =IF(ISERROR(VLOOKUP($A$38,Voorraad!$A$2:$D$1001,3)),"",VLOOKUP($A$38,Voorraad!$A$2:$D$1001,3)) -> UMK-BE 22.5 | E38: =IF(ISERROR(VLOOKUP($A$38,Voorraad!$A$2:$D$1001,2)),"",VLOOKUP($A$38,Voorraad!$A$2:$D$1001,2)) -> 2970028 | F38: =IF(ISERROR(VLOOKUP($A$37,Voorraad!$A$2:$H$1001,8)),"",VLOOKUP($A$37,Voorraad!$A$2:$H$1001,8)) -> 0 | G38: =IF(ISERROR(VLOOKUP($A$38,Voorraad!$A$2:$I$1001,9)),"",VLOOKUP($A$38,Voorraad!$A$2:$I$1001,9)) -> 2970028 / 1620255 | H38: =IF(ISERROR(VLOOKUP($A$38,Voorraad!$A$2:$J$1001,10)),"",VLOOKUP($A$38,Voorraad!$A$2:$J$1001,10)) -> 0 | I38: =IF(ISERROR(VLOOKUP($A$38,Voorraad!$A$2:$G$1001,6)),"",VLOOKUP($A$38,Voorraad!$A$2:$G$1001,6)) -> 0 | J38: =IF(ISERROR(VLOOKUP($A$38,Voorraad!$A$2:$G$1001,7)),"",VLOOKUP($A$38,Voorraad!$A$2:$G$1001,7)) -> Phoenix | K38: =IF(ISERROR(VLOOKUP($A$38,Voorraad!$A$2:$G$1001,5)),"",VLOOKUP($A$38,Voorraad!$A$2:$G$1001,5)) -> 8464 | L38: =IF(ISERROR(VLOOKUP($A$38,Voorraad!$A$2:$D$1001,4)),"",VLOOKUP($A$38,Voorraad!$A$2:$D$1001,4)) -> 5 | M38: 10 | N38: 5
A39: BX0023 | B39: =[5]Sheet1!$E$34 -> 20 | C39: =IF(ISERROR(VLOOKUP($A$39,Voorraad!$A$2:$D$1001,1)),"",VLOOKUP($A$39,Voorraad!$A$2:$D$1001,1)) -> BX0023 | D39: =IF(ISERROR(VLOOKUP($A$39,Voorraad!$A$2:$D$1001,3)),"",VLOOKUP($A$39,Voorraad!$A$2:$D$1001,3)) -> UMK-BE 45 | E39: =IF(ISERROR(VLOOKUP($A$39,Voorraad!$A$2:$D$1001,2)),"",VLOOKUP($A$39,Voorraad!$A$2:$D$1001,2)) -> 2970015 | F39: =IF(ISERROR(VLOOKUP($A$37,Voorraad!$A$2:$H$1001,8)),"",VLOOKUP($A$37,Voorraad!$A$2:$H$1001,8)) -> 0 | G39: =IF(ISERROR(VLOOKUP($A$39,Voorraad!$A$2:$I$1001,9)),"",VLOOKUP($A$39,Voorraad!$A$2:$I$1001,9)) -> 0 | H39: =IF(ISERROR(VLOOKUP($A$39,Voorraad!$A$2:$J$1001,10)),"",VLOOKUP($A$39,Voorraad!$A$2:$J$1001,10)) -> 0 | I39: =IF(ISERROR(VLOOKUP($A$39,Voorraad!$A$2:$G$1001,6)),"",VLOOKUP($A$39,Voorraad!$A$2:$G$1001,6)) -> 0 | J39: =IF(ISERROR(VLOOKUP($A$39,Voorraad!$A$2:$G$1001,7)),"",VLOOKUP($A$39,Voorraad!$A$2:$G$1001,7)) -> Phoenix | K39: =IF(ISERROR(VLOOKUP($A$39,Voorraad!$A$2:$G$1001,5)),"",VLOOKUP($A$39,Voorraad!$A$2:$G$1001,5)) -> 8410/8464 | L39: =IF(ISERROR(VLOOKUP($A$39,Voorraad!$A$2:$D$1001,4)),"",VLOOKUP($A$39,Voorraad!$A$2:$D$1001,4)) -> 0 | M39: 20 | N39: 20
A40: BX0024 | B40: =[5]Sheet1!$E$35 -> 20 | C40: =IF(ISERROR(VLOOKUP($A$40,Voorraad!$A$2:$D$1001,1)),"",VLOOKUP($A$40,Voorraad!$A$2:$D$1001,1)) -> BX0024 | D40: =IF(ISERROR(VLOOKUP($A$40,Voorraad!$A$2:$D$1001,3)),"",VLOOKUP($A$40,Voorraad!$A$2:$D$1001,3)) -> UMK-SE 11.25 | E40: =IF(ISERROR(VLOOKUP($A$40,Voorraad!$A$2:$D$1001,2)),"",VLOOKUP($A$40,Voorraad!$A$2:$D$1001,2)) -> 2970002 | F40: =IF(ISERROR(VLOOKUP($A$37,Voorraad!$A$2:$H$1001,8)),"",VLOOKUP($A$37,Voorraad!$A$2:$H$1001,8)) -> 0 | G40: =IF(ISERROR(VLOOKUP($A$40,Voorraad!$A$2:$I$1001,9)),"",VLOOKUP($A$40,Voorraad!$A$2:$I$1001,9)) -> 0 | H40: =IF(ISERROR(VLOOKUP($A$40,Voorraad!$A$2:$J$1001,10)),"",VLOOKUP($A$40,Voorraad!$A$2:$J$1001,10)) -> 0 | I40: =IF(ISERROR(VLOOKUP($A$40,Voorraad!$A$2:$G$1001,6)),"",VLOOKUP($A$40,Voorraad!$A$2:$G$1001,6)) -> 0 | J40: =IF(ISERROR(VLOOKUP($A$40,Voorraad!$A$2:$G$1001,7)),"",VLOOKUP($A$40,Voorraad!$A$2:$G$1001,7)) -> Phoenix | K40: =IF(ISERROR(VLOOKUP($A$40,Voorraad!$A$2:$G$1001,5)),"",VLOOKUP($A$40,Voorraad!$A$2:$G$1001,5)) -> 8410/8464 | L40: =IF(ISERROR(VLOOKUP($A$40,Voorraad!$A$2:$D$1001,4)),"",VLOOKUP($A$40,Voorraad!$A$2:$D$1001,4)) -> 0 | M40: 20 | N40: 20
A41: BX0025 | B41: =[5]Sheet1!$E$36 -> 20 | C41: =IF(ISERROR(VLOOKUP($A$41,Voorraad!$A$2:$D$1001,1)),"",VLOOKUP($A$41,Voorraad!$A$2:$D$1001,1)) -> BX0025 | D41: =IF(ISERROR(VLOOKUP($A$41,Voorraad!$A$2:$D$1001,3)),"",VLOOKUP($A$41,Voorraad!$A$2:$D$1001,3)) -> UMK-FE | E41: =IF(ISERROR(VLOOKUP($A$41,Voorraad!$A$2:$D$1001,2)),"",VLOOKUP($A$41,Voorraad!$A$2:$D$1001,2)) -> 2970031 | F41: =IF(ISERROR(VLOOKUP($A$37,Voorraad!$A$2:$H$1001,8)),"",VLOOKUP($A$37,Voorraad!$A$2:$H$1001,8)) -> 0 | G41: =IF(ISERROR(VLOOKUP($A$41,Voorraad!$A$2:$I$1001,9)),"",VLOOKUP($A$41,Voorraad!$A$2:$I$1001,9)) -> 0 | H41: =IF(ISERROR(VLOOKUP($A$41,Voorraad!$A$2:$J$1001,10)),"",VLOOKUP($A$41,Voorraad!$A$2:$J$1001,10)) -> 0 | I41: =IF(ISERROR(VLOOKUP($A$41,Voorraad!$A$2:$G$1001,6)),"",VLOOKUP($A$41,Voorraad!$A$2:$G$1001,6)) -> 0 | J41: =IF(ISERROR(VLOOKUP($A$41,Voorraad!$A$2:$G$1001,7)),"",VLOOKUP($A$41,Voorraad!$A$2:$G$1001,7)) -> Phoenix | K41: =IF(ISERROR(VLOOKUP($A$41,Voorraad!$A$2:$G$1001,5)),"",VLOOKUP($A$41,Voorraad!$A$2:$G$1001,5)) -> 8410/8464 | L41: =IF(ISERROR(VLOOKUP($A$41,Voorraad!$A$2:$D$1001,4)),"",VLOOKUP($A$41,Voorraad!$A$2:$D$1001,4)) -> 0 | M41: 20 | N41: 20
A42: BX0045 | B42: =[5]Sheet1!$E$37 -> 10 | C42: =IF(ISERROR(VLOOKUP($A$42,Voorraad!$A$2:$D$1001,1)),"",VLOOKUP($A$42,Voorraad!$A$2:$D$1001,1)) -> BX0045 | D42: =IF(ISERROR(VLOOKUP($A$42,Voorraad!$A$2:$D$1001,3)),"",VLOOKUP($A$42,Voorraad!$A$2:$D$1001,3)) -> PCB 8464 | E42: =IF(ISERROR(VLOOKUP($A$42,Voorraad!$A$2:$D$1001,2)),"",VLOOKUP($A$42,Voorraad!$A$2:$D$1001,2)) -> PCB 8464 | F42: =IF(ISERROR(VLOOKUP($A$42,Voorraad!$A$2:$H$1001,8)),"",VLOOKUP($A$42,Voorraad!$A$2:$H$1001,8)) -> 0 | G42: =IF(ISERROR(VLOOKUP($A$42,Voorraad!$A$2:$I$1001,9)),"",VLOOKUP($A$42,Voorraad!$A$2:$I$1001,9)) -> 0 | H42: =IF(ISERROR(VLOOKUP($A$42,Voorraad!$A$2:$J$1001,10)),"",VLOOKUP($A$42,Voorraad!$A$2:$J$1001,10)) -> 0 | I42: =IF(ISERROR(VLOOKUP($A$42,Voorraad!$A$2:$G$1001,6)),"",VLOOKUP($A$42,Voorraad!$A$2:$G$1001,6)) -> JvB | J42: =IF(ISERROR(VLOOKUP($A$42,Voorraad!$A$2:$G$1001,7)),"",VLOOKUP($A$42,Voorraad!$A$2:$G$1001,7)) -> JvB | K42: =IF(ISERROR(VLOOKUP($A$42,Voorraad!$A$2:$G$1001,5)),"",VLOOKUP($A$42,Voorraad!$A$2:$G$1001,5)) -> PCB 8464 | L42: =IF(ISERROR(VLOOKUP($A$42,Voorraad!$A$2:$D$1001,4)),"",VLOOKUP($A$42,Voorraad!$A$2:$D$1001,4)) -> 1 | M42: 10 | N42: 9

Sheet Picklijst 8510
A2: Pickorder 8510 | C2: =[6]Sheet1!$D$2 -> 75 | D2: X
A8: Art Nr CSI | B8: Benodigd | C8: Art Nr CSI | D8: Omschrijving | E8: Leverancier Nr | F8: Produco Nr | G8: OrderNr | H8: Opmerkingen/Alternatieven | I8: Leverancier | J8: Producent | K8: PCB | L8: Voorraad | M8: Benodigd | N8: Bestellen
A9: BR0001 | B9: =[6]Sheet1!$E$4 -> 75 | C9: =IF(ISERROR(VLOOKUP($A$9,Voorraad!$A$2:$D$1001,1)),"",VLOOKUP($A$9,Voorraad!$A$2:$D$1001,1)) -> BR0001 | D9: =IF(ISERROR(VLOOKUP($A$9,Voorraad!$A$2:$D$1001,3)),"",VLOOKUP($A$9,Voorraad!$A$2:$D$1001,3)) -> R 22E 1% 0.6W 7X2,5MM | E9: =IF(ISERROR(VLOOKUP($A$9,Voorraad!$A$2:$D$1001,2)),"",VLOOKUP($A$9,Voorraad!$A$2:$D$1001,2)) -> #10012201 | F9: =IF(ISERROR(VLOOKUP($A$9,Voorraad!$A$2:$H$1001,8)),"",VLOOKUP($A$9,Voorraad!$A$2:$H$1001,8)) -> 500028 | G9: =IF(ISERROR(VLOOKUP($A$9,Voorraad!$A$2:$I$1001,9)),"",VLOOKUP($A$9,Voorraad!$A$2:$I$1001,9)) -> 0 | H9: =IF(ISERROR(VLOOKUP($A$9,Voorraad!$A$2:$J$1001,10)),"",VLOOKUP($A$9,Voorraad!$A$2:$J$1001,10)) -> 0 | I9: =IF(ISERROR(VLOOKUP($A$9,Voorraad!$A$2:$G$1001,6)),"",VLOOKUP($A$9,Voorraad!$A$2:$G$1001,6)) -> 0 | J9: =IF(ISERROR(VLOOKUP($A$9,Voorraad!$A$2:$G$1001,7)),"",VLOOKUP($A$9,Voorraad!$A$2:$G$1001,7)) -> BCC | K9: =IF(ISERROR(VLOOKUP($A$9,Voorraad!$A$2:$G$1001,5)),"",VLOOKUP($A$9,Voorraad!$A$2:$G$1001,5)) -> 8510 | L9: =IF(ISERROR(VLOOKUP($A$9,Voorraad!$A$2:$D$1001,4)),"",VLOOKUP($A$9,Voorraad!$A$2:$D$1001,4)) -> 425 | M9: =B9 -> 75 | N9: =MAX(0,(SUM(M9-L9))) -> 0
A10: BR0002 | B10: =[6]Sheet1!$E$5 -> 150 | C10: =IF(ISERROR(VLOOKUP($A$10,Voorraad!$A$2:$D$1001,1)),"",VLOOKUP($A$10,Voorraad!$A$2:$D$1001,1)) -> BR0002 | D10: =IF(ISERROR(VLOOKUP($A$10,Voorraad!$A$2:$D$1001,3)),"",VLOOKUP($A$10,Voorraad!$A$2:$D$1001,3)) -> R 47E 1% 0.6W 7X2,5MM | E10: =IF(ISERROR(VLOOKUP($A$10,Voorraad!$A$2:$D$1001,2)),"",VLOOKUP($A$10,Voorraad!$A$2:$D$1001,2)) -> #10014701 | F10: =IF(ISERROR(VLOOKUP($A$10,Voorraad!$A$2:$H$1001,8)),"",VLOOKUP($A$10,Voorraad!$A$2:$H$1001,8)) -> 500032 | G10: =IF(ISERROR(VLOOKUP($A$10,Voorraad!$A$2:$I$1001,9)),"",VLOOKUP($A$10,Voorraad!$A$2:$I$1001,9)) -> M0.6W-47R | H10: =IF(ISERROR(VLOOKUP($A$10,Voorraad!$A$2:$J$1001,10)),"",VLOOKUP($A$10,Voorraad!$A$2:$J$1001,10)) -> 0 | I10: =IF(ISERROR(VLOOKUP($A$10,Voorraad!$A$2:$G$1001,6)),"",VLOOKUP($A$10,Voorraad!$A$2:$G$1001,6)) -> TME | J10: =IF(ISERROR(VLOOKUP($A$10,Voorraad!$A$2:$G$1001,7)),"",VLOOKUP($A$10,Voorraad!$A$2:$G$1001,7)) -> BCC | K10: =IF(ISERROR(VLOOKUP($A$10,Voorraad!$A$2:$G$1001,5)),"",VLOOKUP($A$10,Voorraad!$A$2:$G$1001,5)) -> 8510 | L10: =IF(ISERROR(VLOOKUP($A$10,Voorraad!$A$2:$D$1001,4)),"",VLOOKUP($A$10,Voorraad!$A$2:$D$1001,4)) -> 350 | M10: 150 | N10: 0
A11: BR0003 | B11: =[6]Sheet1!$E$6 -> 75 | C11: =IF(ISERROR(VLOOKUP($A$11,Voorraad!$A$2:$D$1001,1)),"",VLOOKUP($A$11,Voorraad!$A$2:$D$1001,1)) -> BR0003 | D11: =IF(ISERROR(VLOOKUP($A$11,Voorraad!$A$2:$D$1001,3)),"",VLOOKUP($A$11,Voorraad!$A$2:$D$1001,3)) -> R 100E 1% 0.6W 7X2,5MM | E11: =IF(ISERROR(VLOOKUP($A$11,Voorraad!$A$2:$D$1001,2)),"",VLOOKUP($A$11,Voorraad!$A$2:$D$1001,2)) -> #10021001 | F11: =IF(ISERROR(VLOOKUP($A$11,Voorraad!$A$2:$H$1001,8)),"",VLOOKUP($A$11,Voorraad!$A$2:$H$1001,8)) -> 500036 | G11: =IF(ISERROR(VLOOKUP($A$11,Voorraad!$A$2:$I$1001,9)),"",VLOOKUP($A$11,Voorraad!$A$2:$I$1001,9)) -> 0 | H11: =IF(ISERROR(VLOOKUP($A$11,Voorraad!$A$2:$J$1001,10)),"",VLOOKUP($A$11,Voorraad!$A$2:$J$1001,10)) -> 0 | I11: =IF(ISERROR(VLOOKUP($A$11,Voorraad!$A$2:$G$1001,6)),"",VLOOKUP($A$11,Voorraad!$A$2:$G$1001,6)) -> 0 | J11: =IF(ISERROR(VLOOKUP($A$11,Voorraad!$A$2:$G$1001,7)),"",VLOOKUP($A$11,Voorraad!$A$2:$G$1001,7)) -> BCC | K11: =IF(ISERROR(VLOOKUP($A$11,Voorraad!$A$2:$G$1001,5)),"",VLOOKUP($A$11,Voorraad!$A$2:$G$1001,5)) -> 8510/8464 | L11: =IF(ISERROR(VLOOKUP($A$11,Voorraad!$A$2:$D$1001,4)),"",VLOOKUP($A$11,Voorraad!$A$2:$D$1001,4)) -> 1725 | M11: 75 | N11: 0
A12: BR0004 | B12: =[6]Sheet1!$E$7 -> 75 | C12: =IF(ISERROR(VLOOKUP($A$12,Voorraad!$A$2:$D$1001,1)),"",VLOOKUP($A$12,Voorraad!$A$2:$D$1001,1)) -> BR0004 | D12: =IF(ISERROR(VLOOKUP($A$12,Voorraad!$A$2:$D$1001,3)),"",VLOOKUP($A$12,Voorraad!$A$2:$D$1001,3)) -> R 1K00 1% 0.6W 7X2,5MM | E12: =IF(ISERROR(VLOOKUP($A$12,Voorraad!$A$2:$D$1001,2)),"",VLOOKUP($A$12,Voorraad!$A$2:$D$1001,2)) -> #10031001 | F12: =IF(ISERROR(VLOOKUP($A$12,Voorraad!$A$2:$H$1001,8)),"",VLOOKUP($A$12,Voorraad!$A$2:$H$1001,8)) -> 500048 | G12: =IF(ISERROR(VLOOKUP($A$12,Voorraad!$A$2:$I$1001,9)),"",VLOOKUP($A$12,Voorraad!$A$2:$I$1001,9)) -> 0 | H12: =IF(ISERROR(VLOOKUP($A$12,Voorraad!$A$2:$J$1001,10)),"",VLOOKUP($A$12,Voorraad!$A$2:$J$1001,10)) -> 0 | I12: =IF(ISERROR(VLOOKUP($A$12,Voorraad!$A$2:$G$1001,6)),"",VLOOKUP($A$12,Voorraad!$A$2:$G$1001,6)) -> 0 | J12: =IF(ISERROR(VLOOKUP($A$12,Voorraad!$A$2:$G$1001,7)),"",VLOOKUP($A$12,Voorraad!$A$2:$G$1001,7)) -> BCC | K12: =IF(ISERROR(VLOOKUP($A$12,Voorraad!$A$2:$G$1001,5)),"",VLOOKUP($A$12,Voorraad!$A$2:$G$1001,5)) -> 8510/8437/8438/8439/8464 | L12: =IF(ISERROR(VLOOKUP($A$12,Voorraad!$A$2:$D$1001,4)),"",VLOOKUP($A$12,Voorraad!$A$2:$D$1001,4)) -> 208 | M12: 75 | N12: 0
A13: BR0005 | B13: =[6]Sheet1!$E$8 -> 75 | C13: =IF(ISERROR(VLOOKUP($A$13,Voorraad!$A$2:$D$1001,1)),"",VLOOKUP($A$13,Voorraad!$A$2:$D$1001,1)) -> BR0005 | D13: =IF(ISERROR(VLOOKUP($A$13,Voorraad!$A$2:$D$1001,3)),"",VLOOKUP($A$13,Voorraad!$A$2:$D$1001,3)) -> R 10K0 1% 0.6W 7X2,5MM | E13: =IF(ISERROR(VLOOKUP($A$13,Voorraad!$A$2:$D$1001,2)),"",VLOOKUP($A$13,Voorraad!$A$2:$D$1001,2)) -> #10041001 | F13: =IF(ISERROR(VLOOKUP($A$13,Voorraad!$A$2:$H$1001,8)),"",VLOOKUP($A$13,Voorraad!$A$2:$H$1001,8)) -> 500060 | G13: =IF(ISERROR(VLOOKUP($A$13,Voorraad!$A$2:$I$1001,9)),"",VLOOKUP($A$13,Voorraad!$A$2:$I$1001,9)) -> 0 | H13: =IF(ISERROR(VLOOKUP($A$13,Voorraad!$A$2:$J$1001,10)),"",VLOOKUP($A$13,Voorraad!$A$2:$J$1001,10)) -> 0 | I13: =IF(ISERROR(VLOOKUP($A$13,Voorraad!$A$2:$G$1001,6)),"",VLOOKUP($A$13,Voorraad!$A$2:$G$1001,6)) -> 0 | J13: =IF(ISERROR(VLOOKUP($A$13,Voorraad!$A$2:$G$1001,7)),"",VLOOKUP($A$13,Voorraad!$A$2:$G$1001,7)) -> BCC | K13: =IF(ISERROR(VLOOKUP($A$13,Voorraad!$A$2:$G$1001,5)),"",VLOOKUP($A$13,Voorraad!$A$2:$G$1001,5)) -> 8510/8437/8438/8439 | L13: =IF(ISERROR(VLOOKUP($A$13,Voorraad!$A$2:$D$1001,4)),"",VLOOKUP($A$13,Voorraad!$A$2:$D$1001,4)) -> 1908 | M13: 75 | N13: 0
A14: BR0006 | B14: =[6]Sheet1!$E$9 -> 225 | C14: =IF(ISERROR(VLOOKUP($A$14,Voorraad!$A$2:$D$1001,1)),"",VLOOKUP($A$14,Voorraad!$A$2:$D$1001,1)) -> BR0006 | D14: =IF(ISERROR(VLOOKUP($A$14,Voorraad!$A$2:$D$1001,3)),"",VLOOKUP($A$14,Voorraad!$A$2:$D$1001,3)) -> R 15K0 1% 0.6W 7X2,5MM | E14: =IF(ISERROR(VLOOKUP($A$14,Voorraad!$A$2:$D$1001,2)),"",VLOOKUP($A$14,Voorraad!$A$2:$D$1001,2)) -> #10041501 | F14: =IF(ISERROR(VLOOKUP($A$14,Voorraad!$A$2:$H$1001,8)),"",VLOOKUP($A$14,Voorraad!$A$2:$H$1001,8)) -> 500062 | G14: =IF(ISERROR(VLOOKUP($A$14,Voorraad!$A$2:$I$1001,9)),"",VLOOKUP($A$14,Voorraad!$A$2:$I$1001,9)) -> 0 | H14: =IF(ISERROR(VLOOKUP($A$14,Voorraad!$A$2:$J$1001,10)),"",VLOOKUP($A$14,Voorraad!$A$2:$J$1001,10)) -> 0 | I14: =IF(ISERROR(VLOOKUP($A$14,Voorraad!$A$2:$G$1001,6)),"",VLOOKUP($A$14,Voorraad!$A$2:$G$1001,6)) -> 0 | J14: =IF(ISERROR(VLOOKUP($A$14,Voorraad!$A$2:$G$1001,7)),"",VLOOKUP($A$14,Voorraad!$A$2:$G$1001,7)) -> BCC | K14: =IF(ISERROR(VLOOKUP($A$14,Voorraad!$A$2:$G$1001,5)),"",VLOOKUP($A$14,Voorraad!$A$2:$G$1001,5)) -> 8510 | L14: =IF(ISERROR(VLOOKUP($A$14,Voorraad!$A$2:$D$1001,4)),"",VLOOKUP($A$14,Voorraad!$A$2:$D$1001,4)) -> 1775 | M14: 225 | N14: 0
A15: BR0007 | B15: =[6]Sheet1!$E$10 -> 75 | C15: =IF(ISERROR(VLOOKUP($A$15,Voorraad!$A$2:$D$1001,1)),"",VLOOKUP($A$15,Voorraad!$A$2:$D$1001,1)) -> BR0007 | D15: =IF(ISERROR(VLOOKUP($A$15,Voorraad!$A$2:$D$1001,3)),"",VLOOKUP($A$15,Voorraad!$A$2:$D$1001,3)) -> R 22K0 1% 0.6W 7X2,5MM | E15: =IF(ISERROR(VLOOKUP($A$15,Voorraad!$A$2:$D$1001,2)),"",VLOOKUP($A$9,Voorraad!$A$2:$D$1001,2)) -> #10012201 | F15: =IF(ISERROR(VLOOKUP($A$15,Voorraad!$A$2:$H$1001,8)),"",VLOOKUP($A$15,Voorraad!$A$2:$H$1001,8)) -> 500064 | G15: =IF(ISERROR(VLOOKUP($A$15,Voorraad!$A$2:$I$1001,9)),"",VLOOKUP($A$15,Voorraad!$A$2:$I$1001,9)) -> 0 | H15: =IF(ISERROR(VLOOKUP($A$15,Voorraad!$A$2:$J$1001,10)),"",VLOOKUP($A$15,Voorraad!$A$2:$J$1001,10)) -> 0 | I15: =IF(ISERROR(VLOOKUP($A$15,Voorraad!$A$2:$G$1001,6)),"",VLOOKUP($A$15,Voorraad!$A$2:$G$1001,6)) -> 0 | J15: =IF(ISERROR(VLOOKUP($A$15,Voorraad!$A$2:$G$1001,7)),"",VLOOKUP($A$15,Voorraad!$A$2:$G$1001,7)) -> BCC | K15: =IF(ISERROR(VLOOKUP($A$15,Voorraad!$A$2:$G$1001,5)),"",VLOOKUP($A$15,Voorraad!$A$2:$G$1001,5)) -> 8510 | L15: =IF(ISERROR(VLOOKUP($A$15,Voorraad!$A$2:$D$1001,4)),"",VLOOKUP($A$15,Voorraad!$A$2:$D$1001,4)) -> 1025 | M15: 75 | N15: 0
A16: BR0008 | B16: =[6]Sheet1!$E$11 -> 150 | C16: =IF(ISERROR(VLOOKUP($A$16,Voorraad!$A$2:$D$1001,1)),"",VLOOKUP($A$16,Voorraad!$A$2:$D$1001,1)) -> BR0008 | D16: =IF(ISERROR(VLOOKUP($A$16,Voorraad!$A$2:$D$1001,3)),"",VLOOKUP($A$16,Voorraad!$A$2:$D$1001,3)) -> R 100K 1% 0.6W 7X2,5MM | E16: =IF(ISERROR(VLOOKUP($A$16,Voorraad!$A$2:$D$1001,2)),"",VLOOKUP($A$16,Voorraad!$A$2:$D$1001,2)) -> #10051001 | F16: =IF(ISERROR(VLOOKUP($A$16,Voorraad!$A$2:$H$1001,8)),"",VLOOKUP($A$16,Voorraad!$A$2:$H$1001,8)) -> 500072 | G16: =IF(ISERROR(VLOOKUP($A$16,Voorraad!$A$2:$I$1001,9)),"",VLOOKUP($A$16,Voorraad!$A$2:$I$1001,9)) -> 0 | H16: =IF(ISERROR(VLOOKUP($A$16,Voorraad!$A$2:$J$1001,10)),"",VLOOKUP($A$16,Voorraad!$A$2:$J$1001,10)) -> 0 | I16: =IF(ISERROR(VLOOKUP($A$16,Voorraad!$A$2:$G$1001,6)),"",VLOOKUP($A$16,Voorraad!$A$2:$G$1001,6)) -> 0 | J16: =IF(ISERROR(VLOOKUP($A$16,Voorraad!$A$2:$G$1001,7)),"",VLOOKUP($A$16,Voorraad!$A$2:$G$1001,7)) -> BCC | K16: =IF(ISERROR(VLOOKUP($A$16,Voorraad!$A$2:$G$1001,5)),"",VLOOKUP($A$16,Voorraad!$A$2:$G$1001,5)) -> 8510 | L16: =IF(ISERROR(VLOOKUP($A$16,Voorraad!$A$2:$D$1001,4)),"",VLOOKUP($A$16,Voorraad!$A$2:$D$1001,4)) -> 1350 | M16: 150 | N16: 0
A17: BR0009 | B17: =[6]Sheet1!$E$12 -> 75 | C17: =IF(ISERROR(VLOOKUP($A$17,Voorraad!$A$2:$D$1001,1)),"",VLOOKUP($A$17,Voorraad!$A$2:$D$1001,1)) -> BR0009 | D17: =IF(ISERROR(VLOOKUP($A$17,Voorraad!$A$2:$D$1001,3)),"",VLOOKUP($A$17,Voorraad!$A$2:$D$1001,3)) -> R 56E 1% 0.6W 7X2,5MM | E17: =IF(ISERROR(VLOOKUP($A$17,Voorraad!$A$2:$D$1001,2)),"",VLOOKUP($A$17,Voorraad!$A$2:$D$1001,2)) -> #10015601 | F17: =IF(ISERROR(VLOOKUP($A$17,Voorraad!$A$2:$H$1001,8)),"",VLOOKUP($A$17,Voorraad!$A$2:$H$1001,8)) -> 500033 | G17: =IF(ISERROR(VLOOKUP($A$17,Voorraad!$A$2:$I$1001,9)),"",VLOOKUP($A$17,Voorraad!$A$2:$I$1001,9)) -> 0 | H17: =IF(ISERROR(VLOOKUP($A$17,Voorraad!$A$2:$J$1001,10)),"",VLOOKUP($A$17,Voorraad!$A$2:$J$1001,10)) -> 0 | I17: =IF(ISERROR(VLOOKUP($A$17,Voorraad!$A$2:$G$1001,6)),"",VLOOKUP($A$17,Voorraad!$A$2:$G$1001,6)) -> 0 | J17: =IF(ISERROR(VLOOKUP($A$17,Voorraad!$A$2:$G$1001,7)),"",VLOOKUP($A$17,Voorraad!$A$2:$G$1001,7)) -> BCC | K17: =IF(ISERROR(VLOOKUP($A$17,Voorraad!$A$2:$G$1001,5)),"",VLOOKUP($A$17,Voorraad!$A$2:$G$1001,5)) -> 8510/8464 | L17: =IF(ISERROR(VLOOKUP($A$17,Voorraad!$A$2:$D$1001,4)),"",VLOOKUP($A$17,Voorraad!$A$2:$D$1001,4)) -> 1125 | M17: 75 | N17: 0
A18: BR0010 | B18: =[6]Sheet1!$E$13 -> 75 | C18: =IF(ISERROR(VLOOKUP($A$18,Voorraad!$A$2:$D$1001,1)),"",VLOOKUP($A$18,Voorraad!$A$2:$D$1001,1)) -> BR0010 | D18: =IF(ISERROR(VLOOKUP($A$18,Voorraad!$A$2:$D$1001,3)),"",VLOOKUP($A$18,Voorraad!$A$2:$D$1001,3)) -> R 180E 1% 0.6W 7X2,5MM | E18: =IF(ISERROR(VLOOKUP($A$18,Voorraad!$A$2:$D$1001,2)),"",VLOOKUP($A$18,Voorraad!$A$2:$D$1001,2)) -> #10021801 | F18: =IF(ISERROR(VLOOKUP($A$18,Voorraad!$A$2:$H$1001,8)),"",VLOOKUP($A$18,Voorraad!$A$2:$H$1001,8)) -> 500039 | G18: =IF(ISERROR(VLOOKUP($A$18,Voorraad!$A$2:$I$1001,9)),"",VLOOKUP($A$18,Voorraad!$A$2:$I$1001,9)) -> MO.6W-180R | H18: =IF(ISERROR(VLOOKUP($A$18,Voorraad!$A$2:$J$1001,10)),"",VLOOKUP($A$18,Voorraad!$A$2:$J$1001,10)) -> 0 | I18: =IF(ISERROR(VLOOKUP($A$18,Voorraad!$A$2:$G$1001,6)),"",VLOOKUP($A$18,Voorraad!$A$2:$G$1001,6)) -> TME | J18: =IF(ISERROR(VLOOKUP($A$18,Voorraad!$A$2:$G$1001,7)),"",VLOOKUP($A$18,Voorraad!$A$2:$G$1001,7)) -> BCC | K18: =IF(ISERROR(VLOOKUP($A$18,Voorraad!$A$2:$G$1001,5)),"",VLOOKUP($A$18,Voorraad!$A$2:$G$1001,5)) -> 8510 | L18: =IF(ISERROR(VLOOKUP($A$18,Voorraad!$A$2:$D$1001,4)),"",VLOOKUP($A$18,Voorraad!$A$2:$D$1001,4)) -> 125 | M18: 75 | N18: 0
A19: BR0011 | B19: =[6]Sheet1!$E$14 -> 150 | C19: =IF(ISERROR(VLOOKUP($A$19,Voorraad!$A$2:$D$1001,1)),"",VLOOKUP($A$19,Voorraad!$A$2:$D$1001,1)) -> BR0011 | D19: =IF(ISERROR(VLOOKUP($A$19,Voorraad!$A$2:$D$1001,3)),"",VLOOKUP($A$19,Voorraad!$A$2:$D$1001,3)) -> R 1K8 1% 0.6W 7X2,5MM | E19: =IF(ISERROR(VLOOKUP($A$19,Voorraad!$A$2:$D$1001,2)),"",VLOOKUP($A$19,Voorraad!$A$2:$D$1001,2)) -> #10031801 | F19: =IF(ISERROR(VLOOKUP($A$19,Voorraad!$A$2:$H$1001,8)),"",VLOOKUP($A$19,Voorraad!$A$2:$H$1001,8)) -> 500051 | G19: =IF(ISERROR(VLOOKUP($A$19,Voorraad!$A$2:$I$1001,9)),"",VLOOKUP($A$19,Voorraad!$A$2:$I$1001,9)) -> 0 | H19: =IF(ISERROR(VLOOKUP($A$19,Voorraad!$A$2:$J$1001,10)),"",VLOOKUP($A$19,Voorraad!$A$2:$J$1001,10)) -> 0 | I19: =IF(ISERROR(VLOOKUP($A$19,Voorraad!$A$2:$G$1001,6)),"",VLOOKUP($A$19,Voorraad!$A$2:$G$1001,6)) -> 0 | J19: =IF(ISERROR(VLOOKUP($A$19,Voorraad!$A$2:$G$1001,7)),"",VLOOKUP($A$19,Voorraad!$A$2:$G$1001,7)) -> BCC | K19: =IF(ISERROR(VLOOKUP($A$19,Voorraad!$A$2:$G$1001,5)),"",VLOOKUP($A$19,Voorraad!$A$2:$G$1001,5)) -> 8510 | L19: =IF(ISERROR(VLOOKUP($A$19,Voorraad!$A$2:$D$1001,4)),"",VLOOKUP($A$19,Voorraad!$A$2:$D$1001,4)) -> 1050 | M19: 150 | N19: 0
A20: BR0012 | B20: =[6]Sheet1!$E$15 -> 75 | C20: =IF(ISERROR(VLOOKUP($A$20,Voorraad!$A$2:$D$1001,1)),"",VLOOKUP($A$20,Voorraad!$A$2:$D$1001,1)) -> BR0012 | D20: =IF(ISERROR(VLOOKUP($A$20,Voorraad!$A$2:$D$1001,3)),"",VLOOKUP($A$20,Voorraad!$A$2:$D$1001,3)) -> R 2K7 1% 0.6W 7X2,5MM | E20: =IF(ISERROR(VLOOKUP($A$20,Voorraad!$A$2:$D$1001,2)),"",VLOOKUP($A$20,Voorraad!$A$2:$D$1001,2)) -> #10032701 | F20: =IF(ISERROR(VLOOKUP($A$20,Voorraad!$A$2:$H$1001,8)),"",VLOOKUP($A$20,Voorraad!$A$2:$H$1001,8)) -> 500053 | G20: =IF(ISERROR(VLOOKUP($A$20,Voorraad!$A$2:$I$1001,9)),"",VLOOKUP($A$20,Voorraad!$A$2:$I$1001,9)) -> 0 | H20: =IF(ISERROR(VLOOKUP($A$20,Voorraad!$A$2:$J$1001,10)),"",VLOOKUP($A$20,Voorraad!$A$2:$J$1001,10)) -> 0 | I20: =IF(ISERROR(VLOOKUP($A$20,Voorraad!$A$2:$G$1001,6)),"",VLOOKUP($A$20,Voorraad!$A$2:$G$1001,6)) -> 0 | J20: =IF(ISERROR(VLOOKUP($A$20,Voorraad!$A$2:$G$1001,7)),"",VLOOKUP($A$20,Voorraad!$A$2:$G$1001,7)) -> BCC | K20: =IF(ISERROR(VLOOKUP($A$20,Voorraad!$A$2:$G$1001,5)),"",VLOOKUP($A$20,Voorraad!$A$2:$G$1001,5)) -> 8510 | L20: =IF(ISERROR(VLOOKUP($A$20,Voorraad!$A$2:$D$1001,4)),"",VLOOKUP($A$20,Voorraad!$A$2:$D$1001,4)) -> 2225 | M20: 75 | N20: 0
A21: BR0013 | B21: =[6]Sheet1!$E$16 -> 75 | C21: =IF(ISERROR(VLOOKUP($A$21,Voorraad!$A$2:$D$1001,1)),"",VLOOKUP($A$21,Voorraad!$A$2:$D$1001,1)) -> BR0013 | D21: =IF(ISERROR(VLOOKUP($A$21,Voorraad!$A$2:$D$1001,3)),"",VLOOKUP($A$21,Voorraad!$A$2:$D$1001,3)) -> R 56K 1% 0.6W 7X2,5MM | E21: =IF(ISERROR(VLOOKUP($A$21,Voorraad!$A$2:$D$1001,2)),"",VLOOKUP($A$21,Voorraad!$A$2:$D$1001,2)) -> #10045601 | F21: =IF(ISERROR(VLOOKUP($A$21,Voorraad!$A$2:$H$1001,8)),"",VLOOKUP($A$21,Voorraad!$A$2:$H$1001,8)) -> 500069 | G21: =IF(ISERROR(VLOOKUP($A$21,Voorraad!$A$2:$I$1001,9)),"",VLOOKUP($A$21,Voorraad!$A$2:$I$1001,9)) -> 0 | H21: =IF(ISERROR(VLOOKUP($A$21,Voorraad!$A$2:$J$1001,10)),"",VLOOKUP($A$21,Voorraad!$A$2:$J$1001,10)) -> 0 | I21: =IF(ISERROR(VLOOKUP($A$21,Voorraad!$A$2:$G$1001,6)),"",VLOOKUP($A$21,Voorraad!$A$2:$G$1001,6)) -> 0 | J21: =IF(ISERROR(VLOOKUP($A$21,Voorraad!$A$2:$G$1001,7)),"",VLOOKUP($A$21,Voorraad!$A$2:$G$1001,7)) -> BCC | K21: =IF(ISERROR(VLOOKUP($A$21,Voorraad!$A$2:$G$1001,5)),"",VLOOKUP($A$21,Voorraad!$A$2:$G$1001,5)) -> 8510 | L21: =IF(ISERROR(VLOOKUP($A$21,Voorraad!$A$2:$D$1001,4)),"",VLOOKUP($A$21,Voorraad!$A$2:$D$1001,4)) -> 1925 | M21: 75 | N21: 0
A22: BR0014 | B22: =[6]Sheet1!$E$17 -> 150 | C22: =IF(ISERROR(VLOOKUP($A$22,Voorraad!$A$2:$D$1001,1)),"",VLOOKUP($A$22,Voorraad!$A$2:$D$1001,1)) -> BR0014 | D22: =IF(ISERROR(VLOOKUP($A$22,Voorraad!$A$2:$D$1001,3)),"",VLOOKUP($A$22,Voorraad!$A$2:$D$1001,3)) -> R 680K 1% 0.6W 7X2,5MM | E22: =IF(ISERROR(VLOOKUP($A$22,Voorraad!$A$2:$D$1001,2)),"",VLOOKUP($A$22,Voorraad!$A$2:$D$1001,2)) -> #10056801 | F22: =IF(ISERROR(VLOOKUP($A$22,Voorraad!$A$2:$H$1001,8)),"",VLOOKUP($A$22,Voorraad!$A$2:$H$1001,8)) -> 500082 | G22: =IF(ISERROR(VLOOKUP($A$22,Voorraad!$A$2:$I$1001,9)),"",VLOOKUP($A$22,Voorraad!$A$2:$I$1001,9)) -> 0 | H22: =IF(ISERROR(VLOOKUP($A$22,Voorraad!$A$2:$J$1001,10)),"",VLOOKUP($A$22,Voorraad!$A$2:$J$1001,10)) -> 0 | I22: =IF(ISERROR(VLOOKUP($A$22,Voorraad!$A$2:$G$1001,6)),"",VLOOKUP($A$22,Voorraad!$A$2:$G$1001,6)) -> 0 | J22: =IF(ISERROR(VLOOKUP($A$22,Voorraad!$A$2:$G$1001,7)),"",VLOOKUP($A$22,Voorraad!$A$2:$G$1001,7)) -> BCC | K22: =IF(ISERROR(VLOOKUP($A$22,Voorraad!$A$2:$G$1001,5)),"",VLOOKUP($A$22,Voorraad!$A$2:$G$1001,5)) -> 8510 | L22: =IF(ISERROR(VLOOKUP($A$22,Voorraad!$A$2:$D$1001,4)),"",VLOOKUP($A$22,Voorraad!$A$2:$D$1001,4)) -> 1100 | M22: 150 | N22: 0
A23: BR3525 | B23: =[6]Sheet1!$E$18 -> 75 | C23: =IF(ISERROR(VLOOKUP($A$23,Voorraad!$A$2:$D$1001,1)),"",VLOOKUP($A$23,Voorraad!$A$2:$D$1001,1)) -> BR3525 | D23: =IF(ISERROR(VLOOKUP($A$23,Voorraad!$A$2:$D$1001,3)),"",VLOOKUP($A$23,Voorraad!$A$2:$D$1001,3)) -> RT 1K 450MW 10% NTC 2E | E23: =IF(ISERROR(VLOOKUP($A$23,Voorraad!$A$2:$D$1001,2)),"",VLOOKUP($A$23,Voorraad!$A$2:$D$1001,2)) -> #120164K102JE | F23: =IF(ISERROR(VLOOKUP($A$23,Voorraad!$A$2:$H$1001,8)),"",VLOOKUP($A$23,Voorraad!$A$2:$H$1001,8)) -> 500277 | G23: =IF(ISERROR(VLOOKUP($A$23,Voorraad!$A$2:$I$1001,9)),"",VLOOKUP($A$23,Voorraad!$A$2:$I$1001,9)) -> 0 | H23: =IF(ISERROR(VLOOKUP($A$23,Voorraad!$A$2:$J$1001,10)),"",VLOOKUP($A$23,Voorraad!$A$2:$J$1001,10)) -> 0 | I23: =IF(ISERROR(VLOOKUP($A$23,Voorraad!$A$2:$G$1001,6)),"",VLOOKUP($A$23,Voorraad!$A$2:$G$1001,6)) -> 0 | J23: =IF(ISERROR(VLOOKUP($A$23,Voorraad!$A$2:$G$1001,7)),"",VLOOKUP($A$23,Voorraad!$A$2:$G$1001,7)) -> EPCOS | K23: =IF(ISERROR(VLOOKUP($A$23,Voorraad!$A$2:$G$1001,5)),"",VLOOKUP($A$23,Voorraad!$A$2:$G$1001,5)) -> 8510 | L23: =IF(ISERROR(VLOOKUP($A$23,Voorraad!$A$2:$D$1001,4)),"",VLOOKUP($A$23,Voorraad!$A$2:$D$1001,4)) -> 725 | M23: 75 | N23: 0
A24: BR3530 | B24: =[6]Sheet1!$E$19 -> 975 | C24: =IF(ISERROR(VLOOKUP($A$24,Voorraad!$A$2:$D$1001,1)),"",VLOOKUP($A$24,Voorraad!$A$2:$D$1001,1)) -> BR3530 | D24: =IF(ISERROR(VLOOKUP($A$24,Voorraad!$A$2:$D$1001,3)),"",VLOOKUP($A$24,Voorraad!$A$2:$D$1001,3)) -> RT 13E PTC 2E WPT2390-995 | E24: =IF(ISERROR(VLOOKUP($A$24,Voorraad!$A$2:$D$1001,2)),"",VLOOKUP($A$24,Voorraad!$A$2:$D$1001,2)) -> #120995120A | F24: =IF(ISERROR(VLOOKUP($A$24,Voorraad!$A$2:$H$1001,8)),"",VLOOKUP($A$24,Voorraad!$A$2:$H$1001,8)) -> 500248 | G24: =IF(ISERROR(VLOOKUP($A$24,Voorraad!$A$2:$I$1001,9)),"",VLOOKUP($A$24,Voorraad!$A$2:$I$1001,9)) -> B59995-C120-A70 | H24: =IF(ISERROR(VLOOKUP($A$24,Voorraad!$A$2:$J$1001,10)),"",VLOOKUP($A$24,Voorraad!$A$2:$J$1001,10)) -> 0 | I24: =IF(ISERROR(VLOOKUP($A$24,Voorraad!$A$2:$G$1001,6)),"",VLOOKUP($A$24,Voorraad!$A$2:$G$1001,6)) -> DISTRELEC | J24: =IF(ISERROR(VLOOKUP($A$24,Voorraad!$A$2:$G$1001,7)),"",VLOOKUP($A$24,Voorraad!$A$2:$G$1001,7)) -> EPCOS | K24: =IF(ISERROR(VLOOKUP($A$24,Voorraad!$A$2:$G$1001,5)),"",VLOOKUP($A$24,Voorraad!$A$2:$G$1001,5)) -> 8510 | L24: =IF(ISERROR(VLOOKUP($A$24,Voorraad!$A$2:$D$1001,4)),"",VLOOKUP($A$24,Voorraad!$A$2:$D$1001,4)) -> 5 | M24: 975 | N24: 970
A25: BR3550 | B25: =[6]Sheet1!$E$20 -> 75 | C25: =IF(ISERROR(VLOOKUP($A$25,Voorraad!$A$2:$D$1001,1)),"",VLOOKUP($A$25,Voorraad!$A$2:$D$1001,1)) -> BR3550 | D25: =IF(ISERROR(VLOOKUP($A$25,Voorraad!$A$2:$D$1001,3)),"",VLOOKUP($A$25,Voorraad!$A$2:$D$1001,3)) -> RV S05K30 100A 0.01W | E25: =IF(ISERROR(VLOOKUP($A$25,Voorraad!$A$2:$D$1001,2)),"",VLOOKUP($A$25,Voorraad!$A$2:$D$1001,2)) -> #122S05K30 | F25: =IF(ISERROR(VLOOKUP($A$25,Voorraad!$A$2:$H$1001,8)),"",VLOOKUP($A$25,Voorraad!$A$2:$H$1001,8)) -> 500088 | G25: =IF(ISERROR(VLOOKUP($A$25,Voorraad!$A$2:$I$1001,9)),"",VLOOKUP($A$25,Voorraad!$A$2:$I$1001,9)) -> SIOV-S05K30 | H25: =IF(ISERROR(VLOOKUP($A$25,Voorraad!$A$2:$J$1001,10)),"",VLOOKUP($A$25,Voorraad!$A$2:$J$1001,10)) -> Groter aantal inkopen | I25: =IF(ISERROR(VLOOKUP($A$25,Voorraad!$A$2:$G$1001,6)),"",VLOOKUP($A$25,Voorraad!$A$2:$G$1001,6)) -> TME | J25: =IF(ISERROR(VLOOKUP($A$25,Voorraad!$A$2:$G$1001,7)),"",VLOOKUP($A$25,Voorraad!$A$2:$G$1001,7)) -> EPCOS | K25: =IF(ISERROR(VLOOKUP($A$25,Voorraad!$A$2:$G$1001,5)),"",VLOOKUP($A$25,Voorraad!$A$2:$G$1001,5)) -> 8410/8437/8438/8439/8510 | L25: =IF(ISERROR(VLOOKUP($A$25,Voorraad!$A$2:$D$1001,4)),"",VLOOKUP($A$25,Voorraad!$A$2:$D$1001,4)) -> 86 | M25: 75 | N25: 0
A26: BR4008 | B26: =[6]Sheet1!$E$21 -> 150 | C26: =IF(ISERROR(VLOOKUP($A$26,Voorraad!$A$2:$D$1001,1)),"",VLOOKUP($A$26,Voorraad!$A$2:$D$1001,1)) -> BR4008 | D26: =IF(ISERROR(VLOOKUP($A$26,Voorraad!$A$2:$D$1001,3)),"",VLOOKUP($A$26,Voorraad!$A$2:$D$1001,3)) -> RV S05K385 385V 0.10W | E26: =IF(ISERROR(VLOOKUP($A$26,Voorraad!$A$2:$D$1001,2)),"",VLOOKUP($A$26,Voorraad!$A$2:$D$1001,2)) -> #122S05K385 | F26: =IF(ISERROR(VLOOKUP($A$26,Voorraad!$A$2:$H$1001,8)),"",VLOOKUP($A$26,Voorraad!$A$2:$H$1001,8)) -> 0 | G26: =IF(ISERROR(VLOOKUP($A$26,Voorraad!$A$2:$I$1001,9)),"",VLOOKUP($A$26,Voorraad!$A$2:$I$1001,9)) -> B72207-S 381K101 | H26: =IF(ISERROR(VLOOKUP($A$26,Voorraad!$A$2:$J$1001,10)),"",VLOOKUP($A$26,Voorraad!$A$2:$J$1001,10)) -> RS COMPONENTS NR: 138-9254 | I26: =IF(ISERROR(VLOOKUP($A$26,Voorraad!$A$2:$G$1001,6)),"",VLOOKUP($A$26,Voorraad!$A$2:$G$1001,6)) -> DISTRELEC | J26: =IF(ISERROR(VLOOKUP($A$26,Voorraad!$A$2:$G$1001,7)),"",VLOOKUP($A$26,Voorraad!$A$2:$G$1001,7)) -> EPCOS | K26: =IF(ISERROR(VLOOKUP($A$26,Voorraad!$A$2:$G$1001,5)),"",VLOOKUP($A$26,Voorraad!$A$2:$G$1001,5)) -> 8410/8510 | L26: =IF(ISERROR(VLOOKUP($A$26,Voorraad!$A$2:$D$1001,4)),"",VLOOKUP($A$26,Voorraad!$A$2:$D$1001,4)) -> -142 | M26: 150 | N26: 292
A27: BR4016 | B27: =[6]Sheet1!$E$22 -> 75 | C27: =IF(ISERROR(VLOOKUP($A$27,Voorraad!$A$2:$D$1001,1)),"",VLOOKUP($A$27,Voorraad!$A$2:$D$1001,1)) -> BR4016 | D27: =IF(ISERROR(VLOOKUP($A$27,Voorraad!$A$2:$D$1001,3)),"",VLOOKUP($A$27,Voorraad!$A$2:$D$1001,3)) -> F MF-R020 0.20A 60V | E27: =IF(ISERROR(VLOOKUP($A$27,Voorraad!$A$2:$D$1001,2)),"",VLOOKUP($A$27,Voorraad!$A$2:$D$1001,2)) -> #679MFR020 | F27: =IF(ISERROR(VLOOKUP($A$27,Voorraad!$A$2:$H$1001,8)),"",VLOOKUP($A$27,Voorraad!$A$2:$H$1001,8)) -> 0 | G27: =IF(ISERROR(VLOOKUP($A$27,Voorraad!$A$2:$I$1001,9)),"",VLOOKUP($A$27,Voorraad!$A$2:$I$1001,9)) -> 9350373 | H27: =IF(ISERROR(VLOOKUP($A$27,Voorraad!$A$2:$J$1001,10)),"",VLOOKUP($A$27,Voorraad!$A$2:$J$1001,10)) -> 0 | I27: =IF(ISERROR(VLOOKUP($A$27,Voorraad!$A$2:$G$1001,6)),"",VLOOKUP($A$27,Voorraad!$A$2:$G$1001,6)) -> FARNELL | J27: =IF(ISERROR(VLOOKUP($A$27,Voorraad!$A$2:$G$1001,7)),"",VLOOKUP($A$27,Voorraad!$A$2:$G$1001,7)) -> BOURNS | K27: =IF(ISERROR(VLOOKUP($A$27,Voorraad!$A$2:$G$1001,5)),"",VLOOKUP($A$27,Voorraad!$A$2:$G$1001,5)) -> 8510 | L27: =IF(ISERROR(VLOOKUP($A$27,Voorraad!$A$2:$D$1001,4)),"",VLOOKUP($A$27,Voorraad!$A$2:$D$1001,4)) -> -51 | M27: 75 | N27: 126
A28: BR4040 | B28: =[6]Sheet1!$E$23 -> 75 | C28: =IF(ISERROR(VLOOKUP($A$28,Voorraad!$A$2:$D$1001,1)),"",VLOOKUP($A$28,Voorraad!$A$2:$D$1001,1)) -> BR4040 | D28: =IF(ISERROR(VLOOKUP($A$28,Voorraad!$A$2:$D$1001,3)),"",VLOOKUP($A$28,Voorraad!$A$2:$D$1001,3)) -> RA 1K-4X SIL08 4608X-2 | E28: =IF(ISERROR(VLOOKUP($A$28,Voorraad!$A$2:$D$1001,2)),"",VLOOKUP($A$28,Voorraad!$A$2:$D$1001,2)) -> #138X2310B | F28: =IF(ISERROR(VLOOKUP($A$28,Voorraad!$A$2:$H$1001,8)),"",VLOOKUP($A$28,Voorraad!$A$2:$H$1001,8)) -> 500209 | G28: =IF(ISERROR(VLOOKUP($A$28,Voorraad!$A$2:$I$1001,9)),"",VLOOKUP($A$28,Voorraad!$A$2:$I$1001,9)) -> 0 | H28: =IF(ISERROR(VLOOKUP($A$28,Voorraad!$A$2:$J$1001,10)),"",VLOOKUP($A$28,Voorraad!$A$2:$J$1001,10)) -> 0 | I28: =IF(ISERROR(VLOOKUP($A$28,Voorraad!$A$2:$G$1001,6)),"",VLOOKUP($A$28,Voorraad!$A$2:$G$1001,6)) -> 0 | J28: =IF(ISERROR(VLOOKUP($A$28,Voorraad!$A$2:$G$1001,7)),"",VLOOKUP($A$28,Voorraad!$A$2:$G$1001,7)) -> BOURNS | K28: =IF(ISERROR(VLOOKUP($A$28,Voorraad!$A$2:$G$1001,5)),"",VLOOKUP($A$28,Voorraad!$A$2:$G$1001,5)) -> 8510 | L28: =IF(ISERROR(VLOOKUP($A$28,Voorraad!$A$2:$D$1001,4)),"",VLOOKUP($A$28,Voorraad!$A$2:$D$1001,4)) -> 225 | M28: 75 | N28: 0
A29: BR4045 | B29: =[6]Sheet1!$E$24 -> 75 | C29: =IF(ISERROR(VLOOKUP($A$29,Voorraad!$A$2:$D$1001,1)),"",VLOOKUP($A$29,Voorraad!$A$2:$D$1001,1)) -> BR4045 | D29: =IF(ISERROR(VLOOKUP($A$29,Voorraad!$A$2:$D$1001,3)),"",VLOOKUP($A$29,Voorraad!$A$2:$D$1001,3)) -> RA 2K7 4X SIL8 4608X-2 | E29: =IF(ISERROR(VLOOKUP($A$29,Voorraad!$A$2:$D$1001,2)),"",VLOOKUP($A$29,Voorraad!$A$2:$D$1001,2)) -> #138X23270B | F29: =IF(ISERROR(VLOOKUP($A$29,Voorraad!$A$2:$H$1001,8)),"",VLOOKUP($A$29,Voorraad!$A$2:$H$1001,8)) -> 500340 | G29: =IF(ISERROR(VLOOKUP($A$29,Voorraad!$A$2:$I$1001,9)),"",VLOOKUP($A$29,Voorraad!$A$2:$I$1001,9)) -> 4608X-102-272LF | H29: =IF(ISERROR(VLOOKUP($A$29,Voorraad!$A$2:$J$1001,10)),"",VLOOKUP($A$29,Voorraad!$A$2:$J$1001,10)) -> 0 | I29: =IF(ISERROR(VLOOKUP($A$29,Voorraad!$A$2:$G$1001,6)),"",VLOOKUP($A$29,Voorraad!$A$2:$G$1001,6)) -> TME | J29: =IF(ISERROR(VLOOKUP($A$29,Voorraad!$A$2:$G$1001,7)),"",VLOOKUP($A$29,Voorraad!$A$2:$G$1001,7)) -> BOURNS | K29: =IF(ISERROR(VLOOKUP($A$29,Voorraad!$A$2:$G$1001,5)),"",VLOOKUP($A$29,Voorraad!$A$2:$G$1001,5)) -> 8510 | L29: =IF(ISERROR(VLOOKUP($A$29,Voorraad!$A$2:$D$1001,4)),"",VLOOKUP($A$29,Voorraad!$A$2:$D$1001,4)) -> 15 | M29: 75 | N29: 60
A30: BR4050 | B30: =[6]Sheet1!$E$25 -> 225 | C30: =IF(ISERROR(VLOOKUP($A$30,Voorraad!$A$2:$D$1001,1)),"",VLOOKUP($A$30,Voorraad!$A$2:$D$1001,1)) -> BR4050 | D30: =IF(ISERROR(VLOOKUP($A$30,Voorraad!$A$2:$D$1001,3)),"",VLOOKUP($A$30,Voorraad!$A$2:$D$1001,3)) -> RA 10K-4X SIL08 4608X-2 | E30: =IF(ISERROR(VLOOKUP($A$30,Voorraad!$A$2:$D$1001,2)),"",VLOOKUP($A$30,Voorraad!$A$2:$D$1001,2)) -> #138X24100B | F30: =IF(ISERROR(VLOOKUP($A$30,Voorraad!$A$2:$H$1001,8)),"",VLOOKUP($A$30,Voorraad!$A$2:$H$1001,8)) -> 500342 | G30: =IF(ISERROR(VLOOKUP($A$30,Voorraad!$A$2:$I$1001,9)),"",VLOOKUP($A$30,Voorraad!$A$2:$I$1001,9)) -> 4608X-102-103LF | H30: =IF(ISERROR(VLOOKUP($A$30,Voorraad!$A$2:$J$1001,10)),"",VLOOKUP($A$30,Voorraad!$A$2:$J$1001,10)) -> 0 | I30: =IF(ISERROR(VLOOKUP($A$30,Voorraad!$A$2:$G$1001,6)),"",VLOOKUP($A$30,Voorraad!$A$2:$G$1001,6)) -> MOUSER | J30: =IF(ISERROR(VLOOKUP($A$30,Voorraad!$A$2:$G$1001,7)),"",VLOOKUP($A$30,Voorraad!$A$2:$G$1001,7)) -> BOURNS | K30: =IF(ISERROR(VLOOKUP($A$30,Voorraad!$A$2:$G$1001,5)),"",VLOOKUP($A$30,Voorraad!$A$2:$G$1001,5)) -> 8510 | L30: =IF(ISERROR(VLOOKUP($A$30,Voorraad!$A$2:$D$1001,4)),"",VLOOKUP($A$30,Voorraad!$A$2:$D$1001,4)) -> -101 | M30: 225 | N30: 326
A31: BR4060 | B31: =[6]Sheet1!$E$26 -> 225 | C31: =IF(ISERROR(VLOOKUP($A$31,Voorraad!$A$2:$D$1001,1)),"",VLOOKUP($A$31,Voorraad!$A$2:$D$1001,1)) -> BR4060 | D31: =IF(ISERROR(VLOOKUP($A$31,Voorraad!$A$2:$D$1001,3)),"",VLOOKUP($A$31,Voorraad!$A$2:$D$1001,3)) -> RA 1K-9X SIL10 4610X-1 | E31: =IF(ISERROR(VLOOKUP($A$31,Voorraad!$A$2:$D$1001,2)),"",VLOOKUP($A$31,Voorraad!$A$2:$D$1001,2)) -> #140X13100B | F31: =IF(ISERROR(VLOOKUP($A$31,Voorraad!$A$2:$H$1001,8)),"",VLOOKUP($A$31,Voorraad!$A$2:$H$1001,8)) -> 500361 | G31: =IF(ISERROR(VLOOKUP($A$31,Voorraad!$A$2:$I$1001,9)),"",VLOOKUP($A$31,Voorraad!$A$2:$I$1001,9)) -> 0 | H31: =IF(ISERROR(VLOOKUP($A$31,Voorraad!$A$2:$J$1001,10)),"",VLOOKUP($A$31,Voorraad!$A$2:$J$1001,10)) -> 0 | I31: =IF(ISERROR(VLOOKUP($A$31,Voorraad!$A$2:$G$1001,6)),"",VLOOKUP($A$31,Voorraad!$A$2:$G$1001,6)) -> 0 | J31: =IF(ISERROR(VLOOKUP($A$31,Voorraad!$A$2:$G$1001,7)),"",VLOOKUP($A$31,Voorraad!$A$2:$G$1001,7)) -> BOURNS | K31: =IF(ISERROR(VLOOKUP($A$31,Voorraad!$A$2:$G$1001,5)),"",VLOOKUP($A$31,Voorraad!$A$2:$G$1001,5)) -> 8510 | L31: =IF(ISERROR(VLOOKUP($A$31,Voorraad!$A$2:$D$1001,4)),"",VLOOKUP($A$31,Voorraad!$A$2:$D$1001,4)) -> -142 | M31: 225 | N31: 367
A32: BR4070 | B32: =[6]Sheet1!$E$27 -> 150 | C32: =IF(ISERROR(VLOOKUP($A$32,Voorraad!$A$2:$D$1001,1)),"",VLOOKUP($A$32,Voorraad!$A$2:$D$1001,1)) -> BR4070 | D32: =IF(ISERROR(VLOOKUP($A$32,Voorraad!$A$2:$D$1001,3)),"",VLOOKUP($A$32,Voorraad!$A$2:$D$1001,3)) -> RA 27K 9X SIL10 4610X-101 | E32: =IF(ISERROR(VLOOKUP($A$32,Voorraad!$A$2:$D$1001,2)),"",VLOOKUP($A$32,Voorraad!$A$2:$D$1001,2)) -> #140X14270B | F32: =IF(ISERROR(VLOOKUP($A$32,Voorraad!$A$2:$H$1001,8)),"",VLOOKUP($A$32,Voorraad!$A$2:$H$1001,8)) -> 500202 | G32: =IF(ISERROR(VLOOKUP($A$32,Voorraad!$A$2:$I$1001,9)),"",VLOOKUP($A$32,Voorraad!$A$2:$I$1001,9)) -> 652-4610X-1LF-27K | H32: =IF(ISERROR(VLOOKUP($A$32,Voorraad!$A$2:$J$1001,10)),"",VLOOKUP($A$32,Voorraad!$A$2:$J$1001,10)) -> 0 | I32: =IF(ISERROR(VLOOKUP($A$32,Voorraad!$A$2:$G$1001,6)),"",VLOOKUP($A$32,Voorraad!$A$2:$G$1001,6)) -> MOUSER | J32: =IF(ISERROR(VLOOKUP($A$32,Voorraad!$A$2:$G$1001,7)),"",VLOOKUP($A$32,Voorraad!$A$2:$G$1001,7)) -> BOURNS | K32: =IF(ISERROR(VLOOKUP($A$32,Voorraad!$A$2:$G$1001,5)),"",VLOOKUP($A$32,Voorraad!$A$2:$G$1001,5)) -> 8510 | L32: =IF(ISERROR(VLOOKUP($A$32,Voorraad!$A$2:$D$1001,4)),"",VLOOKUP($A$32,Voorraad!$A$2:$D$1001,4)) -> 1 | M32: 150 | N32: 149
A33: BR4530G | B33: =[6]Sheet1!$E$28 -> 150 | C33: =IF(ISERROR(VLOOKUP($A$33,Voorraad!$A$2:$D$1001,1)),"",VLOOKUP($A$33,Voorraad!$A$2:$D$1001,1)) -> BR4530G | D33: =IF(ISERROR(VLOOKUP($A$33,Voorraad!$A$2:$D$1001,3)),"",VLOOKUP($A$33,Voorraad!$A$2:$D$1001,3)) -> RA 100K-9X SIL10 4610X-1 | E33: =IF(ISERROR(VLOOKUP($A$33,Voorraad!$A$2:$D$1001,2)),"",VLOOKUP($A$33,Voorraad!$A$2:$D$1001,2)) -> #140X1510B | F33: =IF(ISERROR(VLOOKUP($A$33,Voorraad!$A$2:$H$1001,8)),"",VLOOKUP($A$33,Voorraad!$A$2:$H$1001,8)) -> 500302 | G33: =IF(ISERROR(VLOOKUP($A$33,Voorraad!$A$2:$I$1001,9)),"",VLOOKUP($A$33,Voorraad!$A$2:$I$1001,9)) -> 0 | H33: =IF(ISERROR(VLOOKUP($A$33,Voorraad!$A$2:$J$1001,10)),"",VLOOKUP($A$33,Voorraad!$A$2:$J$1001,10)) -> 0 | I33: =IF(ISERROR(VLOOKUP($A$33,Voorraad!$A$2:$G$1001,6)),"",VLOOKUP($A$33,Voorraad!$A$2:$G$1001,6)) -> 0 | J33: =IF(ISERROR(VLOOKUP($A$33,Voorraad!$A$2:$G$1001,7)),"",VLOOKUP($A$33,Voorraad!$A$2:$G$1001,7)) -> BOURNS | K33: =IF(ISERROR(VLOOKUP($A$33,Voorraad!$A$2:$G$1001,5)),"",VLOOKUP($A$33,Voorraad!$A$2:$G$1001,5)) -> 8510 | L33: =IF(ISERROR(VLOOKUP($A$33,Voorraad!$A$2:$D$1001,4)),"",VLOOKUP($A$33,Voorraad!$A$2:$D$1001,4)) -> -46 | M33: 150 | N33: 196
A34: BR4535G | B34: =[6]Sheet1!$E$29 -> 150 | C34: =IF(ISERROR(VLOOKUP($A$34,Voorraad!$A$2:$D$1001,1)),"",VLOOKUP($A$34,Voorraad!$A$2:$D$1001,1)) -> BR4535G | D34: =IF(ISERROR(VLOOKUP($A$34,Voorraad!$A$2:$D$1001,3)),"",VLOOKUP($A$34,Voorraad!$A$2:$D$1001,3)) -> RA 100K-8X SIL8 4116R-001 | E34: =IF(ISERROR(VLOOKUP($A$34,Voorraad!$A$2:$D$1001,2)),"",VLOOKUP($A$34,Voorraad!$A$2:$D$1001,2)) -> #152R15100B | F34: =IF(ISERROR(VLOOKUP($A$34,Voorraad!$A$2:$H$1001,8)),"",VLOOKUP($A$34,Voorraad!$A$2:$H$1001,8)) -> 500204 | G34: =IF(ISERROR(VLOOKUP($A$34,Voorraad!$A$2:$I$1001,9)),"",VLOOKUP($A$34,Voorraad!$A$2:$I$1001,9)) -> 4116R-001-104 | H34: =IF(ISERROR(VLOOKUP($A$34,Voorraad!$A$2:$J$1001,10)),"",VLOOKUP($A$34,Voorraad!$A$2:$J$1001,10)) -> 0 | I34: =IF(ISERROR(VLOOKUP($A$34,Voorraad!$A$2:$G$1001,6)),"",VLOOKUP($A$34,Voorraad!$A$2:$G$1001,6)) -> UT SOURCE | J34: =IF(ISERROR(VLOOKUP($A$34,Voorraad!$A$2:$G$1001,7)),"",VLOOKUP($A$34,Voorraad!$A$2:$G$1001,7)) -> BOURNS | K34: =IF(ISERROR(VLOOKUP($A$34,Voorraad!$A$2:$G$1001,5)),"",VLOOKUP($A$34,Voorraad!$A$2:$G$1001,5)) -> 8510 | L34: =IF(ISERROR(VLOOKUP($A$34,Voorraad!$A$2:$D$1001,4)),"",VLOOKUP($A$34,Voorraad!$A$2:$D$1001,4)) -> 0 | M34: 150 | N34: 150
A35: BR4540 | B35: =[6]Sheet1!$E$30 -> 75 | C35: =IF(ISERROR(VLOOKUP($A$35,Voorraad!$A$2:$D$1001,1)),"",VLOOKUP($A$35,Voorraad!$A$2:$D$1001,1)) -> BR4540 | D35: =IF(ISERROR(VLOOKUP($A$35,Voorraad!$A$2:$D$1001,3)),"",VLOOKUP($A$35,Voorraad!$A$2:$D$1001,3)) -> CC 220P 3KV 20% 3E | E35: =IF(ISERROR(VLOOKUP($A$35,Voorraad!$A$2:$D$1001,2)),"",VLOOKUP($A$35,Voorraad!$A$2:$D$1001,2)) -> #29222100020P | F35: =IF(ISERROR(VLOOKUP($A$35,Voorraad!$A$2:$H$1001,8)),"",VLOOKUP($A$35,Voorraad!$A$2:$H$1001,8)) -> 500131 | G35: =IF(ISERROR(VLOOKUP($A$35,Voorraad!$A$2:$I$1001,9)),"",VLOOKUP($A$35,Voorraad!$A$2:$I$1001,9)) -> 0 | H35: =IF(ISERROR(VLOOKUP($A$35,Voorraad!$A$2:$J$1001,10)),"",VLOOKUP($A$35,Voorraad!$A$2:$J$1001,10)) -> 0 | I35: =IF(ISERROR(VLOOKUP($A$35,Voorraad!$A$2:$G$1001,6)),"",VLOOKUP($A$35,Voorraad!$A$2:$G$1001,6)) -> 0 | J35: =IF(ISERROR(VLOOKUP($A$35,Voorraad!$A$2:$G$1001,7)),"",VLOOKUP($A$35,Voorraad!$A$2:$G$1001,7)) -> AVX / PANASONIC | K35: =IF(ISERROR(VLOOKUP($A$35,Voorraad!$A$2:$G$1001,5)),"",VLOOKUP($A$35,Voorraad!$A$2:$G$1001,5)) -> 8510 | L35: =IF(ISERROR(VLOOKUP($A$35,Voorraad!$A$2:$D$1001,4)),"",VLOOKUP($A$35,Voorraad!$A$2:$D$1001,4)) -> -75 | M35: 75 | N35: 150
A36: BR45810 | B36: =[6]Sheet1!$E$31 -> 225 | C36: =IF(ISERROR(VLOOKUP($A$36,Voorraad!$A$2:$D$1001,1)),"",VLOOKUP($A$36,Voorraad!$A$2:$D$1001,1)) -> BR45810 | D36: =IF(ISERROR(VLOOKUP($A$36,Voorraad!$A$2:$D$1001,3)),"",VLOOKUP($A$36,Voorraad!$A$2:$D$1001,3)) -> CC 1N 100V +/- 10% 2E | E36: =IF(ISERROR(VLOOKUP($A$36,Voorraad!$A$2:$D$1001,2)),"",VLOOKUP($A$36,Voorraad!$A$2:$D$1001,2)) -> #2231010K | F36: =IF(ISERROR(VLOOKUP($A$36,Voorraad!$A$2:$H$1001,8)),"",VLOOKUP($A$36,Voorraad!$A$2:$H$1001,8)) -> 500135 | G36: =IF(ISERROR(VLOOKUP($A$36,Voorraad!$A$2:$I$1001,9)),"",VLOOKUP($A$36,Voorraad!$A$2:$I$1001,9)) -> FG28X7R1H102KNT6 | H36: =IF(ISERROR(VLOOKUP($A$36,Voorraad!$A$2:$J$1001,10)),"",VLOOKUP($A$36,Voorraad!$A$2:$J$1001,10)) -> 0 | I36: =IF(ISERROR(VLOOKUP($A$36,Voorraad!$A$2:$G$1001,6)),"",VLOOKUP($A$36,Voorraad!$A$2:$G$1001,6)) -> MOUSER | J36: =IF(ISERROR(VLOOKUP($A$36,Voorraad!$A$2:$G$1001,7)),"",VLOOKUP($A$36,Voorraad!$A$2:$G$1001,7)) -> PHILIPS | K36: =IF(ISERROR(VLOOKUP($A$36,Voorraad!$A$2:$G$1001,5)),"",VLOOKUP($A$36,Voorraad!$A$2:$G$1001,5)) -> 8510 | L36: =IF(ISERROR(VLOOKUP($A$36,Voorraad!$A$2:$D$1001,4)),"",VLOOKUP($A$36,Voorraad!$A$2:$D$1001,4)) -> 7 | M36: 225 | N36: 218
A37: BR45812 | B37: =[6]Sheet1!$E$32 -> 75 | C37: =IF(ISERROR(VLOOKUP($A$37,Voorraad!$A$2:$D$1001,1)),"",VLOOKUP($A$37,Voorraad!$A$2:$D$1001,1)) -> BR45812 | D37: =IF(ISERROR(VLOOKUP($A$37,Voorraad!$A$2:$D$1001,3)),"",VLOOKUP($A$37,Voorraad!$A$2:$D$1001,3)) -> CC 2N2 100V 10% 2E K2000 | E37: =IF(ISERROR(VLOOKUP($A$37,Voorraad!$A$2:$D$1001,2)),"",VLOOKUP($A$37,Voorraad!$A$2:$D$1001,2)) -> #2202210KR | F37: =IF(ISERROR(VLOOKUP($A$37,Voorraad!$A$2:$H$1001,8)),"",VLOOKUP($A$37,Voorraad!$A$2:$H$1001,8)) -> 500325 | G37: =IF(ISERROR(VLOOKUP($A$37,Voorraad!$A$2:$I$1001,9)),"",VLOOKUP($A$37,Voorraad!$A$2:$I$1001,9)) -> 594-K222K15X7RH5UL2 | H37: =IF(ISERROR(VLOOKUP($A$37,Voorraad!$A$2:$J$1001,10)),"",VLOOKUP($A$37,Voorraad!$A$2:$J$1001,10)) -> 0 | I37: =IF(ISERROR(VLOOKUP($A$37,Voorraad!$A$2:$G$1001,6)),"",VLOOKUP($A$37,Voorraad!$A$2:$G$1001,6)) -> MOUSER | J37: =IF(ISERROR(VLOOKUP($A$37,Voorraad!$A$2:$G$1001,7)),"",VLOOKUP($A$37,Voorraad!$A$2:$G$1001,7)) -> BCE | K37: =IF(ISERROR(VLOOKUP($A$37,Voorraad!$A$2:$G$1001,5)),"",VLOOKUP($A$37,Voorraad!$A$2:$G$1001,5)) -> 8510 | L37: =IF(ISERROR(VLOOKUP($A$37,Voorraad!$A$2:$D$1001,4)),"",VLOOKUP($A$37,Voorraad!$A$2:$D$1001,4)) -> 0 | M37: 75 | N37: 75
A38: BR5010 | B38: =[6]Sheet1!$E$33 -> 450 | C38: =IF(ISERROR(VLOOKUP($A$38,Voorraad!$A$2:$D$1001,1)),"",VLOOKUP($A$38,Voorraad!$A$2:$D$1001,1)) -> BR5010 | D38: =IF(ISERROR(VLOOKUP($A$38,Voorraad!$A$2:$D$1001,3)),"",VLOOKUP($A$38,Voorraad!$A$2:$D$1001,3)) -> CC 47N 63V +80 -20% 2E 55' | E38: =IF(ISERROR(VLOOKUP($A$38,Voorraad!$A$2:$D$1001,2)),"",VLOOKUP($A$38,Voorraad!$A$2:$D$1001,2)) -> #2344710KKE | F38: =IF(ISERROR(VLOOKUP($A$38,Voorraad!$A$2:$H$1001,8)),"",VLOOKUP($A$38,Voorraad!$A$2:$H$1001,8)) -> 500138 | G38: =IF(ISERROR(VLOOKUP($A$38,Voorraad!$A$2:$I$1001,9)),"",VLOOKUP($A$38,Voorraad!$A$2:$I$1001,9)) -> 0 | H38: =IF(ISERROR(VLOOKUP($A$38,Voorraad!$A$2:$J$1001,10)),"",VLOOKUP($A$38,Voorraad!$A$2:$J$1001,10)) -> Alternatief: 47NF/100V | I38: =IF(ISERROR(VLOOKUP($A$38,Voorraad!$A$2:$G$1001,6)),"",VLOOKUP($A$38,Voorraad!$A$2:$G$1001,6)) -> 0 | J38: =IF(ISERROR(VLOOKUP($A$38,Voorraad!$A$2:$G$1001,7)),"",VLOOKUP($A$38,Voorraad!$A$2:$G$1001,7)) -> BCC | K38: =IF(ISERROR(VLOOKUP($A$38,Voorraad!$A$2:$G$1001,5)),"",VLOOKUP($A$38,Voorraad!$A$2:$G$1001,5)) -> 8410/8510 | L38: =IF(ISERROR(VLOOKUP($A$38,Voorraad!$A$2:$D$1001,4)),"",VLOOKUP($A$38,Voorraad!$A$2:$D$1001,4)) -> -450 | M38: 450 | N38: 900
A39: BR5060 | B39: =[6]Sheet1!$E$34 -> 150 | C39: =IF(ISERROR(VLOOKUP($A$39,Voorraad!$A$2:$D$1001,1)),"",VLOOKUP($A$39,Voorraad!$A$2:$D$1001,1)) -> BR5060 | D39: =IF(ISERROR(VLOOKUP($A$39,Voorraad!$A$2:$D$1001,3)),"",VLOOKUP($A$39,Voorraad!$A$2:$D$1001,3)) -> CC 27P 100V 2% 2E NPO 85' | E39: =IF(ISERROR(VLOOKUP($A$39,Voorraad!$A$2:$D$1001,2)),"",VLOOKUP($A$39,Voorraad!$A$2:$D$1001,2)) -> #2112710GB | F39: =IF(ISERROR(VLOOKUP($A$39,Voorraad!$A$2:$H$1001,8)),"",VLOOKUP($A$39,Voorraad!$A$2:$H$1001,8)) -> 500125 | G39: =IF(ISERROR(VLOOKUP($A$39,Voorraad!$A$2:$I$1001,9)),"",VLOOKUP($A$39,Voorraad!$A$2:$I$1001,9)) -> CCK-27P | H39: =IF(ISERROR(VLOOKUP($A$39,Voorraad!$A$2:$J$1001,10)),"",VLOOKUP($A$39,Voorraad!$A$2:$J$1001,10)) -> 0 | I39: =IF(ISERROR(VLOOKUP($A$39,Voorraad!$A$2:$G$1001,6)),"",VLOOKUP($A$39,Voorraad!$A$2:$G$1001,6)) -> TME | J39: =IF(ISERROR(VLOOKUP($A$39,Voorraad!$A$2:$G$1001,7)),"",VLOOKUP($A$39,Voorraad!$A$2:$G$1001,7)) -> BCC | K39: =IF(ISERROR(VLOOKUP($A$39,Voorraad!$A$2:$G$1001,5)),"",VLOOKUP($A$39,Voorraad!$A$2:$G$1001,5)) -> 8510 | L39: =IF(ISERROR(VLOOKUP($A$39,Voorraad!$A$2:$D$1001,4)),"",VLOOKUP($A$39,Voorraad!$A$2:$D$1001,4)) -> -2 | M39: 150 | N39: 152
A40: BR5070 | B40: =[6]Sheet1!$E$35 -> 75 | C40: =IF(ISERROR(VLOOKUP($A$40,Voorraad!$A$2:$D$1001,1)),"",VLOOKUP($A$40,Voorraad!$A$2:$D$1001,1)) -> BR5070 | D40: =IF(ISERROR(VLOOKUP($A$40,Voorraad!$A$2:$D$1001,3)),"",VLOOKUP($A$40,Voorraad!$A$2:$D$1001,3)) -> CC 39P 100V +/- 0,25 2E | E40: =IF(ISERROR(VLOOKUP($A$40,Voorraad!$A$2:$D$1001,2)),"",VLOOKUP($A$40,Voorraad!$A$2:$D$1001,2)) -> #2113910GB | F40: =IF(ISERROR(VLOOKUP($A$40,Voorraad!$A$2:$H$1001,8)),"",VLOOKUP($A$40,Voorraad!$A$2:$H$1001,8)) -> 599999 | G40: =IF(ISERROR(VLOOKUP($A$40,Voorraad!$A$2:$I$1001,9)),"",VLOOKUP($A$40,Voorraad!$A$2:$I$1001,9)) -> 0 | H40: =IF(ISERROR(VLOOKUP($A$40,Voorraad!$A$2:$J$1001,10)),"",VLOOKUP($A$40,Voorraad!$A$2:$J$1001,10)) -> 0 | I40: =IF(ISERROR(VLOOKUP($A$40,Voorraad!$A$2:$G$1001,6)),"",VLOOKUP($A$40,Voorraad!$A$2:$G$1001,6)) -> 0 | J40: =IF(ISERROR(VLOOKUP($A$40,Voorraad!$A$2:$G$1001,7)),"",VLOOKUP($A$40,Voorraad!$A$2:$G$1001,7)) -> BCE | K40: =IF(ISERROR(VLOOKUP($A$40,Voorraad!$A$2:$G$1001,5)),"",VLOOKUP($A$40,Voorraad!$A$2:$G$1001,5)) -> 8510 | L40: =IF(ISERROR(VLOOKUP($A$40,Voorraad!$A$2:$D$1001,4)),"",VLOOKUP($A$40,Voorraad!$A$2:$D$1001,4)) -> 232 | M40: =B40 -> 75 | N40: 0
A41: BR5080 | B41: =[6]Sheet1!$E$36 -> 150 | C41: =IF(ISERROR(VLOOKUP($A$41,Voorraad!$A$2:$D$1001,1)),"",VLOOKUP($A$41,Voorraad!$A$2:$D$1001,1)) -> BR5080 | D41: =IF(ISERROR(VLOOKUP($A$41,Voorraad!$A$2:$D$1001,3)),"",VLOOKUP($A$41,Voorraad!$A$2:$D$1001,3)) -> CC 10N 100V 10% 2E X7R | E41: =IF(ISERROR(VLOOKUP($A$41,Voorraad!$A$2:$D$1001,2)),"",VLOOKUP($A$41,Voorraad!$A$2:$D$1001,2)) -> #2341010KS | F41: =IF(ISERROR(VLOOKUP($A$41,Voorraad!$A$2:$H$1001,8)),"",VLOOKUP($A$41,Voorraad!$A$2:$H$1001,8)) -> 500241 | G41: =IF(ISERROR(VLOOKUP($A$41,Voorraad!$A$2:$I$1001,9)),"",VLOOKUP($A$41,Voorraad!$A$2:$I$1001,9)) -> C317C103K1R5TA | H41: =IF(ISERROR(VLOOKUP($A$41,Voorraad!$A$2:$J$1001,10)),"",VLOOKUP($A$41,Voorraad!$A$2:$J$1001,10)) -> 0 | I41: =IF(ISERROR(VLOOKUP($A$41,Voorraad!$A$2:$G$1001,6)),"",VLOOKUP($A$41,Voorraad!$A$2:$G$1001,6)) -> TME | J41: =IF(ISERROR(VLOOKUP($A$41,Voorraad!$A$2:$G$1001,7)),"",VLOOKUP($A$41,Voorraad!$A$2:$G$1001,7)) -> KEMET | K41: =IF(ISERROR(VLOOKUP($A$41,Voorraad!$A$2:$G$1001,5)),"",VLOOKUP($A$41,Voorraad!$A$2:$G$1001,5)) -> 8510 | L41: =IF(ISERROR(VLOOKUP($A$41,Voorraad!$A$2:$D$1001,4)),"",VLOOKUP($A$41,Voorraad!$A$2:$D$1001,4)) -> 0 | M41: 150 | N41: 150
A42: BR5090 | B42: =[6]Sheet1!$E$37 -> 225 | C42: =IF(ISERROR(VLOOKUP($A$42,Voorraad!$A$2:$D$1001,1)),"",VLOOKUP($A$42,Voorraad!$A$2:$D$1001,1)) -> BR5090 | D42: =IF(ISERROR(VLOOKUP($A$42,Voorraad!$A$2:$D$1001,3)),"",VLOOKUP($A$42,Voorraad!$A$2:$D$1001,3)) -> CC 22N 100V 10% X7R 2E | E42: =IF(ISERROR(VLOOKUP($A$42,Voorraad!$A$2:$D$1001,2)),"",VLOOKUP($A$42,Voorraad!$A$2:$D$1001,2)) -> #2242210KSX | F42: =IF(ISERROR(VLOOKUP($A$42,Voorraad!$A$2:$H$1001,8)),"",VLOOKUP($A$42,Voorraad!$A$2:$H$1001,8)) -> 500137 | G42: =IF(ISERROR(VLOOKUP($A$42,Voorraad!$A$2:$I$1001,9)),"",VLOOKUP($A$42,Voorraad!$A$2:$I$1001,9)) -> 80-C322C223K1R-TR | H42: =IF(ISERROR(VLOOKUP($A$42,Voorraad!$A$2:$J$1001,10)),"",VLOOKUP($A$42,Voorraad!$A$2:$J$1001,10)) -> 0 | I42: =IF(ISERROR(VLOOKUP($A$42,Voorraad!$A$2:$G$1001,6)),"",VLOOKUP($A$42,Voorraad!$A$2:$G$1001,6)) -> MOUSER | J42: =IF(ISERROR(VLOOKUP($A$42,Voorraad!$A$2:$G$1001,7)),"",VLOOKUP($A$42,Voorraad!$A$2:$G$1001,7)) -> KEMET | K42: =IF(ISERROR(VLOOKUP($A$42,Voorraad!$A$2:$G$1001,5)),"",VLOOKUP($A$42,Voorraad!$A$2:$G$1001,5)) -> 8510 | L42: =IF(ISERROR(VLOOKUP($A$42,Voorraad!$A$2:$D$1001,4)),"",VLOOKUP($A$42,Voorraad!$A$2:$D$1001,4)) -> 2 | M42: 225 | N42: 223
A43: BR6060 | B43: =[6]Sheet1!$E$38 -> 1575 | C43: =IF(ISERROR(VLOOKUP($A$43,Voorraad!$A$2:$D$1001,1)),"",VLOOKUP($A$43,Voorraad!$A$2:$D$1001,1)) -> BR6060 | D43: =IF(ISERROR(VLOOKUP($A$43,Voorraad!$A$2:$D$1001,3)),"",VLOOKUP($A$43,Voorraad!$A$2:$D$1001,3)) -> CF 330N 63V 10% 2E MKS22 | E43: =IF(ISERROR(VLOOKUP($A$43,Voorraad!$A$2:$D$1001,2)),"",VLOOKUP($A$43,Voorraad!$A$2:$D$1001,2)) -> #25053305KW1 | F43: =IF(ISERROR(VLOOKUP($A$43,Voorraad!$A$2:$H$1001,8)),"",VLOOKUP($A$43,Voorraad!$A$2:$H$1001,8)) -> 500324 | G43: =IF(ISERROR(VLOOKUP($A$43,Voorraad!$A$2:$I$1001,9)),"",VLOOKUP($A$43,Voorraad!$A$2:$I$1001,9)) -> 0 | H43: =IF(ISERROR(VLOOKUP($A$43,Voorraad!$A$2:$J$1001,10)),"",VLOOKUP($A$43,Voorraad!$A$2:$J$1001,10)) -> 0 | I43: =IF(ISERROR(VLOOKUP($A$43,Voorraad!$A$2:$G$1001,6)),"",VLOOKUP($A$43,Voorraad!$A$2:$G$1001,6)) -> 0 | J43: =IF(ISERROR(VLOOKUP($A$43,Voorraad!$A$2:$G$1001,7)),"",VLOOKUP($A$43,Voorraad!$A$2:$G$1001,7)) -> WIMA | K43: =IF(ISERROR(VLOOKUP($A$43,Voorraad!$A$2:$G$1001,5)),"",VLOOKUP($A$43,Voorraad!$A$2:$G$1001,5)) -> 8510 | L43: =IF(ISERROR(VLOOKUP($A$43,Voorraad!$A$2:$D$1001,4)),"",VLOOKUP($A$43,Voorraad!$A$2:$D$1001,4)) -> -1575 | M43: 1575 | N43: 3150
A44: BR6070 | B44: =[6]Sheet1!$E$39 -> 75 | C44: =IF(ISERROR(VLOOKUP($A$44,Voorraad!$A$2:$D$1001,1)),"",VLOOKUP($A$44,Voorraad!$A$2:$D$1001,1)) -> BR6070 | D44: =IF(ISERROR(VLOOKUP($A$44,Voorraad!$A$2:$D$1001,3)),"",VLOOKUP($A$44,Voorraad!$A$2:$D$1001,3)) -> CF 100P630V 2,5% 6E 300' | E44: =IF(ISERROR(VLOOKUP($A$44,Voorraad!$A$2:$D$1001,2)),"",VLOOKUP($A$44,Voorraad!$A$2:$D$1001,2)) -> #2921063025EMZ | F44: =IF(ISERROR(VLOOKUP($A$44,Voorraad!$A$2:$H$1001,8)),"",VLOOKUP($A$44,Voorraad!$A$2:$H$1001,8)) -> 0 | G44: =IF(ISERROR(VLOOKUP($A$44,Voorraad!$A$2:$I$1001,9)),"",VLOOKUP($A$44,Voorraad!$A$2:$I$1001,9)) -> 9520015 | H44: =IF(ISERROR(VLOOKUP($A$44,Voorraad!$A$2:$J$1001,10)),"",VLOOKUP($A$44,Voorraad!$A$2:$J$1001,10)) -> 0 | I44: =IF(ISERROR(VLOOKUP($A$44,Voorraad!$A$2:$G$1001,6)),"",VLOOKUP($A$44,Voorraad!$A$2:$G$1001,6)) -> FARNELL | J44: =IF(ISERROR(VLOOKUP($A$44,Voorraad!$A$2:$G$1001,7)),"",VLOOKUP($A$44,Voorraad!$A$2:$G$1001,7)) -> EMZ | K44: =IF(ISERROR(VLOOKUP($A$44,Voorraad!$A$2:$G$1001,5)),"",VLOOKUP($A$44,Voorraad!$A$2:$G$1001,5)) -> 8510 | L44: =IF(ISERROR(VLOOKUP($A$44,Voorraad!$A$2:$D$1001,4)),"",VLOOKUP($A$44,Voorraad!$A$2:$D$1001,4)) -> -75 | M44: 75 | N44: 150
A45: BR6080 | B45: =[6]Sheet1!$E$40 -> 75 | C45: =IF(ISERROR(VLOOKUP($A$45,Voorraad!$A$2:$D$1001,1)),"",VLOOKUP($A$45,Voorraad!$A$2:$D$1001,1)) -> BR6080 | D45: =IF(ISERROR(VLOOKUP($A$45,Voorraad!$A$2:$D$1001,3)),"",VLOOKUP($A$45,Voorraad!$A$2:$D$1001,3)) -> CE 220U 40V -10 +50% AX | E45: =IF(ISERROR(VLOOKUP($A$45,Voorraad!$A$2:$D$1001,2)),"",VLOOKUP($A$45,Voorraad!$A$2:$D$1001,2)) -> #27722040V | F45: =IF(ISERROR(VLOOKUP($A$45,Voorraad!$A$2:$H$1001,8)),"",VLOOKUP($A$45,Voorraad!$A$2:$H$1001,8)) -> 500225 | G45: =IF(ISERROR(VLOOKUP($A$45,Voorraad!$A$2:$I$1001,9)),"",VLOOKUP($A$45,Voorraad!$A$2:$I$1001,9)) -> 0 | H45: =IF(ISERROR(VLOOKUP($A$45,Voorraad!$A$2:$J$1001,10)),"",VLOOKUP($A$45,Voorraad!$A$2:$J$1001,10)) -> 0 | I45: =IF(ISERROR(VLOOKUP($A$45,Voorraad!$A$2:$G$1001,6)),"",VLOOKUP($A$45,Voorraad!$A$2:$G$1001,6)) -> 0 | J45: =IF(ISERROR(VLOOKUP($A$45,Voorraad!$A$2:$G$1001,7)),"",VLOOKUP($A$45,Voorraad!$A$2:$G$1001,7)) -> BCC | K45: =IF(ISERROR(VLOOKUP($A$45,Voorraad!$A$2:$G$1001,5)),"",VLOOKUP($A$45,Voorraad!$A$2:$G$1001,5)) -> 8510 | L45: =IF(ISERROR(VLOOKUP($A$45,Voorraad!$A$2:$D$1001,4)),"",VLOOKUP($A$45,Voorraad!$A$2:$D$1001,4)) -> 0 | M45: 75 | N45: 75
A46: BR6090 | B46: =[6]Sheet1!$E$41 -> 75 | C46: =IF(ISERROR(VLOOKUP($A$46,Voorraad!$A$2:$D$1001,1)),"",VLOOKUP($A$46,Voorraad!$A$2:$D$1001,1)) -> BR6090 | D46: =IF(ISERROR(VLOOKUP($A$46,Voorraad!$A$2:$D$1001,3)),"",VLOOKUP($A$46,Voorraad!$A$2:$D$1001,3)) -> CE 1U5 40V 20% 175' SAL | E46: =IF(ISERROR(VLOOKUP($A$46,Voorraad!$A$2:$D$1001,2)),"",VLOOKUP($A$46,Voorraad!$A$2:$D$1001,2)) -> #30515040BC | F46: =IF(ISERROR(VLOOKUP($A$46,Voorraad!$A$2:$H$1001,8)),"",VLOOKUP($A$46,Voorraad!$A$2:$H$1001,8)) -> 0 | G46: =IF(ISERROR(VLOOKUP($A$46,Voorraad!$A$2:$I$1001,9)),"",VLOOKUP($A$46,Voorraad!$A$2:$I$1001,9)) -> 0 | H46: =IF(ISERROR(VLOOKUP($A$46,Voorraad!$A$2:$J$1001,10)),"",VLOOKUP($A$46,Voorraad!$A$2:$J$1001,10)) -> 2.2UF mag ook, is beter verkrijgbaar | I46: =IF(ISERROR(VLOOKUP($A$46,Voorraad!$A$2:$G$1001,6)),"",VLOOKUP($A$46,Voorraad!$A$2:$G$1001,6)) -> 0 | J46: =IF(ISERROR(VLOOKUP($A$46,Voorraad!$A$2:$G$1001,7)),"",VLOOKUP($A$46,Voorraad!$A$2:$G$1001,7)) -> BCC | K46: =IF(ISERROR(VLOOKUP($A$46,Voorraad!$A$2:$G$1001,5)),"",VLOOKUP($A$46,Voorraad!$A$2:$G$1001,5)) -> 8510 | L46: =IF(ISERROR(VLOOKUP($A$46,Voorraad!$A$2:$D$1001,4)),"",VLOOKUP($A$46,Voorraad!$A$2:$D$1001,4)) -> 108 | M46: 75 | N46: 0
A47: BSH001 | B47: =[6]Sheet1!$E$42 -> 525 | C47: =IF(ISERROR(VLOOKUP($A$47,Voorraad!$A$2:$D$1001,1)),"",VLOOKUP($A$47,Voorraad!$A$2:$D$1001,1)) -> BSH001 | D47: =IF(ISERROR(VLOOKUP($A$47,Voorraad!$A$2:$D$1001,3)),"",VLOOKUP($A$47,Voorraad!$A$2:$D$1001,3)) -> CE 68U 6V3 20% 175' SAL | E47: =IF(ISERROR(VLOOKUP($A$47,Voorraad!$A$2:$D$1001,2)),"",VLOOKUP($A$47,Voorraad!$A$2:$D$1001,2)) -> #2816680062M | F47: =IF(ISERROR(VLOOKUP($A$47,Voorraad!$A$2:$H$1001,8)),"",VLOOKUP($A$47,Voorraad!$A$2:$H$1001,8)) -> 500119 | G47: =IF(ISERROR(VLOOKUP($A$47,Voorraad!$A$2:$I$1001,9)),"",VLOOKUP($A$47,Voorraad!$A$2:$I$1001,9)) -> EEUFM1E101 | H47: =IF(ISERROR(VLOOKUP($A$47,Voorraad!$A$2:$J$1001,10)),"",VLOOKUP($A$47,Voorraad!$A$2:$J$1001,10)) -> 0 | I47: =IF(ISERROR(VLOOKUP($A$47,Voorraad!$A$2:$G$1001,6)),"",VLOOKUP($A$47,Voorraad!$A$2:$G$1001,6)) -> TME | J47: =IF(ISERROR(VLOOKUP($A$47,Voorraad!$A$2:$G$1001,7)),"",VLOOKUP($A$47,Voorraad!$A$2:$G$1001,7)) -> VISHAY | K47: =IF(ISERROR(VLOOKUP($A$47,Voorraad!$A$2:$G$1001,5)),"",VLOOKUP($A$47,Voorraad!$A$2:$G$1001,5)) -> 8510 | L47: =IF(ISERROR(VLOOKUP($A$47,Voorraad!$A$2:$D$1001,4)),"",VLOOKUP($A$47,Voorraad!$A$2:$D$1001,4)) -> -495 | M47: 525 | N47: 1020
A48: BX0026 | B48: =[6]Sheet1!$E$43 -> 75 | C48: =IF(ISERROR(VLOOKUP($A$48,Voorraad!$A$2:$D$1001,1)),"",VLOOKUP($A$48,Voorraad!$A$2:$D$1001,1)) -> BX0026 | D48: =IF(ISERROR(VLOOKUP($A$48,Voorraad!$A$2:$D$1001,3)),"",VLOOKUP($A$48,Voorraad!$A$2:$D$1001,3)) -> XT 12.000000MHZ HC49U | E48: =IF(ISERROR(VLOOKUP($A$48,Voorraad!$A$2:$D$1001,2)),"",VLOOKUP($A$48,Voorraad!$A$2:$D$1001,2)) -> #320120000M | F48: =IF(ISERROR(VLOOKUP($A$48,Voorraad!$A$2:$H$1001,8)),"",VLOOKUP($A$48,Voorraad!$A$2:$H$1001,8)) -> 500246 | G48: =IF(ISERROR(VLOOKUP($A$48,Voorraad!$A$2:$I$1001,9)),"",VLOOKUP($A$48,Voorraad!$A$2:$I$1001,9)) -> 173-4735 | H48: =IF(ISERROR(VLOOKUP($A$48,Voorraad!$A$2:$J$1001,10)),"",VLOOKUP($A$48,Voorraad!$A$2:$J$1001,10)) -> 0 | I48: =IF(ISERROR(VLOOKUP($A$48,Voorraad!$A$2:$G$1001,6)),"",VLOOKUP($A$48,Voorraad!$A$2:$G$1001,6)) -> RS COMPONENTS | J48: =IF(ISERROR(VLOOKUP($A$48,Voorraad!$A$2:$G$1001,7)),"",VLOOKUP($A$48,Voorraad!$A$2:$G$1001,7)) -> 0 | K48: =IF(ISERROR(VLOOKUP($A$48,Voorraad!$A$2:$G$1001,5)),"",VLOOKUP($A$48,Voorraad!$A$2:$G$1001,5)) -> 8510 | L48: =IF(ISERROR(VLOOKUP($A$48,Voorraad!$A$2:$D$1001,4)),"",VLOOKUP($A$48,Voorraad!$A$2:$D$1001,4)) -> 29 | M48: 75 | N48: 46
A49: BU0008 | B49: =[6]Sheet1!$E$44 -> 75 | C49: =IF(ISERROR(VLOOKUP($A$49,Voorraad!$A$2:$D$1001,1)),"",VLOOKUP($A$49,Voorraad!$A$2:$D$1001,1)) -> BU0008 | D49: =IF(ISERROR(VLOOKUP($A$49,Voorraad!$A$2:$D$1001,3)),"",VLOOKUP($A$49,Voorraad!$A$2:$D$1001,3)) -> L 1000UH 100MA 10% AX 85' | E49: =IF(ISERROR(VLOOKUP($A$49,Voorraad!$A$2:$D$1001,2)),"",VLOOKUP($A$49,Voorraad!$A$2:$D$1001,2)) -> #33108S1105J | F49: =IF(ISERROR(VLOOKUP($A$49,Voorraad!$A$2:$H$1001,8)),"",VLOOKUP($A$49,Voorraad!$A$2:$H$1001,8)) -> 500210 | G49: =IF(ISERROR(VLOOKUP($A$49,Voorraad!$A$2:$I$1001,9)),"",VLOOKUP($A$49,Voorraad!$A$2:$I$1001,9)) -> 608609 | H49: =IF(ISERROR(VLOOKUP($A$49,Voorraad!$A$2:$J$1001,10)),"",VLOOKUP($A$49,Voorraad!$A$2:$J$1001,10)) -> 0 | I49: =IF(ISERROR(VLOOKUP($A$49,Voorraad!$A$2:$G$1001,6)),"",VLOOKUP($A$49,Voorraad!$A$2:$G$1001,6)) -> FARNELL | J49: =IF(ISERROR(VLOOKUP($A$49,Voorraad!$A$2:$G$1001,7)),"",VLOOKUP($A$49,Voorraad!$A$2:$G$1001,7)) -> EPCOS | K49: =IF(ISERROR(VLOOKUP($A$49,Voorraad!$A$2:$G$1001,5)),"",VLOOKUP($A$49,Voorraad!$A$2:$G$1001,5)) -> 8510 | L49: =IF(ISERROR(VLOOKUP($A$49,Voorraad!$A$2:$D$1001,4)),"",VLOOKUP($A$49,Voorraad!$A$2:$D$1001,4)) -> 0 | M49: 75 | N49: 75
A50: BU0009 | B50: =[6]Sheet1!$E$45 -> 150 | C50: =IF(ISERROR(VLOOKUP($A$50,Voorraad!$A$2:$D$1001,1)),"",VLOOKUP($A$50,Voorraad!$A$2:$D$1001,1)) -> BU0009 | D50: =IF(ISERROR(VLOOKUP($A$50,Voorraad!$A$2:$D$1001,3)),"",VLOOKUP($A$50,Voorraad!$A$2:$D$1001,3)) -> L 47UH 340MA 10% AX 85' | E50: =IF(ISERROR(VLOOKUP($A$50,Voorraad!$A$2:$D$1001,2)),"",VLOOKUP($A$50,Voorraad!$A$2:$D$1001,2)) -> #33108S1473J | F50: =IF(ISERROR(VLOOKUP($A$50,Voorraad!$A$2:$H$1001,8)),"",VLOOKUP($A$50,Voorraad!$A$2:$H$1001,8)) -> 500214 | G50: =IF(ISERROR(VLOOKUP($A$50,Voorraad!$A$2:$I$1001,9)),"",VLOOKUP($A$50,Voorraad!$A$2:$I$1001,9)) -> 0 | H50: =IF(ISERROR(VLOOKUP($A$50,Voorraad!$A$2:$J$1001,10)),"",VLOOKUP($A$50,Voorraad!$A$2:$J$1001,10)) -> 0 | I50: =IF(ISERROR(VLOOKUP($A$50,Voorraad!$A$2:$G$1001,6)),"",VLOOKUP($A$50,Voorraad!$A$2:$G$1001,6)) -> 0 | J50: =IF(ISERROR(VLOOKUP($A$50,Voorraad!$A$2:$G$1001,7)),"",VLOOKUP($A$50,Voorraad!$A$2:$G$1001,7)) -> EPCOS | K50: =IF(ISERROR(VLOOKUP($A$50,Voorraad!$A$2:$G$1001,5)),"",VLOOKUP($A$50,Voorraad!$A$2:$G$1001,5)) -> 8510 | L50: =IF(ISERROR(VLOOKUP($A$50,Voorraad!$A$2:$D$1001,4)),"",VLOOKUP($A$50,Voorraad!$A$2:$D$1001,4)) -> 750 | M50: 150 | N50: 0
A51: BU0014 | B51: =[6]Sheet1!$E$46 -> 75 | C51: =IF(ISERROR(VLOOKUP($A$51,Voorraad!$A$2:$D$1001,1)),"",VLOOKUP($A$51,Voorraad!$A$2:$D$1001,1)) -> BU0014 | D51: =IF(ISERROR(VLOOKUP($A$51,Voorraad!$A$2:$D$1001,3)),"",VLOOKUP($A$51,Voorraad!$A$2:$D$1001,3)) -> D 1N4004 400V-1A DO-41 | E51: =IF(ISERROR(VLOOKUP($A$51,Voorraad!$A$2:$D$1001,2)),"",VLOOKUP($A$51,Voorraad!$A$2:$D$1001,2)) -> #341N4004DC | F51: =IF(ISERROR(VLOOKUP($A$51,Voorraad!$A$2:$H$1001,8)),"",VLOOKUP($A$51,Voorraad!$A$2:$H$1001,8)) -> 522000 | G51: =IF(ISERROR(VLOOKUP($A$51,Voorraad!$A$2:$I$1001,9)),"",VLOOKUP($A$51,Voorraad!$A$2:$I$1001,9)) -> 0 | H51: =IF(ISERROR(VLOOKUP($A$51,Voorraad!$A$2:$J$1001,10)),"",VLOOKUP($A$51,Voorraad!$A$2:$J$1001,10)) -> 0 | I51: =IF(ISERROR(VLOOKUP($A$51,Voorraad!$A$2:$G$1001,6)),"",VLOOKUP($A$51,Voorraad!$A$2:$G$1001,6)) -> 0 | J51: =IF(ISERROR(VLOOKUP($A$51,Voorraad!$A$2:$G$1001,7)),"",VLOOKUP($A$51,Voorraad!$A$2:$G$1001,7)) -> 0 | K51: =IF(ISERROR(VLOOKUP($A$51,Voorraad!$A$2:$G$1001,5)),"",VLOOKUP($A$51,Voorraad!$A$2:$G$1001,5)) -> 8410/8464/8510 | L51: =IF(ISERROR(VLOOKUP($A$51,Voorraad!$A$2:$D$1001,4)),"",VLOOKUP($A$51,Voorraad!$A$2:$D$1001,4)) -> 485 | M51: 75 | N51: 0
A52: BU0015 | B52: =[6]Sheet1!$E$47 -> 2175 | C52: =IF(ISERROR(VLOOKUP($A$52,Voorraad!$A$2:$D$1001,1)),"",VLOOKUP($A$52,Voorraad!$A$2:$D$1001,1)) -> BU0015 | D52: =IF(ISERROR(VLOOKUP($A$52,Voorraad!$A$2:$D$1001,3)),"",VLOOKUP($A$52,Voorraad!$A$2:$D$1001,3)) -> D 1N4148PH 75V-200MA | E52: =IF(ISERROR(VLOOKUP($A$52,Voorraad!$A$2:$D$1001,2)),"",VLOOKUP($A$52,Voorraad!$A$2:$D$1001,2)) -> #341N4148P | F52: =IF(ISERROR(VLOOKUP($A$52,Voorraad!$A$2:$H$1001,8)),"",VLOOKUP($A$52,Voorraad!$A$2:$H$1001,8)) -> 522001 | G52: =IF(ISERROR(VLOOKUP($A$52,Voorraad!$A$2:$I$1001,9)),"",VLOOKUP($A$52,Voorraad!$A$2:$I$1001,9)) -> 1N4148-TAP | H52: =IF(ISERROR(VLOOKUP($A$52,Voorraad!$A$2:$J$1001,10)),"",VLOOKUP($A$52,Voorraad!$A$2:$J$1001,10)) -> 0 | I52: =IF(ISERROR(VLOOKUP($A$52,Voorraad!$A$2:$G$1001,6)),"",VLOOKUP($A$52,Voorraad!$A$2:$G$1001,6)) -> TME | J52: =IF(ISERROR(VLOOKUP($A$52,Voorraad!$A$2:$G$1001,7)),"",VLOOKUP($A$52,Voorraad!$A$2:$G$1001,7)) -> PHILIPS | K52: =IF(ISERROR(VLOOKUP($A$52,Voorraad!$A$2:$G$1001,5)),"",VLOOKUP($A$52,Voorraad!$A$2:$G$1001,5)) -> 8464/8510 | L52: =IF(ISERROR(VLOOKUP($A$52,Voorraad!$A$2:$D$1001,4)),"",VLOOKUP($A$52,Voorraad!$A$2:$D$1001,4)) -> -1075 | M52: 2175 | N52: 3250
A53: BU0016 | B53: =[6]Sheet1!$E$48 -> 150 | C53: =IF(ISERROR(VLOOKUP($A$53,Voorraad!$A$2:$D$1001,1)),"",VLOOKUP($A$53,Voorraad!$A$2:$D$1001,1)) -> BU0016 | D53: =IF(ISERROR(VLOOKUP($A$53,Voorraad!$A$2:$D$1001,3)),"",VLOOKUP($A$53,Voorraad!$A$2:$D$1001,3)) -> D BYV27-150-TAP | E53: =IF(ISERROR(VLOOKUP($A$53,Voorraad!$A$2:$D$1001,2)),"",VLOOKUP($A$53,Voorraad!$A$2:$D$1001,2)) -> 0 | F53: =IF(ISERROR(VLOOKUP($A$53,Voorraad!$A$2:$H$1001,8)),"",VLOOKUP($A$53,Voorraad!$A$2:$H$1001,8)) -> 520005 | G53: =IF(ISERROR(VLOOKUP($A$53,Voorraad!$A$2:$I$1001,9)),"",VLOOKUP($A$53,Voorraad!$A$2:$I$1001,9)) -> BYV27-150-TAP | H53: =IF(ISERROR(VLOOKUP($A$53,Voorraad!$A$2:$J$1001,10)),"",VLOOKUP($A$53,Voorraad!$A$2:$J$1001,10)) -> 0 | I53: =IF(ISERROR(VLOOKUP($A$53,Voorraad!$A$2:$G$1001,6)),"",VLOOKUP($A$53,Voorraad!$A$2:$G$1001,6)) -> MOUSER | J53: =IF(ISERROR(VLOOKUP($A$53,Voorraad!$A$2:$G$1001,7)),"",VLOOKUP($A$53,Voorraad!$A$2:$G$1001,7)) -> PHILIPS | K53: =IF(ISERROR(VLOOKUP($A$53,Voorraad!$A$2:$G$1001,5)),"",VLOOKUP($A$53,Voorraad!$A$2:$G$1001,5)) -> 8437/8438/8439/8510 | L53: =IF(ISERROR(VLOOKUP($A$53,Voorraad!$A$2:$D$1001,4)),"",VLOOKUP($A$53,Voorraad!$A$2:$D$1001,4)) -> -7 | M53: 150 | N53: 157
A54: BU0017 | B54: =[6]Sheet1!$E$49 -> 75 | C54: =IF(ISERROR(VLOOKUP($A$54,Voorraad!$A$2:$D$1001,1)),"",VLOOKUP($A$54,Voorraad!$A$2:$D$1001,1)) -> BU0017 | D54: =IF(ISERROR(VLOOKUP($A$54,Voorraad!$A$2:$D$1001,3)),"",VLOOKUP($A$54,Voorraad!$A$2:$D$1001,3)) -> DZ BZX79C20 20V 0.5W DO35 | E54: =IF(ISERROR(VLOOKUP($A$54,Voorraad!$A$2:$D$1001,2)),"",VLOOKUP($A$54,Voorraad!$A$2:$D$1001,2)) -> #35BZX55C29 | F54: =IF(ISERROR(VLOOKUP($A$54,Voorraad!$A$2:$H$1001,8)),"",VLOOKUP($A$54,Voorraad!$A$2:$H$1001,8)) -> 522023 | G54: =IF(ISERROR(VLOOKUP($A$54,Voorraad!$A$2:$I$1001,9)),"",VLOOKUP($A$54,Voorraad!$A$2:$I$1001,9)) -> 0 | H54: =IF(ISERROR(VLOOKUP($A$54,Voorraad!$A$2:$J$1001,10)),"",VLOOKUP($A$54,Voorraad!$A$2:$J$1001,10)) -> 0 | I54: =IF(ISERROR(VLOOKUP($A$54,Voorraad!$A$2:$G$1001,6)),"",VLOOKUP($A$54,Voorraad!$A$2:$G$1001,6)) -> 0 | J54: =IF(ISERROR(VLOOKUP($A$54,Voorraad!$A$2:$G$1001,7)),"",VLOOKUP($A$54,Voorraad!$A$2:$G$1001,7)) -> 0 | K54: =IF(ISERROR(VLOOKUP($A$54,Voorraad!$A$2:$G$1001,5)),"",VLOOKUP($A$54,Voorraad!$A$2:$G$1001,5)) -> 8510 | L54: =IF(ISERROR(VLOOKUP($A$54,Voorraad!$A$2:$D$1001,4)),"",VLOOKUP($A$54,Voorraad!$A$2:$D$1001,4)) -> 1925 | M54: 75 | N54: 0
A55: BU0018 | B55: =[6]Sheet1!$E$50 -> 75 | C55: =IF(ISERROR(VLOOKUP($A$55,Voorraad!$A$2:$D$1001,1)),"",VLOOKUP($A$55,Voorraad!$A$2:$D$1001,1)) -> BU0018 | D55: =IF(ISERROR(VLOOKUP($A$55,Voorraad!$A$2:$D$1001,3)),"",VLOOKUP($A$55,Voorraad!$A$2:$D$1001,3)) -> DZ ZPD3V9 500MW 2% | E55: =IF(ISERROR(VLOOKUP($A$55,Voorraad!$A$2:$D$1001,2)),"",VLOOKUP($A$55,Voorraad!$A$2:$D$1001,2)) -> #35ZPD3V9D | F55: =IF(ISERROR(VLOOKUP($A$55,Voorraad!$A$2:$H$1001,8)),"",VLOOKUP($A$55,Voorraad!$A$2:$H$1001,8)) -> 522011 | G55: =IF(ISERROR(VLOOKUP($A$55,Voorraad!$A$2:$I$1001,9)),"",VLOOKUP($A$55,Voorraad!$A$2:$I$1001,9)) -> 0 | H55: =IF(ISERROR(VLOOKUP($A$55,Voorraad!$A$2:$J$1001,10)),"",VLOOKUP($A$55,Voorraad!$A$2:$J$1001,10)) -> 0 | I55: =IF(ISERROR(VLOOKUP($A$55,Voorraad!$A$2:$G$1001,6)),"",VLOOKUP($A$55,Voorraad!$A$2:$G$1001,6)) -> 0 | J55: =IF(ISERROR(VLOOKUP($A$55,Voorraad!$A$2:$G$1001,7)),"",VLOOKUP($A$55,Voorraad!$A$2:$G$1001,7)) -> GSI | K55: =IF(ISERROR(VLOOKUP($A$55,Voorraad!$A$2:$G$1001,5)),"",VLOOKUP($A$55,Voorraad!$A$2:$G$1001,5)) -> 8510 | L55: =IF(ISERROR(VLOOKUP($A$55,Voorraad!$A$2:$D$1001,4)),"",VLOOKUP($A$55,Voorraad!$A$2:$D$1001,4)) -> 125 | M55: 75 | N55: 0
A56: BU0019 | B56: =[6]Sheet1!$E$51 -> 225 | C56: =IF(ISERROR(VLOOKUP($A$56,Voorraad!$A$2:$D$1001,1)),"",VLOOKUP($A$56,Voorraad!$A$2:$D$1001,1)) -> BU0019 | D56: =IF(ISERROR(VLOOKUP($A$56,Voorraad!$A$2:$D$1001,3)),"",VLOOKUP($A$56,Voorraad!$A$2:$D$1001,3)) -> DZ BZX79C5V6 5V6 0.5W DO | E56: =IF(ISERROR(VLOOKUP($A$56,Voorraad!$A$2:$D$1001,2)),"",VLOOKUP($A$56,Voorraad!$A$2:$D$1001,2)) -> #35BZX79C5V6 | F56: =IF(ISERROR(VLOOKUP($A$56,Voorraad!$A$2:$H$1001,8)),"",VLOOKUP($A$56,Voorraad!$A$2:$H$1001,8)) -> 520014 | G56: =IF(ISERROR(VLOOKUP($A$56,Voorraad!$A$2:$I$1001,9)),"",VLOOKUP($A$56,Voorraad!$A$2:$I$1001,9)) -> 0 | H56: =IF(ISERROR(VLOOKUP($A$56,Voorraad!$A$2:$J$1001,10)),"",VLOOKUP($A$56,Voorraad!$A$2:$J$1001,10)) -> 0 | I56: =IF(ISERROR(VLOOKUP($A$56,Voorraad!$A$2:$G$1001,6)),"",VLOOKUP($A$56,Voorraad!$A$2:$G$1001,6)) -> 0 | J56: =IF(ISERROR(VLOOKUP($A$56,Voorraad!$A$2:$G$1001,7)),"",VLOOKUP($A$56,Voorraad!$A$2:$G$1001,7)) -> 0 | K56: =IF(ISERROR(VLOOKUP($A$56,Voorraad!$A$2:$G$1001,5)),"",VLOOKUP($A$56,Voorraad!$A$2:$G$1001,5)) -> 8510 | L56: =IF(ISERROR(VLOOKUP($A$56,Voorraad!$A$2:$D$1001,4)),"",VLOOKUP($A$56,Voorraad!$A$2:$D$1001,4)) -> 103 | M56: 225 | N56: 122
A57: BU0024 | B57: =[6]Sheet1!$E$52 -> 75 | C57: =IF(ISERROR(VLOOKUP($A$57,Voorraad!$A$2:$D$1001,1)),"",VLOOKUP($A$57,Voorraad!$A$2:$D$1001,1)) -> BU0024 | D57: =IF(ISERROR(VLOOKUP($A$57,Voorraad!$A$2:$D$1001,3)),"",VLOOKUP($A$57,Voorraad!$A$2:$D$1001,3)) -> T 2N2222A TO-18 NPO | E57: =IF(ISERROR(VLOOKUP($A$57,Voorraad!$A$2:$D$1001,2)),"",VLOOKUP($A$57,Voorraad!$A$2:$D$1001,2)) -> #372N2222ASTM | F57: =IF(ISERROR(VLOOKUP($A$57,Voorraad!$A$2:$H$1001,8)),"",VLOOKUP($A$57,Voorraad!$A$2:$H$1001,8)) -> 520033 | G57: =IF(ISERROR(VLOOKUP($A$57,Voorraad!$A$2:$I$1001,9)),"",VLOOKUP($A$57,Voorraad!$A$2:$I$1001,9)) -> 9207120 | H57: =IF(ISERROR(VLOOKUP($A$57,Voorraad!$A$2:$J$1001,10)),"",VLOOKUP($A$57,Voorraad!$A$2:$J$1001,10)) -> 0 | I57: =IF(ISERROR(VLOOKUP($A$57,Voorraad!$A$2:$G$1001,6)),"",VLOOKUP($A$57,Voorraad!$A$2:$G$1001,6)) -> FARNELL | J57: =IF(ISERROR(VLOOKUP($A$57,Voorraad!$A$2:$G$1001,7)),"",VLOOKUP($A$57,Voorraad!$A$2:$G$1001,7)) -> ST | K57: =IF(ISERROR(VLOOKUP($A$57,Voorraad!$A$2:$G$1001,5)),"",VLOOKUP($A$57,Voorraad!$A$2:$G$1001,5)) -> 8510 | L57: =IF(ISERROR(VLOOKUP($A$57,Voorraad!$A$2:$D$1001,4)),"",VLOOKUP($A$57,Voorraad!$A$2:$D$1001,4)) -> 0 | M57: 75 | N57: 75
A58: BU0025 | B58: =[6]Sheet1!$E$53 -> 75 | C58: =IF(ISERROR(VLOOKUP($A$58,Voorraad!$A$2:$D$1001,1)),"",VLOOKUP($A$58,Voorraad!$A$2:$D$1001,1)) -> BU0025 | D58: =IF(ISERROR(VLOOKUP($A$58,Voorraad!$A$2:$D$1001,3)),"",VLOOKUP($A$58,Voorraad!$A$2:$D$1001,3)) -> T IRFF310 MOSFET T05 | E58: =IF(ISERROR(VLOOKUP($A$58,Voorraad!$A$2:$D$1001,2)),"",VLOOKUP($A$58,Voorraad!$A$2:$D$1001,2)) -> #37IRFF310i | F58: =IF(ISERROR(VLOOKUP($A$58,Voorraad!$A$2:$H$1001,8)),"",VLOOKUP($A$58,Voorraad!$A$2:$H$1001,8)) -> 520039 | G58: =IF(ISERROR(VLOOKUP($A$58,Voorraad!$A$2:$I$1001,9)),"",VLOOKUP($A$58,Voorraad!$A$2:$I$1001,9)) -> 0 | H58: =IF(ISERROR(VLOOKUP($A$58,Voorraad!$A$2:$J$1001,10)),"",VLOOKUP($A$58,Voorraad!$A$2:$J$1001,10)) -> 1000 stuks extra inkopen voor vervolgen! | I58: =IF(ISERROR(VLOOKUP($A$58,Voorraad!$A$2:$G$1001,6)),"",VLOOKUP($A$58,Voorraad!$A$2:$G$1001,6)) -> UT SOURCE | J58: =IF(ISERROR(VLOOKUP($A$58,Voorraad!$A$2:$G$1001,7)),"",VLOOKUP($A$58,Voorraad!$A$2:$G$1001,7)) -> HARRIS | K58: =IF(ISERROR(VLOOKUP($A$58,Voorraad!$A$2:$G$1001,5)),"",VLOOKUP($A$58,Voorraad!$A$2:$G$1001,5)) -> 8510 | L58: =IF(ISERROR(VLOOKUP($A$58,Voorraad!$A$2:$D$1001,4)),"",VLOOKUP($A$58,Voorraad!$A$2:$D$1001,4)) -> 0 | M58: 75 | N58: 75
A59: BU0026 | B59: =[6]Sheet1!$E$54 -> 75 | C59: =IF(ISERROR(VLOOKUP($A$59,Voorraad!$A$2:$D$1001,1)),"",VLOOKUP($A$59,Voorraad!$A$2:$D$1001,1)) -> BU0026 | D59: =IF(ISERROR(VLOOKUP($A$59,Voorraad!$A$2:$D$1001,3)),"",VLOOKUP($A$59,Voorraad!$A$2:$D$1001,3)) -> IS MS184-25 TRANS. VOET | E59: =IF(ISERROR(VLOOKUP($A$59,Voorraad!$A$2:$D$1001,2)),"",VLOOKUP($A$59,Voorraad!$A$2:$D$1001,2)) -> #661MS18425 | F59: =IF(ISERROR(VLOOKUP($A$59,Voorraad!$A$2:$H$1001,8)),"",VLOOKUP($A$59,Voorraad!$A$2:$H$1001,8)) -> 0 | G59: =IF(ISERROR(VLOOKUP($A$59,Voorraad!$A$2:$I$1001,9)),"",VLOOKUP($A$59,Voorraad!$A$2:$I$1001,9)) -> 0 | H59: =IF(ISERROR(VLOOKUP($A$59,Voorraad!$A$2:$J$1001,10)),"",VLOOKUP($A$59,Voorraad!$A$2:$J$1001,10)) -> 0 | I59: =IF(ISERROR(VLOOKUP($A$59,Voorraad!$A$2:$G$1001,6)),"",VLOOKUP($A$59,Voorraad!$A$2:$G$1001,6)) -> 0 | J59: =IF(ISERROR(VLOOKUP($A$59,Voorraad!$A$2:$G$1001,7)),"",VLOOKUP($A$59,Voorraad!$A$2:$G$1001,7)) -> FISCHER | K59: =IF(ISERROR(VLOOKUP($A$59,Voorraad!$A$2:$G$1001,5)),"",VLOOKUP($A$59,Voorraad!$A$2:$G$1001,5)) -> 8510 | L59: =IF(ISERROR(VLOOKUP($A$59,Voorraad!$A$2:$D$1001,4)),"",VLOOKUP($A$59,Voorraad!$A$2:$D$1001,4)) -> 925 | M59: 75 | N59: 0
A60: BU0027 | B60: =[6]Sheet1!$E$55 -> 75 | C60: =IF(ISERROR(VLOOKUP($A$60,Voorraad!$A$2:$D$1001,1)),"",VLOOKUP($A$60,Voorraad!$A$2:$D$1001,1)) -> BU0027 | D60: =IF(ISERROR(VLOOKUP($A$60,Voorraad!$A$2:$D$1001,3)),"",VLOOKUP($A$60,Voorraad!$A$2:$D$1001,3)) -> IS MS34-518 T05/18 Isol | E60: =IF(ISERROR(VLOOKUP($A$60,Voorraad!$A$2:$D$1001,2)),"",VLOOKUP($A$60,Voorraad!$A$2:$D$1001,2)) -> #665MS34518 | F60: =IF(ISERROR(VLOOKUP($A$60,Voorraad!$A$2:$H$1001,8)),"",VLOOKUP($A$60,Voorraad!$A$2:$H$1001,8)) -> 0 | G60: =IF(ISERROR(VLOOKUP($A$60,Voorraad!$A$2:$I$1001,9)),"",VLOOKUP($A$60,Voorraad!$A$2:$I$1001,9)) -> TO-5/TO-18PU | H60: =IF(ISERROR(VLOOKUP($A$60,Voorraad!$A$2:$J$1001,10)),"",VLOOKUP($A$60,Voorraad!$A$2:$J$1001,10)) -> 0 | I60: =IF(ISERROR(VLOOKUP($A$60,Voorraad!$A$2:$G$1001,6)),"",VLOOKUP($A$60,Voorraad!$A$2:$G$1001,6)) -> DISTRELEC | J60: =IF(ISERROR(VLOOKUP($A$60,Voorraad!$A$2:$G$1001,7)),"",VLOOKUP($A$60,Voorraad!$A$2:$G$1001,7)) -> FISCHER | K60: =IF(ISERROR(VLOOKUP($A$60,Voorraad!$A$2:$G$1001,5)),"",VLOOKUP($A$60,Voorraad!$A$2:$G$1001,5)) -> 8510 | L60: =IF(ISERROR(VLOOKUP($A$60,Voorraad!$A$2:$D$1001,4)),"",VLOOKUP($A$60,Voorraad!$A$2:$D$1001,4)) -> 1 | M60: 75 | N60: 74
A61: BU0028 | B61: =[6]Sheet1!$E$56 -> 75 | C61: =IF(ISERROR(VLOOKUP($A$61,Voorraad!$A$2:$D$1001,1)),"",VLOOKUP($A$61,Voorraad!$A$2:$D$1001,1)) -> BU0028 | D61: =IF(ISERROR(VLOOKUP($A$61,Voorraad!$A$2:$D$1001,3)),"",VLOOKUP($A$61,Voorraad!$A$2:$D$1001,3)) -> SN74HC373N DIP-20 Ti | E61: =IF(ISERROR(VLOOKUP($A$61,Voorraad!$A$2:$D$1001,2)),"",VLOOKUP($A$61,Voorraad!$A$2:$D$1001,2)) -> #432373NCTI | F61: =IF(ISERROR(VLOOKUP($A$61,Voorraad!$A$2:$H$1001,8)),"",VLOOKUP($A$61,Voorraad!$A$2:$H$1001,8)) -> 0 | G61: =IF(ISERROR(VLOOKUP($A$61,Voorraad!$A$2:$I$1001,9)),"",VLOOKUP($A$61,Voorraad!$A$2:$I$1001,9)) -> SN74HC373N | H61: =IF(ISERROR(VLOOKUP($A$61,Voorraad!$A$2:$J$1001,10)),"",VLOOKUP($A$61,Voorraad!$A$2:$J$1001,10)) -> 0 | I61: =IF(ISERROR(VLOOKUP($A$61,Voorraad!$A$2:$G$1001,6)),"",VLOOKUP($A$61,Voorraad!$A$2:$G$1001,6)) -> TME | J61: =IF(ISERROR(VLOOKUP($A$61,Voorraad!$A$2:$G$1001,7)),"",VLOOKUP($A$61,Voorraad!$A$2:$G$1001,7)) -> Ti | K61: =IF(ISERROR(VLOOKUP($A$61,Voorraad!$A$2:$G$1001,5)),"",VLOOKUP($A$61,Voorraad!$A$2:$G$1001,5)) -> 8510 | L61: =IF(ISERROR(VLOOKUP($A$61,Voorraad!$A$2:$D$1001,4)),"",VLOOKUP($A$61,Voorraad!$A$2:$D$1001,4)) -> -1 | M61: 75 | N61: 76
A62: BU0029 | B62: =[6]Sheet1!$E$57 -> 75 | C62: =IF(ISERROR(VLOOKUP($A$62,Voorraad!$A$2:$D$1001,1)),"",VLOOKUP($A$62,Voorraad!$A$2:$D$1001,1)) -> BU0029 | D62: =IF(ISERROR(VLOOKUP($A$62,Voorraad!$A$2:$D$1001,3)),"",VLOOKUP($A$62,Voorraad!$A$2:$D$1001,3)) -> IC MAX693EPE -20/+85' | E62: =IF(ISERROR(VLOOKUP($A$62,Voorraad!$A$2:$D$1001,2)),"",VLOOKUP($A$62,Voorraad!$A$2:$D$1001,2)) -> #41693EPEM | F62: =IF(ISERROR(VLOOKUP($A$62,Voorraad!$A$2:$H$1001,8)),"",VLOOKUP($A$62,Voorraad!$A$2:$H$1001,8)) -> 522301 | G62: =IF(ISERROR(VLOOKUP($A$62,Voorraad!$A$2:$I$1001,9)),"",VLOOKUP($A$62,Voorraad!$A$2:$I$1001,9)) -> 0 | H62: =IF(ISERROR(VLOOKUP($A$62,Voorraad!$A$2:$J$1001,10)),"",VLOOKUP($A$62,Voorraad!$A$2:$J$1001,10)) -> alternatief van ADM of LTC mag ook, opvragen! | I62: =IF(ISERROR(VLOOKUP($A$62,Voorraad!$A$2:$G$1001,6)),"",VLOOKUP($A$62,Voorraad!$A$2:$G$1001,6)) -> UT SOURCE | J62: =IF(ISERROR(VLOOKUP($A$62,Voorraad!$A$2:$G$1001,7)),"",VLOOKUP($A$62,Voorraad!$A$2:$G$1001,7)) -> AD | K62: =IF(ISERROR(VLOOKUP($A$62,Voorraad!$A$2:$G$1001,5)),"",VLOOKUP($A$62,Voorraad!$A$2:$G$1001,5)) -> 8510 | L62: =IF(ISERROR(VLOOKUP($A$62,Voorraad!$A$2:$D$1001,4)),"",VLOOKUP($A$62,Voorraad!$A$2:$D$1001,4)) -> -75 | M62: 75 | N62: 150
A63: BU0030 | B63: =[6]Sheet1!$E$58 -> 450 | C63: =IF(ISERROR(VLOOKUP($A$63,Voorraad!$A$2:$D$1001,1)),"",VLOOKUP($A$63,Voorraad!$A$2:$D$1001,1)) -> BU0030 | D63: =IF(ISERROR(VLOOKUP($A$63,Voorraad!$A$2:$D$1001,3)),"",VLOOKUP($A$63,Voorraad!$A$2:$D$1001,3)) -> IC P74HC374N | E63: =IF(ISERROR(VLOOKUP($A$63,Voorraad!$A$2:$D$1001,2)),"",VLOOKUP($A$63,Voorraad!$A$2:$D$1001,2)) -> #432374NCPH | F63: =IF(ISERROR(VLOOKUP($A$63,Voorraad!$A$2:$H$1001,8)),"",VLOOKUP($A$63,Voorraad!$A$2:$H$1001,8)) -> 520343 | G63: =IF(ISERROR(VLOOKUP($A$63,Voorraad!$A$2:$I$1001,9)),"",VLOOKUP($A$63,Voorraad!$A$2:$I$1001,9)) -> SN74HC374N | H63: =IF(ISERROR(VLOOKUP($A$63,Voorraad!$A$2:$J$1001,10)),"",VLOOKUP($A$63,Voorraad!$A$2:$J$1001,10)) -> 0 | I63: =IF(ISERROR(VLOOKUP($A$63,Voorraad!$A$2:$G$1001,6)),"",VLOOKUP($A$63,Voorraad!$A$2:$G$1001,6)) -> TME | J63: =IF(ISERROR(VLOOKUP($A$63,Voorraad!$A$2:$G$1001,7)),"",VLOOKUP($A$63,Voorraad!$A$2:$G$1001,7)) -> NXP | K63: =IF(ISERROR(VLOOKUP($A$63,Voorraad!$A$2:$G$1001,5)),"",VLOOKUP($A$63,Voorraad!$A$2:$G$1001,5)) -> 8510 | L63: =IF(ISERROR(VLOOKUP($A$63,Voorraad!$A$2:$D$1001,4)),"",VLOOKUP($A$63,Voorraad!$A$2:$D$1001,4)) -> -36 | M63: 450 | N63: 486
A64: BU0031 | B64: =[6]Sheet1!$E$59 -> 150 | C64: =IF(ISERROR(VLOOKUP($A$64,Voorraad!$A$2:$D$1001,1)),"",VLOOKUP($A$64,Voorraad!$A$2:$D$1001,1)) -> BU0031 | D64: =IF(ISERROR(VLOOKUP($A$64,Voorraad!$A$2:$D$1001,3)),"",VLOOKUP($A$64,Voorraad!$A$2:$D$1001,3)) -> IC P74HCT04N DIP-14 | E64: =IF(ISERROR(VLOOKUP($A$64,Voorraad!$A$2:$D$1001,2)),"",VLOOKUP($A$64,Voorraad!$A$2:$D$1001,2)) -> #43404CPH | F64: =IF(ISERROR(VLOOKUP($A$64,Voorraad!$A$2:$H$1001,8)),"",VLOOKUP($A$64,Voorraad!$A$2:$H$1001,8)) -> 520013 | G64: =IF(ISERROR(VLOOKUP($A$64,Voorraad!$A$2:$I$1001,9)),"",VLOOKUP($A$64,Voorraad!$A$2:$I$1001,9)) -> TISSN74HCT04N | H64: =IF(ISERROR(VLOOKUP($A$64,Voorraad!$A$2:$J$1001,10)),"",VLOOKUP($A$64,Voorraad!$A$2:$J$1001,10)) -> 0 | I64: =IF(ISERROR(VLOOKUP($A$64,Voorraad!$A$2:$G$1001,6)),"",VLOOKUP($A$64,Voorraad!$A$2:$G$1001,6)) -> AVNET | J64: =IF(ISERROR(VLOOKUP($A$64,Voorraad!$A$2:$G$1001,7)),"",VLOOKUP($A$64,Voorraad!$A$2:$G$1001,7)) -> NXP | K64: =IF(ISERROR(VLOOKUP($A$64,Voorraad!$A$2:$G$1001,5)),"",VLOOKUP($A$64,Voorraad!$A$2:$G$1001,5)) -> 8510 | L64: =IF(ISERROR(VLOOKUP($A$64,Voorraad!$A$2:$D$1001,4)),"",VLOOKUP($A$64,Voorraad!$A$2:$D$1001,4)) -> 23 | M64: 150 | N64: 127
A65: BU0032 | B65: =[6]Sheet1!$E$60 -> 75 | C65: =IF(ISERROR(VLOOKUP($A$65,Voorraad!$A$2:$D$1001,1)),"",VLOOKUP($A$65,Voorraad!$A$2:$D$1001,1)) -> BU0032 | D65: =IF(ISERROR(VLOOKUP($A$65,Voorraad!$A$2:$D$1001,3)),"",VLOOKUP($A$65,Voorraad!$A$2:$D$1001,3)) -> IC TS80C31X2-MIA | E65: =IF(ISERROR(VLOOKUP($A$65,Voorraad!$A$2:$D$1001,2)),"",VLOOKUP($A$65,Voorraad!$A$2:$D$1001,2)) -> #4680C31X2A | F65: =IF(ISERROR(VLOOKUP($A$65,Voorraad!$A$2:$H$1001,8)),"",VLOOKUP($A$65,Voorraad!$A$2:$H$1001,8)) -> 522300 | G65: =IF(ISERROR(VLOOKUP($A$65,Voorraad!$A$2:$I$1001,9)),"",VLOOKUP($A$65,Voorraad!$A$2:$I$1001,9)) -> TS80C31X2-MIA | H65: =IF(ISERROR(VLOOKUP($A$65,Voorraad!$A$2:$J$1001,10)),"",VLOOKUP($A$65,Voorraad!$A$2:$J$1001,10)) -> 0 | I65: =IF(ISERROR(VLOOKUP($A$65,Voorraad!$A$2:$G$1001,6)),"",VLOOKUP($A$65,Voorraad!$A$2:$G$1001,6)) -> UT SOURCE | J65: =IF(ISERROR(VLOOKUP($A$65,Voorraad!$A$2:$G$1001,7)),"",VLOOKUP($A$65,Voorraad!$A$2:$G$1001,7)) -> TEMIC | K65: =IF(ISERROR(VLOOKUP($A$65,Voorraad!$A$2:$G$1001,5)),"",VLOOKUP($A$65,Voorraad!$A$2:$G$1001,5)) -> 8510 | L65: =IF(ISERROR(VLOOKUP($A$65,Voorraad!$A$2:$D$1001,4)),"",VLOOKUP($A$65,Voorraad!$A$2:$D$1001,4)) -> 0 | M65: 75 | N65: 75
A66: BU0033 | B66: =[6]Sheet1!$E$61 -> 75 | C66: =IF(ISERROR(VLOOKUP($A$66,Voorraad!$A$2:$D$1001,1)),"",VLOOKUP($A$66,Voorraad!$A$2:$D$1001,1)) -> BU0033 | D66: =IF(ISERROR(VLOOKUP($A$66,Voorraad!$A$2:$D$1001,3)),"",VLOOKUP($A$66,Voorraad!$A$2:$D$1001,3)) -> IC M27C256B-12F1 EPROM | E66: =IF(ISERROR(VLOOKUP($A$66,Voorraad!$A$2:$D$1001,2)),"",VLOOKUP($A$66,Voorraad!$A$2:$D$1001,2)) -> #47256B12F1GP | F66: =IF(ISERROR(VLOOKUP($A$66,Voorraad!$A$2:$H$1001,8)),"",VLOOKUP($A$66,Voorraad!$A$2:$H$1001,8)) -> 522216 | G66: =IF(ISERROR(VLOOKUP($A$66,Voorraad!$A$2:$I$1001,9)),"",VLOOKUP($A$66,Voorraad!$A$2:$I$1001,9)) -> UT8BGCHB2117 | H66: =IF(ISERROR(VLOOKUP($A$66,Voorraad!$A$2:$J$1001,10)),"",VLOOKUP($A$66,Voorraad!$A$2:$J$1001,10)) -> 0 | I66: =IF(ISERROR(VLOOKUP($A$66,Voorraad!$A$2:$G$1001,6)),"",VLOOKUP($A$66,Voorraad!$A$2:$G$1001,6)) -> MOUSER | J66: =IF(ISERROR(VLOOKUP($A$66,Voorraad!$A$2:$G$1001,7)),"",VLOOKUP($A$66,Voorraad!$A$2:$G$1001,7)) -> ST | K66: =IF(ISERROR(VLOOKUP($A$66,Voorraad!$A$2:$G$1001,5)),"",VLOOKUP($A$66,Voorraad!$A$2:$G$1001,5)) -> 8510 | L66: =IF(ISERROR(VLOOKUP($A$66,Voorraad!$A$2:$D$1001,4)),"",VLOOKUP($A$66,Voorraad!$A$2:$D$1001,4)) -> -75 | M66: 75 | N66: 150
A67: BU0034 | B67: =[6]Sheet1!$E$62 -> 75 | C67: =IF(ISERROR(VLOOKUP($A$67,Voorraad!$A$2:$D$1001,1)),"",VLOOKUP($A$67,Voorraad!$A$2:$D$1001,1)) -> BU0034 | D67: =IF(ISERROR(VLOOKUP($A$67,Voorraad!$A$2:$D$1001,3)),"",VLOOKUP($A$67,Voorraad!$A$2:$D$1001,3)) -> IC DS1225Y-200 | E67: =IF(ISERROR(VLOOKUP($A$67,Voorraad!$A$2:$D$1001,2)),"",VLOOKUP($A$67,Voorraad!$A$2:$D$1001,2)) -> #411225Y150PM | F67: =IF(ISERROR(VLOOKUP($A$67,Voorraad!$A$2:$H$1001,8)),"",VLOOKUP($A$67,Voorraad!$A$2:$H$1001,8)) -> 522224 | G67: =IF(ISERROR(VLOOKUP($A$67,Voorraad!$A$2:$I$1001,9)),"",VLOOKUP($A$67,Voorraad!$A$2:$I$1001,9)) -> 0 | H67: =IF(ISERROR(VLOOKUP($A$67,Voorraad!$A$2:$J$1001,10)),"",VLOOKUP($A$67,Voorraad!$A$2:$J$1001,10)) -> 0 | I67: =IF(ISERROR(VLOOKUP($A$67,Voorraad!$A$2:$G$1001,6)),"",VLOOKUP($A$67,Voorraad!$A$2:$G$1001,6)) -> 0 | J67: =IF(ISERROR(VLOOKUP($A$67,Voorraad!$A$2:$G$1001,7)),"",VLOOKUP($A$67,Voorraad!$A$2:$G$1001,7)) -> DALLAS/HANBIT / MAXIM | K67: =IF(ISERROR(VLOOKUP($A$67,Voorraad!$A$2:$G$1001,5)),"",VLOOKUP($A$67,Voorraad!$A$2:$G$1001,5)) -> 8510 | L67: =IF(ISERROR(VLOOKUP($A$67,Voorraad!$A$2:$D$1001,4)),"",VLOOKUP($A$67,Voorraad!$A$2:$D$1001,4)) -> -75 | M67: 75 | N67: 150
A68: BU0035 | B68: =[6]Sheet1!$E$63 -> 300 | C68: =IF(ISERROR(VLOOKUP($A$68,Voorraad!$A$2:$D$1001,1)),"",VLOOKUP($A$68,Voorraad!$A$2:$D$1001,1)) -> BU0035 | D68: =IF(ISERROR(VLOOKUP($A$68,Voorraad!$A$2:$D$1001,3)),"",VLOOKUP($A$68,Voorraad!$A$2:$D$1001,3)) -> IC TLP626 OPTOCOUPLER | E68: =IF(ISERROR(VLOOKUP($A$68,Voorraad!$A$2:$D$1001,2)),"",VLOOKUP($A$68,Voorraad!$A$2:$D$1001,2)) -> #94TLP626T | F68: =IF(ISERROR(VLOOKUP($A$68,Voorraad!$A$2:$H$1001,8)),"",VLOOKUP($A$68,Voorraad!$A$2:$H$1001,8)) -> 552112 | G68: =IF(ISERROR(VLOOKUP($A$68,Voorraad!$A$2:$I$1001,9)),"",VLOOKUP($A$68,Voorraad!$A$2:$I$1001,9)) -> TLP626 | H68: =IF(ISERROR(VLOOKUP($A$68,Voorraad!$A$2:$J$1001,10)),"",VLOOKUP($A$68,Voorraad!$A$2:$J$1001,10)) -> AVNET ORDERCODE - XYETOSTLP626(F) | I68: =IF(ISERROR(VLOOKUP($A$68,Voorraad!$A$2:$G$1001,6)),"",VLOOKUP($A$68,Voorraad!$A$2:$G$1001,6)) -> TME | J68: =IF(ISERROR(VLOOKUP($A$68,Voorraad!$A$2:$G$1001,7)),"",VLOOKUP($A$68,Voorraad!$A$2:$G$1001,7)) -> TOSHIBA | K68: =IF(ISERROR(VLOOKUP($A$68,Voorraad!$A$2:$G$1001,5)),"",VLOOKUP($A$68,Voorraad!$A$2:$G$1001,5)) -> 8510 | L68: =IF(ISERROR(VLOOKUP($A$68,Voorraad!$A$2:$D$1001,4)),"",VLOOKUP($A$68,Voorraad!$A$2:$D$1001,4)) -> -188 | M68: 300 | N68: 488
A69: BU0036 | B69: =[6]Sheet1!$E$64 -> 225 | C69: =IF(ISERROR(VLOOKUP($A$69,Voorraad!$A$2:$D$1001,1)),"",VLOOKUP($A$69,Voorraad!$A$2:$D$1001,1)) -> BU0036 | D69: =IF(ISERROR(VLOOKUP($A$69,Voorraad!$A$2:$D$1001,3)),"",VLOOKUP($A$69,Voorraad!$A$2:$D$1001,3)) -> IC TLP627 OPTOCOUPLER DIL-4 | E69: =IF(ISERROR(VLOOKUP($A$69,Voorraad!$A$2:$D$1001,2)),"",VLOOKUP($A$69,Voorraad!$A$2:$D$1001,2)) -> #94TLP627TO | F69: =IF(ISERROR(VLOOKUP($A$69,Voorraad!$A$2:$H$1001,8)),"",VLOOKUP($A$69,Voorraad!$A$2:$H$1001,8)) -> 552114 | G69: =IF(ISERROR(VLOOKUP($A$69,Voorraad!$A$2:$I$1001,9)),"",VLOOKUP($A$69,Voorraad!$A$2:$I$1001,9)) -> 0 | H69: =IF(ISERROR(VLOOKUP($A$69,Voorraad!$A$2:$J$1001,10)),"",VLOOKUP($A$69,Voorraad!$A$2:$J$1001,10)) -> 0 | I69: =IF(ISERROR(VLOOKUP($A$69,Voorraad!$A$2:$G$1001,6)),"",VLOOKUP($A$69,Voorraad!$A$2:$G$1001,6)) -> 0 | J69: =IF(ISERROR(VLOOKUP($A$69,Voorraad!$A$2:$G$1001,7)),"",VLOOKUP($A$69,Voorraad!$A$2:$G$1001,7)) -> TOSHIBA | K69: =IF(ISERROR(VLOOKUP($A$69,Voorraad!$A$2:$G$1001,5)),"",VLOOKUP($A$69,Voorraad!$A$2:$G$1001,5)) -> 8510 | L69: =IF(ISERROR(VLOOKUP($A$69,Voorraad!$A$2:$D$1001,4)),"",VLOOKUP($A$69,Voorraad!$A$2:$D$1001,4)) -> -171 | M69: 225 | N69: 396
A70: BU0037 | B70: =[6]Sheet1!$E$65 -> 225 | C70: =IF(ISERROR(VLOOKUP($A$70,Voorraad!$A$2:$D$1001,1)),"",VLOOKUP($A$70,Voorraad!$A$2:$D$1001,1)) -> BU0037 | D70: =IF(ISERROR(VLOOKUP($A$70,Voorraad!$A$2:$D$1001,3)),"",VLOOKUP($A$70,Voorraad!$A$2:$D$1001,3)) -> IC TLP627 OPTOCOUPLER DIL-16 | E70: =IF(ISERROR(VLOOKUP($A$70,Voorraad!$A$2:$D$1001,2)),"",VLOOKUP($A$70,Voorraad!$A$2:$D$1001,2)) -> ? | F70: =IF(ISERROR(VLOOKUP($A$70,Voorraad!$A$2:$H$1001,8)),"",VLOOKUP($A$70,Voorraad!$A$2:$H$1001,8)) -> 552116 | G70: =IF(ISERROR(VLOOKUP($A$70,Voorraad!$A$2:$I$1001,9)),"",VLOOKUP($A$70,Voorraad!$A$2:$I$1001,9)) -> 0 | H70: =IF(ISERROR(VLOOKUP($A$70,Voorraad!$A$2:$J$1001,10)),"",VLOOKUP($A$70,Voorraad!$A$2:$J$1001,10)) -> 0 | I70: =IF(ISERROR(VLOOKUP($A$70,Voorraad!$A$2:$G$1001,6)),"",VLOOKUP($A$70,Voorraad!$A$2:$G$1001,6)) -> 0 | J70: =IF(ISERROR(VLOOKUP($A$70,Voorraad!$A$2:$G$1001,7)),"",VLOOKUP($A$70,Voorraad!$A$2:$G$1001,7)) -> 0 | K70: =IF(ISERROR(VLOOKUP($A$70,Voorraad!$A$2:$G$1001,5)),"",VLOOKUP($A$70,Voorraad!$A$2:$G$1001,5)) -> 8510 | L70: =IF(ISERROR(VLOOKUP($A$70,Voorraad!$A$2:$D$1001,4)),"",VLOOKUP($A$70,Voorraad!$A$2:$D$1001,4)) -> -152 | M70: 225 | N70: 377
A71: BU0043 | B71: =[6]Sheet1!$E$66 -> 75 | C71: =IF(ISERROR(VLOOKUP($A$71,Voorraad!$A$2:$D$1001,1)),"",VLOOKUP($A$71,Voorraad!$A$2:$D$1001,1)) -> BU0043 | D71: =IF(ISERROR(VLOOKUP($A$71,Voorraad!$A$2:$D$1001,3)),"",VLOOKUP($A$71,Voorraad!$A$2:$D$1001,3)) -> LED HOUDER DH3W HAAKS | E71: =IF(ISERROR(VLOOKUP($A$71,Voorraad!$A$2:$D$1001,2)),"",VLOOKUP($A$71,Voorraad!$A$2:$D$1001,2)) -> #50DH3WF | F71: =IF(ISERROR(VLOOKUP($A$71,Voorraad!$A$2:$H$1001,8)),"",VLOOKUP($A$71,Voorraad!$A$2:$H$1001,8)) -> 552122 | G71: =IF(ISERROR(VLOOKUP($A$71,Voorraad!$A$2:$I$1001,9)),"",VLOOKUP($A$71,Voorraad!$A$2:$I$1001,9)) -> 175-07-513 | H71: =IF(ISERROR(VLOOKUP($A$71,Voorraad!$A$2:$J$1001,10)),"",VLOOKUP($A$71,Voorraad!$A$2:$J$1001,10)) -> 0 | I71: =IF(ISERROR(VLOOKUP($A$71,Voorraad!$A$2:$G$1001,6)),"",VLOOKUP($A$71,Voorraad!$A$2:$G$1001,6)) -> DISTELEC | J71: =IF(ISERROR(VLOOKUP($A$71,Voorraad!$A$2:$G$1001,7)),"",VLOOKUP($A$71,Voorraad!$A$2:$G$1001,7)) -> FISCHER | K71: =IF(ISERROR(VLOOKUP($A$71,Voorraad!$A$2:$G$1001,5)),"",VLOOKUP($A$71,Voorraad!$A$2:$G$1001,5)) -> 8510 | L71: =IF(ISERROR(VLOOKUP($A$71,Voorraad!$A$2:$D$1001,4)),"",VLOOKUP($A$71,Voorraad!$A$2:$D$1001,4)) -> -1 | M71: 75 | N71: 76
A72: BU0044 | B72: =[6]Sheet1!$E$67 -> 900 | C72: =IF(ISERROR(VLOOKUP($A$72,Voorraad!$A$2:$D$1001,1)),"",VLOOKUP($A$72,Voorraad!$A$2:$D$1001,1)) -> BU0044 | D72: =IF(ISERROR(VLOOKUP($A$72,Voorraad!$A$2:$D$1001,3)),"",VLOOKUP($A$72,Voorraad!$A$2:$D$1001,3)) -> LED HOUDER DH5W HAAKSE | E72: =IF(ISERROR(VLOOKUP($A$72,Voorraad!$A$2:$D$1001,2)),"",VLOOKUP($A$72,Voorraad!$A$2:$D$1001,2)) -> #50DH5WF | F72: =IF(ISERROR(VLOOKUP($A$72,Voorraad!$A$2:$H$1001,8)),"",VLOOKUP($A$72,Voorraad!$A$2:$H$1001,8)) -> 552123 | G72: =IF(ISERROR(VLOOKUP($A$72,Voorraad!$A$2:$I$1001,9)),"",VLOOKUP($A$72,Voorraad!$A$2:$I$1001,9)) -> 175-07-515 | H72: =IF(ISERROR(VLOOKUP($A$72,Voorraad!$A$2:$J$1001,10)),"",VLOOKUP($A$72,Voorraad!$A$2:$J$1001,10)) -> 0 | I72: =IF(ISERROR(VLOOKUP($A$72,Voorraad!$A$2:$G$1001,6)),"",VLOOKUP($A$72,Voorraad!$A$2:$G$1001,6)) -> DISTRELEC | J72: =IF(ISERROR(VLOOKUP($A$72,Voorraad!$A$2:$G$1001,7)),"",VLOOKUP($A$72,Voorraad!$A$2:$G$1001,7)) -> FISCHER | K72: =IF(ISERROR(VLOOKUP($A$72,Voorraad!$A$2:$G$1001,5)),"",VLOOKUP($A$72,Voorraad!$A$2:$G$1001,5)) -> 8510 | L72: =IF(ISERROR(VLOOKUP($A$72,Voorraad!$A$2:$D$1001,4)),"",VLOOKUP($A$72,Voorraad!$A$2:$D$1001,4)) -> 109 | M72: =B72 -> 900 | N72: =MAX(0,(SUM(M72-L72))) -> 791
A73: BU0045 | B73: =[6]Sheet1!$E$68 -> 75 | C73: =IF(ISERROR(VLOOKUP($A$73,Voorraad!$A$2:$D$1001,1)),"",VLOOKUP($A$73,Voorraad!$A$2:$D$1001,1)) -> BU0045 | D73: =IF(ISERROR(VLOOKUP($A$73,Voorraad!$A$2:$D$1001,3)),"",VLOOKUP($A$73,Voorraad!$A$2:$D$1001,3)) -> LED TLG124A GROEN 3.18MM | E73: =IF(ISERROR(VLOOKUP($A$73,Voorraad!$A$2:$D$1001,2)),"",VLOOKUP($A$73,Voorraad!$A$2:$D$1001,2)) -> KVD-03-035/G | F73: =IF(ISERROR(VLOOKUP($A$73,Voorraad!$A$2:$H$1001,8)),"",VLOOKUP($A$73,Voorraad!$A$2:$H$1001,8)) -> ? | G73: =IF(ISERROR(VLOOKUP($A$73,Voorraad!$A$2:$I$1001,9)),"",VLOOKUP($A$73,Voorraad!$A$2:$I$1001,9)) -> L-934GD | H73: =IF(ISERROR(VLOOKUP($A$73,Voorraad!$A$2:$J$1001,10)),"",VLOOKUP($A$73,Voorraad!$A$2:$J$1001,10)) -> 0 | I73: =IF(ISERROR(VLOOKUP($A$73,Voorraad!$A$2:$G$1001,6)),"",VLOOKUP($A$73,Voorraad!$A$2:$G$1001,6)) -> TME | J73: =IF(ISERROR(VLOOKUP($A$73,Voorraad!$A$2:$G$1001,7)),"",VLOOKUP($A$73,Voorraad!$A$2:$G$1001,7)) -> KHATOD / King Bright | K73: =IF(ISERROR(VLOOKUP($A$73,Voorraad!$A$2:$G$1001,5)),"",VLOOKUP($A$73,Voorraad!$A$2:$G$1001,5)) -> 8437/8438/8439/8464/8510 | L73: =IF(ISERROR(VLOOKUP($A$73,Voorraad!$A$2:$D$1001,4)),"",VLOOKUP($A$73,Voorraad!$A$2:$D$1001,4)) -> 2 | M73: 75 | N73: 73
A74: BU0046 | B74: =[6]Sheet1!$E$69 -> 75 | C74: =IF(ISERROR(VLOOKUP($A$74,Voorraad!$A$2:$D$1001,1)),"",VLOOKUP($A$74,Voorraad!$A$2:$D$1001,1)) -> BU0046 | D74: =IF(ISERROR(VLOOKUP($A$74,Voorraad!$A$2:$D$1001,3)),"",VLOOKUP($A$74,Voorraad!$A$2:$D$1001,3)) -> LED TLY124 AMBER 3.18MM | E74: =IF(ISERROR(VLOOKUP($A$74,Voorraad!$A$2:$D$1001,2)),"",VLOOKUP($A$74,Voorraad!$A$2:$D$1001,2)) -> #900TLHY4400 | F74: =IF(ISERROR(VLOOKUP($A$74,Voorraad!$A$2:$H$1001,8)),"",VLOOKUP($A$74,Voorraad!$A$2:$H$1001,8)) -> 552102 | G74: =IF(ISERROR(VLOOKUP($A$74,Voorraad!$A$2:$I$1001,9)),"",VLOOKUP($A$74,Voorraad!$A$2:$I$1001,9)) -> 0 | H74: =IF(ISERROR(VLOOKUP($A$74,Voorraad!$A$2:$J$1001,10)),"",VLOOKUP($A$74,Voorraad!$A$2:$J$1001,10)) -> 0 | I74: =IF(ISERROR(VLOOKUP($A$74,Voorraad!$A$2:$G$1001,6)),"",VLOOKUP($A$74,Voorraad!$A$2:$G$1001,6)) -> 0 | J74: =IF(ISERROR(VLOOKUP($A$74,Voorraad!$A$2:$G$1001,7)),"",VLOOKUP($A$74,Voorraad!$A$2:$G$1001,7)) -> TOSHIBA | K74: =IF(ISERROR(VLOOKUP($A$74,Voorraad!$A$2:$G$1001,5)),"",VLOOKUP($A$74,Voorraad!$A$2:$G$1001,5)) -> 8510 | L74: =IF(ISERROR(VLOOKUP($A$74,Voorraad!$A$2:$D$1001,4)),"",VLOOKUP($A$74,Voorraad!$A$2:$D$1001,4)) -> -63 | M74: 75 | N74: 138
A75: BU0047 | B75: =[6]Sheet1!$E$70 -> 75 | C75: =IF(ISERROR(VLOOKUP($A$75,Voorraad!$A$2:$D$1001,1)),"",VLOOKUP($A$75,Voorraad!$A$2:$D$1001,1)) -> BU0047 | D75: =IF(ISERROR(VLOOKUP($A$75,Voorraad!$A$2:$D$1001,3)),"",VLOOKUP($A$75,Voorraad!$A$2:$D$1001,3)) -> LED L63GD 5MM GROEN | E75: =IF(ISERROR(VLOOKUP($A$75,Voorraad!$A$2:$D$1001,2)),"",VLOOKUP($A$75,Voorraad!$A$2:$D$1001,2)) -> #901L63GDK | F75: =IF(ISERROR(VLOOKUP($A$75,Voorraad!$A$2:$H$1001,8)),"",VLOOKUP($A$75,Voorraad!$A$2:$H$1001,8)) -> 552103 | G75: =IF(ISERROR(VLOOKUP($A$75,Voorraad!$A$2:$I$1001,9)),"",VLOOKUP($A$75,Voorraad!$A$2:$I$1001,9)) -> TLHG5205 | H75: =IF(ISERROR(VLOOKUP($A$75,Voorraad!$A$2:$J$1001,10)),"",VLOOKUP($A$75,Voorraad!$A$2:$J$1001,10)) -> 0 | I75: =IF(ISERROR(VLOOKUP($A$75,Voorraad!$A$2:$G$1001,6)),"",VLOOKUP($A$75,Voorraad!$A$2:$G$1001,6)) -> TME | J75: =IF(ISERROR(VLOOKUP($A$75,Voorraad!$A$2:$G$1001,7)),"",VLOOKUP($A$75,Voorraad!$A$2:$G$1001,7)) -> VISHAY | K75: =IF(ISERROR(VLOOKUP($A$75,Voorraad!$A$2:$G$1001,5)),"",VLOOKUP($A$75,Voorraad!$A$2:$G$1001,5)) -> 8510 | L75: =IF(ISERROR(VLOOKUP($A$75,Voorraad!$A$2:$D$1001,4)),"",VLOOKUP($A$75,Voorraad!$A$2:$D$1001,4)) -> 0 | M75: 75 | N75: 75
A76: BU0048 | B76: =[6]Sheet1!$E$71 -> 750 | C76: =IF(ISERROR(VLOOKUP($A$76,Voorraad!$A$2:$D$1001,1)),"",VLOOKUP($A$76,Voorraad!$A$2:$D$1001,1)) -> BU0048 | D76: =IF(ISERROR(VLOOKUP($A$76,Voorraad!$A$2:$D$1001,3)),"",VLOOKUP($A$76,Voorraad!$A$2:$D$1001,3)) -> LED TLRE263AP ROOD 2E | E76: =IF(ISERROR(VLOOKUP($A$76,Voorraad!$A$2:$D$1001,2)),"",VLOOKUP($A$76,Voorraad!$A$2:$D$1001,2)) -> #49TLRE263APT | F76: =IF(ISERROR(VLOOKUP($A$76,Voorraad!$A$2:$H$1001,8)),"",VLOOKUP($A$76,Voorraad!$A$2:$H$1001,8)) -> 552104 | G76: =IF(ISERROR(VLOOKUP($A$76,Voorraad!$A$2:$I$1001,9)),"",VLOOKUP($A$76,Voorraad!$A$2:$I$1001,9)) -> WP63iT | H76: =IF(ISERROR(VLOOKUP($A$76,Voorraad!$A$2:$J$1001,10)),"",VLOOKUP($A$76,Voorraad!$A$2:$J$1001,10)) -> TME: L-1502EC / FARNELL: 2335729 | I76: =IF(ISERROR(VLOOKUP($A$76,Voorraad!$A$2:$G$1001,6)),"",VLOOKUP($A$76,Voorraad!$A$2:$G$1001,6)) -> TME | J76: =IF(ISERROR(VLOOKUP($A$76,Voorraad!$A$2:$G$1001,7)),"",VLOOKUP($A$76,Voorraad!$A$2:$G$1001,7)) -> KINGBRIGHT | K76: =IF(ISERROR(VLOOKUP($A$76,Voorraad!$A$2:$G$1001,5)),"",VLOOKUP($A$76,Voorraad!$A$2:$G$1001,5)) -> 8510 | L76: =IF(ISERROR(VLOOKUP($A$76,Voorraad!$A$2:$D$1001,4)),"",VLOOKUP($A$76,Voorraad!$A$2:$D$1001,4)) -> -501 | M76: 750 | N76: 1251
A77: BU0051 | B77: =[6]Sheet1!$E$72 -> 75 | C77: =IF(ISERROR(VLOOKUP($A$77,Voorraad!$A$2:$D$1001,1)),"",VLOOKUP($A$77,Voorraad!$A$2:$D$1001,1)) -> BU0051 | D77: =IF(ISERROR(VLOOKUP($A$77,Voorraad!$A$2:$D$1001,3)),"",VLOOKUP($A$77,Voorraad!$A$2:$D$1001,3)) -> REL G6RN1-24VDC 24V | E77: =IF(ISERROR(VLOOKUP($A$77,Voorraad!$A$2:$D$1001,2)),"",VLOOKUP($A$77,Voorraad!$A$2:$D$1001,2)) -> #502G6RN124VO | F77: =IF(ISERROR(VLOOKUP($A$77,Voorraad!$A$2:$H$1001,8)),"",VLOOKUP($A$77,Voorraad!$A$2:$H$1001,8)) -> 536001 | G77: =IF(ISERROR(VLOOKUP($A$77,Voorraad!$A$2:$I$1001,9)),"",VLOOKUP($A$77,Voorraad!$A$2:$I$1001,9)) -> G6RN-1-24 | H77: =IF(ISERROR(VLOOKUP($A$77,Voorraad!$A$2:$J$1001,10)),"",VLOOKUP($A$77,Voorraad!$A$2:$J$1001,10)) -> alternatief: y23061-b1007 siemens | I77: =IF(ISERROR(VLOOKUP($A$77,Voorraad!$A$2:$G$1001,6)),"",VLOOKUP($A$77,Voorraad!$A$2:$G$1001,6)) -> TME | J77: =IF(ISERROR(VLOOKUP($A$77,Voorraad!$A$2:$G$1001,7)),"",VLOOKUP($A$77,Voorraad!$A$2:$G$1001,7)) -> OMRON | K77: =IF(ISERROR(VLOOKUP($A$77,Voorraad!$A$2:$G$1001,5)),"",VLOOKUP($A$77,Voorraad!$A$2:$G$1001,5)) -> 8410/8510 | L77: =IF(ISERROR(VLOOKUP($A$77,Voorraad!$A$2:$D$1001,4)),"",VLOOKUP($A$77,Voorraad!$A$2:$D$1001,4)) -> -75 | M77: 75 | N77: 150
A78: BU0056 | B78: =[6]Sheet1!$E$73 -> 75 | C78: =IF(ISERROR(VLOOKUP($A$78,Voorraad!$A$2:$D$1001,1)),"",VLOOKUP($A$78,Voorraad!$A$2:$D$1001,1)) -> BU0056 | D78: =IF(ISERROR(VLOOKUP($A$78,Voorraad!$A$2:$D$1001,3)),"",VLOOKUP($A$78,Voorraad!$A$2:$D$1001,3)) -> CON ICV 20P 0-0345721-6 | E78: =IF(ISERROR(VLOOKUP($A$78,Voorraad!$A$2:$D$1001,2)),"",VLOOKUP($A$78,Voorraad!$A$2:$D$1001,2)) -> #511020PRE | F78: =IF(ISERROR(VLOOKUP($A$78,Voorraad!$A$2:$H$1001,8)),"",VLOOKUP($A$78,Voorraad!$A$2:$H$1001,8)) -> 516245 | G78: =IF(ISERROR(VLOOKUP($A$78,Voorraad!$A$2:$I$1001,9)),"",VLOOKUP($A$78,Voorraad!$A$2:$I$1001,9)) -> ICVT-20P | H78: =IF(ISERROR(VLOOKUP($A$78,Voorraad!$A$2:$J$1001,10)),"",VLOOKUP($A$78,Voorraad!$A$2:$J$1001,10)) -> 0 | I78: =IF(ISERROR(VLOOKUP($A$78,Voorraad!$A$2:$G$1001,6)),"",VLOOKUP($A$78,Voorraad!$A$2:$G$1001,6)) -> TME | J78: =IF(ISERROR(VLOOKUP($A$78,Voorraad!$A$2:$G$1001,7)),"",VLOOKUP($A$78,Voorraad!$A$2:$G$1001,7)) -> EURODIP | K78: =IF(ISERROR(VLOOKUP($A$78,Voorraad!$A$2:$G$1001,5)),"",VLOOKUP($A$78,Voorraad!$A$2:$G$1001,5)) -> 8510 | L78: =IF(ISERROR(VLOOKUP($A$78,Voorraad!$A$2:$D$1001,4)),"",VLOOKUP($A$78,Voorraad!$A$2:$D$1001,4)) -> -75 | M78: 75 | N78: 150
A79: BU0057 | B79: =[6]Sheet1!$E$74 -> 150 | C79: =IF(ISERROR(VLOOKUP($A$79,Voorraad!$A$2:$D$1001,1)),"",VLOOKUP($A$79,Voorraad!$A$2:$D$1001,1)) -> BU0057 | D79: =IF(ISERROR(VLOOKUP($A$79,Voorraad!$A$2:$D$1001,3)),"",VLOOKUP($A$79,Voorraad!$A$2:$D$1001,3)) -> CON ICV 28P 0-0345728-6 | E79: =IF(ISERROR(VLOOKUP($A$79,Voorraad!$A$2:$D$1001,2)),"",VLOOKUP($A$79,Voorraad!$A$2:$D$1001,2)) -> #511028PRE | F79: =IF(ISERROR(VLOOKUP($A$79,Voorraad!$A$2:$H$1001,8)),"",VLOOKUP($A$79,Voorraad!$A$2:$H$1001,8)) -> 516231 | G79: =IF(ISERROR(VLOOKUP($A$79,Voorraad!$A$2:$I$1001,9)),"",VLOOKUP($A$79,Voorraad!$A$2:$I$1001,9)) -> ICVT-28P | H79: =IF(ISERROR(VLOOKUP($A$79,Voorraad!$A$2:$J$1001,10)),"",VLOOKUP($A$79,Voorraad!$A$2:$J$1001,10)) -> 0 | I79: =IF(ISERROR(VLOOKUP($A$79,Voorraad!$A$2:$G$1001,6)),"",VLOOKUP($A$79,Voorraad!$A$2:$G$1001,6)) -> TME | J79: =IF(ISERROR(VLOOKUP($A$79,Voorraad!$A$2:$G$1001,7)),"",VLOOKUP($A$79,Voorraad!$A$2:$G$1001,7)) -> CONNFLY | K79: =IF(ISERROR(VLOOKUP($A$79,Voorraad!$A$2:$G$1001,5)),"",VLOOKUP($A$79,Voorraad!$A$2:$G$1001,5)) -> 8510 | L79: =IF(ISERROR(VLOOKUP($A$79,Voorraad!$A$2:$D$1001,4)),"",VLOOKUP($A$79,Voorraad!$A$2:$D$1001,4)) -> -142 | M79: 150 | N79: 292
A80: BU0058 | B80: =[6]Sheet1!$E$75 -> 75 | C80: =IF(ISERROR(VLOOKUP($A$80,Voorraad!$A$2:$D$1001,1)),"",VLOOKUP($A$80,Voorraad!$A$2:$D$1001,1)) -> BU0058 | D80: =IF(ISERROR(VLOOKUP($A$80,Voorraad!$A$2:$D$1001,3)),"",VLOOKUP($A$80,Voorraad!$A$2:$D$1001,3)) -> CON ICV 40P 0-0345730-6 | E80: =IF(ISERROR(VLOOKUP($A$80,Voorraad!$A$2:$D$1001,2)),"",VLOOKUP($A$80,Voorraad!$A$2:$D$1001,2)) -> #511040PRE | F80: =IF(ISERROR(VLOOKUP($A$80,Voorraad!$A$2:$H$1001,8)),"",VLOOKUP($A$80,Voorraad!$A$2:$H$1001,8)) -> 516232 | G80: =IF(ISERROR(VLOOKUP($A$80,Voorraad!$A$2:$I$1001,9)),"",VLOOKUP($A$80,Voorraad!$A$2:$I$1001,9)) -> ICVT-40P | H80: =IF(ISERROR(VLOOKUP($A$80,Voorraad!$A$2:$J$1001,10)),"",VLOOKUP($A$80,Voorraad!$A$2:$J$1001,10)) -> 0 | I80: =IF(ISERROR(VLOOKUP($A$80,Voorraad!$A$2:$G$1001,6)),"",VLOOKUP($A$80,Voorraad!$A$2:$G$1001,6)) -> TME | J80: =IF(ISERROR(VLOOKUP($A$80,Voorraad!$A$2:$G$1001,7)),"",VLOOKUP($A$80,Voorraad!$A$2:$G$1001,7)) -> CONNFLY | K80: =IF(ISERROR(VLOOKUP($A$80,Voorraad!$A$2:$G$1001,5)),"",VLOOKUP($A$80,Voorraad!$A$2:$G$1001,5)) -> 8510 | L80: =IF(ISERROR(VLOOKUP($A$80,Voorraad!$A$2:$D$1001,4)),"",VLOOKUP($A$80,Voorraad!$A$2:$D$1001,4)) -> -74 | M80: 75 | N80: 149
A81: BU0059 | B81: =[6]Sheet1!$E$76 -> 75 | C81: =IF(ISERROR(VLOOKUP($A$81,Voorraad!$A$2:$D$1001,1)),"",VLOOKUP($A$81,Voorraad!$A$2:$D$1001,1)) -> BU0059 | D81: =IF(ISERROR(VLOOKUP($A$81,Voorraad!$A$2:$D$1001,3)),"",VLOOKUP($A$81,Voorraad!$A$2:$D$1001,3)) -> CON 1-881545-1 SHUNT | E81: =IF(ISERROR(VLOOKUP($A$81,Voorraad!$A$2:$D$1001,2)),"",VLOOKUP($A$81,Voorraad!$A$2:$D$1001,2)) -> #513JUMPOFSW | F81: =IF(ISERROR(VLOOKUP($A$81,Voorraad!$A$2:$H$1001,8)),"",VLOOKUP($A$81,Voorraad!$A$2:$H$1001,8)) -> 0 | G81: =IF(ISERROR(VLOOKUP($A$81,Voorraad!$A$2:$I$1001,9)),"",VLOOKUP($A$81,Voorraad!$A$2:$I$1001,9)) -> JUMPER-BL | H81: =IF(ISERROR(VLOOKUP($A$81,Voorraad!$A$2:$J$1001,10)),"",VLOOKUP($A$81,Voorraad!$A$2:$J$1001,10)) -> 0 | I81: =IF(ISERROR(VLOOKUP($A$81,Voorraad!$A$2:$G$1001,6)),"",VLOOKUP($A$81,Voorraad!$A$2:$G$1001,6)) -> TME | J81: =IF(ISERROR(VLOOKUP($A$81,Voorraad!$A$2:$G$1001,7)),"",VLOOKUP($A$81,Voorraad!$A$2:$G$1001,7)) -> 0 | K81: =IF(ISERROR(VLOOKUP($A$81,Voorraad!$A$2:$G$1001,5)),"",VLOOKUP($A$81,Voorraad!$A$2:$G$1001,5)) -> 8437/8439/8464/8510 | L81: =IF(ISERROR(VLOOKUP($A$81,Voorraad!$A$2:$D$1001,4)),"",VLOOKUP($A$81,Voorraad!$A$2:$D$1001,4)) -> 1725 | M81: 75 | N81: 0
A82: BU0060 | B82: =[6]Sheet1!$E$77 -> 75 | C82: =IF(ISERROR(VLOOKUP($A$82,Voorraad!$A$2:$D$1001,1)),"",VLOOKUP($A$82,Voorraad!$A$2:$D$1001,1)) -> BU0060 | D82: =IF(ISERROR(VLOOKUP($A$82,Voorraad!$A$2:$D$1001,3)),"",VLOOKUP($A$82,Voorraad!$A$2:$D$1001,3)) -> CON 8280224-03-02 3P MALE | E82: =IF(ISERROR(VLOOKUP($A$82,Voorraad!$A$2:$D$1001,2)),"",VLOOKUP($A$82,Voorraad!$A$2:$D$1001,2)) -> #514890003811 | F82: =IF(ISERROR(VLOOKUP($A$82,Voorraad!$A$2:$H$1001,8)),"",VLOOKUP($A$82,Voorraad!$A$2:$H$1001,8)) -> 0 | G82: =IF(ISERROR(VLOOKUP($A$82,Voorraad!$A$2:$I$1001,9)),"",VLOOKUP($A$82,Voorraad!$A$2:$I$1001,9)) -> 0 | H82: =IF(ISERROR(VLOOKUP($A$82,Voorraad!$A$2:$J$1001,10)),"",VLOOKUP($A$82,Voorraad!$A$2:$J$1001,10)) -> 0 | I82: =IF(ISERROR(VLOOKUP($A$82,Voorraad!$A$2:$G$1001,6)),"",VLOOKUP($A$82,Voorraad!$A$2:$G$1001,6)) -> 0 | J82: =IF(ISERROR(VLOOKUP($A$82,Voorraad!$A$2:$G$1001,7)),"",VLOOKUP($A$82,Voorraad!$A$2:$G$1001,7)) -> PRECIDIP | K82: =IF(ISERROR(VLOOKUP($A$82,Voorraad!$A$2:$G$1001,5)),"",VLOOKUP($A$82,Voorraad!$A$2:$G$1001,5)) -> 8510 | L82: =IF(ISERROR(VLOOKUP($A$82,Voorraad!$A$2:$D$1001,4)),"",VLOOKUP($A$82,Voorraad!$A$2:$D$1001,4)) -> 272 | M82: 75 | N82: 0
A83: BU0068 | B83: =[6]Sheet1!$E$78 -> 75 | C83: =IF(ISERROR(VLOOKUP($A$83,Voorraad!$A$2:$D$1001,1)),"",VLOOKUP($A$83,Voorraad!$A$2:$D$1001,1)) -> BU0068 | D83: =IF(ISERROR(VLOOKUP($A$83,Voorraad!$A$2:$D$1001,3)),"",VLOOKUP($A$83,Voorraad!$A$2:$D$1001,3)) -> ZL201-03G | E83: =IF(ISERROR(VLOOKUP($A$83,Voorraad!$A$2:$D$1001,2)),"",VLOOKUP($A$83,Voorraad!$A$2:$D$1001,2)) -> DS1021-136sf11 | F83: =IF(ISERROR(VLOOKUP($A$83,Voorraad!$A$2:$H$1001,8)),"",VLOOKUP($A$83,Voorraad!$A$2:$H$1001,8)) -> 0 | G83: =IF(ISERROR(VLOOKUP($A$83,Voorraad!$A$2:$I$1001,9)),"",VLOOKUP($A$83,Voorraad!$A$2:$I$1001,9)) -> ZL201-03G | H83: =IF(ISERROR(VLOOKUP($A$83,Voorraad!$A$2:$J$1001,10)),"",VLOOKUP($A$83,Voorraad!$A$2:$J$1001,10)) -> 0 | I83: =IF(ISERROR(VLOOKUP($A$83,Voorraad!$A$2:$G$1001,6)),"",VLOOKUP($A$83,Voorraad!$A$2:$G$1001,6)) -> TME | J83: =IF(ISERROR(VLOOKUP($A$83,Voorraad!$A$2:$G$1001,7)),"",VLOOKUP($A$83,Voorraad!$A$2:$G$1001,7)) -> Connfly | K83: =IF(ISERROR(VLOOKUP($A$83,Voorraad!$A$2:$G$1001,5)),"",VLOOKUP($A$83,Voorraad!$A$2:$G$1001,5)) -> 8437/8439/8464/8510 | L83: =IF(ISERROR(VLOOKUP($A$83,Voorraad!$A$2:$D$1001,4)),"",VLOOKUP($A$83,Voorraad!$A$2:$D$1001,4)) -> 931 | M83: 75 | N83: 0
A84: BU0062 | B84: =[6]Sheet1!$E$79 -> 75 | C84: =IF(ISERROR(VLOOKUP($A$84,Voorraad!$A$2:$D$1001,1)),"",VLOOKUP($A$84,Voorraad!$A$2:$D$1001,1)) -> BU0062 | D84: =IF(ISERROR(VLOOKUP($A$84,Voorraad!$A$2:$D$1001,3)),"",VLOOKUP($A$84,Voorraad!$A$2:$D$1001,3)) -> CON 09031646921 64P A+C | E84: =IF(ISERROR(VLOOKUP($A$84,Voorraad!$A$2:$D$1001,2)),"",VLOOKUP($A$84,Voorraad!$A$2:$D$1001,2)) -> #5B031646921 | F84: =IF(ISERROR(VLOOKUP($A$84,Voorraad!$A$2:$H$1001,8)),"",VLOOKUP($A$84,Voorraad!$A$2:$H$1001,8)) -> 516129 | G84: =IF(ISERROR(VLOOKUP($A$84,Voorraad!$A$2:$I$1001,9)),"",VLOOKUP($A$84,Voorraad!$A$2:$I$1001,9)) -> 9031646921 | H84: =IF(ISERROR(VLOOKUP($A$84,Voorraad!$A$2:$J$1001,10)),"",VLOOKUP($A$84,Voorraad!$A$2:$J$1001,10)) -> 0 | I84: =IF(ISERROR(VLOOKUP($A$84,Voorraad!$A$2:$G$1001,6)),"",VLOOKUP($A$84,Voorraad!$A$2:$G$1001,6)) -> TME | J84: =IF(ISERROR(VLOOKUP($A$84,Voorraad!$A$2:$G$1001,7)),"",VLOOKUP($A$84,Voorraad!$A$2:$G$1001,7)) -> HARTING | K84: =IF(ISERROR(VLOOKUP($A$84,Voorraad!$A$2:$G$1001,5)),"",VLOOKUP($A$84,Voorraad!$A$2:$G$1001,5)) -> 8510 | L84: =IF(ISERROR(VLOOKUP($A$84,Voorraad!$A$2:$D$1001,4)),"",VLOOKUP($A$84,Voorraad!$A$2:$D$1001,4)) -> -75 | M84: 75 | N84: 150
A85: BU0074 | B85: =[6]Sheet1!$E$80 -> 75 | C85: =IF(ISERROR(VLOOKUP($A$85,Voorraad!$A$2:$D$1001,1)),"",VLOOKUP($A$85,Voorraad!$A$2:$D$1001,1)) -> BU0074 | D85: =IF(ISERROR(VLOOKUP($A$85,Voorraad!$A$2:$D$1001,3)),"",VLOOKUP($A$85,Voorraad!$A$2:$D$1001,3)) -> SW TP33W0030 drukknopschakelaar | E85: =IF(ISERROR(VLOOKUP($A$85,Voorraad!$A$2:$D$1001,2)),"",VLOOKUP($A$85,Voorraad!$A$2:$D$1001,2)) -> #552TP33W003000 | F85: =IF(ISERROR(VLOOKUP($A$85,Voorraad!$A$2:$H$1001,8)),"",VLOOKUP($A$85,Voorraad!$A$2:$H$1001,8)) -> 530220 | G85: =IF(ISERROR(VLOOKUP($A$85,Voorraad!$A$2:$I$1001,9)),"",VLOOKUP($A$85,Voorraad!$A$2:$I$1001,9)) -> 642-TP33W003000 | H85: =IF(ISERROR(VLOOKUP($A$85,Voorraad!$A$2:$J$1001,10)),"",VLOOKUP($A$85,Voorraad!$A$2:$J$1001,10)) -> 0 | I85: =IF(ISERROR(VLOOKUP($A$85,Voorraad!$A$2:$G$1001,6)),"",VLOOKUP($A$85,Voorraad!$A$2:$G$1001,6)) -> MOUSER | J85: =IF(ISERROR(VLOOKUP($A$85,Voorraad!$A$2:$G$1001,7)),"",VLOOKUP($A$85,Voorraad!$A$2:$G$1001,7)) -> APEM | K85: =IF(ISERROR(VLOOKUP($A$85,Voorraad!$A$2:$G$1001,5)),"",VLOOKUP($A$85,Voorraad!$A$2:$G$1001,5)) -> 8510 | L85: =IF(ISERROR(VLOOKUP($A$85,Voorraad!$A$2:$D$1001,4)),"",VLOOKUP($A$85,Voorraad!$A$2:$D$1001,4)) -> -75 | M85: 75 | N85: 150
A86: BU0075 | B86: =[6]Sheet1!$E$81 -> 300 | C86: =IF(ISERROR(VLOOKUP($A$86,Voorraad!$A$2:$D$1001,1)),"",VLOOKUP($A$86,Voorraad!$A$2:$D$1001,1)) -> BU0075 | D86: =IF(ISERROR(VLOOKUP($A$86,Voorraad!$A$2:$D$1001,3)),"",VLOOKUP($A$86,Voorraad!$A$2:$D$1001,3)) -> SW P65-101L254 kodeerschakelaar | E86: =IF(ISERROR(VLOOKUP($A$86,Voorraad!$A$2:$D$1001,2)),"",VLOOKUP($A$86,Voorraad!$A$2:$D$1001,2)) -> #553PT65101L1 | F86: =IF(ISERROR(VLOOKUP($A$86,Voorraad!$A$2:$H$1001,8)),"",VLOOKUP($A$86,Voorraad!$A$2:$H$1001,8)) -> 536219 | G86: =IF(ISERROR(VLOOKUP($A$86,Voorraad!$A$2:$I$1001,9)),"",VLOOKUP($A$86,Voorraad!$A$2:$I$1001,9)) -> 642-PT65101L254 | H86: =IF(ISERROR(VLOOKUP($A$86,Voorraad!$A$2:$J$1001,10)),"",VLOOKUP($A$86,Voorraad!$A$2:$J$1001,10)) -> 0 | I86: =IF(ISERROR(VLOOKUP($A$86,Voorraad!$A$2:$G$1001,6)),"",VLOOKUP($A$86,Voorraad!$A$2:$G$1001,6)) -> MOUSER | J86: =IF(ISERROR(VLOOKUP($A$86,Voorraad!$A$2:$G$1001,7)),"",VLOOKUP($A$86,Voorraad!$A$2:$G$1001,7)) -> HARTMAN | K86: =IF(ISERROR(VLOOKUP($A$86,Voorraad!$A$2:$G$1001,5)),"",VLOOKUP($A$86,Voorraad!$A$2:$G$1001,5)) -> 8510 | L86: =IF(ISERROR(VLOOKUP($A$86,Voorraad!$A$2:$D$1001,4)),"",VLOOKUP($A$86,Voorraad!$A$2:$D$1001,4)) -> -277 | M86: 300 | N86: 577
A87: BU0076 | B87: =[6]Sheet1!$E$82 -> 75 | C87: =IF(ISERROR(VLOOKUP($A$87,Voorraad!$A$2:$D$1001,1)),"",VLOOKUP($A$87,Voorraad!$A$2:$D$1001,1)) -> BU0076 | D87: =IF(ISERROR(VLOOKUP($A$87,Voorraad!$A$2:$D$1001,3)),"",VLOOKUP($A$87,Voorraad!$A$2:$D$1001,3)) -> LTRM5RD 25/13W | E87: =IF(ISERROR(VLOOKUP($A$87,Voorraad!$A$2:$D$1001,2)),"",VLOOKUP($A$87,Voorraad!$A$2:$D$1001,2)) -> #611RM5RD | F87: =IF(ISERROR(VLOOKUP($A$87,Voorraad!$A$2:$H$1001,8)),"",VLOOKUP($A$87,Voorraad!$A$2:$H$1001,8)) -> 0 | G87: =IF(ISERROR(VLOOKUP($A$87,Voorraad!$A$2:$I$1001,9)),"",VLOOKUP($A$87,Voorraad!$A$2:$I$1001,9)) -> 0 | H87: =IF(ISERROR(VLOOKUP($A$87,Voorraad!$A$2:$J$1001,10)),"",VLOOKUP($A$87,Voorraad!$A$2:$J$1001,10)) -> groter aantal inkopen voor vervolgen 100x | I87: =IF(ISERROR(VLOOKUP($A$87,Voorraad!$A$2:$G$1001,6)),"",VLOOKUP($A$87,Voorraad!$A$2:$G$1001,6)) -> 0 | J87: =IF(ISERROR(VLOOKUP($A$87,Voorraad!$A$2:$G$1001,7)),"",VLOOKUP($A$87,Voorraad!$A$2:$G$1001,7)) -> TRAFA | K87: =IF(ISERROR(VLOOKUP($A$87,Voorraad!$A$2:$G$1001,5)),"",VLOOKUP($A$87,Voorraad!$A$2:$G$1001,5)) -> 8510 | L87: =IF(ISERROR(VLOOKUP($A$87,Voorraad!$A$2:$D$1001,4)),"",VLOOKUP($A$87,Voorraad!$A$2:$D$1001,4)) -> -28 | M87: 75 | N87: 103
A88: BU0049 | B88: =[6]Sheet1!$E$83 -> 75 | C88: =IF(ISERROR(VLOOKUP($A$88,Voorraad!$A$2:$D$1001,1)),"",VLOOKUP($A$88,Voorraad!$A$2:$D$1001,1)) -> BU0049 | D88: =IF(ISERROR(VLOOKUP($A$88,Voorraad!$A$2:$D$1001,3)),"",VLOOKUP($A$88,Voorraad!$A$2:$D$1001,3)) -> LDR 550 NM TO-18 | E88: =IF(ISERROR(VLOOKUP($A$88,Voorraad!$A$2:$D$1001,2)),"",VLOOKUP($A$88,Voorraad!$A$2:$D$1001,2)) -> 0 | F88: =IF(ISERROR(VLOOKUP($A$88,Voorraad!$A$2:$H$1001,8)),"",VLOOKUP($A$88,Voorraad!$A$2:$H$1001,8)) -> 0 | G88: =IF(ISERROR(VLOOKUP($A$88,Voorraad!$A$2:$I$1001,9)),"",VLOOKUP($A$88,Voorraad!$A$2:$I$1001,9)) -> 3168335 | H88: =IF(ISERROR(VLOOKUP($A$88,Voorraad!$A$2:$J$1001,10)),"",VLOOKUP($A$88,Voorraad!$A$2:$J$1001,10)) -> 0 | I88: =IF(ISERROR(VLOOKUP($A$88,Voorraad!$A$2:$G$1001,6)),"",VLOOKUP($A$88,Voorraad!$A$2:$G$1001,6)) -> FARNELL | J88: =IF(ISERROR(VLOOKUP($A$88,Voorraad!$A$2:$G$1001,7)),"",VLOOKUP($A$88,Voorraad!$A$2:$G$1001,7)) -> ADVANCED | K88: =IF(ISERROR(VLOOKUP($A$88,Voorraad!$A$2:$G$1001,5)),"",VLOOKUP($A$88,Voorraad!$A$2:$G$1001,5)) -> 8510 | L88: =IF(ISERROR(VLOOKUP($A$88,Voorraad!$A$2:$D$1001,4)),"",VLOOKUP($A$88,Voorraad!$A$2:$D$1001,4)) -> 24 | M88: 75 | N88: 51
A89: BX0027 | B89: =[6]Sheet1!$E$84 -> 300 | C89: =IF(ISERROR(VLOOKUP($A$89,Voorraad!$A$2:$D$1001,1)),"",VLOOKUP($A$89,Voorraad!$A$2:$D$1001,1)) -> BX0027 | D89: =IF(ISERROR(VLOOKUP($A$89,Voorraad!$A$2:$D$1001,3)),"",VLOOKUP($A$89,Voorraad!$A$2:$D$1001,3)) -> BOUT M2X10 | E89: =IF(ISERROR(VLOOKUP($A$89,Voorraad!$A$2:$D$1001,2)),"",VLOOKUP($A$89,Voorraad!$A$2:$D$1001,2)) -> #65124665210 | F89: =IF(ISERROR(VLOOKUP($A$89,Voorraad!$A$2:$H$1001,8)),"",VLOOKUP($A$89,Voorraad!$A$2:$H$1001,8)) -> 0 | G89: =IF(ISERROR(VLOOKUP($A$89,Voorraad!$A$2:$I$1001,9)),"",VLOOKUP($A$89,Voorraad!$A$2:$I$1001,9)) -> 0 | H89: =IF(ISERROR(VLOOKUP($A$89,Voorraad!$A$2:$J$1001,10)),"",VLOOKUP($A$89,Voorraad!$A$2:$J$1001,10)) -> 0 | I89: =IF(ISERROR(VLOOKUP($A$89,Voorraad!$A$2:$G$1001,6)),"",VLOOKUP($A$89,Voorraad!$A$2:$G$1001,6)) -> 0 | J89: =IF(ISERROR(VLOOKUP($A$89,Voorraad!$A$2:$G$1001,7)),"",VLOOKUP($A$89,Voorraad!$A$2:$G$1001,7)) -> FABORY | K89: =IF(ISERROR(VLOOKUP($A$89,Voorraad!$A$2:$G$1001,5)),"",VLOOKUP($A$89,Voorraad!$A$2:$G$1001,5)) -> 8510 | L89: =IF(ISERROR(VLOOKUP($A$89,Voorraad!$A$2:$D$1001,4)),"",VLOOKUP($A$89,Voorraad!$A$2:$D$1001,4)) -> 1700 | M89: =B89 -> 300 | N89: 0
A90: BX0028 | B90: =[6]Sheet1!$E$85 -> 75 | C90: =IF(ISERROR(VLOOKUP($A$90,Voorraad!$A$2:$D$1001,1)),"",VLOOKUP($A$90,Voorraad!$A$2:$D$1001,1)) -> BX0028 | D90: =IF(ISERROR(VLOOKUP($A$90,Voorraad!$A$2:$D$1001,3)),"",VLOOKUP($A$90,Voorraad!$A$2:$D$1001,3)) -> DIN achterwand 8510 bewerkt | E90: =IF(ISERROR(VLOOKUP($A$90,Voorraad!$A$2:$D$1001,2)),"",VLOOKUP($A$90,Voorraad!$A$2:$D$1001,2)) -> #680ACHTER8510B | F90: =IF(ISERROR(VLOOKUP($A$90,Voorraad!$A$2:$H$1001,8)),"",VLOOKUP($A$90,Voorraad!$A$2:$H$1001,8)) -> 0 | G90: =IF(ISERROR(VLOOKUP($A$90,Voorraad!$A$2:$I$1001,9)),"",VLOOKUP($A$90,Voorraad!$A$2:$I$1001,9)) -> 445-273-01 | H90: =IF(ISERROR(VLOOKUP($A$90,Voorraad!$A$2:$J$1001,10)),"",VLOOKUP($A$90,Voorraad!$A$2:$J$1001,10)) -> 0 | I90: =IF(ISERROR(VLOOKUP($A$90,Voorraad!$A$2:$G$1001,6)),"",VLOOKUP($A$90,Voorraad!$A$2:$G$1001,6)) -> 0 | J90: =IF(ISERROR(VLOOKUP($A$90,Voorraad!$A$2:$G$1001,7)),"",VLOOKUP($A$90,Voorraad!$A$2:$G$1001,7)) -> APRANORM | K90: =IF(ISERROR(VLOOKUP($A$90,Voorraad!$A$2:$G$1001,5)),"",VLOOKUP($A$90,Voorraad!$A$2:$G$1001,5)) -> 8510 | L90: =IF(ISERROR(VLOOKUP($A$90,Voorraad!$A$2:$D$1001,4)),"",VLOOKUP($A$90,Voorraad!$A$2:$D$1001,4)) -> -55 | M90: 75 | N90: 130
A91: BX0029 | B91: =[6]Sheet1!$E$86 -> 75 | C91: =IF(ISERROR(VLOOKUP($A$91,Voorraad!$A$2:$D$1001,1)),"",VLOOKUP($A$91,Voorraad!$A$2:$D$1001,1)) -> BX0029 | D91: =IF(ISERROR(VLOOKUP($A$91,Voorraad!$A$2:$D$1001,3)),"",VLOOKUP($A$91,Voorraad!$A$2:$D$1001,3)) -> DIN behuizing 8510 CSI | E91: =IF(ISERROR(VLOOKUP($A$91,Voorraad!$A$2:$D$1001,2)),"",VLOOKUP($A$91,Voorraad!$A$2:$D$1001,2)) -> #680KAST8510 | F91: =IF(ISERROR(VLOOKUP($A$91,Voorraad!$A$2:$H$1001,8)),"",VLOOKUP($A$91,Voorraad!$A$2:$H$1001,8)) -> 0 | G91: =IF(ISERROR(VLOOKUP($A$91,Voorraad!$A$2:$I$1001,9)),"",VLOOKUP($A$91,Voorraad!$A$2:$I$1001,9)) -> 0 | H91: =IF(ISERROR(VLOOKUP($A$91,Voorraad!$A$2:$J$1001,10)),"",VLOOKUP($A$91,Voorraad!$A$2:$J$1001,10)) -> 0 | I91: =IF(ISERROR(VLOOKUP($A$91,Voorraad!$A$2:$G$1001,6)),"",VLOOKUP($A$91,Voorraad!$A$2:$G$1001,6)) -> 0 | J91: =IF(ISERROR(VLOOKUP($A$91,Voorraad!$A$2:$G$1001,7)),"",VLOOKUP($A$91,Voorraad!$A$2:$G$1001,7)) -> APRANORM | K91: =IF(ISERROR(VLOOKUP($A$91,Voorraad!$A$2:$G$1001,5)),"",VLOOKUP($A$91,Voorraad!$A$2:$G$1001,5)) -> 8510 | L91: =IF(ISERROR(VLOOKUP($A$91,Voorraad!$A$2:$D$1001,4)),"",VLOOKUP($A$91,Voorraad!$A$2:$D$1001,4)) -> 7 | M91: 75 | N91: 68
A92: BX0030 | B92: =[6]Sheet1!$E$87 -> 150 | C92: =IF(ISERROR(VLOOKUP($A$92,Voorraad!$A$2:$D$1001,1)),"",VLOOKUP($A$92,Voorraad!$A$2:$D$1001,1)) -> BX0030 | D92: =IF(ISERROR(VLOOKUP($A$92,Voorraad!$A$2:$D$1001,3)),"",VLOOKUP($A$92,Voorraad!$A$2:$D$1001,3)) -> DIN montagebeugel 8510 CSI | E92: =IF(ISERROR(VLOOKUP($A$92,Voorraad!$A$2:$D$1001,2)),"",VLOOKUP($A$92,Voorraad!$A$2:$D$1001,2)) -> #680MONTBE8510 | F92: =IF(ISERROR(VLOOKUP($A$92,Voorraad!$A$2:$H$1001,8)),"",VLOOKUP($A$92,Voorraad!$A$2:$H$1001,8)) -> 0 | G92: =IF(ISERROR(VLOOKUP($A$92,Voorraad!$A$2:$I$1001,9)),"",VLOOKUP($A$92,Voorraad!$A$2:$I$1001,9)) -> 440-001 | H92: =IF(ISERROR(VLOOKUP($A$92,Voorraad!$A$2:$J$1001,10)),"",VLOOKUP($A$92,Voorraad!$A$2:$J$1001,10)) -> 0 | I92: =IF(ISERROR(VLOOKUP($A$92,Voorraad!$A$2:$G$1001,6)),"",VLOOKUP($A$92,Voorraad!$A$2:$G$1001,6)) -> 0 | J92: =IF(ISERROR(VLOOKUP($A$92,Voorraad!$A$2:$G$1001,7)),"",VLOOKUP($A$92,Voorraad!$A$2:$G$1001,7)) -> APRANORM | K92: =IF(ISERROR(VLOOKUP($A$92,Voorraad!$A$2:$G$1001,5)),"",VLOOKUP($A$92,Voorraad!$A$2:$G$1001,5)) -> 8510 | L92: =IF(ISERROR(VLOOKUP($A$92,Voorraad!$A$2:$D$1001,4)),"",VLOOKUP($A$92,Voorraad!$A$2:$D$1001,4)) -> 87 | M92: 150 | N92: 63
A93: BX0031 | B93: =[6]Sheet1!$E$88 -> 75 | C93: =IF(ISERROR(VLOOKUP($A$93,Voorraad!$A$2:$D$1001,1)),"",VLOOKUP($A$93,Voorraad!$A$2:$D$1001,1)) -> BX0031 | D93: =IF(ISERROR(VLOOKUP($A$93,Voorraad!$A$2:$D$1001,3)),"",VLOOKUP($A$93,Voorraad!$A$2:$D$1001,3)) -> FRONTJE INCL RAAM (DE NAAMPL) | E93: =IF(ISERROR(VLOOKUP($A$93,Voorraad!$A$2:$D$1001,2)),"",VLOOKUP($A$93,Voorraad!$A$2:$D$1001,2)) -> #686940035CSI | F93: =IF(ISERROR(VLOOKUP($A$93,Voorraad!$A$2:$H$1001,8)),"",VLOOKUP($A$93,Voorraad!$A$2:$H$1001,8)) -> 0 | G93: =IF(ISERROR(VLOOKUP($A$93,Voorraad!$A$2:$I$1001,9)),"",VLOOKUP($A$93,Voorraad!$A$2:$I$1001,9)) -> 0 | H93: =IF(ISERROR(VLOOKUP($A$93,Voorraad!$A$2:$J$1001,10)),"",VLOOKUP($A$93,Voorraad!$A$2:$J$1001,10)) -> 0 | I93: =IF(ISERROR(VLOOKUP($A$93,Voorraad!$A$2:$G$1001,6)),"",VLOOKUP($A$93,Voorraad!$A$2:$G$1001,6)) -> 0 | J93: =IF(ISERROR(VLOOKUP($A$93,Voorraad!$A$2:$G$1001,7)),"",VLOOKUP($A$93,Voorraad!$A$2:$G$1001,7)) -> 0 | K93: =IF(ISERROR(VLOOKUP($A$93,Voorraad!$A$2:$G$1001,5)),"",VLOOKUP($A$93,Voorraad!$A$2:$G$1001,5)) -> 8510 | L93: =IF(ISERROR(VLOOKUP($A$93,Voorraad!$A$2:$D$1001,4)),"",VLOOKUP($A$93,Voorraad!$A$2:$D$1001,4)) -> -44 | M93: 75 | N93: 119
A94: BX0032 | B94: =[6]Sheet1!$E$89 -> 75 | C94: =IF(ISERROR(VLOOKUP($A$94,Voorraad!$A$2:$D$1001,1)),"",VLOOKUP($A$94,Voorraad!$A$2:$D$1001,1)) -> BX0032 | D94: =IF(ISERROR(VLOOKUP($A$94,Voorraad!$A$2:$D$1001,3)),"",VLOOKUP($A$94,Voorraad!$A$2:$D$1001,3)) -> IC 18CV8P-15 PEEL GEPROGR. V1.2 | E94: =IF(ISERROR(VLOOKUP($A$94,Voorraad!$A$2:$D$1001,2)),"",VLOOKUP($A$94,Voorraad!$A$2:$D$1001,2)) -> #4818CV8P15Li | F94: =IF(ISERROR(VLOOKUP($A$94,Voorraad!$A$2:$H$1001,8)),"",VLOOKUP($A$94,Voorraad!$A$2:$H$1001,8)) -> 0 | G94: =IF(ISERROR(VLOOKUP($A$94,Voorraad!$A$2:$I$1001,9)),"",VLOOKUP($A$94,Voorraad!$A$2:$I$1001,9)) -> 0 | H94: =IF(ISERROR(VLOOKUP($A$94,Voorraad!$A$2:$J$1001,10)),"",VLOOKUP($A$94,Voorraad!$A$2:$J$1001,10)) -> Ongeprogrammeerd. Graag 15Z versie nemen. | I94: =IF(ISERROR(VLOOKUP($A$94,Voorraad!$A$2:$G$1001,6)),"",VLOOKUP($A$94,Voorraad!$A$2:$G$1001,6)) -> 0 | J94: =IF(ISERROR(VLOOKUP($A$94,Voorraad!$A$2:$G$1001,7)),"",VLOOKUP($A$94,Voorraad!$A$2:$G$1001,7)) -> ICT | K94: =IF(ISERROR(VLOOKUP($A$94,Voorraad!$A$2:$G$1001,5)),"",VLOOKUP($A$94,Voorraad!$A$2:$G$1001,5)) -> 8510 | L94: =IF(ISERROR(VLOOKUP($A$94,Voorraad!$A$2:$D$1001,4)),"",VLOOKUP($A$94,Voorraad!$A$2:$D$1001,4)) -> -75 | M94: 75 | N94: 150
A95: BX0033 | B95: =[6]Sheet1!$E$90 -> 75 | C95: =IF(ISERROR(VLOOKUP($A$95,Voorraad!$A$2:$D$1001,1)),"",VLOOKUP($A$95,Voorraad!$A$2:$D$1001,1)) -> BX0033 | D95: =IF(ISERROR(VLOOKUP($A$95,Voorraad!$A$2:$D$1001,3)),"",VLOOKUP($A$95,Voorraad!$A$2:$D$1001,3)) -> IC 18CV8P-15 PEEL GEPROGR. V1.2 | E95: =IF(ISERROR(VLOOKUP($A$95,Voorraad!$A$2:$D$1001,2)),"",VLOOKUP($A$95,Voorraad!$A$2:$D$1001,2)) -> #4818CV8P15LiPR | F95: =IF(ISERROR(VLOOKUP($A$95,Voorraad!$A$2:$H$1001,8)),"",VLOOKUP($A$95,Voorraad!$A$2:$H$1001,8)) -> 0 | G95: =IF(ISERROR(VLOOKUP($A$95,Voorraad!$A$2:$I$1001,9)),"",VLOOKUP($A$95,Voorraad!$A$2:$I$1001,9)) -> UT8IC89M5530 | H95: =IF(ISERROR(VLOOKUP($A$95,Voorraad!$A$2:$J$1001,10)),"",VLOOKUP($A$95,Voorraad!$A$2:$J$1001,10)) -> Geprogrammeerd. Z versie beter programmeerbaar | I95: =IF(ISERROR(VLOOKUP($A$95,Voorraad!$A$2:$G$1001,6)),"",VLOOKUP($A$95,Voorraad!$A$2:$G$1001,6)) -> MOUSER | J95: =IF(ISERROR(VLOOKUP($A$95,Voorraad!$A$2:$G$1001,7)),"",VLOOKUP($A$95,Voorraad!$A$2:$G$1001,7)) -> ICT | K95: =IF(ISERROR(VLOOKUP($A$95,Voorraad!$A$2:$G$1001,5)),"",VLOOKUP($A$95,Voorraad!$A$2:$G$1001,5)) -> 8510 | L95: =IF(ISERROR(VLOOKUP($A$95,Voorraad!$A$2:$D$1001,4)),"",VLOOKUP($A$95,Voorraad!$A$2:$D$1001,4)) -> -75 | M95: 75 | N95: 150
